Workbook

Sheet Toelichting
A4: Welkom:
A5: Dit rekenpgramma is gemaakt om meer inzicht te verkrijgen in de mineralen efficientie op uw bedrijf en u te helpen deze te verbeteren.
A6: Het programma helpt u in beeld te brengen wat u de afgelopen periode aan uw melkvee heeft gevoerd en tot welke excretie dit leidt.
A7: Ook maakt het inzichtelijk hoeveel stikstof en fosfor u per kg krachtvoer kunt aankopen bij het rantsoen dat u voert en het gewenste krachtvoer niveau.
A9: Kies nu eerst of u deze tool het hele jaar of alleen gedurende het weideseizoen wilt gebruiken (u kunt u keuze altijd nog aanpassen).
A11: Stap 1
A12: Voer in het tablad voedermiddelen het voer in dat u heeft gevoerd en van plan bent de komende periode te gaan voeren.
A14: Stap 2
A15: In het tablad weidegras staan per maand standaard gemiddelde voederwaardes voor het weidegras. Deze waarde zijn gebasseerd op metingen uit het verleden.
A16: Wanneer u wilt kunt u zelf de waarden van uw weidegras invoeren onder het kopje eigen invoer.
A18: Stap 3
A19: In het tabblad Veestapel+Melkproductie voert u het gemiddelde aantal melkgevende koeien in van de gewenste maand en de bijbehorende geleverde melk.
A20: Ook voert u het aantal droge koeien in die tussen de melkveestapel lopen en zodoende ook mee eten van het melkveerantsoen.
A21: Voor de prognose voert u de hoeveelheid in die u komende maand verwacht te leveren alsmede het aantal koeien.
A23: Stap 4
A24: In het tablad rantsoen geeft u aan of wel of geen weidegang toepast en welk weidegras te koeien te vreten hebben. Dit kunt u zowel voor de realisatie doen als voor de prognose.
A25: Daarnaast vult u in hoeveel kg product u van iedere voersoort dagelijks aan het melkvee heeft gevoerd en hoeveel % restvoer er was van het ruwvoer.
A26: U kunt hierbij kiezen uit de voedermiddelen die u zelf in het tabblad voedermiddelen hebt ingevoerd.
A27: Kies bij prognose voor een gewenst krachtvoer niveau en de gewenste gehaltes aan ruw eiwit en fosfor in het rantsoen.
A29: Uitkomst: | B29: Het programma geeft nu aan hoeveel eiwit en fosfor er per kg maximaal in de brok mag zitten om het gewenste rantsoen samen te stellen
B30: en hoeveel weidegras de koeien nog op moeten nemen om in de VEM behoefte te kunnen voorzien.
A43: Jan vee+melk | B43: J
A44: Jan voer | B44: J
A45: Feb vee+melk | B45: J
A46: Feb voer | B46: J
A47: Maart vee+melk | B47: J
A48: Maart voer | B48: J
A49: Nov vee+melk | B49: J
A50: Nov voer | B50: J
A51: Dec vee+melk | B51: J
A52: Dec voer | B52: J

Sheet voorbeeld (hidden)
A1: Voergroep 1
D3: pinken | F3: kalveren | H3: kg melk | I3: Voersoorten met restvoer en voer voor andere diergroepen | S3: kg voer | T3: kg voer | U3: kg rest- | W3: Voersoorten zonder restvoer
A4: dgn | B4: aantal | C4: aantal | D4: lft | E4: lft | F4: lft | G4: lft | H4: niet in de | S4: diergroep | T4: diergroep | U4: voer
A5: periode | B5: melkg. | C5: droog | H5: tank | I5: wg | J5: =D35 -> graskuil 2016 | K5: =D36 -> graskuil plaat 2 2015 | L5: =D37 -> hooi 2e snede | M5: =D38 -> maiskuil oost 2016 | N5: =D39 -> 0 | O5: =D40 -> bierbostel | P5: =D41 -> sodagrain | Q5: =D42 -> 0 | S5: I | T5: II | U5: mestvaalt | W5: =D43 -> snijmaiskernbrok | X5: =D44 -> eiwit | Y5: =D45 -> opti-brok | Z5: voer 13 | AA5: voer 14 | AB5: voer 15
A6: 7 | B6: 67 | C6: 2 | H6: 0 | I6: 0 | J6: 10500 | K6: 0 | L6: 70 | M6: 5600 | O6: 2400 | P6: =140*7 -> 980 | W6: 420 | X6: =240*7 -> 1680 | Y6: 0
I13: =IF($AA$30>0,($L$50*$AA$30/100-SUM($W$35:$W$48))/$L$34*1000/$K$34*SUM($B$19:$G$19)*$A$6,0) -> 556.342521
A16: Kg verstrekt | I16: =SUM(I6:I15) -> 556.342521 | J16: 10500 | K16: 0 | L16: 70 | M16: 5600 | N16: 0 | O16: 2400 | P16: 980 | Q16: 0 | W16: =SUM(W6:W15) -> 420 | X16: 1680 | Y16: 0 | Z16: 0 | AA16: 0 | AB16: 0
A17: Kg rest en voer andere diergroepen | I17: =IF($AA$30>0,0,IF(I16>0,I16/(SUM($I16:$Q16))*($S17+$T17+$U17),0)) -> 0 | J17: =IF($AA$30>0,IF(J$16>0,(J$16/SUM($J$16:$Q$16))*($S$17+$T$17+$U$17),0),IF(J$16>0,(J$16/SUM($I$16:$Q$16))*($S$17+$T$17+$U$17),0)) -> 0 | K17: 0 | L17: 0 | M17: 0 | N17: 0 | O17: 0 | P17: 0 | Q17: 0 | S17: =SUM(S6:S15) -> 0 | T17: =SUM(T6:T15) -> 0 | U17: =SUM(U6:U15) -> 0
A18: Kg opname in 7 dagen | I18: =IF(I16>0,(I16-I17)/A6*7,0) -> 556.342521 | J18: =IF(J16>0,(J16-J17)/A6*7,0) -> 10500 | K18: =IF(K16>0,(K16-K17)/A6*7,0) -> 0 | L18: =IF(L16>0,(L16-L17)/A6*7,0) -> 70 | M18: =IF(M16>0,(M16-M17)/A6*7,0) -> 5600 | N18: =IF(N16>0,(N16-N17)/A6*7,0) -> 0 | O18: =IF(O16>0,(O16-O17)/A6*7,0) -> 2400 | P18: =IF(P16>0,(P16-P17)/A6*7,0) -> 980 | Q18: =IF(Q16>0,(Q16-Q17)/A6*7,0) -> 0 | W18: =IF(W16>0,W16/A6*7,0) -> 420 | X18: =IF(X16>0,X16/A6*7,0) -> 1680 | Y18: =IF(Y16>0,Y16/A6*7,0) -> 0 | Z18: =IF(Z16>0,Z16/A6*7,0) -> 0 | AA18: =IF(AA16>0,AA16/A6*7,0) -> 0 | AB18: =IF(AB16>0,AB16/A6*7,0) -> 0
A19: Gem. | B19: =IF(B6>0,AVERAGE(B6:B15),0) -> 67 | C19: 2 | D19: 0 | E19: 0 | F19: 0 | G19: 0 | H19: =SUM(H6:H18) -> 0
A20: Voer voor diergroep I | I20: =IF($AA$30>0,0,IF(I$16>0,(I$16/SUM($I$16:$Q$16))*$S$17,0)) -> 0 | J20: =IF($AA$30>0,IF(J$16>0,(J$16/SUM($J$16:$Q$16))*$S$17,0),IF(J$16>0,(J$16/SUM($I$16:$Q$16))*$S$17,0)) -> 0 | K20: 0 | L20: 0 | M20: 0 | N20: 0 | O20: 0 | P20: 0 | Q20: 0 | T20: =SUM(I20:Q20) -> 0
A21: Voer voor diergroep II | I21: =IF($AA$30>0,0,IF(I$16>0,(I$16/SUM($I$16:$Q$16))*$T$17,0)) -> 0 | J21: =IF($AA$30>0,IF(J$16>0,(J$16/SUM($J$16:$Q$16))*$T$17,0),IF(J$16>0,(J$16/SUM($I$16:$Q$16))*$T$17,0)) -> 0 | K21: 0 | L21: 0 | M21: 0 | N21: 0 | O21: 0 | P21: 0 | Q21: 0 | T21: =SUM(I21:Q21) -> 0
A22: Verdeling voer over de diercategorien
A23: Melkg. | B23: =B19 -> 67 | I23: =IF(I$18>0,I$18/SUM(B$19:G$19)*B23,0) -> 540.2166508 | J23: =IF(J$18>0,J$18/SUM(B$19:G$19)*B23,0) -> 10195.65217 | K23: =IF(K$18>0,K$18/SUM(B$19:G$19)*B23,0) -> 0 | L23: =IF(L$18>0,L$18/SUM(B$19:G$19)*B23,0) -> 67.97101449 | M23: =IF(M$18>0,M$18/SUM(B$19:G$19)*B23,0) -> 5437.681159 | N23: =IF(N$18>0,N$18/SUM(B$19:G$19)*B23,0) -> 0 | O23: =IF(O$18>0,O$18/SUM(B$19:G$19)*B23,0) -> 2330.434783 | P23: =IF(P$18>0,P$18/SUM(B$19:G$19)*B23,0) -> 951.5942029 | Q23: =IF(Q$18>0,Q$18/SUM(B$19:G$19)*B23,0) -> 0 | W23: =IF(W$18>0,W$18/SUM(B$19:G$19)*B23,0) -> 407.826087 | X23: =IF(X$18>0,X$18/SUM(B$19:G$19)*B23,0) -> 1631.304348 | Y23: =IF(Y$18>0,Y$18/SUM(B$19:G$19)*B23,0) -> 0 | Z23: =IF(Z$18>0,Z$18/SUM(B$19:G$19)*B23,0) -> 0 | AA23: =IF(AA$18>0,AA$18/SUM(B$19:G$19)*B23,0) -> 0 | AB23: =IF(AB$18>0,AB$18/SUM(B$19:G$19)*B23,0) -> 0
A24: Droog | B24: =C19 -> 2 | I24: 16.12587017 | J24: 304.3478261 | K24: 0 | L24: 2.028985507 | M24: 162.3188406 | N24: 0 | O24: 69.56521739 | P24: 28.4057971 | Q24: 0 | W24: 12.17391304 | X24: 48.69565217 | Y24: 0 | Z24: 0 | AA24: 0 | AB24: 0
A25: Jongvee | B25: =D19 -> 0 | D25: Leeft. | E25: =D5 -> 0 | F25: mnd | I25: 0 | J25: 0 | K25: 0 | L25: 0 | M25: 0 | N25: 0 | O25: 0 | P25: 0 | Q25: 0 | W25: 0 | X25: 0 | Y25: 0 | Z25: 0 | AA25: 0 | AB25: 0
A26: Jongvee | B26: =E19 -> 0 | D26: Leeft. | E26: =E5 -> 0 | F26: mnd | I26: 0 | J26: 0 | K26: 0 | L26: 0 | M26: 0 | N26: 0 | O26: 0 | P26: 0 | Q26: 0 | W26: 0 | X26: 0 | Y26: 0 | Z26: 0 | AA26: 0 | AB26: 0
A27: Jongvee | B27: =F19 -> 0 | D27: Leeft. | E27: =F5 -> 0 | F27: mnd | I27: 0 | J27: 0 | K27: 0 | L27: 0 | M27: 0 | N27: 0 | O27: 0 | P27: 0 | Q27: 0 | W27: 0 | X27: 0 | Y27: 0 | Z27: 0 | AA27: 0 | AB27: 0
A28: Jongvee | B28: =G19 -> 0 | D28: Leeft. | E28: =G5 -> 0 | F28: mnd | I28: 0 | J28: 0 | K28: 0 | L28: 0 | M28: 0 | N28: 0 | O28: 0 | P28: 0 | Q28: 0 | W28: 0 | X28: 0 | Y28: 0 | Z28: 0 | AA28: 0 | AB28: 0
A30: Bedrijf: | C30: Voorbeeld | I30: Week: | J30: 2016_01 | M30: Diergroep: | N30: Melkgevende koeien | S30: Aantal dieren in de groep: | T30: =B23 -> 67 | X30: VEM-dekking weideperiode | AA30: 110
I31: Datum: | J31: =C67 -> 2016-01-11 | K31: t/m | L31: =C68 -> 2016-01-17 | S31: Dierdagen: | T31: =T30*7 -> 469 | Z31: (0 = stalperiode) | AA31: 110 = gem 2011/2012
A32: Voeropname | I32: kg | J32: kg ds/ | K32: analyse bij R en B in gr/kg ds; bij K in gr/kg product | W32: opname per dier/dag
A33: Voercode | D33: Omschrijving | H33: R, B of K | I33: gevoerd | J33: dier/dag | K33: ds | L33: VEM | M33: DVE | N33: OEB | O33: RE | P33: RC | Q33: RAS | R33: P | S33: N-tot | U33: Opmerkingen | W33: VEM | X33: DVE | Y33: OEB | Z33: % RE | AA33: gr P | AB33: gr N
A34: Versg gras | D34: weidegars | H34: R | I34: =I$23 -> 540.2166508 | J34: =IF(T$30>0,(I34*K34)/7/T$30/1000,0) -> 0.2303695739 | K34: 200 | L34: 940 | M34: 50 | N34: 30 | O34: 200 | P34: 220 | Q34: 90 | R34: 4.5 | S34: 32 | V34: wg | W34: =IF(H34="k",(1000/K34*J34*L34),((J34*L34))) -> 216.5473995 | X34: =IF(H34="k",(1000/K34*J34*M34),((J34*M34))) -> 11.5184787 | Y34: =IF(H34="k",(1000/K34*J34*N34),((J34*N34))) -> 6.911087218 | Z34: =IF(H34="k",(1000/K34*J34*O34),((J34*O34))) -> 46.07391478 | AA34: =IF(H34="k",(1000/K34*J34*R34),((J34*R34))) -> 1.036663083 | AB34: =IF(H34="k",(1000/K34*J34*S34),((J34*S34))) -> 7.371826365
A35: GK_2016_01_A | D35: graskuil 2016 | H35: R | I35: =J$23 -> 10195.65217 | J35: =IF(T$30>0,(I35*K35)/7/T$30/1000,0) -> 10.80434783 | K35: 497 | L35: 969 | M35: 71 | N35: 36 | O35: 160 | P35: 245 | Q35: 92 | R35: 3.6 | S35: =O35/6.25 -> 25.6 | V35: gk | W35: 10469.41304 | X35: 767.1086957 | Y35: 388.9565217 | Z35: 1728.695652 | AA35: 38.89565217 | AB35: 276.5913043
A36: GK_2016_01_B | D36: graskuil plaat 2 2015 | H36: R | I36: =K$23 -> 0 | J36: 0 | K36: 478 | L36: 852 | M36: 49 | N36: 18 | O36: 114 | P36: 243 | Q36: 131 | R36: 4.2 | S36: =O36/6.25 -> 18.24 | V36: gk | W36: 0 | X36: 0 | Y36: 0 | Z36: 0 | AA36: 0 | AB36: 0
A37: GH_2016 | D37: hooi 2e snede | H37: R | I37: =L$23 -> 67.97101449 | J37: 0.1257971014 | K37: 868 | L37: 797 | M37: 68 | N37: -28 | O37: 106 | P37: 261 | Q37: 91 | R37: 3.3 | S37: 16.96 | V37: gk | W37: 100.2602899 | X37: 8.554202899 | Y37: -3.522318841 | Z37: 13.33449275 | AA37: 0.4151304348 | AB37: 2.133518841
A38: MK_2016_01 | D38: maiskuil oost 2016 | H38: R | I38: =M$23 -> 5437.681159 | J38: 4 | K38: 345 | L38: 1016 | M38: 55 | N38: -48 | O38: 66 | P38: 166 | Q38: 35 | R38: 2.3 | S38: 10.56 | V38: mk | W38: 4064 | X38: 220 | Y38: -192 | Z38: 264 | AA38: 9.2 | AB38: 42.24
I39: =N$23 -> 0 | J39: 0 | W39: 0 | X39: 0 | Y39: 0 | Z39: 0 | AA39: 0 | AB39: =IF(H39="k",(1000/K39*J39*S39),((J39*S39))) -> 0
A40: Bierbostel | D40: bierbostel | H40: B | I40: =O$23 -> 2330.434783 | J40: 1.088198758 | K40: 219 | L40: 947 | M40: 137 | N40: 55 | O40: 247 | P40: 178 | Q40: 42 | R40: 6.2 | S40: 39.5 | V40: b | W40: 1030.524224 | X40: 149.0832298 | Y40: 59.85093168 | Z40: =IF(H40="k",(1000/K40*J40*O40),((J40*O40))) -> 268.7850932 | AA40: 6.746832298 | AB40: 42.98385093
A41: Sodagrain | D41: sodagrain | H41: B | I41: =P$23 -> 951.5942029 | J41: 1.52173913 | K41: 750 | L41: 1160 | M41: 100 | N41: -43 | O41: 109 | P41: 24 | Q41: 15 | R41: 3 | S41: =O41/6.25 -> 17.44 | V41: b | W41: 1765.217391 | X41: 152.173913 | Y41: -65.43478261 | Z41: 165.8695652 | AA41: 4.565217391 | AB41: 26.53913043
I42: =Q$23 -> 0 | J42: 0 | W42: 0 | X42: 0 | Y42: 0 | Z42: 0 | AA42: 0 | AB42: 0
A43: KV_2016_01_A | D43: snijmaiskernbrok | H43: K | I43: =W$23 -> 407.826087 | J43: 0.7713043478 | K43: 887 | L43: 950 | M43: 180 | N43: 75 | O43: 315 | P43: 88 | Q43: 101 | R43: 6.6 | S43: =O43/6.25 -> 50.4 | V43: kv | W43: 826.0869565 | X43: 156.5217391 | Y43: 65.2173913 | Z43: 273.9130435 | AA43: 5.739130435 | AB43: 43.82608696
A44: KV_2016_01_B | D44: eiwit | H44: K | I44: =X$23 -> 1631.304348 | J44: 3.085217391 | K44: 887 | L44: 950 | M44: 115 | N44: 5 | O44: 175 | P44: 99 | Q44: 73 | R44: 3.9 | S44: 28 | V44: kv | W44: 3304.347826 | X44: 400 | Y44: 17.39130435 | Z44: 608.6956522 | AA44: 13.56521739 | AB44: 97.39130435
A45: KV_2016_01_C | D45: opti-brok | I45: 0 | J45: 0 | K45: 892 | L45: 890 | M45: 139 | N45: 105 | O45: 276 | P45: 86 | Q45: 148 | R45: 4.7 | S45: 44.16 | W45: 0 | X45: 0 | Y45: 0 | Z45: 0 | AA45: 0 | AB45: 0
I46: =Z$23 -> 0 | J46: 0 | W46: 0 | X46: 0 | Y46: 0 | Z46: 0 | AA46: 0 | AB46: 0
I47: =AA$23 -> 0 | J47: 0 | W47: 0 | X47: 0 | Y47: 0 | Z47: 0 | AA47: 0 | AB47: 0
I48: =AB$23 -> 0 | J48: 0 | W48: 0 | X48: 0 | Y48: 0 | Z48: 0 | AA48: 0 | AB48: 0
A49: Opname totaal (dier/dag) | J49: =SUM(J34:J48) -> 21.62697413 | L49: =W49 -> 21776.39713 | M49: =X49 -> 1864.960259 | N49: =Y49 -> 277.3701348 | O49: =Z49 -> 3369.367414 | R49: =AA49 -> 80.16384321 | S49: =AB49 -> 539.0770222 | W49: =SUM(W34:W48) -> 21776.39713 | X49: 1864.960259 | Y49: 277.3701348 | Z49: 3369.367414 | AA49: 80.16384321 | AB49: 539.0770222
A50: Behoefte | L50: =IF(AA30>0,6013+440*M54+0.73*M54*M54,5013+440*M54+0.73*M54*M54) -> 19796.72466 | M50: =114+(1.396*E57*E60*10)+0.000195*((E57*E60*10)*(E57*E60*10))+20 -> 1763.74357 | O50: =M49/N49*10 -> 67.23724096 | R50: =19+1.43*M54 -> 61.68336567
A51: Dekking (%) | L51: =L49/L50*100 -> 110 | M51: =M49/M50*100 -> 105.7387418 | R51: =R49/R50*100 -> 129.9602289
L52: Let op: In zomer VEM-beh+1000
A53: Melkproductie | K53: Kengetallen | P53: Excretie (kg/dier/dag) | W53: kg ds/koe/dag | AD53: Melkproductie | AG53: Ureumgehalte (mg/100 g) | AP53: Ureumgehalte (mg/100 g) | BJ53: Fosfaat- | BK53: mestproductie in stal
A54: kg melk per week | E54: =(L74/C74*7)+H19 -> 12950 | F54: (inclusief niet in de tank : | I54: =H19 -> 0 | J54: kg) | K54: FPCM | M54: =(0.337+0.116*E59+0.06*E60)*E57 -> 29.84850746 | N54: kg | R54: N | S54: P | T54: P2O5 | V54: wg | W54: =SUMIF(V$34:V$48,"wg",J$34:J$48) -> 0.2303695739 | AD54: per koe (kg) | AE54: max | AF54: waar melk? | AG54: <14 | AH54: 14 | AI54: 15 | AJ54: 16 | AK54: 17 | AL54: 18 | AM54: 19 | AN54: 20 | AO54: 21 | AP54: 22 | AQ54: 23 | AR54: 24 | AS54: 25 | AT54: 26 | AU54: 27 | AV54: 28 | AW54: 29 | AX54: 30 | AY54: 31 | AZ54: 32 | BA54: 33 | BB54: 34 | BC54: 35 | BD54: 36 | BE54: 37 | BF54: 38 | BG54: 39 | BH54: 40 | BI54: >40 | BJ54: excretie | BK54: per 7 maanden
A55: aantal melkgevende koeien | E55: =B23 -> 67 | K55: N-efficiëntie | M55: =(E57*E60*10/6.38)/S49*100 -> 29.70483541 | N55: % | P55: Opname | R55: =(AB49*T30)*0.365/(E55+E56) -> 173.4622181 | S55: =(AA49*T30)*0.365/(E55+E56) -> 25.79482613 | T55: =S55*2.291 -> 59.09594666 | V55: gk | W55: =SUMIF(V$34:V$48,"gk",J$34:J$48) -> 10.93014493 | AD55: < 5625 | AE55: 5625 | AF55: =IF($AE$84>0,+IF($AE$84<AE55,1,0)) -> 0 | AG55: 76 | AH55: 77.5 | AI55: 79 | AJ55: 81 | AK55: 82.5 | AL55: 84 | AM55: 86 | AN55: 87.5 | AO55: 89 | AP55: 90.5 | AQ55: 92.5 | AR55: 94 | AS55: 95.5 | AT55: 97.5 | AU55: 99 | AV55: 100.5 | AW55: 102.5 | AX55: 104 | AY55: 105.5 | AZ55: 107 | BA55: 109 | BB55: 110.5 | BC55: 112 | BD55: 114 | BE55: 115.5 | BF55: 117 | BG55: 118.5 | BH55: 120.5 | BI55: 122 | BJ55: 32.4 | BK55: 12.1
A56: aantal droogstaande koeien | E56: 9 | K56: P-efficiëntie | M56: =(E57*0.9)/R49*100 -> 30.99994371 | N56: % | P56: Productie | R56: =(E58*E60*10)/6.38*0.365 -> 51.52666639 | S56: =E58*0.9*0.365 -> 7.996381579 | T56: =S56*2.291 -> 18.3197102 | V56: mk | W56: =SUMIF(V$34:V$48,"mk",J$34:J$48) -> 4 | AD56: 5625 - 5874 | AE56: 5874 | AF56: =IF($AE$84>AE55,+IF($AE$84<AE56,1,0)) -> 0 | AG56: 80.5 | AH56: 82.5 | AI56: 84 | AJ56: 85.5 | AK56: 87 | AL56: 89 | AM56: 90.5 | AN56: 92 | AO56: 94 | AP56: 95.5 | AQ56: 97 | AR56: 99 | AS56: 100.5 | AT56: 102 | AU56: 103.5 | AV56: 105.5 | AW56: 107 | AX56: 108.5 | AY56: 110.5 | AZ56: 112 | BA56: 113.5 | BB56: 115 | BC56: 117 | BD56: 118.5 | BE56: 120 | BF56: 122 | BG56: 123.5 | BH56: 125 | BI56: 127 | BJ56: 34 | BK56: 12.6
A57: kg melk/koe/dag | E57: =E54/E55/7 -> 27.6119403 | F57: (gem. melkgevende koeien) | K57: KV / 100 kg FPCM | M57: =(SUMIF(H34:H48,"K",I34:I48)/(M54*E55*7))*100 -> 14.56630986 | N57: kg | P57: Vastlegging | R57: 1.4 | S57: 0.5 | T57: =S57*2.291 -> 1.1455 | V57: ov | W57: =SUMIF(V$34:V$48,"ov",J$34:J$48) -> 0 | Y57: vastlegging standaardwaarde? | AD57: 5875 - 6124 | AE57: =AE56+250 -> 6124 | AF57: 0 | AG57: 83 | AH57: 84.5 | AI57: 86 | AJ57: 87.5 | AK57: 89.5 | AL57: 91 | AM57: 92.5 | AN57: 94.5 | AO57: 96 | AP57: 97.5 | AQ57: 99.5 | AR57: 101 | AS57: 102.5 | AT57: 104 | AU57: 106 | AV57: 107.5 | AW57: 109 | AX57: 111 | AY57: 112.5 | AZ57: 114 | BA57: 115.5 | BB57: 117.5 | BC57: 119 | BD57: 120.5 | BE57: 122.5 | BF57: 124 | BG57: 125.5 | BH57: 127.5 | BI57: 129 | BJ57: 34.8 | BK57: 12.9
A58: kg melk/koe/dag | E58: =E54/(E55+E56)/7 -> 24.34210526 | F58: (gem. incl droge koeien) | K58: RE | M58: =O49/J49 -> 155.7946754 | N58: gr/kg ds | P58: Onder de staart | R58: =R55-R56-R57 -> 120.5355517 | S58: =S55-S56-S57 -> 17.29844455 | T58: =S58*2.291 -> 39.63073646 | V58: kv | W58: =SUMIF(V$34:V$48,"kv",J$34:J$48) -> 3.856521739 | AD58: 6125 - 6374 | AE58: 6374 | AF58: 0 | AG58: 85 | AH58: 86.5 | AI58: 88 | AJ58: 90 | AK58: 91.5 | AL58: 93 | AM58: 95 | AN58: 96.5 | AO58: 98 | AP58: 100 | AQ58: 101.5 | AR58: 103 | AS58: 104.5 | AT58: 106.5 | AU58: 108 | AV58: 109.5 | AW58: 111.5 | AX58: 113 | AY58: 114.5 | AZ58: 116 | BA58: 118 | BB58: 119.5 | BC58: 121 | BD58: 123 | BE58: 124.5 | BF58: 126 | BG58: 128 | BH58: 129.5 | BI58: 131 | BJ58: 35.5 | BK58: 13.1
A59: % vet | E59: =I75 -> 4.5 | K59: P | M59: =R49/J49 -> 3.706660152 | N59: gr/kg ds | P59: Vervluchtiging | R59: =R58*0.1175 -> 14.16292733 | AD59: 6375 - 6624 | AE59: 6624 | AF59: 0 | AG59: 87 | AH59: 89 | AI59: 90.5 | AJ59: 92 | AK59: 93.5 | AL59: 95.5 | AM59: 97 | AN59: 98.5 | AO59: 100.5 | AP59: 102 | AQ59: 103.5 | AR59: 105 | AS59: 107 | AT59: 108.5 | AU59: 110 | AV59: 112 | AW59: 113.5 | AX59: 115 | AY59: 116.5 | AZ59: 118.5 | BA59: 120 | BB59: 121.5 | BC59: 123.5 | BD59: 125 | BE59: 126.5 | BF59: 128.5 | BG59: 130 | BH59: 131.5 | BI59: 133 | BJ59: 36.2 | BK59: 13.4
A60: % eiwit | E60: =J75 -> 3.7 | K60: kg FPCM/kg ds | M60: =M54/J49 -> 1.380151809 | Q60: Gemeten netto excretie | R60: =(R58-R59) -> 106.3726244 | S60: =S58 -> 17.29844455 | T60: =T58 -> 39.63073646 | V60: som | W60: =SUM(W54:W58) -> 19.01703624 | AD60: 6625 – 6874 | AE60: 6874 | AF60: 0 | AG60: 89.5 | AH60: 91 | AI60: 92.5 | AJ60: 94 | AK60: 96 | AL60: 97.5 | AM60: 99 | AN60: 101 | AO60: 102.5 | AP60: 104 | AQ60: 105.5 | AR60: 107.5 | AS60: 109 | AT60: 110.5 | AU60: 112.5 | AV60: 114 | AW60: 115.5 | AX60: 117 | AY60: 119 | AZ60: 120.5 | BA60: 122 | BB60: 124 | BC60: 125.5 | BD60: 127 | BE60: 129 | BF60: 130.5 | BG60: 132 | BH60: 133.5 | BI60: 135.5 | BJ60: 36.9 | BK60: 13.6
A61: melkureum | E61: =K75 -> 18 | G61: ureum in mg/100 gram melk | K61: methaanemissie | M61: =(SUM(W96:AB96)*25/1000)/M54*100 ->  | Q61: Berekende excretie (melk en ureum) | R61: =AE82 -> 117 | S61: =T61*0.436 -> 18.966 | T61: =AG82 -> 43.5 | AD61: 6875 – 7124 | AE61: 7124 | AF61: 0 | AG61: 91.5 | AH61: 93 | AI61: 94.5 | AJ61: 96.5 | AK61: 98 | AL61: 99.5 | AM61: 101.5 | AN61: 103 | AO61: 104.5 | AP61: 106 | AQ61: 108 | AR61: 109.5 | AS61: 111 | AT61: 113 | AU61: 114.5 | AV61: 116 | AW61: 117.5 | AX61: 119.5 | AY61: 121 | AZ61: 122.5 | BA61: 124.5 | BB61: 126 | BC61: 127.5 | BD61: 129.5 | BE61: 131 | BF61: 132.5 | BG61: 134 | BH61: 136 | BI61: 137.5 | BJ61: 37.7 | BK61: 13.9
A62: kg melk/koe/jaar | E62: =E58*365 -> 8884.868421 | K62: (kg CO2/100 kg FPCM) | Q62: Afwijking gemeten van berekend (%) | R62: =((R60-R61)/R61)*100 -> -9.083226995 | T62: =((T60-T61)/T61)*100 -> -8.894858716 | Y62: ureum? | AD62: 7125 – 7374 | AE62: 7374 | AF62: 0 | AG62: 93.5 | AH62: 95 | AI62: 97 | AJ62: 98.5 | AK62: 100 | AL62: 102 | AM62: 103.5 | AN62: 105 | AO62: 106.5 | AP62: 108.5 | AQ62: 110 | AR62: 111.5 | AS62: 113.5 | AT62: 115 | AU62: 116.5 | AV62: 118.5 | AW62: 120 | AX62: 121.5 | AY62: 123 | AZ62: 125 | BA62: 126.5 | BB62: 128 | BC62: 130 | BD62: 131.5 | BE62: 133 | BF62: 134.5 | BG62: 136.5 | BH62: 138 | BI62: 139.5 | BJ62: 38.4 | BK62: 14.1
G63: N in ureum/ton melk | I63: =E61/1000*10*(28/60) -> 0.084 | AD63: 7375 – 7624 | AE63: 7624 | AF63: 0 | AG63: 95.5 | AH63: 97.5 | AI63: 99 | AJ63: 100.5 | AK63: 102.5 | AL63: 104 | AM63: 105.5 | AN63: 107 | AO63: 109 | AP63: 110.5 | AQ63: 112 | AR63: 114 | AS63: 115.5 | AT63: 117 | AU63: 119 | AV63: 120.5 | AW63: 122 | AX63: 123.5 | AY63: 125.5 | AZ63: 127 | BA63: 128.5 | BB63: 130.5 | BC63: 132 | BD63: 133.5 | BE63: 135 | BF63: 137 | BG63: 138.5 | BH63: 140 | BI63: 142 | BJ63: 39.1 | BK63: 14.4
A64: Berekening melkproductie | P64: Excretie per ton melk | R64: =R60/E62*1000 -> 11.97233537 | S64: =S60/E62*1000 -> 1.946955625 | T64: =T60/E62*1000 -> 4.460475336 | AD64: 7625 – 7874 | AE64: 7874 | AF64: 0 | AG64: 98 | AH64: 99.5 | AI64: 101 | AJ64: 103 | AK64: 104.5 | AL64: 106 | AM64: 107.5 | AN64: 109.5 | AO64: 111 | AP64: 112.5 | AQ64: 114.5 | AR64: 116 | AS64: 117.5 | AT64: 119.5 | AU64: 121 | AV64: 122.5 | AW64: 124 | AX64: 126 | AY64: 127.5 | AZ64: 129 | BA64: 131 | BB64: 132.5 | BC64: 134 | BD64: 135.5 | BE64: 137.5 | BF64: 139 | BG64: 140.5 | BH64: 142.5 | BI64: 144 | BJ64: 39.8 | BK64: 14.6
F65: aantal melkmalen | AD65: 7875 – 8124 | AE65: 8124 | AF65: 0 | AG65: 100 | AH65: 101.5 | AI65: 103.5 | AJ65: 105 | AK65: 106.5 | AL65: 108 | AM65: 110 | AN65: 111.5 | AO65: 113 | AP65: 115 | AQ65: 116.5 | AR65: 118 | AS65: 120 | AT65: 121.5 | AU65: 123 | AV65: 124.5 | AW65: 126.5 | AX65: 128 | AY65: 129.5 | AZ65: 131.5 | BA65: 133 | BB65: 134.5 | BC65: 136 | BD65: 138 | BE65: 139.5 | BF65: 141 | BG65: 143 | BH65: 144.5 | BI65: 146 | BJ65: 40.6 | BK65: 14.9
A66: meetperiode | E66: datum | F66: tank | G66: in ber. | H66: kg melk | I66: vet | J66: eiwit | K66: ureum | L66: kg melk | M66: kg vet | N66: kg eiwit | O66: ureum | AD66: 8125 – 8374 | AE66: 8374 | AF66: 0 | AG66: 102 | AH66: 104 | AI66: 105.5 | AJ66: 107 | AK66: 108.5 | AL66: 110.5 | AM66: 112 | AN66: 113.5 | AO66: 115.5 | AP66: 117 | AQ66: 118.5 | AR66: 120.5 | AS66: 122 | AT66: 123.5 | AU66: 125 | AV66: 127 | AW66: 128.5 | AX66: 130 | AY66: 132 | AZ66: 133.5 | BA66: 135 | BB66: 136.5 | BC66: 138.5 | BD66: 140 | BE66: 141.5 | BF66: 143.5 | BG66: 145 | BH66: 146.5 | BI66: 148.5 | BJ66: 41.3 | BK66: 15.1
A67: begindatum | C67: 2016-01-11 | E67: 2013-01-12 | F67: 6 | G67: 6 | H67: =1850*7 -> 12950 | I67: 450 | J67: 370 | K67: 18 | L67: =IF(F67>0,(H67/F67)*G67,0) -> 12950 | M67: =IF($F67>0,($L67/10000*I67),0) -> 582.75 | N67: 479.15 | O67: =IF($F67>0,($L67*K67),0) -> 233100 | R67: 13.22 | S67: 1.96 | T67: 4.48 | AD67: 8375 – 8624 | AE67: 8624 | AF67: 0 | AG67: 104.5 | AH67: 106 | AI67: 107.5 | AJ67: 109 | AK67: 111 | AL67: 112.5 | AM67: 114 | AN67: 116 | AO67: 117.5 | AP67: 119 | AQ67: 121 | AR67: 122.5 | AS67: 124 | AT67: 125.5 | AU67: 127.5 | AV67: 129 | AW67: 130.5 | AX67: 132.5 | AY67: 134 | AZ67: 135.5 | BA67: 137 | BB67: 139 | BC67: 140.5 | BD67: 142 | BE67: 144 | BF67: 145.5 | BG67: 147 | BH67: 149 | BI67: 150.5 | BJ67: 42 | BK67: 15.4
A68: einddatum | C68: 2016-01-17 | E68: =E67+3 -> 2013-01-15 | F68: 6 | G68: 6 | H68: 0 | I68: 447 | J68: 360 | K68: 20 | L68: 0 | M68: 0 | N68: 0 | O68: 0 | W68: b | AD68: 8625 – 8874 | AE68: 8874 | AF68: 0 | AG68: 106.5 | AH68: 108 | AI68: 109.5 | AJ68: 111.5 | AK68: 113 | AL68: 114.5 | AM68: 116.5 | AN68: 118 | AO68: 119.5 | AP68: 121.5 | AQ68: 123 | AR68: 124.5 | AS68: 126 | AT68: 128 | AU68: 129.5 | AV68: 131 | AW68: 133 | AX68: 134.5 | AY68: 136 | AZ68: 137.5 | BA68: 139.5 | BB68: 141 | BC68: 142.5 | BD68: 144.5 | BE68: 146 | BF68: 147.5 | BG68: 149.5 | BH68: 151 | BI68: 152.5 | BJ68: 42.7 | BK68: 15.6
E69: =E68+3 -> 2013-01-18 | F69: 6 | G69: 4 | H69: 0 | I69: 453 | J69: 360 | K69: 17 | L69: 0 | M69: 0 | N69: 0 | O69: 0 | AD69: 8875 – 9124 | AE69: 9124 | AF69: 1 | AG69: 108.5 | AH69: 110 | AI69: 112 | AJ69: 113.5 | AK69: 115 | AL69: 117 | AM69: 118.5 | AN69: 120 | AO69: 122 | AP69: 123.5 | AQ69: 125 | AR69: 126.5 | AS69: 128.5 | AT69: 130 | AU69: 131.5 | AV69: 133.5 | AW69: 135 | AX69: 136.5 | AY69: 138 | AZ69: 140 | BA69: 141.5 | BB69: 143 | BC69: 145 | BD69: 146.5 | BE69: 148 | BF69: 150 | BG69: 151.5 | BH69: 153 | BI69: 154.5 | BJ69: 43.5 | BK69: 15.9
E70: =E69+3 -> 2013-01-21 | L70: 0 | M70: 0 | N70: 0 | O70: 0 | AD70: 9125 – 9374 | AE70: 9374 | AF70: FALSE | AG70: 111 | AH70: 112.5 | AI70: 114 | AJ70: 115.5 | AK70: 117.5 | AL70: 119 | AM70: 120.5 | AN70: 122.5 | AO70: 124 | AP70: 125.5 | AQ70: 127 | AR70: 129 | AS70: 130.5 | AT70: 132 | AU70: 134 | AV70: 135.5 | AW70: 137 | AX70: 138.5 | AY70: 140.5 | AZ70: 142 | BA70: 143.5 | BB70: 145.5 | BC70: 147 | BD70: 148.5 | BE70: 150.5 | BF70: 152 | BG70: 153.5 | BH70: 155 | BI70: 157 | BJ70: 44.2 | BK70: 16.1
E71: =E70+3 -> 2013-01-24 | L71: 0 | M71: 0 | N71: 0 | O71: 0 | AD71: 9375 – 9624 | AE71: 9624 | AF71: FALSE | AG71: 113 | AH71: 114.5 | AI71: 116 | AJ71: 118 | AK71: 119.5 | AL71: 121 | AM71: 123 | AN71: 124.5 | AO71: 126 | AP71: 127.5 | AQ71: 129.5 | AR71: 131 | AS71: 132.5 | AT71: 134.5 | AU71: 136 | AV71: 137.5 | AW71: 139 | AX71: 141 | AY71: 142.5 | AZ71: 144 | BA71: 146 | BB71: 147.5 | BC71: 149 | BD71: 151 | BE71: 152.5 | BF71: 154 | BG71: 155.5 | BH71: 157.5 | BI71: 159 | BJ71: 44.9 | BK71: 16.4
E72: =E71+3 -> 2013-01-27 | L72: 0 | M72: 0 | N72: 0 | O72: 0 | AD72: 9625 – 9874 | AE72: 9874 | AF72: FALSE | AG72: 115 | AH72: 116.5 | AI72: 118.5 | AJ72: 120 | AK72: 121.5 | AL72: 123.5 | AM72: 125 | AN72: 126.5 | AO72: 128 | AP72: 130 | AQ72: 131.5 | AR72: 133 | AS72: 135 | AT72: 136.5 | AU72: 138 | AV72: 139.5 | AW72: 141.5 | AX72: 143 | AY72: 144.5 | AZ72: 146.5 | BA72: 148 | BB72: 149.5 | BC72: 151.5 | BD72: 153 | BE72: 154.5 | BF72: 156 | BG72: 158 | BH72: 159.5 | BI72: 161 | BJ72: 45.6 | BK72: 16.6
AD73: 9875 – 10124 | AE73: 10124 | AF73: FALSE | AG73: 117 | AH73: 119 | AI73: 120.5 | AJ73: 122 | AK73: 124 | AL73: 125.5 | AM73: 127 | AN73: 128.5 | AO73: 130.5 | AP73: 132 | AQ73: 133.5 | AR73: 135.5 | AS73: 137 | AT73: 138.5 | AU73: 140 | AV73: 142 | AW73: 143.5 | AX73: 145 | AY73: 147 | AZ73: 148.5 | BA73: 150 | BB73: 152 | BC73: 153.5 | BD73: 155 | BE73: 156.5 | BF73: 158.5 | BG73: 160 | BH73: 161.5 | BI73: 163.5 | BJ73: 46.4 | BK73: 16.9
A74: lengte (dgn) | C74: =C68-C67+1 -> 7 | G74: =SUM(G67:G73) -> 16 | L74: =SUM(L67:L73) -> 12950 | M74: =SUM(M67:M73) -> 582.75 | N74: =SUM(N67:N73) -> 479.15 | O74: =SUM(O67:O73) -> 233100 | AD74: 10125 – 10374 | AE74: 10374 | AF74: FALSE | AG74: 119.5 | AH74: 121 | AI74: 122.5 | AJ74: 124.5 | AK74: 126 | AL74: 127.5 | AM74: 129 | AN74: 131 | AO74: 132.5 | AP74: 134 | AQ74: 136 | AR74: 137.5 | AS74: 139 | AT74: 141 | AU74: 142.5 | AV74: 144 | AW74: 145.5 | AX74: 147.5 | AY74: 149 | AZ74: 150.5 | BA74: 152.5 | BB74: 154 | BC74: 155.5 | BD74: 157 | BE74: 159 | BF74: 160.5 | BG74: 162 | BH74: 164 | BI74: 165.5 | BJ74: 47.1 | BK74: 17.1
H75: =(L74+H19)/(E55+E56)/C74 -> 24.34210526 | I75: =IF(L74>0,(M74/$L74*100),0) -> 4.5 | J75: =IF(L74>0,(N74/$L74*100),0) -> 3.7 | K75: =IF(L74>0,(O74/$L74),0) -> 18 | AD75: 10375 – 10624 | AE75: 10624 | AF75: FALSE | AG75: 121.5 | AH75: 123 | AI75: 125 | AJ75: 126.5 | AK75: 128 | AL75: 129.5 | AM75: 131.5 | AN75: 133 | AO75: 134.5 | AP75: 136.5 | AQ75: 138 | AR75: 139.5 | AS75: 141.5 | AT75: 143 | AU75: 144.5 | AV75: 146 | AW75: 148 | AX75: 149.5 | AY75: 151 | AZ75: 153 | BA75: 154.5 | BB75: 156 | BC75: 157.5 | BD75: 159.5 | BE75: 161 | BF75: 162.5 | BG75: 164.5 | BH75: 166 | BI75: 167.5 | BJ75: 47.8 | BK75: 17.4
AD76: > 10624 | AF76: FALSE | AG76: 126 | AH76: 127.5 | AI76: 129 | AJ76: 130.5 | AK76: 132.5 | AL76: 134 | AM76: 135.5 | AN76: 137.5 | AO76: 139 | AP76: 140.5 | AQ76: 142.5 | AR76: 144 | AS76: 145.5 | AT76: 147 | AU76: 149 | AV76: 150.5 | AW76: 152 | AX76: 154 | AY76: 155.5 | AZ76: 157 | BA76: 158.5 | BB76: 160.5 | BC76: 162 | BD76: 163.5 | BE76: 165.5 | BF76: 167 | BG76: 168.5 | BH76: 170.5 | BI76: 172 | BJ76: 49.3 | BK76: 17.9
A77: =IF(A30>0,A30," ") -> Bedrijf: | C77: =IF(C30>0,C30," ") -> Voorbeeld | I77: =IF(I30>0,I30," ") -> Week: | J77: 2016_01 | M77: =IF(M30>0,M30," ") -> Diergroep: | N77: =IF(N30>0,N30," ") -> Melkgevende koeien | S77: =IF(S30>0,S30," ") -> Aantal dieren in de groep: | T77: =IF(T30>0,T30," ") -> 67 | U77: =IF(U30>0,U30," ") -> 
I78: Datum: | J78: 2016-01-11 | K78: =IF(K31>0,K31," ") -> t/m | L78: =IF(L31>0,L31," ") -> 2016-01-17 | AE78: N | AG78: P2O5 | AH78: m³ per 7 maanden | BJ78: pink | BK78: 9.5
A79: =IF(A32>0,A32," ") -> Voeropname | I79: kg | J79: kg ds/ | K79: analyse bij R en B in gr/kg ds; bij K in gr/kg product | W79: Methaanemissie | AD79: pink | AE79: =66.9 -> 66.9 | AG79: =21.9 -> 21.9 | AH79: 9.5 | BJ79: kalf | BK79: 4.4
A80: Voercode | D80: =IF(D33>0,D33," ") -> Omschrijving | H80: =IF(H33>0,H33," ") -> R, B of K | I80: gevoerd | J80: dier/dag | K80: ds | L80: VEM | M80: DVE | N80: OEB | O80: RE | P80: RC | Q80: RAS | R80: P | S80: N-tot | U80: =IF(U33>0,U33," ") -> Opmerkingen | W80: wg | X80: gk | Y80: mk | Z80: ov | AA80: ov | AB80: kv | AD80: kalf | AE80: =32.3 -> 32.3 | AG80: =9.6 -> 9.6 | AH80: 4.4
A81: Versg gras | D81: weidegars | H81: R | I81: 540.2166508 | J81: 0.2303695739 | K81: 200 | L81: 940 | M81: 50 | N81: =IF(N34>0,N34,IF(N34<0,N34,IF(N34=0," "," "))) -> 30 | O81: 200 | P81: 220 | Q81: 90 | R81: 4.5 | S81: 32 | V81: wg | W81: =IF($V81=W$80,J81*(L81*-0.026+45.6),0) -> 4.874620184 | X81: =IF(V81=X$80,IF(O81<175,(J81*((0.01-(0.01+0.0025)/75*(O81-100))*L81+(21.883-13.2)/75*(O81-100)+13.2)),(J81*((-0.0025-(0.007-0.0025)/75*(O81-175))*L81+(25.1-21.883)/75*(O81-175)+21.883))),0) -> 0 | Y81: =IF($V81=Y$80,J81*16.4,0) -> 0 | Z81: 0 | AA81: =IF(Z81>0,(J81*Z81),0) -> 0 | AB81: =IF($V81=AB$80,J81*(-0.0494*M81+27.876),0) -> 0
A82: GK_2016_01_A | D82: graskuil 2016 | H82: R | I82: 10195.65217 | J82: 10.80434783 | K82: 497 | L82: 969 | M82: 71 | N82: 36 | O82: 160 | P82: 245 | Q82: 92 | R82: 3.6 | S82: 25.6 | V82: gk | W82: =IF($V82=W$80,J82*(L82*-0.026+45.6),0) -> 0 | X82: =IF(V82=X$80,IF(O82<175,(J82*((0.01-(0.01+0.0025)/75*(O82-100))*L82+(21.883-13.2)/75*(O82-100)+13.2)),(J82*((-0.0025-(0.007-0.0025)/75*(O82-175))*L82+(25.1-21.883)/75*(O82-175)+21.883))),0) -> 217.668713 | Y82: =IF($V82=Y$80,J82*16.4,0) -> 0 | Z82: 0 | AA82: =IF(Z82>0,(J82*Z82),0) -> 0 | AB82: =IF($V82=AB$80,J82*(-0.0494*M82+27.876),0) -> 0 | AD82: koe | AE82: =(VLOOKUP(1,AF55:BJ76,AE83-11,TRUE)) -> 117 | AG82: =VLOOKUP(1,AF55:BJ76,31,TRUE) -> 43.5 | AH82: =VLOOKUP(1,AF55:BM76,32,TRUE) -> 15.9
A83: GK_2016_01_B | D83: graskuil plaat 2 2015 | H83: R | K83: 478 | L83: 852 | M83: 49 | N83: 18 | O83: 114 | P83: 243 | Q83: 131 | R83: 4.2 | S83: 18.24 | V83: gk | W83: 0 | X83: =IF(V83=X$80,IF(O83<175,(J83*((0.01-(0.01+0.0025)/75*(O83-100))*L83+(21.883-13.2)/75*(O83-100)+13.2)),(J83*((-0.0025-(0.007-0.0025)/75*(O83-175))*L83+(25.1-21.883)/75*(O83-175)+21.883))),0) ->  | Y83: 0 | Z83: 0 | AA83: 0 | AB83: 0 | AD83: ureum in berekening | AE83: =IF(AE85<14,13,IF(AE85>40,41,MROUND(AE85,1))) -> 18
A84: GH_2016 | D84: hooi 2e snede | H84: R | I84: 67.97101449 | J84: 0.1257971014 | K84: 868 | L84: 797 | M84: 68 | N84: -28 | O84: 106 | P84: 261 | Q84: 91 | R84: 3.3 | S84: 16.96 | V84: gk | W84: 0 | X84: 2.650248046 | Y84: 0 | Z84: 0 | AA84: 0 | AB84: 0 | AD84: melk | AE84: =E62 -> 8884.868421
A85: MK_2016_01 | D85: maiskuil oost 2016 | H85: R | I85: 5437.681159 | J85: 4 | K85: 345 | L85: 1016 | M85: 55 | N85: -48 | O85: 66 | P85: 166 | Q85: 35 | R85: 2.3 | S85: 10.56 | V85: mk | W85: 0 | X85: 0 | Y85: 65.6 | Z85: 0 | AA85: 0 | AB85: 0 | AD85: ureum | AE85: =E61 -> 18
W86: 0 | X86: 0 | Y86: 0 | Z86: 0 | AA86: 0 | AB86: 0
A87: Bierbostel | D87: bierbostel | H87: B | I87: 2330.434783 | J87: 1.088198758 | K87: 219 | L87: 947 | M87: 137 | N87: 55 | O87: 247 | P87: 178 | Q87: 42 | R87: 6.2 | S87: 39.5 | V87: b | W87: 0 | X87: 0 | Y87: 0 | Z87: 0 | AA87: 0 | AB87: 0
A88: Sodagrain | D88: sodagrain | H88: B | I88: 951.5942029 | J88: 1.52173913 | K88: 750 | L88: 1160 | M88: 100 | N88: -43 | O88: 109 | P88: 24 | Q88: 15 | R88: 3 | S88: 17.44 | V88: b | W88: 0 | X88: 0 | Y88: 0 | Z88: 0 | AA88: 0 | AB88: 0
W89: 0 | X89: 0 | Y89: 0 | Z89: 0 | AA89: 0 | AB89: 0
A90: KV_2016_01_A | D90: snijmaiskernbrok | H90: K | I90: 407.826087 | J90: 0.7713043478 | K90: 887 | L90: 950 | M90: 180 | N90: =IF(N43>0,N43,IF(N43<0,N43,0)) -> 75 | O90: 315 | P90: 88 | Q90: 101 | R90: 6.6 | S90: 50.4 | V90: kv | W90: 0 | X90: 0 | Y90: 0 | Z90: 0 | AA90: 0 | AB90: 14.64244174
A91: KV_2016_01_B | D91: eiwit | H91: K | I91: 1631.304348 | J91: 3.085217391 | K91: 887 | L91: 950 | M91: 115 | N91: =IF(N44>0,N44,IF(N44<0,N44,0)) -> 5 | O91: 175 | P91: 99 | Q91: 73 | R91: 3.9 | S91: 28 | V91: kv | W91: 0 | X91: 0 | Y91: 0 | Z91: 0 | AA91: 0 | AB91: 68.4764
A92: KV_2016_01_C | D92: opti-brok | K92: 892 | L92: 890 | M92: 139 | N92: =IF(N45>0,N45,IF(N45<0,N45,IF(N45=0," "," "))) -> 105 | O92: 276 | P92: 86 | Q92: 148 | R92: 4.7 | S92: 44.16 | W92: 0 | X92: 0 | Y92: 0 | Z92: 0 | AA92: 0 | AB92: 0
I93: =IF(I46>0,I46," ") ->  | N93: =IF(N46>0,N46,IF(N46<0,N46,IF(N46=0," "," "))) ->  | O93: =IF(O46>0,O46," ") ->  | W93: 0 | X93: 0 | Y93: 0 | Z93: 0 | AA93: 0 | AB93: 0
N94: =IF(N47>0,N47,IF(N47<0,N47,IF(N47=0," "," "))) ->  | W94: 0 | X94: 0 | Y94: 0 | Z94: 0 | AA94: 0 | AB94: 0
N95: =IF(N48>0,N48,IF(N48<0,N48,IF(N48=0," "," "))) ->  | W95: 0 | X95: 0 | Y95: 0 | Z95: 0 | AA95: 0 | AB95: 0
A96: Opname totaal (dier/dag) | J96: =IF(J49>0,J49," ") -> 21.62697413 | K96: =IF(K49>0,K49," ") ->  | L96: 21776.39713 | M96: 1864.960259 | N96: =IF(N49>0,N49," ") -> 277.3701348 | O96: 3369.367414 | R96: 80.16384321 | S96: 539.0770222 | W96: =SUM(W81:W95) -> 4.874620184 | X96: =SUM(X81:X95) ->  | Y96: =SUM(Y81:Y95) -> 65.6 | AA96: =SUM(AA81:AA95) -> 0 | AB96: =SUM(AB81:AB95) -> 83.11884174
A97: Behoefte | J97: =IF(J50>0,J50," ") ->  | L97: 19796.72466 | M97: 1763.74357 | N97: =IF(N50>0,N50," ") ->  | O97: 67.23724096 | R97: 61.68336567
A98: Dekking (%) | J98: =IF(J51>0,J51," ") ->  | L98: 110 | M98: 105.7387418 | N98: =IF(N51>0,N51," ") ->  | R98: 129.9602289 | U98: =IF(U51>0,U51," ") ->  | V98: =IF(V53>0,V53," ") -> 
V99: wg
A100: =IF(A53>0,A53," ") -> Melkproductie | K100: =IF(K53>0,K53," ") -> Kengetallen | O100: =IF(O53>0,O53," ") ->  | P100: Excretie (kg/dier/dag) | V100: gk
A101: kg melk per week | E101: =IF(E54>0,E54," ") -> 12950 | F101: (inclusief niet in de tank : | I101: =IF(I54>0,I54,0) -> 0 | J101: =IF(J54>0,J54," ") -> kg) | K101: FPCM | M101: =IF(M54>0,M54," ") -> 29.84850746 | N101: kg | R101: =IF(R54>0,R54," ") -> N | S101: P | T101: P2O5 | V101: mk
A102: aantal melkgevende koeien | E102: 67 | K102: N-efficiëntie | M102: 29.70483541 | N102: % | P102: Opname | R102: 173.4622181 | S102: 25.79482613 | T102: 59.09594666 | V102: ov
A103: aantal droogstaande koeien | E103: 9 | K103: P-efficiëntie | M103: 30.99994371 | N103: % | P103: Productie | R103: 51.52666639 | S103: 7.996381579 | T103: 18.3197102 | V103: kv
A104: kg melk/koe/dag | E104: 27.6119403 | F104: (gem. melkgevende koeien) | K104: KV / 100 kg FPCM | M104: 14.56630986 | N104: kg | P104: Vastlegging | R104: 1.4 | S104: 0.5 | T104: 1.1455
A105: kg melk/koe/dag | E105: 24.34210526 | F105: (gem. incl droge koeien) | K105: RE | L105: =IF(L58>0,L58," ") ->  | M105: 155.7946754 | N105: gr/kg ds | P105: Onder de staart | R105: 120.5355517 | S105: 17.29844455 | T105: 39.63073646 | V105: som
A106: % vet | E106: 4.5 | K106: P | L106: =IF(L59>0,L59," ") ->  | M106: 3.706660152 | N106: gr/kg ds | P106: Vervluchtiging | R106: 14.16292733
A107: % eiwit | E107: 3.7 | K107: kg FPCM/kg ds | M107: 1.380151809 | Q107: Gemeten netto excretie | R107: 106.3726244 | S107: 17.29844455 | T107: 39.63073646
A108: melkureum | E108: 18 | K108: methaanemissie | Q108: Berekende excretie (melk en ureum) | R108: 117 | S108: 18.966 | T108: 43.5
A109: kg melk/koe/jaar | D109: =IF(D62>0,D62," ") ->  | E109: 8884.868421 | K109: (kg CO2/100 kg FPCM) | Q109: Afwijking gemeten van berekend (%) | R109: =R62 -> -9.083226995 | S109: =IF(S62>0,S62," ") ->  | T109: =T62 -> -8.894858716 | U109: =IF(U62>0,U62," ") -> 

Sheet Dashboard
A5: Maand | B5: Excretie N/ton melk | C5: Streefwaarde | D5: Exretie fosfaat/ton melk | E5: Streefwaarde | F5: Re gehalte rantsoen | G5: Streefwaarde | H5: P gehalte rantsoen | I5: Streefwaarde
A6: Januari | B6: ='Jan voer'!M18 -> 9.308858484 | C6: =$M$6 -> 0 | D6: ='Jan voer'!M19 -> 3.481087809 | E6: =$M$7 -> 0 | F6: ='Jan voer'!M16 -> 147.8890163 | G6: =$Q$8 -> 155 | H6: ='Jan voer'!M17 -> 3.542430145 | I6: =$Q$9 -> 3.5 | L6: =B5 -> Excretie N/ton melk
A7: Februari | B7: ='Feb voer'!M18 -> 10.37013109 | C7: =$M$6 -> 0 | D7: ='Feb voer'!M19 -> 4.182131736 | E7: =$M$7 -> 0 | F7: ='Feb voer'!M16 -> 157.408017 | G7: 155 | H7: ='Feb voer'!M17 -> 3.993908795 | I7: 3.5 | L7: =D5 -> Exretie fosfaat/ton melk | P7: Streefwaardes | Q7: waarde
A8: Maart | B8: ='Maart voer'!M18 -> 10.4416861 | C8: 0 | D8: ='Maart voer'!M19 -> 4.446754381 | E8: 0 | F8: ='Maart voer'!M16 -> 156.3071758 | G8: 155 | H8: ='Maart voer'!M17 -> 4.141625061 | I8: 3.5 | P8: =F5 -> Re gehalte rantsoen | Q8: 155
A9: April | B9: ='April voer'!M18 -> 10.07882565 | C9: 0 | D9: ='April voer'!M19 -> 3.999187623 | E9: 0 | F9: ='April voer'!M16 -> 151.2855594 | G9: 155 | H9: ='April voer'!M17 -> 3.799475751 | I9: 3.5 | P9: =H5 -> P gehalte rantsoen | Q9: 3.5
A10: Mei | B10: ='Mei voer'!M18 -> 10.47630818 | C10: 0 | D10: ='Mei voer'!M19 -> 3.891002997 | E10: 0 | F10: ='Mei voer'!M16 -> 154.2011527 | G10: 155 | H10: ='Mei voer'!M17 -> 3.684019969 | I10: 3.5
A11: Juni | B11: ='Juni voer'!M18 -> 11.03101147 | C11: 0 | D11: ='Juni voer'!M19 -> 4.238300088 | E11: 0 | F11: ='Juni voer'!M16 -> 152.0573983 | G11: 155 | H11: ='Juni voer'!M17 -> 3.738522476 | I11: 3.5
A12: Juli | B12: ='Juli voer'!M18 -> 11.43590728 | C12: 0 | D12: ='Juli voer'!M19 -> 4.288436915 | E12: 0 | F12: ='Juli voer'!M16 -> 153.7737244 | G12: 155 | H12: ='Juli voer'!M17 -> 3.748559688 | I12: 3.5
A13: Augustus | B13: ='Aug voer'!M18 -> 12.51151692 | C13: 0 | D13: ='Aug voer'!M19 -> 4.680071457 | E13: 0 | F13: ='Aug voer'!M16 -> 160.0789043 | G13: 155 | H13: ='Aug voer'!M17 -> 3.86093794 | I13: 3.5
A14: September | B14: ='Sep voer'!M18 -> 12.74128257 | C14: 0 | D14: ='Sep voer'!M19 -> 4.501525869 | E14: 0 | F14: ='Sep voer'!M16 -> 166.6058286 | G14: 155 | H14: ='Sep voer'!M17 -> 3.831090514 | I14: 3.5
A15: Oktober | B15: ='Okt voer'!M18 -> 12.30837209 | C15: 0 | D15: ='Okt voer'!M19 -> 4.315257788 | E15: 0 | F15: ='Okt voer'!M16 -> 164.0990823 | G15: 155 | H15: ='Okt voer'!M17 -> 3.745822492 | I15: 3.5
A16: November | B16: ='Nov voer'!M18 -> 11.39245737 | C16: 0 | D16: ='Nov voer'!M19 -> 3.735014242 | E16: 0 | F16: ='Nov voer'!M16 -> 157.1865463 | G16: 155 | H16: ='Nov voer'!M17 -> 3.399193648 | I16: 3.5
A17: December | B17: ='Dec voer'!M18 -> 11.14798122 | C17: 0 | D17: ='Dec voer'!M19 -> 3.617203971 | E17: 0 | F17: ='Dec voer'!M16 -> 158.8215309 | G17: 155 | H17: ='Dec voer'!M17 -> 3.434726927 | I17: 3.5

Sheet Voedermiddelen
A1: Vul de voedermiddelen in met de bijbehorende voederwaardes die u aan het melkvee voert
A2: Kuilgras | D2: Gehaltes per kg droge stof
A3: Naam | B3: naam | C3: ds | D3: VEM | E3: DVE | F3: OEB | G3: RE | H3: RC | I3: RAS | J3: P | K3: N-tot
A4: Gkuil 1e snede 2016 | B4: Graskuil 1e snede 2016 | C4: 0.497 | D4: 969 | E4: 71 | F4: 36 | G4: 170 | H4: 10 | I4: 90 | J4: 3.6 | K4: =G4/6.25 -> 27.2
A5: Gkuil 2 2e snede 2015 | B5: graskuil plaat 2 2015 | C5: 0.497 | D5: 939 | E5: 62 | F5: 41 | G5: 166 | H5: 248 | I5: 97 | J5: 4.4 | K5: =G5/6.25 -> 26.56
A6: 2017 1e 2e snede | C6: 0.465 | D6: 936 | E6: 60 | F6: 57 | G6: 180 | J6: 3.6 | K6: 28.8
A7: Gkuil balen 2016 2e snede | C7: 0.868 | D7: 797 | E7: 68 | F7: -28 | G7: 106 | J7: 3.3 | K7: 16.96
A8: Gkuil 5 | K8: 0
A9: Gkuil 6 | K9: 0
A10: Gkuil 7 | K10: 0
A11: Gkuil 8 | K11: 0
A12: Gkuil 9 | K12: 0
A13: Gkuil 10 | K13: 0
A15: Snijmais | D15: Gehaltes per kg droge stof
A16: Naam | B16: naam | C16: ds | D16: VEM | E16: DVE | F16: OEB | G16: RE | H16: RC | I16: RAS | J16: P | K16: N-tot
A17: Mkuil 1 | B17: maiskuil oost 2016 | C17: 0.3198 | D17: 1002.2 | E17: 50 | F17: -35 | G17: 70 | H17: 168.4 | I17: 36.4 | J17: 3.08 | K17: =G17/6.25 -> 11.2
A18: silo 2 links | C18: 0.371 | D18: 964 | E18: 49 | F18: -36 | G18: 72 | J18: 2.1 | K18: 11.52
A19: Mkuil 3 | K19: 0
A20: Mkuil 4 | K20: 0
A21: Mkuil 5 | K21: 0
A22: Mkuil 6 | K22: 0
A23: Mkuil 7 | K23: 0
A24: Mkuil 8 | K24: 0
A25: Mkuil 9 | K25: 0
A26: Mkuil 10 | K26: 0
A28: Overig ruwvoer | D28: Gehaltes per kg droge stof
A29: Naam | B29: naam | C29: ds | D29: VEM | E29: DVE | F29: OEB | G29: RE | H29: RC | I29: RAS | J29: P | K29: N-tot
A30: Overig 1 | B30: Hooi | C30: 0.868 | D30: 797 | E30: 68 | F30: -28 | G30: 106 | H30: 261 | I30: 91 | J30: 3.3 | K30: =G30/6.25 -> 16.96
A31: Mais en bierbostel | B31: Tarwestro | C31: 0.34 | D31: =(D43+D18*4)/5 -> 960.6 | E31: =(E43+E18*4)/5 -> 66.6 | F31: -17.8 | G31: 107 | H31: 35.6 | I31: 8.4 | J31: 2.72 | K31: 17.12
A32: Overig 3 | K32: 0
A33: Overig 4 | K33: 0
A34: Overig 5 | K34: 0
A35: Overig 6 | K35: 0
A36: Overig 7 | K36: 0
A37: Overig 8 | K37: 0
A38: Overig 9 | K38: 0
A39: Overig 10 | K39: 0
A41: Bijproducten | D41: Gehaltes per kg droge stof
A42: Naam | B42: naam | C42: ds | D42: VEM | E42: DVE | F42: OEB | G42: RE | H42: RC | I42: RAS | J42: P | K42: N-tot
A43: Bierbostel | B43: Bierbostel | C43: 0.219 | D43: 947 | E43: 137 | F43: 55 | G43: 247 | H43: 178 | I43: 42 | J43: 5.2 | K43: =G43/6.25 -> 39.52
A44: sodagrain | B44: Sodagrain | C44: 0.8 | D44: 1036 | E44: 70 | F44: -43 | G44: 88 | H44: 24 | I44: 15 | J44: 2.3 | K44: 14.08
A45: soja raap | C45: 1 | D45: 942 | E45: 100 | F45: 40 | G45: 374 | J45: 7.2 | K45: 59.84
A46: BP 4 | K46: 0
A47: BP 5 | K47: 0
A48: BP 6 | K48: 0
A49: BP 7 | K49: 0
A50: BP 8 | K50: 0
A51: BP 9 | K51: 0
A52: BP 10 | K52: 0
A54: Krachtvoer | C54: Let op voer de gehaltes per kilogram product in!!!!
A55: Naam | B55: naam | C55: ds | D55: VEM | E55: DVE | F55: OEB | G55: RE | H55: RC | I55: RAS | J55: P | K55: N-tot | Q55: VEM | R55: DVE | S55: OEB | T55: RE | U55: RC | V55: RAS | W55: P
A56: KV 1 | B56: snijmaiskernbrok | C56: 0.9 | D56: 900 | E56: 120 | F56: 60 | G56: 170 | J56: 4 | K56: =T56/6.25 -> 30.22222222 | P56: 0.9 | Q56: =D56/$C56 -> 1000 | R56: =E56/$C56 -> 133.3333333 | S56: 66.66666667 | T56: 188.8888889 | U56: 0 | V56: 0 | W56: =J56/$C56 -> 4.444444444
A57: KV 2 | B57: eiwitspeciaal | C57: 0.9 | D57: 940 | E57: 110 | F57: 50 | G57: 150 | J57: 3.8 | K57: 26.66666667 | P57: 0.9 | Q57: =D57/$C57 -> 1044.444444 | R57: =E57/$C57 -> 122.2222222 | S57: =F57/$C57 -> 55.55555556 | T57: =G57/$C57 -> 166.6666667 | U57: =H57/$C57 -> 0 | V57: =I57/$C57 -> 0 | W57: =J57/$C57 -> 4.222222222
A58: Protitopbrok | C58: 0.9 | D58: 1020 | E58: 128 | F58: 11 | G58: 191 | J58: 4.2 | K58: 33.95555556 | Q58: 1133.333333 | R58: 142.2222222 | S58: 12.22222222 | T58: 212.2222222 | U58: 0 | V58: 0 | W58: 4.666666667
A59: Pens stabielbrok EBZ | C59: 0.9 | D59: 960 | E59: 115 | F59: 14 | G59: 177 | J59: 4 | K59: 31.46666667 | Q59: 1066.666667 | R59: 127.7777778 | S59: 15.55555556 | T59: 196.6666667 | U59: 0 | V59: 0 | W59: 4.444444444
A60: soja raap | C60: 1 | D60: 942 | E60: 100 | F60: 40 | G60: 374 | J60: 7.2 | K60: 59.84 | Q60: 942 | R60: 100 | S60: 40 | T60: 374 | U60: 0 | V60: 0 | W60: 7.2
A61: snijmaiskernbrok | C61: 0.9 | D61: 940 | E61: 130 | F61: 70 | G61: 317 | J61: 6.6 | K61: 56.35555556 | Q61: 1044.444444 | R61: 144.4444444 | S61: 77.77777778 | T61: 352.2222222 | U61: 0 | V61: 0 | W61: 7.333333333
A62: Melkbrok BM | C62: 0.9 | D62: 960 | G62: 214 | J62: 4 | K62: 38.04444444 | Q62: 1066.666667 | R62: 0 | S62: 0 | T62: 237.7777778 | U62: 0 | V62: 0 | W62: 4.444444444
A63: KV 8
A64: KV 9
A65: KV 10
A66: KV 11
A67: KV 12
A68: KV 13
A69: KV 14
A70: KV 15
A71: KV 16
A72: KV 17
A73: KV 18
A74: KV 19
A75: KV 20

Sheet Weidegras
A1: Vul indien gewenst uw eigen gehaltes per kg ds in voor het weidegras onder "eigen invoer" | K1: N-tot
A5: Weidegras | D5: VEM | E5: DVE | F5: OEB | G5: RE | H5: RC | I5: RAS | J5: P
A6: Maart standaard | D6: 1050 | E6: 80 | F6: 35 | G6: 225 | I6: 4 | J6: 4
A7: April standaard | D7: 1075 | E7: 80 | F7: 35 | G7: 250 | I7: 4 | J7: 4.2
A8: Mei standaard | D8: 1050 | E8: 80 | F8: 35 | G8: 220 | I8: 4 | J8: 4.2
A9: Juni standaard | D9: 950 | E9: 77 | F9: 27 | G9: 180 | I9: 4 | J9: 4
A10: Juli standaard | D10: 950 | E10: 77 | F10: 27 | G10: 180 | I10: 4 | J10: 4
A11: Augustus standaard | D11: 920 | E11: 81 | F11: 40 | G11: 200 | I11: 4 | J11: 4.4
A12: September standaard | D12: 920 | E12: 81 | F12: 43 | G12: 225 | I12: 4 | J12: 4.4
A13: Oktober standaard | D13: 920 | E13: 60 | F13: 46 | G13: 250 | I13: 4 | J13: 4.4
A14: Eigen invoer
A15: April eigen invoer | D15: 1100 | E15: 80 | F15: 30 | G15: 175 | J15: 3.7
A16: Mei eigen invoer | D16: 1075 | E16: 80 | F16: 30 | G16: 200 | J16: 4
A17: Juni eigen invoer
A18: Juli eigen invoer
A19: Augustus eigen invoer
A20: September eigen invoer | D20: 940 | E20: 75 | F20: 50 | G20: 215 | J20: 4.4
A21: Oktober eigen invoer | D21: 920 | E21: 60 | F21: 43 | G21: 225 | J21: 4.4
A22: Eigen invoer KLW vorig jaar
A23: Eigen invoer overig | B23: Eigen invoer overig | C23: Eigen invoer overig | I23: Eigen invoer overig

Sheet Jan vee+melk
A2: Melkgevende koeien | C2: 70 | E2: 70
A3: Droge koeien* | C3: 3 | E3: 3
A4: *Het aantal droge koeien dat bij de melkveestapel loopt en dus ook van het ruwvoer mee vreet.
C6: ='[1]Jan voer'!B3 -> januari gerealiseerd | E6: ='[1]Jan voer'!G3 -> januari prognose
A7: Tankmelk geleverd | C7: 67020 | E7: 60000
A8: Aantal dagen | C8: 33 | E8: 30
A9: Vet% | C9: 0.0456 | E9: 0.0452
A10: Eiwit% | C10: 0.0367 | E10: 0.035
A11: Ureum | C11: 17 | E11: 22
A13: Separatie melk kg/dag | C13: 40 | E13: 30
A15: Melk per dag | C15: =IF(SUM(C7)>0,SUM(C7)/(SUM(C8)),"")+C13 -> 2070.909091 | E15: =IF(SUM(E7)>0,SUM(E7)/(SUM(E8)),"")+E13 -> 2030
A16: Eiwit | C16: =C15*MAX(C10) -> 76.00236364 | E16: =E15*MAX(E10) -> 71.05
A17: Vet | C17: =(C9*C15) -> 94.43345455 | E17: =(E9*E15) -> 91.756
A18: N | C18: =C16/6.38 -> 11.91259618 | E18: =E16/6.38 -> 11.13636364
A20: kg melk/koe/dag | C20: =IF(C7>0,C15/C2,"") -> 29.58441558 | E20: =IF(E7>0,E15/E2,"") -> 29
A21: FCPM/koe/dag | C21: =(0.337+0.116*MAX(C9)*100+0.06*MAX(C10)*100)*C15/C2 -> 32.13340883 | E21: =(0.337+0.116*MAX(E9)*100+0.06*MAX(E10)*100)*E15/E2 -> 31.06828
A22: Melkproductie incl droge | C22: =C15/(C2+C3) -> 28.36861768 | E22: =E15/(E2+E3) -> 27.80821918
A23: Meetmelk 305 dgn | C23: =C21*305 -> 9800.689694 | E23: =E21*305 -> 9475.8254
A24: gemiddeld Meetmelk 305 dgn | C24: =C23 -> 9800.689694 | E24: =E23 -> 9475.8254
A26: Behoefte
A27: VEM | C27: =IF('Jan voer'!B4=1,6013+440*C21+0.73*C21*C21,5013+440*C21+0.73*C21*C21) -> 19905.46574 | E27: =IF('Jan voer'!G4=1,6013+440*E21+0.73*E21*E21,5013+440*E21+0.73*E21*E21) -> 19387.66696
A28: DVE | C28: =114+(1.396*(C15/C2)*C10*100*10)+0.000195*(((C15/C2)*C10*100*10)*((C15/C2)*C10*100*10))+20 -> 1879.579803 | E28: =114+(1.396*(E15/E2)*E10*100*10)+0.000195*(((E15/E2)*E10*100*10)*((E15/E2)*E10*100*10))+20 -> 1751.833875
A29: P | C29: =19+1.43*C21 -> 64.95077463 | E29: =19+1.43*E21 -> 63.4276404

Sheet Jan voer
A1: Vul alle | B1: licht en | C1: donkerblauwe | F1: cellen in
B3: januari gerealiseerd | G3: januari prognose | J3: Prognose
A4: Weidegang (ja/nee) | B4: 2 | F4: Weidegang (ja/nee) | G4: 2 | J4: Drogestof opname uit weidegras kg/koe/dag | M4: =Voeropname!E31 -> 0 | N4: =IF(M4>10,codes!F9,"") -> 
A5: Weidegras | B5: Eigen invoer | F5: Weidegras | G5: Eigen invoer | J5: Uren weidegang per koe/dag | M5: =IF(M4>0.1,IF(M4>2.5,(M4-3)+2,M4/1.5),"") -> 
A6: % restvoer | B6: 0.05 | F6: % restvoer | G6: 0.05 | J6: Gewenst ruw eiwit gehalte krachtvoer (g/kg) | M6: =(H20*Voeropname!E2-Voeropname!E6*Voeropname!E2)/(Voeropname!E76/('Jan vee+melk'!E2+'Jan vee+melk'!E3))*0.9 -> 186.0638239
J7: Gewenst P gehalte krachtvoer (g/kg) | M7: =(H21*Voeropname!E2-Voeropname!E8*Voeropname!E2)/(Voeropname!E76/('Jan vee+melk'!E3+'Jan vee+melk'!E2))*0.9 -> 3.687007291
A8: Wat is er afgelopen maand op stal gevoerd? | B8: Naam | C8: kg product gevoerd/dag | F8: Wat wilt u komende maand op stal voeren? | G8: Naam | H8: kg product te voeren/dag | J8: *Dit zijn de gewenste gehaltes in het krachtvoer om bij het ingevoerde stalrantsoen en gehaltes in het weidegras het gewenste ruw eiwit en P gehalte in het totale rantsoen te realiseren.
A9: Kuilgras | B9: Gkuil 1e snede 2016 | C9: 1680 | F9: =IF(A9>0,A9,"") -> Kuilgras | G9: Gkuil 1e snede 2016 | H9: 1680 | J9: Totale droge stof opname/koe/dag | M9: =Voeropname!E2 -> 21.37085616
A10: Snijmais | B10: Mkuil 1 | C10: 800 | F10: Snijmais | G10: Mkuil 1 | H10: 800 | J10: VEM dekking | M10: =IF(G4=1,codes!C4,Voeropname!E23/Voeropname!E27) -> 1.086053635 | N10: =IF(M10<1,codes!F10,"") -> 
A11: OverigRuwvoer | B11: Overig 1 | C11: 0 | F11: OverigRuwvoer | G11: Overig 1 | H11: 0 | J11: Verwachte N excretie per ton meetmelk (kg) | M11: =Excretie!E24 -> 11.2996161
A12: Bijproducten | B12: Bierbostel | C12: 250 | F12: Bijproducten | G12: Bierbostel | H12: 250 | J12: Verwachte fosfaat excretie per ton meetmelk (kg) | M12: =Excretie!E25*2.29 -> 3.789849715
A13: Bijproducten | B13: sodagrain | C13: 140 | F13: Bijproducten | G13: sodagrain | H13: 140
A14: Bijproducten | B14: BP 6 | F14: =IF(A14>0,A14,"") -> Bijproducten | G14: BP 6 | J14: Kengetallen afgelopen maand
J15: Totale droge stof opname/koe/dag | M15: =kengetallen!C4 -> 21.38318493
J16: Ruw eiwit gehalte rantsoen (g/kg ds) | M16: =kengetallen!C8 -> 147.8890163
J17: P gehalte rantsoen (g/kg ds) | M17: =kengetallen!C10 -> 3.542430145
J18: =kengetallen!A16 -> N excretie per ton meetmelk (kg) | M18: =kengetallen!C16 -> 9.308858484
J19: Fosfaat excretie per ton meetmelk (kg) | M19: =kengetallen!C17*2.29 -> 3.481087809
A20: Krachtvoer | B20: KV 1 | C20: 102 | F20: Gewenst ruw eiwit gehalte rantsoen (g/kg ds) | H20: 160
A21: Krachtvoer | B21: KV 2 | C21: 305 | F21: Gewenst P gehalte rantsoen (g/kg ds) | H21: 3.6 | J21: =kengetallen!A24 -> Voerefficientie kg meetmelk/kg voer (ds) | M21: =kengetallen!C24 -> 1.502741941
A22: Krachtvoer | F22: Gewenste hoeveelheid krachtvoer (kg/100 kg melk) | H22: 20 | J22: =kengetallen!A25 -> kg krachtvoer per 100 kg (excl bijprod) | M22: =kengetallen!C25 -> 18.09420764
A23: kg krachtvoer gevoerd/100 kg melk | C23: =IF(SUM(C20:C22)>0,kengetallen!C25,"") -> 18.09420764 | J23: =kengetallen!A20 -> VEM dekking | M23: =kengetallen!C20 -> 1.040769674

Sheet Feb vee+melk
A2: Melkgevende koeien | C2: 71 | E2: 70
A3: Droge koeien* | C3: 3 | E3: 1
A4: *Het aantal droge koeien dat bij de melkveestapel loopt en dus ook van het ruwvoer mee vreet.
C6: ='[1]Feb voer'!B3 -> Februari gerealiseerd | E6: ='[1]Feb voer'!G3 -> Februari prognose
A7: Tankmelk geleverd | C7: 56301 | E7: 58000
A8: Aantal dagen | C8: 27 | E8: 28
A9: Vet% | C9: 0.0454 | E9: 0.043
A10: Eiwit% | C10: 0.0356 | E10: 0.0355
A11: Ureum | C11: 22 | E11: 19
A13: Separatie melk kg/dag | C13: 30 | E13: 30
A15: Melk per dag | C15: =IF(SUM(C7)>0,SUM(C7)/(SUM(C8)),"")+C13 -> 2115.222222 | E15: =IF(SUM(E7)>0,SUM(E7)/(SUM(E8)),"")+E13 -> 2101.428571
A16: Eiwit | C16: =C15*MAX(C10) -> 75.30191111 | E16: =E15*MAX(E10) -> 74.60071429
A17: Vet | C17: =(C9*C15) -> 96.03108889 | E17: =(E9*E15) -> 90.36142857
A18: N | C18: =C16/6.38 -> 11.80280738 | E18: =E16/6.38 -> 11.69290193
A20: kg melk/koe/dag | C20: =IF(C7>0,C15/C2,"") -> 29.79186228 | E20: =IF(E7>0,E15/E2,"") -> 30.02040816
A21: FCPM/koe/dag | C21: =(0.337+0.116*MAX(C9)*100+0.06*MAX(C10)*100)*C15/C2 -> 32.09298573 | E21: =(0.337+0.116*MAX(E9)*100+0.06*MAX(E10)*100)*E15/E2 -> 31.48540408
A22: Melkproductie incl droge | C22: =C15/(C2+C3) -> 28.58408408 | E22: =E15/(E2+E3) -> 29.59758551
A23: Meetmelk 305 dgn | C23: =C21*305 -> 9788.360647 | E23: =E21*305 -> 9603.048245
A24: gemiddeld Meetmelk 305 dgn | C24: =C23 -> 9788.360647 | E24: =E23 -> 9603.048245
A26: Behoefte
A27: VEM | C27: =IF('Feb voer'!B4=1,6013+440*C21+0.73*C21*C21,5013+440*C21+0.73*C21*C21) -> 19885.78433 | E27: =IF('Feb voer'!G4=1,6013+440*E21+0.73*E21*E21,5013+440*E21+0.73*E21*E21) -> 19590.24919
A28: DVE | C28: =114+(1.396*(C15/C2)*C10*100*10)+0.000195*(((C15/C2)*C10*100*10)*((C15/C2)*C10*100*10))+20 -> 1833.930152 | E28: =114+(1.396*(E15/E2)*E10*100*10)+0.000195*(((E15/E2)*E10*100*10)*((E15/E2)*E10*100*10))+20 -> 1843.226282
A29: P | C29: =19+1.43*C21 -> 64.89296959 | E29: =19+1.43*E21 -> 64.02412784

Sheet Feb voer
A1: Vul alle | B1: licht en | C1: donkerblauwe | F1: cellen in
B3: Februari gerealiseerd | G3: Februari prognose | J3: Prognose
A4: Weidegang (ja/nee) | B4: 2 | F4: Weidegang (ja/nee) | G4: 2 | J4: Drogestof opname uit weidegras kg/koe/dag | M4: ='Feb Voeropname'!E31 -> 0 | N4: =IF(M4>10,'Feb Voeropname'!R12,"") -> 
A5: Weidegras | B5: Eigen invoer | F5: Weidegras | G5: Eigen invoer | J5: Uren weidegang per koe/dag | M5: =IF(M4>0.1,IF(M4>2.5,(M4-3)+2,M4/1.5),"") -> 
A6: % restvoer | B6: 0.05 | F6: % restvoer | G6: 0.05 | J6: Gewenst ruw eiwit gehalte krachtvoer (g/kg) | M6: =(H20*'Feb Voeropname'!E2-'Feb Voeropname'!E6*'Feb Voeropname'!E2)/('Feb Voeropname'!E76/('Feb vee+melk'!E2+'Feb vee+melk'!E3))*0.9 -> 176.1804336
J7: Gewenst P gehalte krachtvoer (g/kg) | M7: =(H21*'Feb Voeropname'!E2-'Feb Voeropname'!E8*'Feb Voeropname'!E2)/('Feb Voeropname'!E76/('Feb vee+melk'!E3+'Feb vee+melk'!E2))*0.9 -> 3.88452153
A8: Wat is er afgelopen maand op stal gevoerd? | B8: Naam | C8: kg product gevoerd/dag | F8: Wat wilt u komende maand op stal voeren? | G8: Naam | H8: kg product te voeren/dag | J8: *Dit zijn de gewenste gehaltes in het krachtvoer om bij het ingevoerde stalrantsoen en gehaltes in het weidegras het gewenste ruw eiwit en P gehalte in het totale rantsoen te realiseren.
A9: Kuilgras | B9: Gkuil 1e snede 2016 | C9: 600 | F9: Kuilgras | G9: Gkuil 1e snede 2016 | H9: 600 | J9: Totale droge stof opname/koe/dag | M9: ='Feb Voeropname'!E2 -> 21.97610744
A10: Snijmais | B10: Mkuil 1 | C10: 820 | F10: OverigRuwvoer | G10: Mkuil 1 | H10: 820 | J10: VEM dekking | M10: =IF(G4=1,'Feb Voeropname'!O7,'Feb Voeropname'!E23/'Feb Voeropname'!E27) -> 1.093980231 | N10: =IF(M10<1,'Feb Voeropname'!R13,"") -> 
A11: OverigRuwvoer | B11: Overig 1 | C11: 0 | F11: OverigRuwvoer | G11: Overig 1 | H11: 0 | J11: Verwachte N excretie per ton meetmelk (kg) | M11: ='Feb Excretie'!E24 -> 10.61252512
A12: Bijproducten | B12: Bierbostel | C12: 260 | F12: =IF(A12>0,A12,"") -> Bijproducten | G12: Bierbostel | H12: 260 | J12: Verwachte fosfaat excretie per ton meetmelk (kg) | M12: ='Feb Excretie'!E25*2.29 -> 4.218082408
A13: Bijproducten | B13: sodagrain | C13: 150 | F13: Bijproducten | G13: sodagrain | H13: 150
A14: Bijproducten | B14: BP 6 | F14: Bijproducten | G14: BP 6 | J14: Kengetallen afgelopen maand
A15: Kuilgras | B15: Gkuil 2 2e snede 2015 | C15: 1100 | F15: Kuilgras | G15: Gkuil 2 2e snede 2015 | H15: 1100 | J15: Totale droge stof opname/koe/dag | M15: ='Feb kengetallen'!C4 -> 21.45908378
J16: Ruw eiwit gehalte rantsoen (g/kg ds) | M16: ='Feb kengetallen'!C8 -> 157.408017
J17: P gehalte rantsoen (g/kg ds) | M17: ='Feb kengetallen'!C10 -> 3.993908795
J18: ='Feb kengetallen'!A16 -> N excretie per ton meetmelk (kg) | M18: ='Feb kengetallen'!C16 -> 10.37013109
J19: Fosfaat excretie per ton meetmelk (kg) | M19: ='Feb kengetallen'!C17*2.29 -> 4.182131736
A20: Krachtvoer | B20: KV 1 | C20: 0 | F20: Gewenst ruw eiwit gehalte rantsoen (g/kg ds) | H20: 155
A21: Krachtvoer | B21: KV 2 | C21: 279 | F21: Gewenst P gehalte rantsoen (g/kg ds) | H21: 3.9 | J21: ='Feb kengetallen'!A24 -> Voerefficientie kg meetmelk/kg voer (ds) | M21: ='Feb kengetallen'!C24 -> 1.495543149
A22: Krachtvoer | B22: snijmaiskernbrok | C22: 130 | F22: Gewenste hoeveelheid krachtvoer (kg/100 kg melk) | H22: 18 | J22: ='Feb kengetallen'!A25 -> kg krachtvoer per 100 kg (excl bijprod) | M22: ='Feb kengetallen'!C25 -> 17.94960254
A23: kg krachtvoer gevoerd/100 kg melk | C23: ='Feb kengetallen'!C25 -> 17.94960254 | J23: ='Feb kengetallen'!A20 -> VEM dekking | M23: ='Feb kengetallen'!C20 -> 1.037824147

Sheet Maart vee+melk
A2: Melkgevende koeien | C2: 71 | E2: 70
A3: Droge koeien* | C3: 3 | E3: 3
A4: *Het aantal droge koeien dat bij de melkveestapel loopt en dus ook van het ruwvoer mee vreet.
C6: ='[1]Maart voer'!B3 -> Maart gerealiseerd | E6: ='[1]Maart voer'!G3 -> Maart prognose
A7: Tankmelk geleverd | C7: 63710 | E7: 60000
A8: Aantal dagen | C8: 30 | E8: 30
A9: Vet% | C9: 0.0438 | E9: 0.0452
A10: Eiwit% | C10: 0.0349 | E10: 0.035
A11: Ureum | C11: 20 | E11: 22
A13: Separatie melk kg/dag | C13: 30 | E13: 30
A15: Melk per dag | C15: =IF(SUM(C7)>0,SUM(C7)/(SUM(C8)),"")+C13 -> 2153.666667 | E15: =IF(SUM(E7)>0,SUM(E7)/(SUM(E8)),"")+E13 -> 2030
A16: Eiwit | C16: =C15*MAX(C10) -> 75.16296667 | E16: =E15*MAX(E10) -> 71.05
A17: Vet | C17: =(C9*C15) -> 94.3306 | E17: =(E9*E15) -> 91.756
A18: N | C18: =C16/6.38 -> 11.78102926 | E18: =E16/6.38 -> 11.13636364
A20: kg melk/koe/dag | C20: =IF(C7>0,C15/C2,"") -> 30.33333333 | E20: =IF(E7>0,E15/E2,"") -> 29
A21: FCPM/koe/dag | C21: =(0.337+0.116*MAX(C9)*100+0.06*MAX(C10)*100)*C15/C2 -> 31.98589333 | E21: =(0.337+0.116*MAX(E9)*100+0.06*MAX(E10)*100)*E15/E2 -> 31.06828
A22: Melkproductie incl droge | C22: =C15/(C2+C3) -> 29.1036036 | E22: =E15/(E2+E3) -> 27.80821918
A23: Meetmelk 305 dgn | C23: =C21*305 -> 9755.697467 | E23: =E21*305 -> 9475.8254
A24: gemiddeld Meetmelk 305 dgn | C24: =C23 -> 9755.697467 | E24: =E23 -> 9475.8254
A26: Behoefte
A27: VEM | C27: =IF('Maart voer'!B4=1,6013+440*C21+0.73*C21*C21,5013+440*C21+0.73*C21*C21) -> 19833.65415 | E27: =IF('Maart voer'!G4=1,6013+440*E21+0.73*E21*E21,5013+440*E21+0.73*E21*E21) -> 19387.66696
A28: DVE | C28: =114+(1.396*(C15/C2)*C10*100*10)+0.000195*(((C15/C2)*C10*100*10)*((C15/C2)*C10*100*10))+20 -> 1830.389518 | E28: =114+(1.396*(E15/E2)*E10*100*10)+0.000195*(((E15/E2)*E10*100*10)*((E15/E2)*E10*100*10))+20 -> 1751.833875
A29: P | C29: =19+1.43*C21 -> 64.73982747 | E29: =19+1.43*E21 -> 63.4276404

Sheet Maart voer
A1: Vul alle | B1: licht en | C1: donkerblauwe | F1: cellen in
B3: Maart gerealiseerd | G3: Maart prognose | J3: Prognose
A4: Weidegang (ja/nee) | B4: 2 | F4: Weidegang (ja/nee) | G4: 2 | J4: Drogestof opname uit weidegras kg/koe/dag | M4: ='Maart Voeropname'!E31 -> 0 | N4: =IF(M4>10,'Maart Voeropname'!R12,"") -> 
A5: Weidegras | B5: Eigen invoer | F5: Weidegras | G5: Eigen invoer | J5: Uren weidegang per koe/dag | M5: =IF(M4>0.1,IF(M4>2.5,(M4-3)+2,M4/1.5),"") -> 
A6: % restvoer | B6: 0.05 | F6: % restvoer | G6: 0.05 | J6: Gewenst ruw eiwit gehalte krachtvoer (g/kg) | M6: =(H20*'Maart Voeropname'!E2-'Maart Voeropname'!E6*'Maart Voeropname'!E2)/('Maart Voeropname'!E76/('Maart vee+melk'!E2+'Maart vee+melk'!E3))*0.9 -> 199.6630973
J7: Gewenst P gehalte krachtvoer (g/kg) | M7: =(H21*'Maart Voeropname'!E2-'Maart Voeropname'!E8*'Maart Voeropname'!E2)/('Maart Voeropname'!E76/('Maart vee+melk'!E3+'Maart vee+melk'!E2))*0.9 -> 1.554621613
A8: Wat is er afgelopen maand op stal gevoerd? | B8: Naam | C8: kg product gevoerd/dag | F8: Wat wilt u komende maand op stal voeren? | G8: Naam | H8: kg product te voeren/dag | J8: *Dit zijn de gewenste gehaltes in het krachtvoer om bij het ingevoerde stalrantsoen en gehaltes in het weidegras het gewenste ruw eiwit en P gehalte in het totale rantsoen te realiseren.
A9: Kuilgras | B9: Gkuil 1e snede 2016 | C9: 0 | F9: =IF(A9>0,A9,"") -> Kuilgras | G9: Gkuil 1e snede 2016 | H9: 0 | J9: Totale droge stof opname/koe/dag | M9: ='Maart Voeropname'!E2 -> 21.61308904
A10: Snijmais | B10: Mkuil 1 | C10: 750 | F10: Snijmais | G10: Mkuil 1 | H10: 750 | J10: VEM dekking | M10: =IF(G4=1,'Maart Voeropname'!O7,'Maart Voeropname'!E23/'Maart Voeropname'!E27) -> 1.077155662 | N10: =IF(M10<1,'Maart Voeropname'!R13,"") -> 
A11: OverigRuwvoer | B11: Overig 1 | C11: 0 | F11: OverigRuwvoer | G11: Overig 1 | H11: 0 | J11: Verwachte N excretie per ton meetmelk (kg) | M11: ='Maart Excretie'!E24 -> 11.4472346
A12: Bijproducten | B12: Bierbostel | C12: 260 | F12: Bijproducten | G12: Bierbostel | H12: 260 | J12: Verwachte fosfaat excretie per ton meetmelk (kg) | M12: ='Maart Excretie'!E25*2.29 -> 3.811200179
A13: Bijproducten | B13: sodagrain | C13: 140 | F13: Bijproducten | G13: sodagrain | H13: 140
A14: Bijproducten | B14: BP 6 | F14: Bijproducten | G14: BP 6 | J14: Kengetallen afgelopen maand
A15: Kuilgras | B15: Gkuil 2 2e snede 2015 | C15: 1900 | F15: Kuilgras | G15: Gkuil 2 2e snede 2015 | H15: 1900 | J15: Totale droge stof opname/koe/dag | M15: ='Maart kengetallen'!C4 -> 21.65183108
J16: Ruw eiwit gehalte rantsoen (g/kg ds) | M16: ='Maart kengetallen'!C8 -> 156.3071758
J17: P gehalte rantsoen (g/kg ds) | M17: ='Maart kengetallen'!C10 -> 4.141625061
J18: ='Maart kengetallen'!A16 -> N excretie per ton meetmelk (kg) | M18: ='Maart kengetallen'!C16 -> 10.4416861
J19: Fosfaat excretie per ton meetmelk (kg) | M19: ='Maart kengetallen'!C17*2.29 -> 4.446754381
A20: Krachtvoer | B20: snijmaiskernbrok | C20: 102 | F20: Gewenst ruw eiwit gehalte rantsoen (g/kg ds) | H20: 160
A21: Krachtvoer | B21: KV 2 | C21: 250 | F21: Gewenst P gehalte rantsoen (g/kg ds) | H21: 3.6 | J21: ='Maart kengetallen'!A24 -> Voerefficientie kg meetmelk/kg voer (ds) | M21: ='Maart kengetallen'!C24 -> 1.477283525
A22: Krachtvoer | F22: Gewenste hoeveelheid krachtvoer (kg/100 kg melk) | H22: 16 | J22: ='Maart kengetallen'!A25 -> kg krachtvoer per 100 kg (excl bijprod) | M22: ='Maart kengetallen'!C25 -> 15.49979057
A23: kg krachtvoer gevoerd/100 kg melk | C23: ='Maart kengetallen'!C25 -> 15.49979057 | J23: ='Maart kengetallen'!A20 -> VEM dekking | M23: ='Maart kengetallen'!C20 -> 1.042433789

Sheet April vee+melk
A2: Melkgevende koeien | C2: 71 | E2: 70
A3: Droge koeien* | C3: 3 | E3: 3
A4: *Het aantal droge koeien dat bij de melkveestapel loopt en dus ook van het ruwvoer mee vreet.
C6: ='[1]April voer'!B3 -> April gerealiseerd | E6: ='[1]April voer'!G3 -> April prognose
A7: Tankmelk geleverd | C7: 59638 | E7: 58000
A8: Aantal dagen | C8: 30 | E8: 30
A9: Vet% | C9: 0.0415 | E9: 0.042
A10: Eiwit% | C10: 0.0357 | E10: 0.035
A11: Ureum | C11: 15 | E11: 22
A13: Separatie melk kg/dag | C13: 30 | E13: 30
A15: Melk per dag | C15: =IF(SUM(C7)>0,SUM(C7)/(SUM(C8)),"")+C13 -> 2017.933333 | E15: =IF(SUM(E7)>0,SUM(E7)/(SUM(E8)),"")+E13 -> 1963.333333
A16: Eiwit | C16: =C15*MAX(C10) -> 72.04022 | E16: =E15*MAX(E10) -> 68.71666667
A17: Vet | C17: =(C9*C15) -> 83.74423333 | E17: =(E9*E15) -> 82.46
A18: N | C18: =C16/6.38 -> 11.29157053 | E18: =E16/6.38 -> 10.77063741
A20: kg melk/koe/dag | C20: =IF(C7>0,C15/C2,"") -> 28.42159624 | E20: =IF(E7>0,E15/E2,"") -> 28.04761905
A21: FCPM/koe/dag | C21: =(0.337+0.116*MAX(C9)*100+0.06*MAX(C10)*100)*C15/C2 -> 29.34814028 | E21: =(0.337+0.116*MAX(E9)*100+0.06*MAX(E10)*100)*E15/E2 -> 29.00684762
A22: Melkproductie incl droge | C22: =C15/(C2+C3) -> 27.26936937 | E22: =E15/(E2+E3) -> 26.89497717
A23: Meetmelk 305 dgn | C23: =C21*305 -> 8951.182786 | E23: =E21*305 -> 8847.088524
A24: gemiddeld Meetmelk 305 dgn | C24: =C23 -> 8951.182786 | E24: =E23 -> 8847.088524
A26: Behoefte
A27: VEM | C27: =IF('April voer'!B4=1,6013+440*C21+0.73*C21*C21,5013+440*C21+0.73*C21*C21) -> 19554.94046 | E27: =IF('April voer'!G4=1,6013+440*E21+0.73*E21*E21,5013+440*E21+0.73*E21*E21) -> 19390.23291
A28: DVE | C28: =114+(1.396*(C15/C2)*C10*100*10)+0.000195*(((C15/C2)*C10*100*10)*((C15/C2)*C10*100*10))+20 -> 1751.208518 | E28: =114+(1.396*(E15/E2)*E10*100*10)+0.000195*(((E15/E2)*E10*100*10)*((E15/E2)*E10*100*10))+20 -> 1692.322208
A29: P | C29: =19+1.43*C21 -> 60.9678406 | E29: =19+1.43*E21 -> 60.4797921

Sheet April voer
A1: Vul alle | B1: licht en | C1: donkerblauwe | F1: cellen in
B3: April gerealiseerd | G3: April prognose | J3: Prognose
A4: Weidegang (ja/nee) | B4: 1 | F4: Weidegang (ja/nee) | G4: 1 | J4: Drogestof opname uit weidegras kg/koe/dag | M4: ='April Voeropname'!E31 -> 5.899046618 | N4: =IF(M4>10,'April Voeropname'!R12,"") -> 
A5: Weidegras | B5: April eigen invoer | F5: Weidegras | G5: April standaard | J5: Uren weidegang per koe/dag | M5: =IF(M4>0.1,IF(M4>2.5,(M4-3)+2,M4/1.5),"") -> 4.899046618
A6: % restvoer | B6: 0.05 | F6: % restvoer | G6: 0.05 | J6: Gewenst ruw eiwit gehalte krachtvoer (g/kg) | M6: =(H20*'April Voeropname'!E2-'April Voeropname'!E6*'April Voeropname'!E2)/('April Voeropname'!E76/('April vee+melk'!E2+'April vee+melk'!E3))*0.9 -> 219.7874922
J7: Gewenst P gehalte krachtvoer (g/kg) | M7: =(H21*'April Voeropname'!E2-'April Voeropname'!E8*'April Voeropname'!E2)/('April Voeropname'!E76/('April vee+melk'!E3+'April vee+melk'!E2))*0.9 -> 3.047762851
A8: Wat is er afgelopen maand op stal gevoerd? | B8: Naam | C8: kg product gevoerd/dag | F8: Wat wilt u komende maand op stal voeren? | G8: Naam | H8: kg product te voeren/dag | J8: *Dit zijn de gewenste gehaltes in het krachtvoer om bij het ingevoerde stalrantsoen en gehaltes in het weidegras het gewenste ruw eiwit en P gehalte in het totale rantsoen te realiseren.
A9: Kuilgras | B9: Gkuil 2 2e snede 2015 | C9: 1000 | F9: =IF(A9>0,A9,"") -> Kuilgras | G9: Gkuil 2 2e snede 2015 | H9: 600 | J9: Totale droge stof opname/koe/dag | M9: ='April Voeropname'!E2 -> 19.74236854
A10: Snijmais | B10: Mkuil 1 | C10: 1000 | F10: Snijmais | G10: Mkuil 1 | H10: 1000 | J10: VEM dekking | M10: =IF(G4=1,'April Voeropname'!O7,'April Voeropname'!E23/'April Voeropname'!E27) -> 1.03 | N10: =IF(M10<1,'April Voeropname'!R13,"") -> 
A11: OverigRuwvoer | B11: Overig 1 | C11: 0 | F11: OverigRuwvoer | G11: Overig 1 | H11: 0 | J11: Verwachte N excretie per ton meetmelk (kg) | M11: ='April Excretie'!E24 -> 10.95581452
A12: Bijproducten | B12: Bierbostel | C12: 250 | F12: Bijproducten | G12: Bierbostel | H12: 250 | J12: Verwachte fosfaat excretie per ton meetmelk (kg) | M12: ='April Excretie'!E25*2.29 -> 3.63346137
A13: OverigRuwvoer | B13: Overig 2 | F13: OverigRuwvoer | G13: Overig 2
A14: Bijproducten | B14: sodagrain | C14: 140 | F14: Bijproducten | G14: sodagrain | H14: 140 | J14: Kengetallen afgelopen maand
J15: Totale droge stof opname/koe/dag | M15: ='April kengetallen'!C4 -> 20.30938381
J16: Ruw eiwit gehalte rantsoen (g/kg ds) | M16: ='April kengetallen'!C8 -> 151.2855594
J17: P gehalte rantsoen (g/kg ds) | M17: ='April kengetallen'!C10 -> 3.799475751
J18: ='April kengetallen'!A16 -> N excretie per ton meetmelk (kg) | M18: ='April kengetallen'!C16 -> 10.07882565
J19: Fosfaat excretie per ton meetmelk (kg) | M19: ='April kengetallen'!C17*2.29 -> 3.999187623
A20: Krachtvoer | B20: KV 1 | C20: 105 | F20: Gewenst ruw eiwit gehalte rantsoen (g/kg ds) | H20: 160
A21: Krachtvoer | B21: Melkbrok BM | C21: 185 | F21: Gewenst P gehalte rantsoen (g/kg ds) | H21: 3.6 | J21: ='April kengetallen'!A24 -> Voerefficientie kg meetmelk/kg voer (ds) | M21: ='April kengetallen'!C24 -> 1.44505321
A22: Krachtvoer | F22: Gewenste hoeveelheid krachtvoer (kg/100 kg melk) | H22: 15 | J22: ='April kengetallen'!A25 -> kg krachtvoer per 100 kg (excl bijprod) | M22: ='April kengetallen'!C25 -> 13.91743055
A23: kg krachtvoer gevoerd/100 kg melk | C23: ='April kengetallen'!C25 -> 13.91743055 | J23: ='April kengetallen'!A20 -> VEM dekking | M23: ='April kengetallen'!C20 -> 1.03

Sheet Mei vee+melk
A2: Melkgevende koeien | C2: 70 | E2: 70
A3: Droge koeien* | C3: 3 | E3: 3
A4: *Het aantal droge koeien dat bij de melkveestapel loopt en dus ook van het ruwvoer mee vreet.
C6: ='[1]Mei voer'!B3 -> Mei gerealiseerd | E6: ='[1]Mei voer'!G3 -> Mei prognose
A7: Tankmelk geleverd | C7: 64193 | E7: 58000
A8: Aantal dagen | C8: 33 | E8: 30
A9: Vet% | C9: 0.0393 | E9: 0.0452
A10: Eiwit% | C10: 0.0364 | E10: 0.035
A11: Ureum | C11: 15 | E11: 22
A13: Separatie melk kg/dag | C13: 35 | E13: 30
A15: Melk per dag | C15: =IF(SUM(C7)>0,SUM(C7)/(SUM(C8)),"")+C13 -> 1980.242424 | E15: =IF(SUM(E7)>0,SUM(E7)/(SUM(E8)),"")+E13 -> 1963.333333
A16: Eiwit | C16: =C15*MAX(C10) -> 72.08082424 | E16: =E15*MAX(E10) -> 68.71666667
A17: Vet | C17: =(C9*C15) -> 77.82352727 | E17: =(E9*E15) -> 88.74266667
A18: N | C18: =C16/6.38 -> 11.29793483 | E18: =E16/6.38 -> 10.77063741
A20: kg melk/koe/dag | C20: =IF(C7>0,C15/C2,"") -> 28.28917749 | E20: =IF(E7>0,E15/E2,"") -> 28.04761905
A21: FCPM/koe/dag | C21: =(0.337+0.116*MAX(C9)*100+0.06*MAX(C10)*100)*C15/C2 -> 28.60827941 | E21: =(0.337+0.116*MAX(E9)*100+0.06*MAX(E10)*100)*E15/E2 -> 30.04797524
A22: Melkproductie incl droge | C22: =C15/(C2+C3) -> 27.12660855 | E22: =E15/(E2+E3) -> 26.89497717
A23: Meetmelk 305 dgn | C23: =C21*305 -> 8725.52522 | E23: =E21*305 -> 9164.632448
A24: gemiddeld Meetmelk 305 dgn | C24: =C23 -> 8725.52522 | E24: =E23 -> 9164.632448
A26: Behoefte
A27: VEM | C27: =IF('Mei voer'!B4=1,6013+440*C21+0.73*C21*C21,5013+440*C21+0.73*C21*C21) -> 19198.09951 | E27: =IF('Mei voer'!G4=1,6013+440*E21+0.73*E21*E21,5013+440*E21+0.73*E21*E21) -> 19893.2121
A28: DVE | C28: =114+(1.396*(C15/C2)*C10*100*10)+0.000195*(((C15/C2)*C10*100*10)*((C15/C2)*C10*100*10))+20 -> 1778.263054 | E28: =114+(1.396*(E15/E2)*E10*100*10)+0.000195*(((E15/E2)*E10*100*10)*((E15/E2)*E10*100*10))+20 -> 1692.322208
A29: P | C29: =19+1.43*C21 -> 59.90983956 | E29: =19+1.43*E21 -> 61.96860459

Sheet Mei voer
A1: Vul alle | B1: licht en | C1: donkerblauwe | F1: cellen in
B3: Mei gerealiseerd | G3: Mei prognose | J3: Prognose
A4: Weidegang (ja/nee) | B4: 1 | F4: Weidegang (ja/nee) | G4: 1 | J4: Drogestof opname uit weidegras kg/koe/dag | M4: ='Mei Voeropname'!E31 -> 8.207339657 | N4: =IF(M4>10,'Mei Voeropname'!R12,"") -> 
A5: Weidegras | B5: Mei eigen invoer | F5: Weidegras | G5: Mei eigen invoer | J5: Uren weidegang per koe/dag | M5: =IF(M4>0.1,IF(M4>2.5,(M4-3)+2,M4/1.5),"") -> 7.207339657
A6: % restvoer | B6: 0.05 | F6: % restvoer | G6: 0.05 | J6: Gewenst ruw eiwit gehalte krachtvoer (g/kg) | M6: =(H20*'Mei Voeropname'!E2-'Mei Voeropname'!E6*'Mei Voeropname'!E2)/('Mei Voeropname'!E76/('Mei vee+melk'!E2+'Mei vee+melk'!E3))*0.9 -> 194.2807097
J7: Gewenst P gehalte krachtvoer (g/kg) | M7: =(H21*'Mei Voeropname'!E2-'Mei Voeropname'!E8*'Mei Voeropname'!E2)/('Mei Voeropname'!E76/('Mei vee+melk'!E3+'Mei vee+melk'!E2))*0.9 -> 3.070186382
A8: Wat is er afgelopen maand op stal gevoerd? | B8: Naam | C8: kg product gevoerd/dag | F8: Wat wilt u komende maand op stal voeren? | G8: Naam | H8: kg product te voeren/dag | J8: *Dit zijn de gewenste gehaltes in het krachtvoer om bij het ingevoerde stalrantsoen en gehaltes in het weidegras het gewenste ruw eiwit en P gehalte in het totale rantsoen te realiseren.
A9: Kuilgras | B9: Gkuil balen 2016 2e snede | C9: 350 | F9: =IF(A9>0,A9,"") -> Kuilgras | G9: Gkuil balen 2016 2e snede | H9: 350 | J9: Totale droge stof opname/koe/dag | M9: ='Mei Voeropname'!E2 -> 20.69430884
A10: Snijmais | B10: Mkuil 1 | C10: 1100 | F10: Snijmais | G10: Mkuil 1 | H10: 1000 | J10: VEM dekking | M10: =IF(G4=1,'Mei Voeropname'!O7,'Mei Voeropname'!E23/'Mei Voeropname'!E27) -> 1.03 | N10: =IF(M10<1,'Mei Voeropname'!R13,"") -> 
A11: OverigRuwvoer | B11: Overig 1 | C11: 0 | F11: OverigRuwvoer | G11: Overig 1 | H11: 0 | J11: Verwachte N excretie per ton meetmelk (kg) | M11: ='Mei Excretie'!E24 -> 11.28173784
A12: Bijproducten | B12: Bierbostel | C12: 175 | F12: Bijproducten | G12: Bierbostel | H12: 175 | J12: Verwachte fosfaat excretie per ton meetmelk (kg) | M12: ='Mei Excretie'!E25*2.29 -> 3.771734119
A13: OverigRuwvoer | B13: Overig 2 | F13: OverigRuwvoer | G13: Overig 2
A14: Bijproducten | B14: BP 6 | F14: Bijproducten | G14: BP 6 | J14: Kengetallen afgelopen maand
J15: Totale droge stof opname/koe/dag | M15: ='Mei kengetallen'!C4 -> 20.19341327
J16: Ruw eiwit gehalte rantsoen (g/kg ds) | M16: ='Mei kengetallen'!C8 -> 154.2011527
J17: P gehalte rantsoen (g/kg ds) | M17: ='Mei kengetallen'!C10 -> 3.684019969
J18: ='Mei kengetallen'!A16 -> N excretie per ton meetmelk (kg) | M18: ='Mei kengetallen'!C16 -> 10.47630818
J19: Fosfaat excretie per ton meetmelk (kg) | M19: ='Mei kengetallen'!C17*2.29 -> 3.891002997
A20: Krachtvoer | B20: KV 1 | C20: 55 | F20: Gewenst ruw eiwit gehalte rantsoen (g/kg ds) | H20: 160
A21: Krachtvoer | B21: Melkbrok BM | C21: 225 | F21: Gewenst P gehalte rantsoen (g/kg ds) | H21: 3.6 | J21: ='Mei kengetallen'!A24 -> Voerefficientie kg meetmelk/kg voer (ds) | M21: ='Mei kengetallen'!C24 -> 1.416713412
A22: Krachtvoer | F22: Gewenste hoeveelheid krachtvoer (kg/100 kg melk) | H22: 16 | J22: ='Mei kengetallen'!A25 -> kg krachtvoer per 100 kg (excl bijprod) | M22: ='Mei kengetallen'!C25 -> 13.98196635
A23: kg krachtvoer gevoerd/100 kg melk | C23: ='Mei kengetallen'!C25 -> 13.98196635 | J23: ='Mei kengetallen'!A20 -> VEM dekking | M23: ='Mei kengetallen'!C20 -> 1.03

Sheet Juni vee+melk
A2: Melkgevende koeien | C2: 69 | E2: 70
A3: Droge koeien* | C3: 2 | E3: 3
A4: *Het aantal droge koeien dat bij de melkveestapel loopt en dus ook van het ruwvoer mee vreet.
C6: ='[1]Juni voer'!B3 -> Juni gerealiseerd | E6: ='[1]Juni voer'!G3 -> Juni prognose
A7: Tankmelk geleverd | C7: 56934 | E7: 57500
A8: Aantal dagen | C8: 30 | E8: 30
A9: Vet% | C9: 0.038 | E9: 0.0452
A10: Eiwit% | C10: 0.0356 | E10: 0.035
A11: Ureum | C11: 16 | E11: 22
A13: Separatie melk kg/dag | C13: 25 | E13: 30
A15: Melk per dag | C15: =IF(SUM(C7)>0,SUM(C7)/(SUM(C8)),"")+C13 -> 1922.8 | E15: =IF(SUM(E7)>0,SUM(E7)/(SUM(E8)),"")+E13 -> 1946.666667
A16: Eiwit | C16: =C15*MAX(C10) -> 68.45168 | E16: =E15*MAX(E10) -> 68.13333333
A17: Vet | C17: =(C9*C15) -> 73.0664 | E17: =(E9*E15) -> 87.98933333
A18: N | C18: =C16/6.38 -> 10.72910345 | E18: =E16/6.38 -> 10.67920585
A20: kg melk/koe/dag | C20: =IF(C7>0,C15/C2,"") -> 27.86666667 | E20: =IF(E7>0,E15/E2,"") -> 27.80952381
A21: FCPM/koe/dag | C21: =(0.337+0.116*MAX(C9)*100+0.06*MAX(C10)*100)*C15/C2 -> 27.62701333 | E21: =(0.337+0.116*MAX(E9)*100+0.06*MAX(E10)*100)*E15/E2 -> 29.79289905
A22: Melkproductie incl droge | C22: =C15/(C2+C3) -> 27.08169014 | E22: =E15/(E2+E3) -> 26.66666667
A23: Meetmelk 305 dgn | C23: =C21*305 -> 8426.239067 | E23: =E21*305 -> 9086.83421
A24: gemiddeld Meetmelk 305 dgn | C24: =C23 -> 8426.239067 | E24: =E23 -> 9086.83421
A26: Behoefte
A27: VEM | C27: =IF('Juni voer'!B4=1,6013+440*C21+0.73*C21*C21,5013+440*C21+0.73*C21*C21) -> 18726.05973 | E27: =IF('Juni voer'!G4=1,6013+440*E21+0.73*E21*E21,5013+440*E21+0.73*E21*E21) -> 19769.83587
A28: DVE | C28: =114+(1.396*(C15/C2)*C10*100*10)+0.000195*(((C15/C2)*C10*100*10)*((C15/C2)*C10*100*10))+20 -> 1710.819567 | E28: =114+(1.396*(E15/E2)*E10*100*10)+0.000195*(((E15/E2)*E10*100*10)*((E15/E2)*E10*100*10))+20 -> 1677.512
A29: P | C29: =19+1.43*C21 -> 58.50662907 | E29: =19+1.43*E21 -> 61.60384564

Sheet Juni voer
A1: Vul alle | B1: licht en | C1: donkerblauwe | F1: cellen in
B3: Juni gerealiseerd | G3: Juni prognose | J3: Prognose
A4: Weidegang (ja/nee) | B4: 1 | F4: Weidegang (ja/nee) | G4: 1 | J4: Drogestof opname uit weidegras kg/koe/dag | M4: ='Juni Voeropname'!E31 -> 9.910464799 | N4: =IF(M4>10,'Juni Voeropname'!R12,"") -> 
A5: Weidegras | B5: Juni standaard | F5: Weidegras | G5: Juni standaard | J5: Uren weidegang per koe/dag | M5: =IF(M4>0.1,IF(M4>2.5,(M4-3)+2,M4/1.5),"") -> 8.910464799
A6: % restvoer | B6: 0.03 | F6: % restvoer | G6: 0.03 | J6: Gewenst ruw eiwit gehalte krachtvoer (g/kg) | M6: =(H20*'Juni Voeropname'!E2-'Juni Voeropname'!E6*'Juni Voeropname'!E2)/('Juni Voeropname'!E76/('Juni vee+melk'!E2+'Juni vee+melk'!E3))*0.9 -> 211.8064193
J7: Gewenst P gehalte krachtvoer (g/kg) | M7: =(H21*'Juni Voeropname'!E2-'Juni Voeropname'!E8*'Juni Voeropname'!E2)/('Juni Voeropname'!E76/('Juni vee+melk'!E3+'Juni vee+melk'!E2))*0.9 -> 2.813280012
A8: Wat is er afgelopen maand op stal gevoerd? | B8: Naam | C8: kg product gevoerd/dag | F8: Wat wilt u komende maand op stal voeren? | G8: Naam | H8: kg product te voeren/dag | J8: *Dit zijn de gewenste gehaltes in het krachtvoer om bij het ingevoerde stalrantsoen en gehaltes in het weidegras het gewenste ruw eiwit en P gehalte in het totale rantsoen te realiseren.
A9: Kuilgras | B9: Gkuil balen 2016 2e snede | C9: 250 | F9: =IF(A9>0,A9,"") -> Kuilgras | G9: Gkuil balen 2016 2e snede | H9: 250 | J9: Totale droge stof opname/koe/dag | M9: ='Juni Voeropname'!E2 -> 21.46528672
A10: Snijmais | B10: Mkuil 1 | C10: 1000 | F10: Snijmais | G10: Mkuil 1 | H10: 1000 | J10: VEM dekking | M10: =IF(G4=1,'Juni Voeropname'!O7,'Juni Voeropname'!E23/'Juni Voeropname'!E27) -> 1.03 | N10: =IF(M10<1,'Juni Voeropname'!R13,"") -> 
A11: OverigRuwvoer | B11: Overig 1 | C11: 0 | F11: OverigRuwvoer | G11: Overig 1 | H11: 0 | J11: Verwachte N excretie per ton meetmelk (kg) | M11: ='Juni Excretie'!E24 -> 12.01380865
A12: Bijproducten | B12: Bierbostel | C12: 200 | F12: Bijproducten | G12: Bierbostel | H12: 200 | J12: Verwachte fosfaat excretie per ton meetmelk (kg) | M12: ='Juni Excretie'!E25*2.29 -> 4.029177493
A13: OverigRuwvoer | B13: Overig 2 | F13: OverigRuwvoer | G13: Overig 2
A14: Bijproducten | B14: BP 6 | F14: Bijproducten | G14: BP 6 | J14: Kengetallen afgelopen maand
J15: Totale droge stof opname/koe/dag | M15: ='Juni kengetallen'!C4 -> 20.5629566
J16: Ruw eiwit gehalte rantsoen (g/kg ds) | M16: ='Juni kengetallen'!C8 -> 152.0573983
J17: P gehalte rantsoen (g/kg ds) | M17: ='Juni kengetallen'!C10 -> 3.738522476
J18: ='Juni kengetallen'!A16 -> N excretie per ton meetmelk (kg) | M18: ='Juni kengetallen'!C16 -> 11.03101147
J19: Fosfaat excretie per ton meetmelk (kg) | M19: ='Juni kengetallen'!C17*2.29 -> 4.238300088
A20: Krachtvoer | B20: KV 1 | C20: 75 | F20: Gewenst ruw eiwit gehalte rantsoen (g/kg ds) | H20: 160
A21: Krachtvoer | B21: Melkbrok BM | C21: 220 | F21: Gewenst P gehalte rantsoen (g/kg ds) | H21: 3.6 | J21: ='Juni kengetallen'!A24 -> Voerefficientie kg meetmelk/kg voer (ds) | M21: ='Juni kengetallen'!C24 -> 1.343533125
A22: Krachtvoer | F22: Gewenste hoeveelheid krachtvoer (kg/100 kg melk) | H22: 16 | J22: ='Juni kengetallen'!A25 -> kg krachtvoer per 100 kg (excl bijprod) | M22: ='Juni kengetallen'!C25 -> 15.47529683
A23: kg krachtvoer gevoerd/100 kg melk | C23: ='Juni kengetallen'!C25 -> 15.47529683 | J23: ='Juni kengetallen'!A20 -> VEM dekking | M23: ='Juni kengetallen'!C20 -> 1.03

Sheet Juli vee+melk
A2: Melkgevende koeien | C2: 69 | E2: 70
A3: Droge koeien* | C3: 2 | E3: 3
A4: *Het aantal droge koeien dat bij de melkveestapel loopt en dus ook van het ruwvoer mee vreet.
C6: ='[1]Juli voer'!B3 -> Juli gerealiseerd | E6: ='[1]Juli voer'!G3 -> Juli prognose
A7: Tankmelk geleverd | C7: 54593 | E7: 55000
A8: Aantal dagen | C8: 30 | E8: 30
A9: Vet% | C9: 0.0407 | E9: 0.0452
A10: Eiwit% | C10: 0.0345 | E10: 0.035
A11: Ureum | C11: 19 | E11: 22
A13: Separatie melk kg/dag | C13: 30 | E13: 30
A15: Melk per dag | C15: =IF(SUM(C7)>0,SUM(C7)/(SUM(C8)),"")+C13 -> 1849.766667 | E15: =IF(SUM(E7)>0,SUM(E7)/(SUM(E8)),"")+E13 -> 1863.333333
A16: Eiwit | C16: =C15*MAX(C10) -> 63.81695 | E16: =E15*MAX(E10) -> 65.21666667
A17: Vet | C17: =(C9*C15) -> 75.28550333 | E17: =(E9*E15) -> 84.22266667
A18: N | C18: =C16/6.38 -> 10.00265674 | E18: =E16/6.38 -> 10.22204807
A20: kg melk/koe/dag | C20: =IF(C7>0,C15/C2,"") -> 26.80821256 | E20: =IF(E7>0,E15/E2,"") -> 26.61904762
A21: FCPM/koe/dag | C21: =(0.337+0.116*MAX(C9)*100+0.06*MAX(C10)*100)*C15/C2 -> 27.24036095 | E21: =(0.337+0.116*MAX(E9)*100+0.06*MAX(E10)*100)*E15/E2 -> 28.5175181
A22: Melkproductie incl droge | C22: =C15/(C2+C3) -> 26.05305164 | E22: =E15/(E2+E3) -> 25.52511416
A23: Meetmelk 305 dgn | C23: =C21*305 -> 8308.310089 | E23: =E21*305 -> 8697.843019
A24: gemiddeld Meetmelk 305 dgn | C24: =C23 -> 8308.310089 | E24: =E23 -> 8697.843019
A26: Behoefte
A27: VEM | C27: =IF('Juli voer'!B4=1,6013+440*C21+0.73*C21*C21,5013+440*C21+0.73*C21*C21) -> 18540.44602 | E27: =IF('Juli voer'!G4=1,6013+440*E21+0.73*E21*E21,5013+440*E21+0.73*E21*E21) -> 19154.37961
A28: DVE | C28: =114+(1.396*(C15/C2)*C10*100*10)+0.000195*(((C15/C2)*C10*100*10)*((C15/C2)*C10*100*10))+20 -> 1591.941923 | E28: =114+(1.396*(E15/E2)*E10*100*10)+0.000195*(((E15/E2)*E10*100*10)*((E15/E2)*E10*100*10))+20 -> 1603.867208
A29: P | C29: =19+1.43*C21 -> 57.95371615 | E29: =19+1.43*E21 -> 59.78005088

Sheet Juli voer
A1: Vul alle | B1: licht en | C1: donkerblauwe | F1: cellen in
B3: Juli gerealiseerd | G3: Juli prognose | J3: Prognose
A4: Weidegang (ja/nee) | B4: 1 | F4: Weidegang (ja/nee) | G4: 1 | J4: Drogestof opname uit weidegras kg/koe/dag | M4: ='Juli Voeropname'!E31 -> 9.956427397 | N4: =IF(M4>10,'Juli Voeropname'!R12,"") -> 
A5: Weidegras | B5: Juli standaard | F5: Weidegras | G5: Juli standaard | J5: Uren weidegang per koe/dag | M5: =IF(M4>0.1,IF(M4>2.5,(M4-3)+2,M4/1.5),"") -> 8.956427397
A6: % restvoer | B6: 0.03 | F6: % restvoer | G6: 0.03 | J6: Gewenst ruw eiwit gehalte krachtvoer (g/kg) | M6: =(H20*'Juli Voeropname'!E2-'Juli Voeropname'!E6*'Juli Voeropname'!E2)/('Juli Voeropname'!E76/('Juli vee+melk'!E2+'Juli vee+melk'!E3))*0.9 -> 210.480639
J7: Gewenst P gehalte krachtvoer (g/kg) | M7: =(H21*'Juli Voeropname'!E2-'Juli Voeropname'!E8*'Juli Voeropname'!E2)/('Juli Voeropname'!E76/('Juli vee+melk'!E3+'Juli vee+melk'!E2))*0.9 -> 2.791642473
A8: Wat is er afgelopen maand op stal gevoerd? | B8: Naam | C8: kg product gevoerd/dag | F8: Wat wilt u komende maand op stal voeren? | G8: Naam | H8: kg product te voeren/dag | J8: *Dit zijn de gewenste gehaltes in het krachtvoer om bij het ingevoerde stalrantsoen en gehaltes in het weidegras het gewenste ruw eiwit en P gehalte in het totale rantsoen te realiseren.
A9: Kuilgras | B9: Gkuil balen 2016 2e snede | C9: 180 | F9: =IF(A9>0,A9,"") -> Kuilgras | G9: Gkuil balen 2016 2e snede | H9: 180 | J9: Totale droge stof opname/koe/dag | M9: ='Juli Voeropname'!E2 -> 20.66467671
A10: Snijmais | B10: Mkuil 1 | C10: 1050 | F10: Snijmais | G10: Mkuil 1 | H10: 1050 | J10: VEM dekking | M10: =IF(G4=1,'Juli Voeropname'!O7,'Juli Voeropname'!E23/'Juli Voeropname'!E27) -> 1.03 | N10: =IF(M10<1,'Juli Voeropname'!R13,"") -> 
A11: OverigRuwvoer | B11: Overig 1 | C11: 0 | F11: OverigRuwvoer | G11: Overig 1 | H11: 0 | J11: Verwachte N excretie per ton meetmelk (kg) | M11: ='Juli Excretie'!E24 -> 12.10128222
A12: Bijproducten | B12: Bierbostel | C12: 175 | F12: Bijproducten | G12: Bierbostel | H12: 170 | J12: Verwachte fosfaat excretie per ton meetmelk (kg) | M12: ='Juli Excretie'!E25*2.29 -> 4.058357611
A13: OverigRuwvoer | B13: Overig 2 | F13: OverigRuwvoer | G13: Overig 2
A14: Bijproducten | B14: BP 6 | F14: Bijproducten | G14: BP 6 | J14: Kengetallen afgelopen maand
J15: Totale droge stof opname/koe/dag | M15: ='Juli kengetallen'!C4 -> 20.22912573
J16: Ruw eiwit gehalte rantsoen (g/kg ds) | M16: ='Juli kengetallen'!C8 -> 153.7737244
J17: P gehalte rantsoen (g/kg ds) | M17: ='Juli kengetallen'!C10 -> 3.748559688
J18: ='Juli kengetallen'!A16 -> N excretie per ton meetmelk (kg) | M18: ='Juli kengetallen'!C16 -> 11.43590728
J19: Fosfaat excretie per ton meetmelk (kg) | M19: ='Juli kengetallen'!C17*2.29 -> 4.288436915
A20: Krachtvoer | B20: KV 1 | C20: 102 | F20: Gewenst ruw eiwit gehalte rantsoen (g/kg ds) | H20: 160
A21: Krachtvoer | B21: Melkbrok BM | C21: 255 | F21: Gewenst P gehalte rantsoen (g/kg ds) | H21: 3.6 | J21: ='Juli kengetallen'!A24 -> Voerefficientie kg meetmelk/kg voer (ds) | M21: ='Juli kengetallen'!C24 -> 1.346591114
A22: Krachtvoer | F22: Gewenste hoeveelheid krachtvoer (kg/100 kg melk) | H22: 16 | J22: ='Juli kengetallen'!A25 -> kg krachtvoer per 100 kg (excl bijprod) | M22: ='Juli kengetallen'!C25 -> 18.99355538
A23: kg krachtvoer gevoerd/100 kg melk | C23: ='Juli kengetallen'!C25 -> 18.99355538 | J23: ='Juli kengetallen'!A20 -> VEM dekking | M23: ='Juli kengetallen'!C20 -> 1.03

Sheet Aug vee+melk
A2: Melkgevende koeien | C2: 68 | E2: 69
A3: Droge koeien* | C3: 3 | E3: 3
A4: *Het aantal droge koeien dat bij de melkveestapel loopt en dus ook van het ruwvoer mee vreet.
C6: ='[1]Aug voer'!B3 -> Augustus gerealiseerd | E6: ='[1]Aug voer'!G3 -> Augustus prognose
A7: Tankmelk geleverd | C7: 51558 | E7: 55000
A8: Aantal dagen | C8: 30 | E8: 30
A9: Vet% | C9: 0.0415 | E9: 0.0452
A10: Eiwit% | C10: 0.0352 | E10: 0.035
A11: Ureum | C11: 19 | E11: 22
A13: Separatie melk kg/dag | C13: 30 | E13: 30
A15: Melk per dag | C15: =IF(SUM(C7)>0,SUM(C7)/(SUM(C8)),"")+C13 -> 1748.6 | E15: =IF(SUM(E7)>0,SUM(E7)/(SUM(E8)),"")+E13 -> 1863.333333
A16: Eiwit | C16: =C15*MAX(C10) -> 61.55072 | E16: =E15*MAX(E10) -> 65.21666667
A17: Vet | C17: =(C9*C15) -> 72.5669 | E17: =(E9*E15) -> 84.22266667
A18: N | C18: =C16/6.38 -> 9.647448276 | E18: =E16/6.38 -> 10.22204807
A20: kg melk/koe/dag | C20: =IF(C7>0,C15/C2,"") -> 25.71470588 | E20: =IF(E7>0,E15/E2,"") -> 27.00483092
A21: FCPM/koe/dag | C21: =(0.337+0.116*MAX(C9)*100+0.06*MAX(C10)*100)*C15/C2 -> 26.47586118 | E21: =(0.337+0.116*MAX(E9)*100+0.06*MAX(E10)*100)*E15/E2 -> 28.93081546
A22: Melkproductie incl droge | C22: =C15/(C2+C3) -> 24.62816901 | E22: =E15/(E2+E3) -> 25.87962963
A23: Meetmelk 305 dgn | C23: =C21*305 -> 8075.137659 | E23: =E21*305 -> 8823.898715
A24: gemiddeld Meetmelk 305 dgn | C24: =C23 -> 8075.137659 | E24: =E23 -> 8823.898715
A26: Behoefte
A27: VEM | C27: =IF('Aug voer'!B4=1,6013+440*C21+0.73*C21*C21,5013+440*C21+0.73*C21*C21) -> 18174.08791 | E27: =IF('Aug voer'!G4=1,6013+440*E21+0.73*E21*E21,5013+440*E21+0.73*E21*E21) -> 19353.56302
A28: DVE | C28: =114+(1.396*(C15/C2)*C10*100*10)+0.000195*(((C15/C2)*C10*100*10)*((C15/C2)*C10*100*10))+20 -> 1557.365597 | E28: =114+(1.396*(E15/E2)*E10*100*10)+0.000195*(((E15/E2)*E10*100*10)*((E15/E2)*E10*100*10))+20 -> 1627.658234
A29: P | C29: =19+1.43*C21 -> 56.86048148 | E29: =19+1.43*E21 -> 60.37106611

Sheet Aug voer
A1: Vul alle | B1: licht en | C1: donkerblauwe | F1: cellen in
B3: Augustus gerealiseerd | G3: Augustus prognose | J3: Prognose
A4: Weidegang (ja/nee) | B4: 1 | F4: Weidegang (ja/nee) | G4: 1 | J4: Drogestof opname uit weidegras kg/koe/dag | M4: ='Aug Voeropname'!E31 -> 8.819841746 | N4: =IF(M4>10,'Aug Voeropname'!R12,"") -> 
A5: Weidegras | B5: Augustus standaard | F5: Weidegras | G5: Augustus standaard | J5: Uren weidegang per koe/dag | M5: =IF(M4>0.1,IF(M4>2.5,(M4-3)+2,M4/1.5),"") -> 7.819841746
A6: % restvoer | B6: 0.04 | F6: % restvoer | G6: 0.04 | J6: Gewenst ruw eiwit gehalte krachtvoer (g/kg) | M6: =(H20*'Aug Voeropname'!E2-'Aug Voeropname'!E6*'Aug Voeropname'!E2)/('Aug Voeropname'!E76/('Aug vee+melk'!E2+'Aug vee+melk'!E3))*0.9 -> 168.631985
J7: Gewenst P gehalte krachtvoer (g/kg) | M7: =(H21*'Aug Voeropname'!E2-'Aug Voeropname'!E8*'Aug Voeropname'!E2)/('Aug Voeropname'!E76/('Aug vee+melk'!E3+'Aug vee+melk'!E2))*0.9 -> 2.137400032
A8: Wat is er afgelopen maand op stal gevoerd? | B8: Naam | C8: kg product gevoerd/dag | F8: Wat wilt u komende maand op stal voeren? | G8: Naam | H8: kg product te voeren/dag | J8: *Dit zijn de gewenste gehaltes in het krachtvoer om bij het ingevoerde stalrantsoen en gehaltes in het weidegras het gewenste ruw eiwit en P gehalte in het totale rantsoen te realiseren.
A9: Kuilgras | B9: Gkuil balen 2016 2e snede | C9: 200 | F9: =IF(A9>0,A9,"") -> Kuilgras | G9: Gkuil balen 2016 2e snede | H9: 200 | J9: Totale droge stof opname/koe/dag | M9: ='Aug Voeropname'!E2 -> 21.19829175
A10: Snijmais | B10: Mkuil 1 | C10: 1050 | F10: Snijmais | G10: Mkuil 1 | H10: 1050 | J10: VEM dekking | M10: =IF(G4=1,'Aug Voeropname'!O7,'Aug Voeropname'!E23/'Aug Voeropname'!E27) -> 1.03 | N10: =IF(M10<1,'Aug Voeropname'!R13,"") -> 
A11: Kuilgras | B11: 2017 1e 2e snede | C11: 180 | F11: Kuilgras | G11: 2017 1e 2e snede | H11: 180 | J11: Verwachte N excretie per ton meetmelk (kg) | M11: ='Aug Excretie'!E24 -> 12.26340952
A12: Bijproducten | B12: Bierbostel | C12: 175 | F12: Bijproducten | G12: Bierbostel | H12: 175 | J12: Verwachte fosfaat excretie per ton meetmelk (kg) | M12: ='Aug Excretie'!E25*2.29 -> 4.120868384
A13: OverigRuwvoer | B13: Overig 2 | F13: OverigRuwvoer | G13: Overig 2
A14: Bijproducten | B14: BP 6 | F14: Bijproducten | G14: BP 6 | J14: Kengetallen afgelopen maand
J15: Totale droge stof opname/koe/dag | M15: ='Aug kengetallen'!C4 -> 20.11011728
J16: Ruw eiwit gehalte rantsoen (g/kg ds) | M16: ='Aug kengetallen'!C8 -> 160.0789043
J17: P gehalte rantsoen (g/kg ds) | M17: ='Aug kengetallen'!C10 -> 3.86093794
J18: ='Aug kengetallen'!A16 -> N excretie per ton meetmelk (kg) | M18: ='Aug kengetallen'!C16 -> 12.51151692
J19: Fosfaat excretie per ton meetmelk (kg) | M19: ='Aug kengetallen'!C17*2.29 -> 4.680071457
A20: Krachtvoer | B20: KV 1 | C20: 100 | F20: Gewenst ruw eiwit gehalte rantsoen (g/kg ds) | H20: 160
A21: Krachtvoer | B21: Melkbrok BM | C21: 250 | F21: Gewenst P gehalte rantsoen (g/kg ds) | H21: 3.6 | J21: ='Aug kengetallen'!A24 -> Voerefficientie kg meetmelk/kg voer (ds) | M21: ='Aug kengetallen'!C24 -> 1.316544345
A22: Krachtvoer | F22: Gewenste hoeveelheid krachtvoer (kg/100 kg melk) | H22: 17 | J22: ='Aug kengetallen'!A25 -> kg krachtvoer per 100 kg (excl bijprod) | M22: ='Aug kengetallen'!C25 -> 19.44057188
A23: kg krachtvoer gevoerd/100 kg melk | C23: ='Aug kengetallen'!C25 -> 19.44057188 | J23: ='Aug kengetallen'!A20 -> VEM dekking | M23: ='Aug kengetallen'!C20 -> 1.03

Sheet Sep vee+melk
A2: Melkgevende koeien | C2: 70 | E2: 70
A3: Droge koeien* | C3: 2 | E3: 3
A4: *Het aantal droge koeien dat bij de melkveestapel loopt en dus ook van het ruwvoer mee vreet.
C6: ='[1]Sep voer'!B3 -> September gerealiseerd | E6: ='[1]Sep voer'!G3 -> September prognose
A7: Tankmelk geleverd | C7: 53612 | E7: 55000
A8: Aantal dagen | C8: 30 | E8: 30
A9: Vet% | C9: 0.0439 | E9: 0.0452
A10: Eiwit% | C10: 0.0361 | E10: 0.035
A11: Ureum | C11: 23 | E11: 22
A13: Separatie melk kg/dag | C13: 20 | E13: 30
A15: Melk per dag | C15: =IF(SUM(C7)>0,SUM(C7)/(SUM(C8)),"")+C13 -> 1807.066667 | E15: =IF(SUM(E7)>0,SUM(E7)/(SUM(E8)),"")+E13 -> 1863.333333
A16: Eiwit | C16: =C15*MAX(C10) -> 65.23510667 | E16: =E15*MAX(E10) -> 65.21666667
A17: Vet | C17: =(C9*C15) -> 79.33022667 | E17: =(E9*E15) -> 84.22266667
A18: N | C18: =C16/6.38 -> 10.22493835 | E18: =E16/6.38 -> 10.22204807
A20: kg melk/koe/dag | C20: =IF(C7>0,C15/C2,"") -> 25.8152381 | E20: =IF(E7>0,E15/E2,"") -> 26.61904762
A21: FCPM/koe/dag | C21: =(0.337+0.116*MAX(C9)*100+0.06*MAX(C10)*100)*C15/C2 -> 27.43746766 | E21: =(0.337+0.116*MAX(E9)*100+0.06*MAX(E10)*100)*E15/E2 -> 28.5175181
A22: Melkproductie incl droge | C22: =C15/(C2+C3) -> 25.09814815 | E22: =E15/(E2+E3) -> 25.52511416
A23: Meetmelk 305 dgn | C23: =C21*305 -> 8368.427635 | E23: =E21*305 -> 8697.843019
A24: gemiddeld Meetmelk 305 dgn | C24: =C23 -> 8368.427635 | E24: =E23 -> 8697.843019
A26: Behoefte
A27: VEM | C27: =IF('Sep voer'!B4=1,6013+440*C21+0.73*C21*C21,5013+440*C21+0.73*C21*C21) -> 18635.04045 | E27: =IF('Sep voer'!G4=1,6013+440*E21+0.73*E21*E21,5013+440*E21+0.73*E21*E21) -> 19154.37961
A28: DVE | C28: =114+(1.396*(C15/C2)*C10*100*10)+0.000195*(((C15/C2)*C10*100*10)*((C15/C2)*C10*100*10))+20 -> 1604.330685 | E28: =114+(1.396*(E15/E2)*E10*100*10)+0.000195*(((E15/E2)*E10*100*10)*((E15/E2)*E10*100*10))+20 -> 1603.867208
A29: P | C29: =19+1.43*C21 -> 58.23557875 | E29: =19+1.43*E21 -> 59.78005088

Sheet Sep voer
A1: Vul alle | B1: licht en | C1: donkerblauwe | F1: cellen in
B3: September gerealiseerd | G3: September prognose | J3: Prognose
A4: Weidegang (ja/nee) | B4: 1 | F4: Weidegang (ja/nee) | G4: 1 | J4: Drogestof opname uit weidegras kg/koe/dag | M4: ='Sep Voeropname'!E31 -> 6.779473553 | N4: =IF(M4>10,'Sep Voeropname'!R12,"") -> 
A5: Weidegras | B5: September standaard | F5: Weidegras | G5: September standaard | J5: Uren weidegang per koe/dag | M5: =IF(M4>0.1,IF(M4>2.5,(M4-3)+2,M4/1.5),"") -> 5.779473553
A6: % restvoer | B6: 0.04 | F6: % restvoer | G6: 0.05 | J6: Gewenst ruw eiwit gehalte krachtvoer (g/kg) | M6: =(H20*'Sep Voeropname'!E2-'Sep Voeropname'!E6*'Sep Voeropname'!E2)/('Sep Voeropname'!E76/('Sep vee+melk'!E2+'Sep vee+melk'!E3))*0.9 -> 113.770679
J7: Gewenst P gehalte krachtvoer (g/kg) | M7: =(H21*'Sep Voeropname'!E2-'Sep Voeropname'!E8*'Sep Voeropname'!E2)/('Sep Voeropname'!E76/('Sep vee+melk'!E3+'Sep vee+melk'!E2))*0.9 -> 2.424698284
A8: Wat is er afgelopen maand op stal gevoerd? | B8: Naam | C8: kg product gevoerd/dag | F8: Wat wilt u komende maand op stal voeren? | G8: Naam | H8: kg product te voeren/dag | J8: *Dit zijn de gewenste gehaltes in het krachtvoer om bij het ingevoerde stalrantsoen en gehaltes in het weidegras het gewenste ruw eiwit en P gehalte in het totale rantsoen te realiseren.
A9: Kuilgras | B9: 2017 1e 2e snede | C9: 700 | F9: =IF(A9>0,A9,"") -> Kuilgras | G9: 2017 1e 2e snede | H9: 700 | J9: Totale droge stof opname/koe/dag | M9: ='Sep Voeropname'!E2 -> 20.69687424
A10: Snijmais | B10: Mkuil 1 | C10: 1050 | F10: Snijmais | G10: Mkuil 1 | H10: 1050 | J10: VEM dekking | M10: =IF(G4=1,'Sep Voeropname'!O7,'Sep Voeropname'!E23/'Sep Voeropname'!E27) -> 1.03 | N10: =IF(M10<1,'Sep Voeropname'!R13,"") -> 
A11: Kuilgras | B11: Gkuil balen 2016 2e snede | C11: 60 | F11: Kuilgras | G11: Gkuil balen 2016 2e snede | H11: 60 | J11: Verwachte N excretie per ton meetmelk (kg) | M11: ='Sep Excretie'!E24 -> 12.05530243
A12: Bijproducten | B12: Bierbostel | C12: 175 | F12: Bijproducten | G12: Bierbostel | H12: 175 | J12: Verwachte fosfaat excretie per ton meetmelk (kg) | M12: ='Sep Excretie'!E25*2.29 -> 4.066767931
A13: OverigRuwvoer | B13: Overig 2 | F13: OverigRuwvoer | G13: Overig 2
A14: Bijproducten | B14: BP 6 | F14: Bijproducten | G14: BP 6 | J14: Kengetallen afgelopen maand
J15: Totale droge stof opname/koe/dag | M15: ='Sep kengetallen'!C4 -> 20.33178263
J16: Ruw eiwit gehalte rantsoen (g/kg ds) | M16: ='Sep kengetallen'!C8 -> 166.6058286
J17: P gehalte rantsoen (g/kg ds) | M17: ='Sep kengetallen'!C10 -> 3.831090514
J18: ='Sep kengetallen'!A16 -> N excretie per ton meetmelk (kg) | M18: ='Sep kengetallen'!C16 -> 12.74128257
J19: Fosfaat excretie per ton meetmelk (kg) | M19: ='Sep kengetallen'!C17*2.29 -> 4.501525869
A20: Krachtvoer | B20: KV 1 | C20: 80 | F20: Gewenst ruw eiwit gehalte rantsoen (g/kg ds) | H20: 160
A21: Krachtvoer | B21: Pens stabielbrok EBZ | C21: 286 | F21: Gewenst P gehalte rantsoen (g/kg ds) | H21: 3.6 | J21: ='Sep kengetallen'!A24 -> Voerefficientie kg meetmelk/kg voer (ds) | M21: ='Sep kengetallen'!C24 -> 1.349486572
A22: Krachtvoer | F22: Gewenste hoeveelheid krachtvoer (kg/100 kg melk) | H22: 18 | J22: ='Sep kengetallen'!A25 -> kg krachtvoer per 100 kg (excl bijprod) | M22: ='Sep kengetallen'!C25 -> 19.05631924
A23: kg krachtvoer gevoerd/100 kg melk | C23: ='Sep kengetallen'!C25 -> 19.05631924 | J23: ='Sep kengetallen'!A20 -> VEM dekking | M23: ='Sep kengetallen'!C20 -> 1.03

Sheet Okt vee+melk
A2: Melkgevende koeien | C2: 70 | E2: 70
A3: Droge koeien* | C3: 3 | E3: 3
A4: *Het aantal droge koeien dat bij de melkveestapel loopt en dus ook van het ruwvoer mee vreet.
C6: ='[1]Okt voer'!B3 -> September gerealiseerd | E6: ='[1]Okt voer'!G3 -> September prognose
A7: Tankmelk geleverd | C7: 59076 | E7: 55000
A8: Aantal dagen | C8: 33 | E8: 30
A9: Vet% | C9: 0.0418 | E9: 0.0452
A10: Eiwit% | C10: 0.0366 | E10: 0.035
A11: Ureum | C11: 21 | E11: 22
A13: Separatie melk kg/dag | C13: 35 | E13: 30
A15: Melk per dag | C15: =IF(SUM(C7)>0,SUM(C7)/(SUM(C8)),"")+C13 -> 1825.181818 | E15: =IF(SUM(E7)>0,SUM(E7)/(SUM(E8)),"")+E13 -> 1863.333333
A16: Eiwit | C16: =C15*MAX(C10) -> 66.80165455 | E16: =E15*MAX(E10) -> 65.21666667
A17: Vet | C17: =(C9*C15) -> 76.2926 | E17: =(E9*E15) -> 84.22266667
A18: N | C18: =C16/6.38 -> 10.47047877 | E18: =E16/6.38 -> 10.22204807
A20: kg melk/koe/dag | C20: =IF(C7>0,C15/C2,"") -> 26.07402597 | E20: =IF(E7>0,E15/E2,"") -> 26.61904762
A21: FCPM/koe/dag | C21: =(0.337+0.116*MAX(C9)*100+0.06*MAX(C10)*100)*C15/C2 -> 27.15557657 | E21: =(0.337+0.116*MAX(E9)*100+0.06*MAX(E10)*100)*E15/E2 -> 28.5175181
A22: Melkproductie incl droge | C22: =C15/(C2+C3) -> 25.00249066 | E22: =E15/(E2+E3) -> 25.52511416
A23: Meetmelk 305 dgn | C23: =C21*305 -> 8282.450854 | E23: =E21*305 -> 8697.843019
A24: gemiddeld Meetmelk 305 dgn | C24: =C23 -> 8282.450854 | E24: =E23 -> 8697.843019
A26: Behoefte
A27: VEM | C27: =IF('Okt voer'!B4=1,6013+440*C21+0.73*C21*C21,5013+440*C21+0.73*C21*C21) -> 18499.77419 | E27: =IF('Okt voer'!G4=1,6013+440*E21+0.73*E21*E21,5013+440*E21+0.73*E21*E21) -> 19154.37961
A28: DVE | C28: =114+(1.396*(C15/C2)*C10*100*10)+0.000195*(((C15/C2)*C10*100*10)*((C15/C2)*C10*100*10))+20 -> 1643.803589 | E28: =114+(1.396*(E15/E2)*E10*100*10)+0.000195*(((E15/E2)*E10*100*10)*((E15/E2)*E10*100*10))+20 -> 1603.867208
A29: P | C29: =19+1.43*C21 -> 57.8324745 | E29: =19+1.43*E21 -> 59.78005088

Sheet Okt voer
A1: Vul alle | B1: licht en | C1: donkerblauwe | F1: cellen in
B3: Oktober gerealiseerd | G3: Oktober prognose | J3: Prognose
A4: Weidegang (ja/nee) | B4: 1 | F4: Weidegang (ja/nee) | G4: 1 | J4: Drogestof opname uit weidegras kg/koe/dag | M4: ='Okt Voeropname'!E31 -> 4.193641267 | N4: =IF(M4>10,'Okt Voeropname'!R12,"") -> 
A5: Weidegras | B5: Oktober eigen invoer | F5: Weidegras | G5: Oktober standaard | J5: Uren weidegang per koe/dag | M5: =IF(M4>0.1,IF(M4>2.5,(M4-3)+2,M4/1.5),"") -> 3.193641267
A6: % restvoer | B6: 0.05 | F6: % restvoer | G6: 0.05 | J6: Gewenst ruw eiwit gehalte krachtvoer (g/kg) | M6: =(H20*'Okt Voeropname'!E2-'Okt Voeropname'!E6*'Okt Voeropname'!E2)/('Okt Voeropname'!E76/('Okt vee+melk'!E2+'Okt vee+melk'!E3))*0.9 -> 135.7212781
J7: Gewenst P gehalte krachtvoer (g/kg) | M7: =(H21*'Okt Voeropname'!E2-'Okt Voeropname'!E8*'Okt Voeropname'!E2)/('Okt Voeropname'!E76/('Okt vee+melk'!E3+'Okt vee+melk'!E2))*0.9 -> 2.898903608
A8: Wat is er afgelopen maand op stal gevoerd? | B8: Naam | C8: kg product gevoerd/dag | F8: Wat wilt u komende maand op stal voeren? | G8: Naam | H8: kg product te voeren/dag | J8: *Dit zijn de gewenste gehaltes in het krachtvoer om bij het ingevoerde stalrantsoen en gehaltes in het weidegras het gewenste ruw eiwit en P gehalte in het totale rantsoen te realiseren.
A9: Kuilgras | B9: 2017 1e 2e snede | C9: 1200 | F9: =IF(A9>0,A9,"") -> Kuilgras | G9: 2017 1e 2e snede | H9: 1200 | J9: Totale droge stof opname/koe/dag | M9: ='Okt Voeropname'!E2 -> 20.5388125
A10: Snijmais | B10: Mkuil 1 | C10: 1050 | F10: Snijmais | G10: Mkuil 1 | H10: 1100 | J10: VEM dekking | M10: =IF(G4=1,'Okt Voeropname'!O7,'Okt Voeropname'!E23/'Okt Voeropname'!E27) -> 1.03 | N10: =IF(M10<1,'Okt Voeropname'!R13,"") -> 
A11: Kuilgras | B11: 2017 1e 2e snede | C11: 0 | F11: Kuilgras | G11: 2017 1e 2e snede | H11: 0 | J11: Verwachte N excretie per ton meetmelk (kg) | M11: ='Okt Excretie'!E24 -> 11.95148452
A12: Bijproducten | B12: Bierbostel | C12: 130 | F12: Bijproducten | G12: Bierbostel | H12: 130 | J12: Verwachte fosfaat excretie per ton meetmelk (kg) | M12: ='Okt Excretie'!E25*2.29 -> 4.028572721
A13: OverigRuwvoer | B13: Overig 2 | F13: OverigRuwvoer | G13: Overig 2
A14: Bijproducten | B14: BP 6 | F14: Bijproducten | G14: BP 6 | J14: Kengetallen afgelopen maand
J15: Totale droge stof opname/koe/dag | M15: ='Okt kengetallen'!C4 -> 20.03401317
J16: Ruw eiwit gehalte rantsoen (g/kg ds) | M16: ='Okt kengetallen'!C8 -> 164.0990823
J17: P gehalte rantsoen (g/kg ds) | M17: ='Okt kengetallen'!C10 -> 3.745822492
J18: ='Okt kengetallen'!A16 -> N excretie per ton meetmelk (kg) | M18: ='Okt kengetallen'!C16 -> 12.30837209
J19: Fosfaat excretie per ton meetmelk (kg) | M19: ='Okt kengetallen'!C17*2.29 -> 4.315257788
A20: Krachtvoer | B20: KV 1 | C20: 60 | F20: Gewenst ruw eiwit gehalte rantsoen (g/kg ds) | H20: 160
A21: Krachtvoer | B21: Pens stabielbrok EBZ | C21: 310 | F21: Gewenst P gehalte rantsoen (g/kg ds) | H21: 3.6 | J21: ='Okt kengetallen'!A24 -> Voerefficientie kg meetmelk/kg voer (ds) | M21: ='Okt kengetallen'!C24 -> 1.355473631
A22: Krachtvoer | F22: Gewenste hoeveelheid krachtvoer (kg/100 kg melk) | H22: 18 | J22: ='Okt kengetallen'!A25 -> kg krachtvoer per 100 kg (excl bijprod) | M22: ='Okt kengetallen'!C25 -> 19.46456291
A23: kg krachtvoer gevoerd/100 kg melk | C23: ='Okt kengetallen'!C25 -> 19.46456291 | J23: ='Okt kengetallen'!A20 -> VEM dekking | M23: ='Okt kengetallen'!C20 -> 1.03

Sheet Nov vee+melk
A2: Melkgevende koeien | C2: 69 | E2: 70
A3: Droge koeien* | C3: 4 | E3: 3
A4: *Het aantal droge koeien dat bij de melkveestapel loopt en dus ook van het ruwvoer mee vreet.
C6: ='[1]Nov voer'!B3 -> November gerealiseerd | E6: ='[1]Nov voer'!G3 -> November prognose
A7: Tankmelk geleverd | C7: 55014 | E7: 55000
A8: Aantal dagen | C8: 30 | E8: 30
A9: Vet% | C9: 0.0432 | E9: 0.0452
A10: Eiwit% | C10: 0.038 | E10: 0.035
A11: Ureum | C11: 17 | E11: 22
A13: Separatie melk kg/dag | C13: 30 | E13: 30
A15: Melk per dag | C15: =IF(SUM(C7)>0,SUM(C7)/(SUM(C8)),"")+C13 -> 1863.8 | E15: =IF(SUM(E7)>0,SUM(E7)/(SUM(E8)),"")+E13 -> 1863.333333
A16: Eiwit | C16: =C15*MAX(C10) -> 70.8244 | E16: =E15*MAX(E10) -> 65.21666667
A17: Vet | C17: =(C9*C15) -> 80.51616 | E17: =(E9*E15) -> 84.22266667
A18: N | C18: =C16/6.38 -> 11.10100313 | E18: =E16/6.38 -> 10.22204807
A20: kg melk/koe/dag | C20: =IF(C7>0,C15/C2,"") -> 27.0115942 | E20: =IF(E7>0,E15/E2,"") -> 26.61904762
A21: FCPM/koe/dag | C21: =(0.337+0.116*MAX(C9)*100+0.06*MAX(C10)*100)*C15/C2 -> 28.79760081 | E21: =(0.337+0.116*MAX(E9)*100+0.06*MAX(E10)*100)*E15/E2 -> 28.5175181
A22: Melkproductie incl droge | C22: =C15/(C2+C3) -> 25.53150685 | E22: =E15/(E2+E3) -> 25.52511416
A23: Meetmelk 305 dgn | C23: =C21*305 -> 8783.268248 | E23: =E21*305 -> 8697.843019
A24: gemiddeld Meetmelk 305 dgn | C24: =C23 -> 8783.268248 | E24: =E23 -> 8697.843019
A26: Behoefte
A27: VEM | C27: =IF('Nov voer'!B4=1,6013+440*C21+0.73*C21*C21,5013+440*C21+0.73*C21*C21) -> 18289.33468 | E27: =IF('Nov voer'!G4=1,6013+440*E21+0.73*E21*E21,5013+440*E21+0.73*E21*E21) -> 18154.37961
A28: DVE | C28: =114+(1.396*(C15/C2)*C10*100*10)+0.000195*(((C15/C2)*C10*100*10)*((C15/C2)*C10*100*10))+20 -> 1772.359201 | E28: =114+(1.396*(E15/E2)*E10*100*10)+0.000195*(((E15/E2)*E10*100*10)*((E15/E2)*E10*100*10))+20 -> 1603.867208
A29: P | C29: =19+1.43*C21 -> 60.18056916 | E29: =19+1.43*E21 -> 59.78005088

Sheet Nov voer
A1: Vul alle | B1: licht en | C1: donkerblauwe | F1: cellen in
B3: November gerealiseerd | G3: November prognose | J3: Prognose
A4: Weidegang (ja/nee) | B4: 2 | F4: Weidegang (ja/nee) | G4: 2 | J4: Drogestof opname uit weidegras kg/koe/dag | M4: ='Nov Voeropname'!E31 -> 0 | N4: =IF(M4>10,'Nov Voeropname'!R12,"") -> 
A5: Weidegras | B5: Eigen invoer | F5: Weidegras | G5: Eigen invoer | J5: Uren weidegang per koe/dag | M5: =IF(M4>0.1,IF(M4>2.5,(M4-3)+2,M4/1.5),"") -> 
A6: % restvoer | B6: 0.05 | F6: % restvoer | G6: 0.05 | J6: Gewenst ruw eiwit gehalte krachtvoer (g/kg) | M6: =(H20*'Nov Voeropname'!E2-'Nov Voeropname'!E6*'Nov Voeropname'!E2)/('Nov Voeropname'!E76/('Nov vee+melk'!E2+'Nov vee+melk'!E3))*0.9 -> 167.790079
J7: Gewenst P gehalte krachtvoer (g/kg) | M7: =(H21*'Nov Voeropname'!E2-'Nov Voeropname'!E8*'Nov Voeropname'!E2)/('Nov Voeropname'!E76/('Nov vee+melk'!E3+'Nov vee+melk'!E2))*0.9 -> 4.461347645
A8: Wat is er afgelopen maand op stal gevoerd? | B8: Naam | C8: kg product gevoerd/dag | F8: Wat wilt u komende maand op stal voeren? | G8: Naam | H8: kg product te voeren/dag | J8: *Dit zijn de gewenste gehaltes in het krachtvoer om bij het ingevoerde stalrantsoen en gehaltes in het weidegras het gewenste ruw eiwit en P gehalte in het totale rantsoen te realiseren.
A9: Kuilgras | B9: 2017 1e 2e snede | C9: 1750 | F9: =IF(A9>0,A9,"") -> Kuilgras | G9: 2017 1e 2e snede | H9: 1800 | J9: Totale droge stof opname/koe/dag | M9: ='Nov Voeropname'!E2 -> 21.32030822
A10: Snijmais | B10: silo 2 links | C10: 800 | F10: Snijmais | G10: silo 2 links | H10: 800 | J10: VEM dekking | M10: =IF(G4=1,'Nov Voeropname'!O7,'Nov Voeropname'!E23/'Nov Voeropname'!E27) -> 1.128309252 | N10: =IF(M10<1,'Nov Voeropname'!R13,"") -> 
A11: Kuilgras | B11: 2017 1e 2e snede | C11: 0 | F11: Kuilgras | G11: 2017 1e 2e snede | H11: 0 | J11: Verwachte N excretie per ton meetmelk (kg) | M11: ='Nov Excretie'!E24 -> 12.60186277
A12: Bijproducten | B12: Bierbostel | C12: 250 | F12: Bijproducten | G12: Bierbostel | H12: 250 | J12: Verwachte fosfaat excretie per ton meetmelk (kg) | M12: ='Nov Excretie'!E25*2.29 -> 4.279197161
A13: Bijproducten | B13: soja raap | C13: 10 | F13: Bijproducten | G13: soja raap | H13: 20
A14: Bijproducten | B14: sodagrain | C14: 140 | F14: Bijproducten | G14: sodagrain | H14: 140 | J14: Kengetallen afgelopen maand
J15: Totale droge stof opname/koe/dag | M15: ='Nov kengetallen'!C4 -> 20.98068493
J16: Ruw eiwit gehalte rantsoen (g/kg ds) | M16: ='Nov kengetallen'!C8 -> 157.1865463
J17: P gehalte rantsoen (g/kg ds) | M17: ='Nov kengetallen'!C10 -> 3.399193648
J18: ='Nov kengetallen'!A16 -> N excretie per ton meetmelk (kg) | M18: ='Nov kengetallen'!C16 -> 11.39245737
J19: Fosfaat excretie per ton meetmelk (kg) | M19: ='Nov kengetallen'!C17*2.29 -> 3.735014242
A20: Krachtvoer | B20: Protitopbrok | C20: 75 | F20: Gewenst ruw eiwit gehalte rantsoen (g/kg ds) | H20: 160
A21: Krachtvoer | B21: Pens stabielbrok EBZ | C21: 286 | F21: Gewenst P gehalte rantsoen (g/kg ds) | H21: 3.6 | J21: ='Nov kengetallen'!A24 -> Voerefficientie kg meetmelk/kg voer (ds) | M21: ='Nov kengetallen'!C24 -> 1.372576773
A22: Krachtvoer | F22: Gewenste hoeveelheid krachtvoer (kg/100 kg melk) | H22: 18 | J22: ='Nov kengetallen'!A25 -> kg krachtvoer per 100 kg (excl bijprod) | M22: ='Nov kengetallen'!C25 -> 17.25938868
A23: kg krachtvoer gevoerd/100 kg melk | C23: ='Nov kengetallen'!C25 -> 17.25938868 | J23: ='Nov kengetallen'!A20 -> VEM dekking | M23: ='Nov kengetallen'!C20 -> 1.096520094

Sheet Dec vee+melk
A2: Melkgevende koeien | C2: 70 | E2: 70
A3: Droge koeien* | C3: 3 | E3: 3
A4: *Het aantal droge koeien dat bij de melkveestapel loopt en dus ook van het ruwvoer mee vreet.
C6: ='[1]Dec voer'!B3 -> December gerealiseerd | E6: ='[1]Dec voer'!G3 -> December prognose
A7: Tankmelk geleverd | C7: 60883 | E7: 59000
A8: Aantal dagen | C8: 30 | E8: 30
A9: Vet% | C9: 0.0436 | E9: 0.0452
A10: Eiwit% | C10: 0.0372 | E10: 0.035
A11: Ureum | C11: 19 | E11: 20
A13: Separatie melk kg/dag | C13: 25 | E13: 30
A15: Melk per dag | C15: =IF(SUM(C7)>0,SUM(C7)/(SUM(C8)),"")+C13 -> 2054.433333 | E15: =IF(SUM(E7)>0,SUM(E7)/(SUM(E8)),"")+E13 -> 1996.666667
A16: Eiwit | C16: =C15*MAX(C10) -> 76.42492 | E16: =E15*MAX(E10) -> 69.88333333
A17: Vet | C17: =(C9*C15) -> 89.57329333 | E17: =(E9*E15) -> 90.24933333
A18: N | C18: =C16/6.38 -> 11.97882759 | E18: =E16/6.38 -> 10.95350052
A20: kg melk/koe/dag | C20: =IF(C7>0,C15/C2,"") -> 29.34904762 | E20: =IF(E7>0,E15/E2,"") -> 28.52380952
A21: FCPM/koe/dag | C21: =(0.337+0.116*MAX(C9)*100+0.06*MAX(C10)*100)*C15/C2 -> 31.2849108 | E21: =(0.337+0.116*MAX(E9)*100+0.06*MAX(E10)*100)*E15/E2 -> 30.55812762
A22: Melkproductie incl droge | C22: =C15/(C2+C3) -> 28.14292237 | E22: =E15/(E2+E3) -> 27.35159817
A23: Meetmelk 305 dgn | C23: =C21*305 -> 9541.897794 | E23: =E21*305 -> 9320.228924
A24: gemiddeld Meetmelk 305 dgn | C24: =C23 -> 9541.897794 | E24: =E23 -> 9320.228924
A26: Behoefte
A27: VEM | C27: =IF('Dec voer'!B4=1,6013+440*C21+0.73*C21*C21,5013+440*C21+0.73*C21*C21) -> 19492.84507 | E27: =IF('Dec voer'!G4=1,6013+440*E21+0.73*E21*E21,5013+440*E21+0.73*E21*E21) -> 19140.24954
A28: DVE | C28: =114+(1.396*(C15/C2)*C10*100*10)+0.000195*(((C15/C2)*C10*100*10)*((C15/C2)*C10*100*10))+20 -> 1890.570004 | E28: =114+(1.396*(E15/E2)*E10*100*10)+0.000195*(((E15/E2)*E10*100*10)*((E15/E2)*E10*100*10))+20 -> 1722.023875
A29: P | C29: =19+1.43*C21 -> 63.73742244 | E29: =19+1.43*E21 -> 62.6981225

Sheet Dec voer
A1: Vul alle | B1: licht en | C1: donkerblauwe | F1: cellen in
B3: December gerealiseerd | G3: December prognose | J3: Prognose
A4: Weidegang (ja/nee) | B4: 2 | F4: Weidegang (ja/nee) | G4: 2 | J4: Drogestof opname uit weidegras kg/koe/dag | M4: ='Dec Voeropname'!E31 -> 0 | N4: =IF(M4>10,'Dec Voeropname'!R12,"") -> 
A5: Weidegras | B5: Eigen invoer | F5: Weidegras | G5: Eigen invoer | J5: Uren weidegang per koe/dag | M5: =IF(M4>0.1,IF(M4>2.5,(M4-3)+2,M4/1.5),"") -> 
A6: % restvoer | B6: 0.06 | F6: % restvoer | G6: 0.05 | J6: Gewenst ruw eiwit gehalte krachtvoer (g/kg) | M6: =(H20*'Dec Voeropname'!E2-'Dec Voeropname'!E6*'Dec Voeropname'!E2)/('Dec Voeropname'!E76/('Dec vee+melk'!E2+'Dec vee+melk'!E3))*0.9 -> 167.7239636
J7: Gewenst P gehalte krachtvoer (g/kg) | M7: =(H21*'Dec Voeropname'!E2-'Dec Voeropname'!E8*'Dec Voeropname'!E2)/('Dec Voeropname'!E76/('Dec vee+melk'!E3+'Dec vee+melk'!E2))*0.9 -> 4.407278798
A8: Wat is er afgelopen maand op stal gevoerd? | B8: Naam | C8: kg product gevoerd/dag | F8: Wat wilt u komende maand op stal voeren? | G8: Naam | H8: kg product te voeren/dag | J8: *Dit zijn de gewenste gehaltes in het krachtvoer om bij het ingevoerde stalrantsoen en gehaltes in het weidegras het gewenste ruw eiwit en P gehalte in het totale rantsoen te realiseren.
A9: Kuilgras | B9: 2017 1e 2e snede | C9: 1800 | F9: =IF(A9>0,A9,"") -> Kuilgras | G9: 2017 1e 2e snede | H9: 1800 | J9: Totale droge stof opname/koe/dag | M9: ='Dec Voeropname'!E2 -> 21.72030822
A10: Snijmais | B10: silo 2 links | C10: 820 | F10: Snijmais | G10: silo 2 links | H10: 800 | J10: VEM dekking | M10: =IF(G4=1,'Dec Voeropname'!O7,'Dec Voeropname'!E23/'Dec Voeropname'!E27) -> 1.09128684 | N10: =IF(M10<1,'Dec Voeropname'!R13,"") -> 
A11: Kuilgras | B11: 2017 1e 2e snede | C11: 0 | F11: Kuilgras | H11: 0 | J11: Verwachte N excretie per ton meetmelk (kg) | M11: ='Dec Excretie'!E24 -> 11.77755213
A12: Bijproducten | B12: Bierbostel | C12: 250 | F12: Bijproducten | G12: Bierbostel | H12: 250 | J12: Verwachte fosfaat excretie per ton meetmelk (kg) | M12: ='Dec Excretie'!E25*2.29 -> 3.982021596
A13: Bijproducten | B13: soja raap | C13: 18 | F13: Bijproducten | G13: soja raap | H13: 20
A14: Bijproducten | B14: sodagrain | C14: 150 | F14: Bijproducten | G14: sodagrain | H14: 150 | J14: Kengetallen afgelopen maand
J15: Totale droge stof opname/koe/dag | M15: ='Dec kengetallen'!C4 -> 22.16043562
J16: Ruw eiwit gehalte rantsoen (g/kg ds) | M16: ='Dec kengetallen'!C8 -> 158.8215309
J17: P gehalte rantsoen (g/kg ds) | M17: ='Dec kengetallen'!C10 -> 3.434726927
J18: ='Dec kengetallen'!A16 -> N excretie per ton meetmelk (kg) | M18: ='Dec kengetallen'!C16 -> 11.14798122
J19: Fosfaat excretie per ton meetmelk (kg) | M19: ='Dec kengetallen'!C17*2.29 -> 3.617203971
A20: Krachtvoer | B20: Protitopbrok | C20: 115 | F20: Gewenst ruw eiwit gehalte rantsoen (g/kg ds) | H20: 160
A21: Krachtvoer | B21: Pens stabielbrok EBZ | C21: 315 | F21: Gewenst P gehalte rantsoen (g/kg ds) | H21: 3.6 | J21: ='Dec kengetallen'!A24 -> Voerefficientie kg meetmelk/kg voer (ds) | M21: ='Dec kengetallen'!C24 -> 1.411746201
A22: Krachtvoer | F22: Gewenste hoeveelheid krachtvoer (kg/100 kg melk) | H22: 18 | J22: ='Dec kengetallen'!A25 -> kg krachtvoer per 100 kg (excl bijprod) | M22: ='Dec kengetallen'!C25 -> 18.45709502
A23: kg krachtvoer gevoerd/100 kg melk | C23: ='Dec kengetallen'!C25 -> 18.45709502 | J23: ='Dec kengetallen'!A20 -> VEM dekking | M23: ='Dec kengetallen'!C20 -> 1.08835232

Sheet Dec Voeropname (hidden)
A1: Gem rantsoen gehaltes (d dgn) | C1: ='Dec voer'!B3 -> December gerealiseerd | E1: ='Dec voer'!G3 -> December prognose
A2: DS opname/koe | C2: =C34 -> 22.16043562 | E2: =E34 -> 21.72030822
A3: VEM | C3: =C12 -> 957.3405289 | E3: =AVERAGE(E12:E12) -> 961.6577362
A4: DVE | C4: =AVERAGE(C13) -> 74.77064098 | M4: 1 | R4: Voedermiddelen
A5: OEB | C5: =AVERAGE(C14) -> 520.6805507 | M5: 2 | R5: Kuilgras
A6: RE | C6: =AVERAGE(C15) -> 158.8215309 | E6: 121.9824307 | R6: Snijmais
A7: N | C7: =AVERAGE(C16) -> 25.41144494 | E7: 19.51718892 | M7: Vem toeslag weidegang | O7: 1.03 | R7: OverigRuwvoer
A8: P | C8: 3.434726927 | E8: 2.601013192 | R8: Bijproducten
R9: Krachtvoer
A11: Rantsoen gehaltes (incl. weidegras)
A12: VEM | C12: =C35/C34 -> 957.3405289 | E12: =E35/E34 -> 961.6577362 | R12: Let op bij beperkt weiden is deze opname niet realistisch!
A13: DVE | C13: =C36/C34 -> 74.77064098 | E13: =E36/E34 ->  | R13: Let op VEM dekking te laag!
A14: OEB | C14: =C37 -> 520.6805507 | E14: =E37 -> 
A15: RE | C15: =C38/C34 -> 158.8215309 | E15: =E38/E34 -> 121.9824307
A16: N | C16: =C39/C34 -> 25.41144494 | E16: =E39/E34 -> 19.51718892
A17: P | C17: =C40/C34 -> 3.434726927 | E17: =E40/E34 -> 2.601013192
A22: kg ds | C22: =C55/SUM('Dec vee+melk'!C2:C3) -> 22.16043562 | E22: =E55/SUM('Dec vee+melk'!E2:E3) -> 21.72030822
A23: Vemopname ex weidegras | C23: =C22*C45 -> 21215.08315 | E23: =E22*E45 -> 20887.50243
A27: VEM behoefte | C27: =IF('Dec voer'!B4=1,'Dec vee+melk'!C27*'Dec Voeropname'!O7,'Dec vee+melk'!C27) -> 19492.84507 | E27: =IF('Dec voer'!G4=1,'Dec vee+melk'!E27*'Dec Voeropname'!O7,'Dec vee+melk'!E27) -> 19140.24954
A28: Behoefte-opname | C28: =C27-'Dec Voeropname'!C23 -> -1722.238081 | E28: =E27-'Dec Voeropname'!E23 -> -1747.25289
C29: =C28/VLOOKUP('Dec voer'!B5,Weidegras!$A$5:$J$119,4,FALSE) ->  | E29: =E28/VLOOKUP('Dec voer'!G5,Weidegras!$A$5:$J$119,4,FALSE) -> 
C30: =IF(C29>0,C29,0) ->  | E30: =IF(E29>0,E29,0) -> 
A31: Weidegrasopname/koe | C31: =IF('Dec voer'!B4=1,C30,0) -> 0 | E31: =IF('Dec voer'!G4=1,E30,0) -> 0
A33: Rantsoenopname incl weidegras
A34: droge stof | C34: =C22+C31 -> 22.16043562 | E34: =E22+E31 -> 21.72030822
A35: VEM | C35: =C45*C22+C31*VLOOKUP('Dec voer'!B5,Weidegras!$A$6:$J$180,4,FALSE) -> 21215.08315 | E35: =E45*$E$22+$E$31*VLOOKUP('Dec voer'!$G$5,Weidegras!$A$6:$J$180,4,FALSE) -> 20887.50243
A36: DVE | C36: =C46*C22+$C$31*VLOOKUP('Dec voer'!B5,Weidegras!$A$5:$J$150,5,FALSE) -> 1656.949975 | E36: =E46*$E$22+$E$31*VLOOKUP('Dec voer'!$G$5,Weidegras!$A$6:$J$180,5,FALSE) -> 
A37: OEB | C37: =C22*C47+$C$31*VLOOKUP('Dec voer'!B5,Weidegras!$A$6:$J$151,6,FALSE) -> 520.6805507 | E37: =E47*$E$22+$E$31*VLOOKUP('Dec voer'!$G$5,Weidegras!$A$6:$J$180,6,FALSE) -> 
A38: RE | C38: =C48*C22+C31*VLOOKUP('Dec voer'!$B$5,Weidegras!$A$6:$J$181,7,FALSE) -> 3519.55431 | E38: =E48*$E$22+$E$31*VLOOKUP('Dec voer'!$G$5,Weidegras!$A$6:$J$180,7,FALSE) -> 2649.495993
A39: N | C39: =C38/6.25 -> 563.1286895 | E39: =E38/6.25 -> 423.9193589
A40: P | C40: =C50*C22+C31*VLOOKUP('Dec voer'!$B$5,Weidegras!$A$6:$J$183,10,FALSE) -> 76.11504493 | E40: =E50*E22+$E$31*VLOOKUP('Dec voer'!$G$5,Weidegras!$A$6:$J$180,10,FALSE) -> 56.49480822
A43: Stalrantsoen gehaltes
A44: droge stof
A45: VEM | C45: =C56/C$55 -> 957.3405289 | E45: =E56/E$55 -> 961.6577362
A46: DVE | C46: =C57/C$55*1000 -> 74.77064098 | E46: =E57/E$55*1000 -> 
A47: OEB | C47: =C58/C$55 -> 23.49595286 | E47: =E58/E$55 -> 
A48: RE | C48: =C59/C$55 -> 158.8215309 | E48: 121.9824307
A49: N | C49: =C60/C$55 -> 25.41144494 | E49: 19.51718892
A50: P | C50: =C61/C$55 -> 3.434726927 | E50: 2.601013192
A54: Stalrantsoen opname
A55: droge stof (kg) | C55: =C80 -> 1617.7118 | E55: 1585.5825
A56: VEM | C56: =C96 -> 1548701.07 | E56: 1524787.677
A57: DVE | C57: =C112 -> 120.9573482 | E57: =E112 -> 
A58: OEB | C58: =C128 -> 38009.6802 | E58: =E128 -> 
A59: RE | C59: =C144 -> 256927.4646 | E59: =E144 -> 193413.2075
A60: N | C60: =C146 -> 41108.39434 | E60: =E146 -> 30946.1132
A61: P | C61: =C162 -> 5556.39828 | E61: =E162 -> 4124.121
A65: Drogestof opname
A66: ='Dec voer'!A9 -> Kuilgras | B66: ='Dec voer'!B9 -> 2017 1e 2e snede | C66: =IF('Dec voer'!C9>0,VLOOKUP('Dec voer'!B9,Voedermiddelen!$A$4:$K$75,3,FALSE)*'Dec voer'!C9*(1-'Dec voer'!$B$6),"") -> 786.78 | D66: ='Dec voer'!G9 -> 2017 1e 2e snede | E66: =IF('Dec voer'!H9>0,VLOOKUP('Dec voer'!G9,Voedermiddelen!$A$4:$K$75,3,FALSE)*'Dec voer'!H9*(1-'Dec voer'!$G$6),"") -> 795.15
A67: ='Dec voer'!A10 -> Snijmais | B67: ='Dec voer'!B10 -> silo 2 links | C67: =IF('Dec voer'!C10>0,VLOOKUP('Dec voer'!B10,Voedermiddelen!$A$4:$K$75,3,FALSE)*'Dec voer'!C10*(1-'Dec voer'!$B$6),"") -> 285.9668 | D67: ='Dec voer'!G10 -> silo 2 links | E67: =IF('Dec voer'!H10>0,VLOOKUP('Dec voer'!G10,Voedermiddelen!$A$4:$K$75,3,FALSE)*'Dec voer'!H10*(1-'Dec voer'!$G$6),"") -> 281.96
A68: ='Dec voer'!A11 -> Kuilgras | B68: ='Dec voer'!B11 -> 2017 1e 2e snede | C68: =IF('Dec voer'!C11>0,VLOOKUP('Dec voer'!B11,Voedermiddelen!$A$4:$K$75,3,FALSE)*'Dec voer'!C11*(1-'Dec voer'!$B$6),"") ->  | D68: ='Dec voer'!G11 -> 0 | E68: =IF('Dec voer'!H11>0,VLOOKUP('Dec voer'!G11,Voedermiddelen!$A$4:$K$75,3,FALSE)*'Dec voer'!H11*(1-'Dec voer'!$G$6),"") -> 
A69: ='Dec voer'!A12 -> Bijproducten | B69: ='Dec voer'!B12 -> Bierbostel | C69: =IF('Dec voer'!C12>0,VLOOKUP('Dec voer'!B12,Voedermiddelen!$A$4:$K$75,3,FALSE)*'Dec voer'!C12*(1-'Dec voer'!$B$6),"") -> 51.465 | D69: ='Dec voer'!G12 -> Bierbostel | E69: =IF('Dec voer'!H12>0,VLOOKUP('Dec voer'!G12,Voedermiddelen!$A$4:$K$75,3,FALSE)*'Dec voer'!H12*(1-'Dec voer'!$G$6),"") -> 52.0125
A70: ='Dec voer'!A13 -> Bijproducten | B70: ='Dec voer'!B13 -> soja raap | C70: =IF('Dec voer'!C13>0,VLOOKUP('Dec voer'!B13,Voedermiddelen!$A$4:$K$75,3,FALSE)*'Dec voer'!C13*(1-'Dec voer'!$B$6),"") -> 16.92 | D70: ='Dec voer'!G13 -> soja raap | E70: =IF('Dec voer'!H13>0,VLOOKUP('Dec voer'!G13,Voedermiddelen!$A$4:$K$75,3,FALSE)*'Dec voer'!H13*(1-'Dec voer'!$G$6),"") -> 19
A71: ='Dec voer'!A14 -> Bijproducten | B71: ='Dec voer'!B14 -> sodagrain | C71: =IF('Dec voer'!C14>0,VLOOKUP('Dec voer'!B14,Voedermiddelen!$A$4:$K$75,3,FALSE)*'Dec voer'!C14*(1-'Dec voer'!$B$6),"") -> 112.8 | D71: ='Dec voer'!G14 -> sodagrain | E71: =IF('Dec voer'!H14>0,VLOOKUP('Dec voer'!G14,Voedermiddelen!$A$4:$K$75,3,FALSE)*'Dec voer'!H14*(1-'Dec voer'!$G$6),"") -> 114
A72: ='Dec voer'!A15 -> 0 | B72: ='Dec voer'!B15 -> 0 | C72: =IF('Dec voer'!C15>0,VLOOKUP('Dec voer'!B15,Voedermiddelen!$A$4:$K$75,3,FALSE)*'Dec voer'!C15*(1-'Dec voer'!$B$6),"") ->  | D72: ='Dec voer'!G15 -> 0 | E72: =IF('Dec voer'!H15>0,VLOOKUP('Dec voer'!G15,Voedermiddelen!$A$4:$K$75,3,FALSE)*'Dec voer'!H15*(1-'Dec voer'!$G$6),"") -> 
A73: ='Dec voer'!A16 -> 0 | B73: ='Dec voer'!B16 -> 0 | C73: =IF('Dec voer'!C16>0,VLOOKUP('Dec voer'!B16,Voedermiddelen!$A$4:$K$75,3,FALSE)*'Dec voer'!C16*(1-'Dec voer'!$B$6),"") ->  | D73: ='Dec voer'!G16 -> 0 | E73: =IF('Dec voer'!H16>0,VLOOKUP('Dec voer'!G16,Voedermiddelen!$A$4:$K$75,3,FALSE)*'Dec voer'!H16*(1-'Dec voer'!$G$6),"") -> 
A74: ='Dec voer'!A17 -> 0 | B74: ='Dec voer'!B17 -> 0 | C74: =IF('Dec voer'!C17>0,VLOOKUP('Dec voer'!B17,Voedermiddelen!$A$4:$K$75,3,FALSE)*'Dec voer'!C17*(1-'Dec voer'!$B$6),"") ->  | D74: ='Dec voer'!G17 -> 0 | E74: =IF('Dec voer'!H17>0,VLOOKUP('Dec voer'!G17,Voedermiddelen!$A$4:$K$75,3,FALSE)*'Dec voer'!H17*(1-'Dec voer'!$G$6),"") -> 
B75: ='Dec voer'!B18 -> 0 | C75: =IF('Dec voer'!C18>0,VLOOKUP('Dec voer'!B18,Voedermiddelen!$A$4:$K$75,3,FALSE)*'Dec voer'!C18*(1-'Dec voer'!$B$6),"") ->  | D75: ='Dec voer'!G18 -> 0 | E75: =IF('Dec voer'!H18>0,VLOOKUP('Dec voer'!G18,Voedermiddelen!$A$4:$K$75,3,FALSE)*'Dec voer'!H18*(1-'Dec voer'!$G$6),"") -> 
B76: ='Dec voer'!B20 -> Protitopbrok | C76: =IF('Dec voer'!C20>0,VLOOKUP('Dec voer'!B20,Voedermiddelen!$A$4:$K$75,3,FALSE)*'Dec voer'!C20*(1-'Dec voer'!$B$6),"") -> 97.29 | E76: ='Dec voer'!H22*'Dec vee+melk'!E15/100*0.9 -> 323.46
B77: ='Dec voer'!B21 -> Pens stabielbrok EBZ | C77: =IF('Dec voer'!C21>0,VLOOKUP('Dec voer'!B21,Voedermiddelen!$A$4:$K$75,3,FALSE)*'Dec voer'!C21*(1-'Dec voer'!$B$6),"") -> 266.49
B78: ='Dec voer'!B22 -> 0 | C78: =IF('Dec voer'!C22>0,VLOOKUP('Dec voer'!B22,Voedermiddelen!$A$4:$K$75,3,FALSE)*'Dec voer'!C22*(1-'Dec voer'!$B$6),"") -> 
A80: Totaal | C80: =SUM(C66:C77) -> 1617.7118 | E80: =SUM(E66:E78) -> 1585.5825
A82: VEM | B82: =B66 -> 2017 1e 2e snede | C82: =IF('Dec voer'!C9>0,VLOOKUP('Dec voer'!B9,Voedermiddelen!$A$4:$K$75,4,FALSE)*C66,"") -> 736426.08 | D82: =D66 -> 2017 1e 2e snede | E82: =IF('Dec voer'!H9>0,VLOOKUP('Dec voer'!G9,Voedermiddelen!$A$4:$K$75,4,FALSE)*E66,"") -> 744260.4
B83: =B67 -> silo 2 links | C83: =IF('Dec voer'!C10>0,VLOOKUP('Dec voer'!B10,Voedermiddelen!$A$4:$K$75,4,FALSE)*C67,"") -> 275671.9952 | D83: silo 2 links | E83: =IF('Dec voer'!H10>0,VLOOKUP('Dec voer'!G10,Voedermiddelen!$A$4:$K$75,4,FALSE)*E67,"") -> 271809.44
B84: 2017 1e 2e snede | C84: =IF('Dec voer'!C11>0,VLOOKUP('Dec voer'!B11,Voedermiddelen!$A$4:$K$75,4,FALSE)*C68,"") ->  | D84: 0 | E84: =IF('Dec voer'!H11>0,VLOOKUP('Dec voer'!G11,Voedermiddelen!$A$4:$K$75,4,FALSE)*E68,"") -> 
B85: Bierbostel | C85: =IF('Dec voer'!C12>0,VLOOKUP('Dec voer'!B12,Voedermiddelen!$A$4:$K$75,4,FALSE)*C69,"") -> 48737.355 | D85: Bierbostel | E85: =IF('Dec voer'!H12>0,VLOOKUP('Dec voer'!G12,Voedermiddelen!$A$4:$K$75,4,FALSE)*E69,"") -> 49255.8375
B86: soja raap | C86: =IF('Dec voer'!C13>0,VLOOKUP('Dec voer'!B13,Voedermiddelen!$A$4:$K$75,4,FALSE)*C70,"") -> 15938.64 | D86: soja raap | E86: =IF('Dec voer'!H13>0,VLOOKUP('Dec voer'!G13,Voedermiddelen!$A$4:$K$75,4,FALSE)*E70,"") -> 17898
B87: sodagrain | C87: =IF('Dec voer'!C14>0,VLOOKUP('Dec voer'!B14,Voedermiddelen!$A$4:$K$75,4,FALSE)*C71,"") -> 116860.8 | D87: sodagrain | E87: =IF('Dec voer'!H14>0,VLOOKUP('Dec voer'!G14,Voedermiddelen!$A$4:$K$75,4,FALSE)*E71,"") -> 118104
B88: 0 | C88: =IF('Dec voer'!C15>0,VLOOKUP('Dec voer'!B15,Voedermiddelen!$A$4:$K$75,4,FALSE)*C72,"") ->  | D88: 0 | E88: =IF('Dec voer'!H15>0,VLOOKUP('Dec voer'!G15,Voedermiddelen!$A$4:$K$75,4,FALSE)*E72,"") -> 
B89: 0 | C89: =IF('Dec voer'!C16>0,VLOOKUP('Dec voer'!B16,Voedermiddelen!$A$4:$K$75,4,FALSE)*C73,"") ->  | D89: 0 | E89: =IF('Dec voer'!H16>0,VLOOKUP('Dec voer'!G16,Voedermiddelen!$A$4:$K$75,4,FALSE)*E73,"") -> 
B90: 0 | C90: =IF('Dec voer'!C17>0,VLOOKUP('Dec voer'!B17,Voedermiddelen!$A$4:$K$75,4,FALSE)*C74,"") ->  | D90: 0 | E90: =IF('Dec voer'!H17>0,VLOOKUP('Dec voer'!G17,Voedermiddelen!$A$4:$K$75,4,FALSE)*E74,"") -> 
B91: 0 | C91: =IF('Dec voer'!C18>0,VLOOKUP('Dec voer'!B18,Voedermiddelen!$A$4:$K$75,4,FALSE)*C75,"") ->  | D91: 0 | E91: =IF('Dec voer'!H18>0,VLOOKUP('Dec voer'!G18,Voedermiddelen!$A$4:$K$75,4,FALSE)*E75,"") -> 
B92: Protitopbrok | C92: =IF('Dec voer'!C20>0,VLOOKUP('Dec voer'!B20,Voedermiddelen!$A$4:$K$75,4,FALSE)*C76,"") -> 99235.8 | D92: 0 | E92: =E76*1000 -> 323460
B93: Pens stabielbrok EBZ | C93: =IF('Dec voer'!C21>0,VLOOKUP('Dec voer'!B21,Voedermiddelen!$A$4:$K$75,4,FALSE)*C77,"") -> 255830.4 | D93: 0
B94: 0 | C94: =IF('Dec voer'!C22>0,VLOOKUP('Dec voer'!B22,Voedermiddelen!$A$4:$K$75,4,FALSE)*C78,"") ->  | D94: 0
A96: Totaal | C96: =SUM(C82:C93) -> 1548701.07 | E96: =SUM(E82:E94) -> 1524787.677
A98: DVE | B98: =B82 -> 2017 1e 2e snede | C98: =IF('Dec voer'!C9>0,VLOOKUP('Dec voer'!B9,Voedermiddelen!$A$4:$K$75,5,FALSE)*C66,"") -> 47206.8 | D98: =D82 -> 2017 1e 2e snede | E98: =IF('Dec voer'!H9>0,VLOOKUP('Dec voer'!G9,[2]Voedermiddelen!$A$4:$K$75,5,FALSE)*E66,"") -> 
B99: =B83 -> silo 2 links | C99: =IF('Dec voer'!C10>0,VLOOKUP('Dec voer'!B10,Voedermiddelen!$A$4:$K$75,5,FALSE)*C67,"") -> 14012.3732 | D99: silo 2 links | E99: =IF('Dec voer'!H10>0,VLOOKUP('Dec voer'!G10,[2]Voedermiddelen!$A$4:$K$75,5,FALSE)*E67,"") -> 
B100: 2017 1e 2e snede | C100: =IF('Dec voer'!C11>0,VLOOKUP('Dec voer'!B11,Voedermiddelen!$A$4:$K$75,5,FALSE)*C68,"") ->  | D100: 0 | E100: =IF('Dec voer'!H11>0,VLOOKUP('Dec voer'!G11,[2]Voedermiddelen!$A$4:$K$75,5,FALSE)*E68,"") -> 
B101: Bierbostel | C101: =IF('Dec voer'!C12>0,VLOOKUP('Dec voer'!B12,Voedermiddelen!$A$4:$K$75,5,FALSE)*C69,"") -> 7050.705 | D101: Bierbostel | E101: =IF('Dec voer'!H12>0,VLOOKUP('Dec voer'!G12,[2]Voedermiddelen!$A$4:$K$75,5,FALSE)*E69,"") -> 7125.7125
B102: soja raap | C102: =IF('Dec voer'!C13>0,VLOOKUP('Dec voer'!B13,Voedermiddelen!$A$4:$K$75,5,FALSE)*C70,"") -> 1692 | D102: soja raap | E102: =IF('Dec voer'!H13>0,VLOOKUP('Dec voer'!G13,[2]Voedermiddelen!$A$4:$K$75,5,FALSE)*E70,"") -> 
B103: sodagrain | C103: =IF('Dec voer'!C14>0,VLOOKUP('Dec voer'!B14,Voedermiddelen!$A$4:$K$75,5,FALSE)*C71,"") -> 7896 | D103: sodagrain | E103: =IF('Dec voer'!H14>0,VLOOKUP('Dec voer'!G14,[2]Voedermiddelen!$A$4:$K$75,5,FALSE)*E71,"") -> 
B104: 0 | C104: =IF('Dec voer'!C15>0,VLOOKUP('Dec voer'!B15,Voedermiddelen!$A$4:$K$75,5,FALSE)*C72,"") ->  | D104: 0 | E104: =IF('Dec voer'!H15>0,VLOOKUP('Dec voer'!G15,[2]Voedermiddelen!$A$4:$K$75,5,FALSE)*E72,"") -> 
B105: 0 | C105: =IF('Dec voer'!C16>0,VLOOKUP('Dec voer'!B16,Voedermiddelen!$A$4:$K$75,5,FALSE)*C73,"") ->  | D105: 0 | E105: =IF('Dec voer'!H16>0,VLOOKUP('Dec voer'!G16,[2]Voedermiddelen!$A$4:$K$75,5,FALSE)*E73,"") -> 
B106: 0 | C106: =IF('Dec voer'!C17>0,VLOOKUP('Dec voer'!B17,Voedermiddelen!$A$4:$K$75,5,FALSE)*C74,"") ->  | D106: 0 | E106: =IF('Dec voer'!H17>0,VLOOKUP('Dec voer'!G17,[2]Voedermiddelen!$A$4:$K$75,5,FALSE)*E74,"") -> 
B107: 0 | C107: =IF('Dec voer'!C18>0,VLOOKUP('Dec voer'!B18,Voedermiddelen!$A$4:$K$75,5,FALSE)*C75,"") ->  | D107: 0 | E107: =IF('Dec voer'!H18>0,VLOOKUP('Dec voer'!G18,[2]Voedermiddelen!$A$4:$K$75,5,FALSE)*E75,"") -> 
B108: Protitopbrok | C108: =IF('Dec voer'!C20>0,VLOOKUP('Dec voer'!B20,Voedermiddelen!$A$4:$K$75,5,FALSE)*C76,"") -> 12453.12 | D108: 0
B109: Pens stabielbrok EBZ | C109: =IF('Dec voer'!C21>0,VLOOKUP('Dec voer'!B21,Voedermiddelen!$A$4:$K$75,5,FALSE)*C77,"") -> 30646.35 | D109: 0
B110: 0 | C110: =IF('Dec voer'!C22>0,VLOOKUP('Dec voer'!B22,Voedermiddelen!$A$4:$K$75,5,FALSE)*C78,"") ->  | D110: 0
A112: Totaal | C112: =SUM(C98:C109)/1000 -> 120.9573482 | E112: =SUM(E98:E110)/1000 -> 
A114: OEB | B114: =B98 -> 2017 1e 2e snede | C114: =IF('Dec voer'!C9>0,VLOOKUP('Dec voer'!B9,Voedermiddelen!$A$4:$K$75,6,FALSE)*C66,"") -> 44846.46 | D114: =D98 -> 2017 1e 2e snede | E114: =IF('Dec voer'!H9>0,VLOOKUP('Dec voer'!G9,[2]Voedermiddelen!$A$4:$K$75,6,FALSE)*E66,"") -> 
B115: =B99 -> silo 2 links | C115: =IF('Dec voer'!C10>0,VLOOKUP('Dec voer'!B10,Voedermiddelen!$A$4:$K$75,6,FALSE)*C67,"") -> -10294.8048 | D115: silo 2 links | E115: =IF('Dec voer'!H10>0,VLOOKUP('Dec voer'!G10,[2]Voedermiddelen!$A$4:$K$75,6,FALSE)*E67,"") -> 
B116: 2017 1e 2e snede | C116: =IF('Dec voer'!C11>0,VLOOKUP('Dec voer'!B11,Voedermiddelen!$A$4:$K$75,6,FALSE)*C68,"") ->  | D116: 0 | E116: =IF('Dec voer'!H11>0,VLOOKUP('Dec voer'!G11,[2]Voedermiddelen!$A$4:$K$75,6,FALSE)*E68,"") -> 
B117: Bierbostel | C117: =IF('Dec voer'!C12>0,VLOOKUP('Dec voer'!B12,Voedermiddelen!$A$4:$K$75,6,FALSE)*C69,"") -> 2830.575 | D117: Bierbostel | E117: =IF('Dec voer'!H12>0,VLOOKUP('Dec voer'!G12,[2]Voedermiddelen!$A$4:$K$75,6,FALSE)*E69,"") -> 2860.6875
B118: soja raap | C118: =IF('Dec voer'!C13>0,VLOOKUP('Dec voer'!B13,Voedermiddelen!$A$4:$K$75,6,FALSE)*C70,"") -> 676.8 | D118: soja raap | E118: =IF('Dec voer'!H13>0,VLOOKUP('Dec voer'!G13,[2]Voedermiddelen!$A$4:$K$75,6,FALSE)*E70,"") -> 
B119: sodagrain | C119: =IF('Dec voer'!C14>0,VLOOKUP('Dec voer'!B14,Voedermiddelen!$A$4:$K$75,6,FALSE)*C71,"") -> -4850.4 | D119: sodagrain | E119: =IF('Dec voer'!H14>0,VLOOKUP('Dec voer'!G14,[2]Voedermiddelen!$A$4:$K$75,6,FALSE)*E71,"") -> 
B120: 0 | C120: =IF('Dec voer'!C15>0,VLOOKUP('Dec voer'!B15,Voedermiddelen!$A$4:$K$75,6,FALSE)*C72,"") ->  | D120: 0 | E120: =IF('Dec voer'!H15>0,VLOOKUP('Dec voer'!G15,[2]Voedermiddelen!$A$4:$K$75,6,FALSE)*E72,"") -> 
B121: 0 | C121: =IF('Dec voer'!C16>0,VLOOKUP('Dec voer'!B16,Voedermiddelen!$A$4:$K$75,6,FALSE)*C73,"") ->  | D121: 0 | E121: =IF('Dec voer'!H16>0,VLOOKUP('Dec voer'!G16,[2]Voedermiddelen!$A$4:$K$75,6,FALSE)*E73,"") -> 
B122: 0 | C122: =IF('Dec voer'!C17>0,VLOOKUP('Dec voer'!B17,Voedermiddelen!$A$4:$K$75,6,FALSE)*C74,"") ->  | D122: 0 | E122: =IF('Dec voer'!H17>0,VLOOKUP('Dec voer'!G17,[2]Voedermiddelen!$A$4:$K$75,6,FALSE)*E74,"") -> 
B123: 0 | C123: =IF('Dec voer'!C18>0,VLOOKUP('Dec voer'!B18,Voedermiddelen!$A$4:$K$75,6,FALSE)*C75,"") ->  | D123: 0 | E123: =IF('Dec voer'!H18>0,VLOOKUP('Dec voer'!G18,[2]Voedermiddelen!$A$4:$K$75,6,FALSE)*E75,"") -> 
B124: Protitopbrok | C124: =IF('Dec voer'!C20>0,VLOOKUP('Dec voer'!B20,Voedermiddelen!$A$4:$K$75,6,FALSE)*C76,"") -> 1070.19 | D124: 0
B125: Pens stabielbrok EBZ | C125: =IF('Dec voer'!C21>0,VLOOKUP('Dec voer'!B21,Voedermiddelen!$A$4:$K$75,6,FALSE)*C77,"") -> 3730.86 | D125: 0
B126: 0 | C126: =IF('Dec voer'!C22>0,VLOOKUP('Dec voer'!B22,Voedermiddelen!$A$4:$K$75,6,FALSE)*C78,"") ->  | D126: 0
A128: Totaal | C128: =SUM(C114:C125) -> 38009.6802 | E128: =SUM(E114:E126) -> 
A130: RE | B130: =B114 -> 2017 1e 2e snede | C130: =IF('Dec voer'!C9>0,VLOOKUP('Dec voer'!B9,Voedermiddelen!$A$4:$K$75,7,FALSE)*C66,"") -> 141620.4 | D130: =D114 -> 2017 1e 2e snede | E130: =IF('Dec voer'!H9>0,VLOOKUP('Dec voer'!G9,Voedermiddelen!$A$4:$K$75,7,FALSE)*E66,"") -> 143127
B131: =B115 -> silo 2 links | C131: =IF('Dec voer'!C10>0,VLOOKUP('Dec voer'!B10,Voedermiddelen!$A$4:$K$75,7,FALSE)*C67,"") -> 20589.6096 | D131: silo 2 links | E131: =IF('Dec voer'!H10>0,VLOOKUP('Dec voer'!G10,Voedermiddelen!$A$4:$K$75,7,FALSE)*E67,"") -> 20301.12
B132: 2017 1e 2e snede | C132: =IF('Dec voer'!C11>0,VLOOKUP('Dec voer'!B11,Voedermiddelen!$A$4:$K$75,7,FALSE)*C68,"") ->  | D132: 0 | E132: =IF('Dec voer'!H11>0,VLOOKUP('Dec voer'!G11,Voedermiddelen!$A$4:$K$75,7,FALSE)*E68,"") -> 
B133: Bierbostel | C133: =IF('Dec voer'!C12>0,VLOOKUP('Dec voer'!B12,Voedermiddelen!$A$4:$K$75,7,FALSE)*C69,"") -> 12711.855 | D133: Bierbostel | E133: =IF('Dec voer'!H12>0,VLOOKUP('Dec voer'!G12,Voedermiddelen!$A$4:$K$75,7,FALSE)*E69,"") -> 12847.0875
B134: soja raap | C134: =IF('Dec voer'!C13>0,VLOOKUP('Dec voer'!B13,Voedermiddelen!$A$4:$K$75,7,FALSE)*C70,"") -> 6328.08 | D134: soja raap | E134: =IF('Dec voer'!H13>0,VLOOKUP('Dec voer'!G13,Voedermiddelen!$A$4:$K$75,7,FALSE)*E70,"") -> 7106
B135: sodagrain | C135: =IF('Dec voer'!C14>0,VLOOKUP('Dec voer'!B14,Voedermiddelen!$A$4:$K$75,7,FALSE)*C71,"") -> 9926.4 | D135: sodagrain | E135: =IF('Dec voer'!H14>0,VLOOKUP('Dec voer'!G14,Voedermiddelen!$A$4:$K$75,7,FALSE)*E71,"") -> 10032
B136: 0 | C136: =IF('Dec voer'!C15>0,VLOOKUP('Dec voer'!B15,Voedermiddelen!$A$4:$K$75,7,FALSE)*C72,"") ->  | D136: 0 | E136: =IF('Dec voer'!H15>0,VLOOKUP('Dec voer'!G15,Voedermiddelen!$A$4:$K$75,7,FALSE)*E72,"") -> 
B137: 0 | C137: =IF('Dec voer'!C16>0,VLOOKUP('Dec voer'!B16,Voedermiddelen!$A$4:$K$75,7,FALSE)*C73,"") ->  | D137: 0 | E137: =IF('Dec voer'!H16>0,VLOOKUP('Dec voer'!G16,Voedermiddelen!$A$4:$K$75,7,FALSE)*E73,"") -> 
B138: 0 | C138: =IF('Dec voer'!C17>0,VLOOKUP('Dec voer'!B17,Voedermiddelen!$A$4:$K$75,7,FALSE)*C74,"") ->  | D138: 0 | E138: =IF('Dec voer'!H17>0,VLOOKUP('Dec voer'!G17,Voedermiddelen!$A$4:$K$75,7,FALSE)*E74,"") -> 
B139: 0 | C139: =IF('Dec voer'!C18>0,VLOOKUP('Dec voer'!B18,Voedermiddelen!$A$4:$K$75,7,FALSE)*C75,"") ->  | D139: 0 | E139: =IF('Dec voer'!H18>0,VLOOKUP('Dec voer'!G18,Voedermiddelen!$A$4:$K$75,7,FALSE)*E75,"") -> 
B140: Protitopbrok | C140: =IF('Dec voer'!C20>0,VLOOKUP('Dec voer'!B20,Voedermiddelen!$A$4:$K$75,7,FALSE)*C76,"") -> 18582.39 | D140: 0
B141: Pens stabielbrok EBZ | C141: =IF('Dec voer'!C21>0,VLOOKUP('Dec voer'!B21,Voedermiddelen!$A$4:$K$75,7,FALSE)*C77,"") -> 47168.73 | D141: 0
B142: =B126 -> 0 | C142: =IF('Dec voer'!C22>0,VLOOKUP('Dec voer'!B22,Voedermiddelen!$A$4:$K$75,7,FALSE)*C78,"") ->  | D142: 0
A144: Totaal | C144: =SUM(C130:C142) -> 256927.4646 | E144: =SUM(E130:E142) -> 193413.2075
A146: N opname | C146: =C144/6.25 -> 41108.39434 | E146: =E144/6.25 -> 30946.1132 | G146: =(E76/0.9*'Dec voer'!M6/6.25) -> 9644.7988
A148: P | B148: =B130 -> 2017 1e 2e snede | C148: =IF('Dec voer'!C9>0,VLOOKUP('Dec voer'!B9,Voedermiddelen!$A$4:$K$75,10,FALSE)*C66,"") -> 2832.408 | D148: =D130 -> 2017 1e 2e snede | E148: =IF('Dec voer'!H9>0,VLOOKUP('Dec voer'!G9,Voedermiddelen!$A$4:$K$75,10,FALSE)*E66,"") -> 2862.54
B149: =B131 -> silo 2 links | C149: =IF('Dec voer'!C10>0,VLOOKUP('Dec voer'!B10,Voedermiddelen!$A$4:$K$75,10,FALSE)*C67,"") -> 600.53028 | D149: silo 2 links | E149: =IF('Dec voer'!H10>0,VLOOKUP('Dec voer'!G10,Voedermiddelen!$A$4:$K$75,10,FALSE)*E67,"") -> 592.116
B150: 2017 1e 2e snede | C150: =IF('Dec voer'!C11>0,VLOOKUP('Dec voer'!B11,Voedermiddelen!$A$4:$K$75,10,FALSE)*C68,"") ->  | D150: 0 | E150: =IF('Dec voer'!H11>0,VLOOKUP('Dec voer'!G11,Voedermiddelen!$A$4:$K$75,10,FALSE)*E68,"") -> 
B151: Bierbostel | C151: =IF('Dec voer'!C12>0,VLOOKUP('Dec voer'!B12,Voedermiddelen!$A$4:$K$75,10,FALSE)*C69,"") -> 267.618 | D151: Bierbostel | E151: =IF('Dec voer'!H12>0,VLOOKUP('Dec voer'!G12,Voedermiddelen!$A$4:$K$75,10,FALSE)*E69,"") -> 270.465
B152: soja raap | C152: =IF('Dec voer'!C13>0,VLOOKUP('Dec voer'!B13,Voedermiddelen!$A$4:$K$75,10,FALSE)*C70,"") -> 121.824 | D152: soja raap | E152: =IF('Dec voer'!H13>0,VLOOKUP('Dec voer'!G13,Voedermiddelen!$A$4:$K$75,10,FALSE)*E70,"") -> 136.8
B153: sodagrain | C153: =IF('Dec voer'!C14>0,VLOOKUP('Dec voer'!B14,Voedermiddelen!$A$4:$K$75,10,FALSE)*C71,"") -> 259.44 | D153: sodagrain | E153: =IF('Dec voer'!H14>0,VLOOKUP('Dec voer'!G14,Voedermiddelen!$A$4:$K$75,10,FALSE)*E71,"") -> 262.2
B154: 0 | C154: =IF('Dec voer'!C15>0,VLOOKUP('Dec voer'!B15,Voedermiddelen!$A$4:$K$75,10,FALSE)*C72,"") ->  | D154: 0 | E154: =IF('Dec voer'!H15>0,VLOOKUP('Dec voer'!G15,Voedermiddelen!$A$4:$K$75,10,FALSE)*E72,"") -> 
B155: 0 | C155: =IF('Dec voer'!C16>0,VLOOKUP('Dec voer'!B16,Voedermiddelen!$A$4:$K$75,10,FALSE)*C73,"") ->  | D155: 0 | E155: =IF('Dec voer'!H16>0,VLOOKUP('Dec voer'!G16,Voedermiddelen!$A$4:$K$75,10,FALSE)*E73,"") -> 
B156: 0 | C156: =IF('Dec voer'!C17>0,VLOOKUP('Dec voer'!B17,Voedermiddelen!$A$4:$K$75,10,FALSE)*C74,"") ->  | D156: 0 | E156: =IF('Dec voer'!H17>0,VLOOKUP('Dec voer'!G17,Voedermiddelen!$A$4:$K$75,10,FALSE)*E74,"") -> 
B157: 0 | C157: =IF('Dec voer'!C18>0,VLOOKUP('Dec voer'!B18,Voedermiddelen!$A$4:$K$75,10,FALSE)*C75,"") ->  | D157: 0 | E157: =IF('Dec voer'!H18>0,VLOOKUP('Dec voer'!G18,Voedermiddelen!$A$4:$K$75,10,FALSE)*E75,"") -> 
B158: =B140 -> Protitopbrok | C158: =IF('Dec voer'!C20>0,VLOOKUP('Dec voer'!B20,Voedermiddelen!$A$4:$K$75,10,FALSE)*C76,"") -> 408.618 | D158: 0
B159: =B141 -> Pens stabielbrok EBZ | C159: =IF('Dec voer'!C21>0,VLOOKUP('Dec voer'!B21,Voedermiddelen!$A$4:$K$75,10,FALSE)*C77,"") -> 1065.96 | D159: 0
B160: =B142 -> 0 | C160: =IF('Dec voer'!C22>0,VLOOKUP('Dec voer'!B22,Voedermiddelen!$A$4:$K$75,10,FALSE)*C78,"") ->  | D160: 0
A162: Totaal | C162: =SUM(C148:C160) -> 5556.39828 | E162: =SUM(E148:E160) -> 4124.121 | G162: =(E76/0.9*'Dec voer'!M7) -> 1583.976

Sheet Dec Excretie (hidden)
A1: Veestapel
C2: ='Dec vee+melk'!C6 -> December gerealiseerd | E2: ='Dec vee+melk'!E6 -> December prognose
A5: Excretie (kg/dier/dag)
C6: N | E6: N
A7: Opname | C7: ='Dec Voeropname'!C2*'Dec Voeropname'!C7*0.001 -> 0.5631286895 | E7: ='Dec Voeropname'!E2*'Dec Voeropname'!E7*0.001+'Dec Voeropname'!G146*0.001/'Dec vee+melk'!E2 -> 0.5617021989
A8: Gem opname 7 dgn | C8: =AVERAGE(C7:F7) -> 0.5624154442 | E8: =AVERAGE(E7) -> 0.5617021989
A9: Productie | C9: ='Dec vee+melk'!C22*'Dec vee+melk'!C10/6.38 -> 0.1640935286 | E9: ='Dec vee+melk'!E22*'Dec vee+melk'!E10/6.38 -> 0.1500479524
A10: Vastlegging | C10: =1.4/365 -> 0.003835616438 | E10: =1.4/365 -> 0.003835616438
A11: Onder de staart | C11: =C7-C9-C10 -> 0.3951995445 | E11: =E7-E9-E10 -> 0.4078186301
A12: Vervluchtiging | C12: =C11*0.1175 -> 0.04643594648 | E12: =E11*0.1175 -> 0.04791868904
A13: Gemeten netto excretie | C13: =C11-C12 -> 0.348763598 | E13: =E11-E12 -> 0.3598999411
C15: P | E15: P
A16: Opname | C16: ='Dec Voeropname'!C2*'Dec Voeropname'!C8/1000 -> 0.07611504493 | E16: ='Dec Voeropname'!E2*'Dec Voeropname'!E8/1000+'Dec Voeropname'!G162*0.001/'Dec vee+melk'!E2 -> 0.07912303679
A17: Gem opname 7 dgn | C17: =AVERAGE(C16:F16) -> 0.07761904086 | E17: =AVERAGE(E16) -> 0.07912303679
A18: Productie | C18: ='Dec vee+melk'!C22*0.9/1000 -> 0.02532863014 | E18: ='Dec vee+melk'!E22*0.9/1000 -> 0.02461643836
A19: Vastlegging | C19: =0.5/365 -> 0.001369863014 | E19: =0.5/365 -> 0.001369863014
A20: Onder de staart | C20: =C16-C18-C19 -> 0.04941655178 | E20: =E16-E18-E19 -> 0.05313673542
A21: Vervluchtiging
A22: Gemeten netto excretie | C22: =C20 -> 0.04941655178 | E22: =E20 -> 0.05313673542
A24: N excretie per ton meetmelk (kg) | C24: =C13/'Dec vee+melk'!C21*1000 -> 11.14798122 | E24: =E13/'Dec vee+melk'!E21*1000 -> 11.77755213
A25: P excretie per ton meetmelk (kg) | C25: =C22/'Dec vee+melk'!C21*1000 -> 1.579565053 | E25: =E22/'Dec vee+melk'!E21*1000 -> 1.738874059

Sheet Dec kengetallen (hidden)
A1: Rantsoen
A2: Datum | C2: ='Dec voer'!B3 -> December gerealiseerd | E2: ='Dec voer'!G3 -> December prognose
A4: ='Dec Voeropname'!A2 -> DS opname/koe | C4: ='Dec Voeropname'!C2 -> 22.16043562 | E4: ='Dec Voeropname'!E2 -> 21.72030822
A5: ='Dec Voeropname'!A3 -> VEM | C5: ='Dec Voeropname'!C3 -> 957.3405289 | E5: ='Dec Voeropname'!E3 -> 961.6577362
A6: ='Dec Voeropname'!A4 -> DVE | C6: ='Dec Voeropname'!C4 -> 74.77064098 | E6: ='Dec Voeropname'!E4 -> 
A7: ='Dec Voeropname'!A5 -> OEB | C7: ='Dec Voeropname'!C5 -> 520.6805507 | E7: ='Dec Voeropname'!E5 -> 
A8: ='Dec Voeropname'!A6 -> RE | C8: ='Dec Voeropname'!C6 -> 158.8215309 | E8: ='Dec Voeropname'!E6 -> 121.9824307
A9: ='Dec Voeropname'!A7 -> N | C9: ='Dec Voeropname'!C7 -> 25.41144494 | E9: ='Dec Voeropname'!E7 -> 19.51718892
A10: ='Dec Voeropname'!A8 -> P | C10: ='Dec Voeropname'!C8 -> 3.434726927 | E10: ='Dec Voeropname'!E8 -> 2.601013192
A12: Streefwaarde RE | C12: ='Dec voer'!H20 -> 160
A13: Streefwaarde P | C13: ='Dec voer'!H21 -> 3.6
A16: ='Dec Excretie'!A24 -> N excretie per ton meetmelk (kg) | C16: ='Dec Excretie'!C24 -> 11.14798122 | E16: ='Dec Excretie'!E24 -> 11.77755213
A17: ='Dec Excretie'!A25 -> P excretie per ton meetmelk (kg) | C17: ='Dec Excretie'!C25 -> 1.579565053 | E17: ='Dec Excretie'!E25 -> 1.738874059
A20: VEM dekking | C20: ='Dec Voeropname'!C35/'Dec vee+melk'!C27 -> 1.08835232 | E20: ='Dec Voeropname'!E35/'Dec vee+melk'!E27 -> 1.09128684
A21: DVE dekking | C21: ='Dec Voeropname'!C36/'Dec vee+melk'!C28 -> 0.876428787 | E21: ='Dec Voeropname'!E36/'Dec vee+melk'!E28 -> 
A24: Voerefficientie kg meetmelk/kg voer (ds) | C24: ='Dec vee+melk'!C21/'Dec Voeropname'!C2 -> 1.411746201 | E24: ='Dec vee+melk'!E21/'Dec Voeropname'!E2 -> 1.406891988
A25: kg krachtvoer per 100 kg (excl bijprod) | C25: =SUM('Dec Voeropname'!C76:C77)/('Dec vee+melk'!C21*'Dec vee+melk'!C2)*100/0.9 -> 18.45709502 | E25: =SUM('Dec Voeropname'!E76:E78)/('Dec vee+melk'!E21*'Dec vee+melk'!E2)*100 -> 15.12153232
A28: =A12 -> Streefwaarde RE | C28: =$C$12 -> 160 | E28: =$C$12 -> 160
A29: =A13 -> Streefwaarde P | C29: =$C$13 -> 3.6 | E29: =$C$13 -> 3.6
A34: =A2 -> Datum | C34: =C2 -> December gerealiseerd | D34: =E2 -> December prognose | E34: =#REF! ->  | F34: =#REF! -> 
A35: 00:00:00
A36: DS opname/koe | C36: =C4 -> 22.16043562 | D36: =E4 -> 21.72030822 | E36: =#REF! ->  | F36: =#REF! -> 
A37: VEM | C37: 957.3405289 | D37: 961.6577362 | E37: =#REF! ->  | F37: =#REF! -> 
A38: DVE | C38: 74.77064098 | E38: =#REF! ->  | F38: =#REF! -> 
A39: OEB | C39: 520.6805507 | E39: =#REF! ->  | F39: =#REF! -> 
A40: RE | C40: 158.8215309 | D40: 121.9824307 | E40: =#REF! ->  | F40: =#REF! -> 
A41: N | C41: 25.41144494 | D41: 19.51718892 | E41: =#REF! ->  | F41: =#REF! -> 
A42: P | C42: 3.434726927 | D42: 2.601013192 | E42: =#REF! ->  | F42: =#REF! -> 
A43: =A15 -> 00:00:00
A44: N excretie per ton meetmelk (kg) | C44: =C16 -> 11.14798122 | D44: =E16 -> 11.77755213 | E44: =#REF! ->  | F44: =#REF! -> 
A45: P excretie per ton meetmelk (kg) | C45: 1.579565053 | D45: =E17 -> 1.738874059 | E45: =#REF! ->  | F45: =#REF! -> 
A46: 00:00:00 | C46: =1000/C45/2.29 -> 276.4566245 | D46: =1000/D45/2.29 -> 251.1287234 | E46: =1000/E45/2.29 ->  | F46: =1000/F45/2.29 -> 
A49: Rantsoen
A51: Kuilgras | C51: =IF('Dec Voeropname'!$A66='Dec kengetallen'!$A51,'Dec Voeropname'!C66,"") -> 786.78 | E51: =IF('Dec Voeropname'!$A66='Dec kengetallen'!$A51,'Dec Voeropname'!E66,"") -> 795.15
A52: Kuilgras | C52: =IF('Dec Voeropname'!$A67='Dec kengetallen'!$A52,'Dec Voeropname'!C67,"") ->  | E52: =IF('Dec Voeropname'!$A67='Dec kengetallen'!$A52,'Dec Voeropname'!E67,"") -> 
A53: Kuilgras | C53: =IF('Dec Voeropname'!$A68='Dec kengetallen'!$A53,'Dec Voeropname'!C68,"") ->  | E53: =IF('Dec Voeropname'!$A68='Dec kengetallen'!$A53,'Dec Voeropname'!E68,"") -> 
A54: Kuilgras | C54: =IF('Dec Voeropname'!$A69='Dec kengetallen'!$A54,'Dec Voeropname'!C69,"") ->  | E54: =IF('Dec Voeropname'!$A69='Dec kengetallen'!$A54,'Dec Voeropname'!E69,"") -> 
A55: Kuilgras | C55: =IF('Dec Voeropname'!$A70='Dec kengetallen'!$A55,'Dec Voeropname'!C70,"") ->  | E55: =IF('Dec Voeropname'!$A70='Dec kengetallen'!$A55,'Dec Voeropname'!E70,"") -> 
A56: Kuilgras | C56: =IF('Dec Voeropname'!$A71='Dec kengetallen'!$A56,'Dec Voeropname'!C71,"") ->  | E56: =IF('Dec Voeropname'!$A71='Dec kengetallen'!$A56,'Dec Voeropname'!E71,"") -> 
A57: Kuilgras | C57: =IF('Dec Voeropname'!$A72='Dec kengetallen'!$A57,'Dec Voeropname'!C72,"") ->  | E57: =IF('Dec Voeropname'!$A72='Dec kengetallen'!$A57,'Dec Voeropname'!E72,"") -> 
A58: Kuilgras | C58: =IF('Dec Voeropname'!$A73='Dec kengetallen'!$A58,'Dec Voeropname'!C73,"") ->  | E58: =IF('Dec Voeropname'!$A73='Dec kengetallen'!$A58,'Dec Voeropname'!E73,"") -> 
A59: Kuilgras | C59: =IF('Dec Voeropname'!$A74='Dec kengetallen'!$A59,'Dec Voeropname'!C74,"") ->  | E59: =IF('Dec Voeropname'!$A74='Dec kengetallen'!$A59,'Dec Voeropname'!E74,"") -> 
A60: Totaal kuilgras | C60: =SUM(C51:C59) -> 786.78 | E60: =SUM(E51:E59) -> 795.15
A62: Snijmais | C62: =IF('Dec Voeropname'!$A66='Dec kengetallen'!$A62,'Dec Voeropname'!C66,"") ->  | E62: =IF('Dec Voeropname'!$A66='Dec kengetallen'!$A62,'Dec Voeropname'!E66,"") -> 
A63: Snijmais | C63: =IF('Dec Voeropname'!$A67='Dec kengetallen'!$A63,'Dec Voeropname'!C67,"") -> 285.9668 | E63: =IF('Dec Voeropname'!$A67='Dec kengetallen'!$A63,'Dec Voeropname'!E67,"") -> 281.96
A64: Snijmais | C64: =IF('Dec Voeropname'!$A68='Dec kengetallen'!$A64,'Dec Voeropname'!C68,"") ->  | E64: =IF('Dec Voeropname'!$A68='Dec kengetallen'!$A64,'Dec Voeropname'!E68,"") -> 
A65: Snijmais | C65: =IF('Dec Voeropname'!$A69='Dec kengetallen'!$A65,'Dec Voeropname'!C69,"") ->  | E65: =IF('Dec Voeropname'!$A69='Dec kengetallen'!$A65,'Dec Voeropname'!E69,"") -> 
A66: Snijmais | C66: =IF('Dec Voeropname'!$A70='Dec kengetallen'!$A66,'Dec Voeropname'!C70,"") ->  | E66: =IF('Dec Voeropname'!$A70='Dec kengetallen'!$A66,'Dec Voeropname'!E70,"") -> 
A67: Snijmais | C67: =IF('Dec Voeropname'!$A71='Dec kengetallen'!$A67,'Dec Voeropname'!C71,"") ->  | E67: =IF('Dec Voeropname'!$A71='Dec kengetallen'!$A67,'Dec Voeropname'!E71,"") -> 
A68: Snijmais | C68: =IF('Dec Voeropname'!$A72='Dec kengetallen'!$A68,'Dec Voeropname'!C72,"") ->  | E68: =IF('Dec Voeropname'!$A72='Dec kengetallen'!$A68,'Dec Voeropname'!E72,"") -> 
A69: Snijmais | C69: =IF('Dec Voeropname'!$A73='Dec kengetallen'!$A69,'Dec Voeropname'!C73,"") ->  | E69: =IF('Dec Voeropname'!$A73='Dec kengetallen'!$A69,'Dec Voeropname'!E73,"") -> 
A70: Snijmais | C70: =IF('Dec Voeropname'!$A74='Dec kengetallen'!$A70,'Dec Voeropname'!C74,"") ->  | E70: =IF('Dec Voeropname'!$A74='Dec kengetallen'!$A70,'Dec Voeropname'!E74,"") -> 
A71: Totaal snijmais | C71: =SUM(C62:C70) -> 285.9668 | E71: =SUM(E62:E70) -> 281.96
A73: OverigRuwvoer | C73: =IF('Dec Voeropname'!$A66='Dec kengetallen'!$A73,'Dec Voeropname'!C66,"") ->  | E73: =IF('Dec Voeropname'!$A66='Dec kengetallen'!$A73,'Dec Voeropname'!E66,"") -> 
A74: OverigRuwvoer | C74: =IF('Dec Voeropname'!$A67='Dec kengetallen'!$A74,'Dec Voeropname'!C67,"") ->  | E74: =IF('Dec Voeropname'!$A67='Dec kengetallen'!$A74,'Dec Voeropname'!E67,"") -> 
A75: OverigRuwvoer | C75: =IF('Dec Voeropname'!$A68='Dec kengetallen'!$A75,'Dec Voeropname'!C68,"") ->  | E75: =IF('Dec Voeropname'!$A68='Dec kengetallen'!$A75,'Dec Voeropname'!E68,"") -> 
A76: OverigRuwvoer | C76: =IF('Dec Voeropname'!$A69='Dec kengetallen'!$A76,'Dec Voeropname'!C69,"") ->  | E76: =IF('Dec Voeropname'!$A69='Dec kengetallen'!$A76,'Dec Voeropname'!E69,"") -> 
A77: OverigRuwvoer | C77: =IF('Dec Voeropname'!$A70='Dec kengetallen'!$A77,'Dec Voeropname'!C70,"") ->  | E77: =IF('Dec Voeropname'!$A70='Dec kengetallen'!$A77,'Dec Voeropname'!E70,"") -> 
A78: OverigRuwvoer | C78: =IF('Dec Voeropname'!$A71='Dec kengetallen'!$A78,'Dec Voeropname'!C71,"") ->  | E78: =IF('Dec Voeropname'!$A71='Dec kengetallen'!$A78,'Dec Voeropname'!E71,"") -> 
A79: OverigRuwvoer | C79: =IF('Dec Voeropname'!$A72='Dec kengetallen'!$A79,'Dec Voeropname'!C72,"") ->  | E79: =IF('Dec Voeropname'!$A72='Dec kengetallen'!$A79,'Dec Voeropname'!E72,"") -> 
A80: OverigRuwvoer | C80: =IF('Dec Voeropname'!$A73='Dec kengetallen'!$A80,'Dec Voeropname'!C73,"") ->  | E80: =IF('Dec Voeropname'!$A73='Dec kengetallen'!$A80,'Dec Voeropname'!E73,"") -> 
A81: OverigRuwvoer | C81: =IF('Dec Voeropname'!$A74='Dec kengetallen'!$A81,'Dec Voeropname'!C74,"") ->  | E81: =IF('Dec Voeropname'!$A74='Dec kengetallen'!$A81,'Dec Voeropname'!E74,"") -> 
A82: Totaal overig Ruwvoer | C82: =SUM(C73:C81) -> 0 | E82: =SUM(E73:E81) -> 0
A84: Bijproducten | C84: =IF('Dec Voeropname'!$A66='Dec kengetallen'!$A84,'Dec Voeropname'!C66,"") ->  | E84: =IF('Dec Voeropname'!$A66='Dec kengetallen'!$A84,'Dec Voeropname'!E66,"") -> 
A85: Bijproducten | C85: =IF('Dec Voeropname'!$A67='Dec kengetallen'!$A85,'Dec Voeropname'!C67,"") ->  | E85: =IF('Dec Voeropname'!$A67='Dec kengetallen'!$A85,'Dec Voeropname'!E67,"") -> 
A86: Bijproducten | C86: =IF('Dec Voeropname'!$A68='Dec kengetallen'!$A86,'Dec Voeropname'!C68,"") ->  | E86: =IF('Dec Voeropname'!$A68='Dec kengetallen'!$A86,'Dec Voeropname'!E68,"") -> 
A87: Bijproducten | C87: =IF('Dec Voeropname'!$A69='Dec kengetallen'!$A87,'Dec Voeropname'!C69,"") -> 51.465 | E87: =IF('Dec Voeropname'!$A69='Dec kengetallen'!$A87,'Dec Voeropname'!E69,"") -> 52.0125
A88: Bijproducten | C88: =IF('Dec Voeropname'!$A70='Dec kengetallen'!$A88,'Dec Voeropname'!C70,"") -> 16.92 | E88: =IF('Dec Voeropname'!$A70='Dec kengetallen'!$A88,'Dec Voeropname'!E70,"") -> 19
A89: Bijproducten | C89: =IF('Dec Voeropname'!$A71='Dec kengetallen'!$A89,'Dec Voeropname'!C71,"") -> 112.8 | E89: =IF('Dec Voeropname'!$A71='Dec kengetallen'!$A89,'Dec Voeropname'!E71,"") -> 114
A90: Bijproducten | C90: =IF('Dec Voeropname'!$A72='Dec kengetallen'!$A90,'Dec Voeropname'!C72,"") ->  | E90: =IF('Dec Voeropname'!$A72='Dec kengetallen'!$A90,'Dec Voeropname'!E72,"") -> 
A91: Bijproducten | C91: =IF('Dec Voeropname'!$A73='Dec kengetallen'!$A91,'Dec Voeropname'!C73,"") ->  | E91: =IF('Dec Voeropname'!$A73='Dec kengetallen'!$A91,'Dec Voeropname'!E73,"") -> 
A92: Bijproducten | C92: =IF('Dec Voeropname'!$A74='Dec kengetallen'!$A92,'Dec Voeropname'!C74,"") ->  | E92: =IF('Dec Voeropname'!$A74='Dec kengetallen'!$A92,'Dec Voeropname'!E74,"") -> 
A93: Totaal Bijproducten | C93: =SUM(C84:C92) -> 181.185 | E93: =SUM(E84:E92) -> 185.0125
A95: Krachtvoer | C95: =SUM('Dec Voeropname'!C76:C77) -> 363.78 | E95: =SUM('Dec Voeropname'!E76:E78) -> 323.46
A97: Vers gras | C97: ='Dec Voeropname'!C31*('Dec vee+melk'!C2+'Dec vee+melk'!C3) -> 0 | E97: ='Dec Voeropname'!E31*('Dec vee+melk'!E2+'Dec vee+melk'!E3) -> 0
A99: Totaal | C99: =C95+C93+C82+C71+C60+C97 -> 1617.7118 | E99: =E95+E93+E82+E71+E60+E97 -> 1585.5825
A101: Vers gras | C101: =C97/C99 -> 0 | E101: =E97/E99 -> 0
A102: Aandeel kuilgras | C102: =C60/C$99 -> 0.4863536262 | E102: =E60/E$99 -> 0.5014876236
A103: Aandeel snijmais | C103: =C71/C$99 -> 0.1767724016 | E103: =E71/E$99 -> 0.1778273915
A104: Aandeel overig ruwvoer | C104: =C82/C$99 -> 0 | E104: =E82/E$99 -> 0
A105: Aandeel bijproducten | C105: =C93/C$99 -> 0.1120007903 | E105: =E93/E$99 -> 0.116684247
A106: Aandeel krachtvoer | C106: =C95/C$99 -> 0.224873182 | E106: =E95/E$99 -> 0.2040007379

Sheet Nov Voeropname (hidden)
A1: Gem rantsoen gehaltes (d dgn) | C1: ='Nov voer'!B3 -> November gerealiseerd | E1: ='Nov voer'!G3 -> November prognose
A2: DS opname/koe | C2: =C34 -> 20.98068493 | E2: =E34 -> 21.32030822
A3: VEM | C3: =C12 -> 955.8612145 | E3: =AVERAGE(E12:E12) -> 960.7625873
A4: DVE | C4: =AVERAGE(C13) -> 73.16086714 | M4: 1 | R4: Voedermiddelen
A5: OEB | C5: =AVERAGE(C14) -> 502.8532192 | M5: 2 | R5: Kuilgras
A6: RE | C6: =AVERAGE(C15) -> 157.1865463 | E6: 123.8412842 | R6: Snijmais
A7: N | C7: =AVERAGE(C16) -> 25.14984741 | E7: 19.81460547 | M7: Vem toeslag weidegang | O7: 1.03 | R7: OverigRuwvoer
A8: P | C8: 3.399193648 | E8: 2.638580812 | R8: Bijproducten
R9: Krachtvoer
A11: Rantsoen gehaltes (incl. weidegras)
A12: VEM | C12: =C35/C34 -> 955.8612145 | E12: =E35/E34 -> 960.7625873 | R12: Let op bij beperkt weiden is deze opname niet realistisch!
A13: DVE | C13: =C36/C34 -> 73.16086714 | E13: =E36/E34 ->  | R13: Let op VEM dekking te laag!
A14: OEB | C14: =C37 -> 502.8532192 | E14: =E37 -> 
A15: RE | C15: =C38/C34 -> 157.1865463 | E15: =E38/E34 -> 123.8412842
A16: N | C16: =C39/C34 -> 25.14984741 | E16: =E39/E34 -> 19.81460547
A17: P | C17: =C40/C34 -> 3.399193648 | E17: =E40/E34 -> 2.638580812
A22: kg ds | C22: =C55/SUM('Nov vee+melk'!C2:C3) -> 20.98068493 | E22: =E55/SUM('Nov vee+melk'!E2:E3) -> 21.32030822
A23: Vemopname ex weidegras | C23: =C22*C45 -> 20054.62298 | E23: =E22*E45 -> 20483.75449
A27: VEM behoefte | C27: =IF('Nov voer'!B4=1,'Nov vee+melk'!C27*'Nov Voeropname'!O7,'Nov vee+melk'!C27) -> 18289.33468 | E27: =IF('Nov voer'!G4=1,'Nov vee+melk'!E27*'Nov Voeropname'!O7,'Nov vee+melk'!E27) -> 18154.37961
A28: Behoefte-opname | C28: =C27-'Nov Voeropname'!C23 -> -1765.288299 | E28: =E27-'Nov Voeropname'!E23 -> -2329.374872
C29: =C28/VLOOKUP('Nov voer'!B5,Weidegras!$A$5:$J$119,4,FALSE) ->  | E29: =E28/VLOOKUP('Nov voer'!G5,Weidegras!$A$5:$J$119,4,FALSE) -> 
C30: =IF(C29>0,C29,0) ->  | E30: =IF(E29>0,E29,0) -> 
A31: Weidegrasopname/koe | C31: =IF('Nov voer'!B4=1,C30,0) -> 0 | E31: =IF('Nov voer'!G4=1,E30,0) -> 0
A33: Rantsoenopname incl weidegras
A34: droge stof | C34: =C22+C31 -> 20.98068493 | E34: =E22+E31 -> 21.32030822
A35: VEM | C35: =C45*C22+C31*VLOOKUP('Nov voer'!B5,Weidegras!$A$6:$J$180,4,FALSE) -> 20054.62298 | E35: =E45*E22+E31*VLOOKUP('Nov voer'!G5,Weidegras!$A$6:$J$180,4,FALSE) -> 20483.75449
A36: DVE | C36: =C46*C22+$C$31*VLOOKUP('Nov voer'!B5,Weidegras!$A$5:$J$150,5,FALSE) -> 1534.965103 | E36: =E46*E22+$C$31*VLOOKUP('Nov voer'!G5,Weidegras!$A$5:$J$150,5,FALSE) -> 
A37: OEB | C37: =C47*C22+$C$31*VLOOKUP('Nov voer'!B5,Weidegras!$A$5:$J$150,6,FALSE) -> 502.8532192 | E37: =E22*E47+$C$31*VLOOKUP('Nov voer'!G5,Weidegras!$A$6:$J$151,6,FALSE) -> 
A38: RE | C38: =C48*C22+$C$31*VLOOKUP('Nov voer'!B5,Weidegras!$A$5:$J$150,7,FALSE) -> 3297.881404 | E38: =E48*E22+E31*VLOOKUP('Nov voer'!$B$5,Weidegras!$A$6:$J$181,7,FALSE) -> 2640.334349
A39: N | C39: =C38/6.25 -> 527.6610247 | E39: =E38/6.25 -> 422.4534959
A40: P | C40: =C50*C22+C31*VLOOKUP('Nov voer'!$B$5,Weidegras!$A$6:$J$183,10,FALSE) -> 71.31741096 | E40: =E50*E22+E31*VLOOKUP('Nov voer'!$B$5,Weidegras!$A$6:$J$183,10,FALSE) -> 56.25535616
A43: Stalrantsoen gehaltes
A44: droge stof
A45: VEM | C45: =C56/C$55 -> 955.8612145 | E45: =E56/E$55 -> 960.7625873
A46: DVE | C46: =C57/C$55*1000 -> 73.16086714 | E46: =E57/E$55*1000 -> 
A47: OEB | C47: =C58/C$55 -> 23.9674358 | E47: =E58/E$55 -> 
A48: RE | C48: =C59/C$55 -> 157.1865463 | E48: 123.8412842
A49: N | C49: =C60/C$55 -> 25.14984741 | E49: 19.81460547
A50: P | C50: =C61/C$55 -> 3.399193648 | E50: 2.638580812
A54: Stalrantsoen opname
A55: droge stof (kg) | C55: =C80 -> 1531.59 | E55: 1556.3825
A56: VEM | C56: =C96 -> 1463987.477 | E56: 1495314.077
A57: DVE | C57: =C112 -> 112.0524525 | E57: =E112 -> 
A58: OEB | C58: =C128 -> 36708.285 | E58: =E128 -> 
A59: RE | C59: =C144 -> 240745.3425 | E59: =E144 -> 192744.4075
A60: N | C60: =C146 -> 38519.2548 | E60: =E146 -> 30839.1052
A61: P | C61: =C162 -> 5206.171 | E61: =E162 -> 4106.641
A65: Drogestof opname
A66: ='Nov voer'!A9 -> Kuilgras | B66: ='Nov voer'!B9 -> 2017 1e 2e snede | C66: =IF('Nov voer'!C9>0,VLOOKUP('Nov voer'!B9,Voedermiddelen!$A$4:$K$75,3,FALSE)*'Nov voer'!C9*(1-'Nov voer'!$B$6),"") -> 773.0625 | D66: ='Nov voer'!G9 -> 2017 1e 2e snede | E66: =IF('Nov voer'!H9>0,VLOOKUP('Nov voer'!G9,Voedermiddelen!$A$4:$K$75,3,FALSE)*'Nov voer'!H9*(1-'Nov voer'!$G$6),"") -> 795.15
A67: ='Nov voer'!A10 -> Snijmais | B67: ='Nov voer'!B10 -> silo 2 links | C67: =IF('Nov voer'!C10>0,VLOOKUP('Nov voer'!B10,Voedermiddelen!$A$4:$K$75,3,FALSE)*'Nov voer'!C10*(1-'Nov voer'!$B$6),"") -> 281.96 | D67: ='Nov voer'!G10 -> silo 2 links | E67: =IF('Nov voer'!H10>0,VLOOKUP('Nov voer'!G10,Voedermiddelen!$A$4:$K$75,3,FALSE)*'Nov voer'!H10*(1-'Nov voer'!$G$6),"") -> 281.96
A68: ='Nov voer'!A11 -> Kuilgras | B68: ='Nov voer'!B11 -> 2017 1e 2e snede | C68: =IF('Nov voer'!C11>0,VLOOKUP('Nov voer'!B11,Voedermiddelen!$A$4:$K$75,3,FALSE)*'Nov voer'!C11*(1-'Nov voer'!$B$6),"") ->  | D68: ='Nov voer'!G11 -> 2017 1e 2e snede | E68: =IF('Nov voer'!H11>0,VLOOKUP('Nov voer'!G11,Voedermiddelen!$A$4:$K$75,3,FALSE)*'Nov voer'!H11*(1-'Nov voer'!$G$6),"") -> 
A69: ='Nov voer'!A12 -> Bijproducten | B69: ='Nov voer'!B12 -> Bierbostel | C69: =IF('Nov voer'!C12>0,VLOOKUP('Nov voer'!B12,Voedermiddelen!$A$4:$K$75,3,FALSE)*'Nov voer'!C12*(1-'Nov voer'!$B$6),"") -> 52.0125 | D69: ='Nov voer'!G12 -> Bierbostel | E69: =IF('Nov voer'!H12>0,VLOOKUP('Nov voer'!G12,Voedermiddelen!$A$4:$K$75,3,FALSE)*'Nov voer'!H12*(1-'Nov voer'!$G$6),"") -> 52.0125
A70: ='Nov voer'!A13 -> Bijproducten | B70: ='Nov voer'!B13 -> soja raap | C70: =IF('Nov voer'!C13>0,VLOOKUP('Nov voer'!B13,Voedermiddelen!$A$4:$K$75,3,FALSE)*'Nov voer'!C13*(1-'Nov voer'!$B$6),"") -> 9.5 | D70: ='Nov voer'!G13 -> soja raap | E70: =IF('Nov voer'!H13>0,VLOOKUP('Nov voer'!G13,Voedermiddelen!$A$4:$K$75,3,FALSE)*'Nov voer'!H13*(1-'Nov voer'!$G$6),"") -> 19
A71: ='Nov voer'!A14 -> Bijproducten | B71: ='Nov voer'!B14 -> sodagrain | C71: =IF('Nov voer'!C14>0,VLOOKUP('Nov voer'!B14,Voedermiddelen!$A$4:$K$75,3,FALSE)*'Nov voer'!C14*(1-'Nov voer'!$B$6),"") -> 106.4 | D71: ='Nov voer'!G14 -> sodagrain | E71: =IF('Nov voer'!H14>0,VLOOKUP('Nov voer'!G14,Voedermiddelen!$A$4:$K$75,3,FALSE)*'Nov voer'!H14*(1-'Nov voer'!$G$6),"") -> 106.4
A72: ='Nov voer'!A15 -> 0 | B72: ='Nov voer'!B15 -> 0 | C72: =IF('Nov voer'!C15>0,VLOOKUP('Nov voer'!B15,Voedermiddelen!$A$4:$K$75,3,FALSE)*'Nov voer'!C15*(1-'Nov voer'!$B$6),"") ->  | D72: ='Nov voer'!G15 -> 0 | E72: =IF('Nov voer'!H15>0,VLOOKUP('Nov voer'!G15,Voedermiddelen!$A$4:$K$75,3,FALSE)*'Nov voer'!H15*(1-'Nov voer'!$G$6),"") -> 
A73: ='Nov voer'!A16 -> 0 | B73: ='Nov voer'!B16 -> 0 | C73: =IF('Nov voer'!C16>0,VLOOKUP('Nov voer'!B16,Voedermiddelen!$A$4:$K$75,3,FALSE)*'Nov voer'!C16*(1-'Nov voer'!$B$6),"") ->  | D73: ='Nov voer'!G16 -> 0 | E73: =IF('Nov voer'!H16>0,VLOOKUP('Nov voer'!G16,Voedermiddelen!$A$4:$K$75,3,FALSE)*'Nov voer'!H16*(1-'Nov voer'!$G$6),"") -> 
A74: ='Nov voer'!A17 -> 0 | B74: ='Nov voer'!B17 -> 0 | C74: =IF('Nov voer'!C17>0,VLOOKUP('Nov voer'!B17,Voedermiddelen!$A$4:$K$75,3,FALSE)*'Nov voer'!C17*(1-'Nov voer'!$B$6),"") ->  | D74: ='Nov voer'!G17 -> 0 | E74: =IF('Nov voer'!H17>0,VLOOKUP('Nov voer'!G17,Voedermiddelen!$A$4:$K$75,3,FALSE)*'Nov voer'!H17*(1-'Nov voer'!$G$6),"") -> 
B75: ='Nov voer'!B18 -> 0 | C75: =IF('Nov voer'!C18>0,VLOOKUP('Nov voer'!B18,Voedermiddelen!$A$4:$K$75,3,FALSE)*'Nov voer'!C18*(1-'Nov voer'!$B$6),"") ->  | D75: ='Nov voer'!G18 -> 0 | E75: =IF('Nov voer'!H18>0,VLOOKUP('Nov voer'!G18,Voedermiddelen!$A$4:$K$75,3,FALSE)*'Nov voer'!H18*(1-'Nov voer'!$G$6),"") -> 
B76: ='Nov voer'!B20 -> Protitopbrok | C76: =IF('Nov voer'!C20>0,VLOOKUP('Nov voer'!B20,Voedermiddelen!$A$4:$K$75,3,FALSE)*'Nov voer'!C20*(1-'Nov voer'!$B$6),"") -> 64.125 | E76: ='Nov voer'!H22*'Nov vee+melk'!E15/100*0.9 -> 301.86
B77: ='Nov voer'!B21 -> Pens stabielbrok EBZ | C77: =IF('Nov voer'!C21>0,VLOOKUP('Nov voer'!B21,Voedermiddelen!$A$4:$K$75,3,FALSE)*'Nov voer'!C21*(1-'Nov voer'!$B$6),"") -> 244.53
B78: ='Nov voer'!B22 -> 0 | C78: =IF('Nov voer'!C22>0,VLOOKUP('Nov voer'!B22,Voedermiddelen!$A$4:$K$75,3,FALSE)*'Nov voer'!C22*(1-'Nov voer'!$B$6),"") -> 
A80: Totaal | C80: =SUM(C66:C77) -> 1531.59 | E80: =SUM(E66:E78) -> 1556.3825
A82: VEM | B82: =B66 -> 2017 1e 2e snede | C82: =IF('Nov voer'!C9>0,VLOOKUP('Nov voer'!B9,Voedermiddelen!$A$4:$K$75,4,FALSE)*C66,"") -> 723586.5 | D82: =D66 -> 2017 1e 2e snede | E82: =IF('Nov voer'!H9>0,VLOOKUP('Nov voer'!G9,Voedermiddelen!$A$4:$K$75,4,FALSE)*E66,"") -> 744260.4
B83: =B67 -> silo 2 links | C83: =IF('Nov voer'!C10>0,VLOOKUP('Nov voer'!B10,Voedermiddelen!$A$4:$K$75,4,FALSE)*C67,"") -> 271809.44 | D83: silo 2 links | E83: =IF('Nov voer'!H10>0,VLOOKUP('Nov voer'!G10,Voedermiddelen!$A$4:$K$75,4,FALSE)*E67,"") -> 271809.44
B84: 2017 1e 2e snede | C84: =IF('Nov voer'!C11>0,VLOOKUP('Nov voer'!B11,Voedermiddelen!$A$4:$K$75,4,FALSE)*C68,"") ->  | D84: 2017 1e 2e snede | E84: =IF('Nov voer'!H11>0,VLOOKUP('Nov voer'!G11,Voedermiddelen!$A$4:$K$75,4,FALSE)*E68,"") -> 
B85: Bierbostel | C85: =IF('Nov voer'!C12>0,VLOOKUP('Nov voer'!B12,Voedermiddelen!$A$4:$K$75,4,FALSE)*C69,"") -> 49255.8375 | D85: Bierbostel | E85: =IF('Nov voer'!H12>0,VLOOKUP('Nov voer'!G12,Voedermiddelen!$A$4:$K$75,4,FALSE)*E69,"") -> 49255.8375
B86: soja raap | C86: =IF('Nov voer'!C13>0,VLOOKUP('Nov voer'!B13,Voedermiddelen!$A$4:$K$75,4,FALSE)*C70,"") -> 8949 | D86: soja raap | E86: =IF('Nov voer'!H13>0,VLOOKUP('Nov voer'!G13,Voedermiddelen!$A$4:$K$75,4,FALSE)*E70,"") -> 17898
B87: sodagrain | C87: =IF('Nov voer'!C14>0,VLOOKUP('Nov voer'!B14,Voedermiddelen!$A$4:$K$75,4,FALSE)*C71,"") -> 110230.4 | D87: sodagrain | E87: =IF('Nov voer'!H14>0,VLOOKUP('Nov voer'!G14,Voedermiddelen!$A$4:$K$75,4,FALSE)*E71,"") -> 110230.4
B88: 0 | C88: =IF('Nov voer'!C15>0,VLOOKUP('Nov voer'!B15,Voedermiddelen!$A$4:$K$75,4,FALSE)*C72,"") ->  | D88: 0 | E88: =IF('Nov voer'!H15>0,VLOOKUP('Nov voer'!G15,Voedermiddelen!$A$4:$K$75,4,FALSE)*E72,"") -> 
B89: 0 | C89: =IF('Nov voer'!C16>0,VLOOKUP('Nov voer'!B16,Voedermiddelen!$A$4:$K$75,4,FALSE)*C73,"") ->  | D89: 0 | E89: =IF('Nov voer'!H16>0,VLOOKUP('Nov voer'!G16,Voedermiddelen!$A$4:$K$75,4,FALSE)*E73,"") -> 
B90: 0 | C90: =IF('Nov voer'!C17>0,VLOOKUP('Nov voer'!B17,Voedermiddelen!$A$4:$K$75,4,FALSE)*C74,"") ->  | D90: 0 | E90: =IF('Nov voer'!H17>0,VLOOKUP('Nov voer'!G17,Voedermiddelen!$A$4:$K$75,4,FALSE)*E74,"") -> 
B91: 0 | C91: =IF('Nov voer'!C18>0,VLOOKUP('Nov voer'!B18,Voedermiddelen!$A$4:$K$75,4,FALSE)*C75,"") ->  | D91: 0 | E91: =IF('Nov voer'!H18>0,VLOOKUP('Nov voer'!G18,Voedermiddelen!$A$4:$K$75,4,FALSE)*E75,"") -> 
B92: Protitopbrok | C92: =IF('Nov voer'!C20>0,VLOOKUP('Nov voer'!B20,Voedermiddelen!$A$4:$K$75,4,FALSE)*C76,"") -> 65407.5 | D92: 0 | E92: =E76*1000 -> 301860
B93: Pens stabielbrok EBZ | C93: =IF('Nov voer'!C21>0,VLOOKUP('Nov voer'!B21,Voedermiddelen!$A$4:$K$75,4,FALSE)*C77,"") -> 234748.8 | D93: 0
B94: 0 | C94: =IF('Nov voer'!C22>0,VLOOKUP('Nov voer'!B22,Voedermiddelen!$A$4:$K$75,4,FALSE)*C78,"") ->  | D94: 0
A96: Totaal | C96: =SUM(C82:C93) -> 1463987.477 | E96: =SUM(E82:E94) -> 1495314.077
A98: DVE | B98: =B82 -> 2017 1e 2e snede | C98: =IF('Nov voer'!C9>0,VLOOKUP('Nov voer'!B9,Voedermiddelen!$A$4:$K$75,5,FALSE)*C66,"") -> 46383.75 | D98: =D82 -> 2017 1e 2e snede | E98: =IF('Nov voer'!H9>0,VLOOKUP('Nov voer'!G9,[2]Voedermiddelen!$A$4:$K$75,5,FALSE)*E66,"") -> 
B99: =B83 -> silo 2 links | C99: =IF('Nov voer'!C10>0,VLOOKUP('Nov voer'!B10,Voedermiddelen!$A$4:$K$75,5,FALSE)*C67,"") -> 13816.04 | D99: silo 2 links | E99: =IF('Nov voer'!H10>0,VLOOKUP('Nov voer'!G10,[2]Voedermiddelen!$A$4:$K$75,5,FALSE)*E67,"") -> 
B100: 2017 1e 2e snede | C100: =IF('Nov voer'!C11>0,VLOOKUP('Nov voer'!B11,Voedermiddelen!$A$4:$K$75,5,FALSE)*C68,"") ->  | D100: 2017 1e 2e snede | E100: =IF('Nov voer'!H11>0,VLOOKUP('Nov voer'!G11,[2]Voedermiddelen!$A$4:$K$75,5,FALSE)*E68,"") -> 
B101: Bierbostel | C101: =IF('Nov voer'!C12>0,VLOOKUP('Nov voer'!B12,Voedermiddelen!$A$4:$K$75,5,FALSE)*C69,"") -> 7125.7125 | D101: Bierbostel | E101: =IF('Nov voer'!H12>0,VLOOKUP('Nov voer'!G12,[2]Voedermiddelen!$A$4:$K$75,5,FALSE)*E69,"") -> 7125.7125
B102: soja raap | C102: =IF('Nov voer'!C13>0,VLOOKUP('Nov voer'!B13,Voedermiddelen!$A$4:$K$75,5,FALSE)*C70,"") -> 950 | D102: soja raap | E102: =IF('Nov voer'!H13>0,VLOOKUP('Nov voer'!G13,[2]Voedermiddelen!$A$4:$K$75,5,FALSE)*E70,"") -> 
B103: sodagrain | C103: =IF('Nov voer'!C14>0,VLOOKUP('Nov voer'!B14,Voedermiddelen!$A$4:$K$75,5,FALSE)*C71,"") -> 7448 | D103: sodagrain | E103: =IF('Nov voer'!H14>0,VLOOKUP('Nov voer'!G14,[2]Voedermiddelen!$A$4:$K$75,5,FALSE)*E71,"") -> 
B104: 0 | C104: =IF('Nov voer'!C15>0,VLOOKUP('Nov voer'!B15,Voedermiddelen!$A$4:$K$75,5,FALSE)*C72,"") ->  | D104: 0 | E104: =IF('Nov voer'!H15>0,VLOOKUP('Nov voer'!G15,[2]Voedermiddelen!$A$4:$K$75,5,FALSE)*E72,"") -> 
B105: 0 | C105: =IF('Nov voer'!C16>0,VLOOKUP('Nov voer'!B16,Voedermiddelen!$A$4:$K$75,5,FALSE)*C73,"") ->  | D105: 0 | E105: =IF('Nov voer'!H16>0,VLOOKUP('Nov voer'!G16,[2]Voedermiddelen!$A$4:$K$75,5,FALSE)*E73,"") -> 
B106: 0 | C106: =IF('Nov voer'!C17>0,VLOOKUP('Nov voer'!B17,Voedermiddelen!$A$4:$K$75,5,FALSE)*C74,"") ->  | D106: 0 | E106: =IF('Nov voer'!H17>0,VLOOKUP('Nov voer'!G17,[2]Voedermiddelen!$A$4:$K$75,5,FALSE)*E74,"") -> 
B107: 0 | C107: =IF('Nov voer'!C18>0,VLOOKUP('Nov voer'!B18,Voedermiddelen!$A$4:$K$75,5,FALSE)*C75,"") ->  | D107: 0 | E107: =IF('Nov voer'!H18>0,VLOOKUP('Nov voer'!G18,[2]Voedermiddelen!$A$4:$K$75,5,FALSE)*E75,"") -> 
B108: Protitopbrok | C108: =IF('Nov voer'!C20>0,VLOOKUP('Nov voer'!B20,Voedermiddelen!$A$4:$K$75,5,FALSE)*C76,"") -> 8208 | D108: 0
B109: Pens stabielbrok EBZ | C109: =IF('Nov voer'!C21>0,VLOOKUP('Nov voer'!B21,Voedermiddelen!$A$4:$K$75,5,FALSE)*C77,"") -> 28120.95 | D109: 0
B110: 0 | C110: =IF('Nov voer'!C22>0,VLOOKUP('Nov voer'!B22,Voedermiddelen!$A$4:$K$75,5,FALSE)*C78,"") ->  | D110: 0
A112: Totaal | C112: =SUM(C98:C110)/1000 -> 112.0524525 | E112: =SUM(E98:E110)/1000 -> 
A114: OEB | B114: =B98 -> 2017 1e 2e snede | C114: =IF('Nov voer'!C9>0,VLOOKUP('Nov voer'!B9,Voedermiddelen!$A$4:$K$75,6,FALSE)*C66,"") -> 44064.5625 | D114: =D98 -> 2017 1e 2e snede | E114: =IF('Nov voer'!H9>0,VLOOKUP('Nov voer'!G9,[2]Voedermiddelen!$A$4:$K$75,6,FALSE)*E66,"") -> 
B115: =B99 -> silo 2 links | C115: =IF('Nov voer'!C10>0,VLOOKUP('Nov voer'!B10,Voedermiddelen!$A$4:$K$75,6,FALSE)*C67,"") -> -10150.56 | D115: silo 2 links | E115: =IF('Nov voer'!H10>0,VLOOKUP('Nov voer'!G10,[2]Voedermiddelen!$A$4:$K$75,6,FALSE)*E67,"") -> 
B116: 2017 1e 2e snede | C116: =IF('Nov voer'!C11>0,VLOOKUP('Nov voer'!B11,Voedermiddelen!$A$4:$K$75,6,FALSE)*C68,"") ->  | D116: 2017 1e 2e snede | E116: =IF('Nov voer'!H11>0,VLOOKUP('Nov voer'!G11,[2]Voedermiddelen!$A$4:$K$75,6,FALSE)*E68,"") -> 
B117: Bierbostel | C117: =IF('Nov voer'!C12>0,VLOOKUP('Nov voer'!B12,Voedermiddelen!$A$4:$K$75,6,FALSE)*C69,"") -> 2860.6875 | D117: Bierbostel | E117: =IF('Nov voer'!H12>0,VLOOKUP('Nov voer'!G12,[2]Voedermiddelen!$A$4:$K$75,6,FALSE)*E69,"") -> 2860.6875
B118: soja raap | C118: =IF('Nov voer'!C13>0,VLOOKUP('Nov voer'!B13,Voedermiddelen!$A$4:$K$75,6,FALSE)*C70,"") -> 380 | D118: soja raap | E118: =IF('Nov voer'!H13>0,VLOOKUP('Nov voer'!G13,[2]Voedermiddelen!$A$4:$K$75,6,FALSE)*E70,"") -> 
B119: sodagrain | C119: =IF('Nov voer'!C14>0,VLOOKUP('Nov voer'!B14,Voedermiddelen!$A$4:$K$75,6,FALSE)*C71,"") -> -4575.2 | D119: sodagrain | E119: =IF('Nov voer'!H14>0,VLOOKUP('Nov voer'!G14,[2]Voedermiddelen!$A$4:$K$75,6,FALSE)*E71,"") -> 
B120: 0 | C120: =IF('Nov voer'!C15>0,VLOOKUP('Nov voer'!B15,Voedermiddelen!$A$4:$K$75,6,FALSE)*C72,"") ->  | D120: 0 | E120: =IF('Nov voer'!H15>0,VLOOKUP('Nov voer'!G15,[2]Voedermiddelen!$A$4:$K$75,6,FALSE)*E72,"") -> 
B121: 0 | C121: =IF('Nov voer'!C16>0,VLOOKUP('Nov voer'!B16,Voedermiddelen!$A$4:$K$75,6,FALSE)*C73,"") ->  | D121: 0 | E121: =IF('Nov voer'!H16>0,VLOOKUP('Nov voer'!G16,[2]Voedermiddelen!$A$4:$K$75,6,FALSE)*E73,"") -> 
B122: 0 | C122: =IF('Nov voer'!C17>0,VLOOKUP('Nov voer'!B17,Voedermiddelen!$A$4:$K$75,6,FALSE)*C74,"") ->  | D122: 0 | E122: =IF('Nov voer'!H17>0,VLOOKUP('Nov voer'!G17,[2]Voedermiddelen!$A$4:$K$75,6,FALSE)*E74,"") -> 
B123: 0 | C123: =IF('Nov voer'!C18>0,VLOOKUP('Nov voer'!B18,Voedermiddelen!$A$4:$K$75,6,FALSE)*C75,"") ->  | D123: 0 | E123: =IF('Nov voer'!H18>0,VLOOKUP('Nov voer'!G18,[2]Voedermiddelen!$A$4:$K$75,6,FALSE)*E75,"") -> 
B124: Protitopbrok | C124: =IF('Nov voer'!C20>0,VLOOKUP('Nov voer'!B20,Voedermiddelen!$A$4:$K$75,6,FALSE)*C76,"") -> 705.375 | D124: 0
B125: Pens stabielbrok EBZ | C125: =IF('Nov voer'!C21>0,VLOOKUP('Nov voer'!B21,Voedermiddelen!$A$4:$K$75,6,FALSE)*C77,"") -> 3423.42 | D125: 0
B126: 0 | C126: =IF('Nov voer'!C22>0,VLOOKUP('Nov voer'!B22,Voedermiddelen!$A$4:$K$75,6,FALSE)*C78,"") ->  | D126: 0
A128: Totaal | C128: =SUM(C114:C126) -> 36708.285 | E128: =SUM(E114:E126) -> 
A130: RE | B130: =B114 -> 2017 1e 2e snede | C130: =IF('Nov voer'!C9>0,VLOOKUP('Nov voer'!B9,Voedermiddelen!$A$4:$K$75,7,FALSE)*C66,"") -> 139151.25 | D130: =D114 -> 2017 1e 2e snede | E130: =IF('Nov voer'!H9>0,VLOOKUP('Nov voer'!G9,Voedermiddelen!$A$4:$K$75,7,FALSE)*E66,"") -> 143127
B131: =B115 -> silo 2 links | C131: =IF('Nov voer'!C10>0,VLOOKUP('Nov voer'!B10,Voedermiddelen!$A$4:$K$75,7,FALSE)*C67,"") -> 20301.12 | D131: silo 2 links | E131: =IF('Nov voer'!H10>0,VLOOKUP('Nov voer'!G10,Voedermiddelen!$A$4:$K$75,7,FALSE)*E67,"") -> 20301.12
B132: 2017 1e 2e snede | C132: =IF('Nov voer'!C11>0,VLOOKUP('Nov voer'!B11,Voedermiddelen!$A$4:$K$75,7,FALSE)*C68,"") ->  | D132: 2017 1e 2e snede | E132: =IF('Nov voer'!H11>0,VLOOKUP('Nov voer'!G11,Voedermiddelen!$A$4:$K$75,7,FALSE)*E68,"") -> 
B133: Bierbostel | C133: =IF('Nov voer'!C12>0,VLOOKUP('Nov voer'!B12,Voedermiddelen!$A$4:$K$75,7,FALSE)*C69,"") -> 12847.0875 | D133: Bierbostel | E133: =IF('Nov voer'!H12>0,VLOOKUP('Nov voer'!G12,Voedermiddelen!$A$4:$K$75,7,FALSE)*E69,"") -> 12847.0875
B134: soja raap | C134: =IF('Nov voer'!C13>0,VLOOKUP('Nov voer'!B13,Voedermiddelen!$A$4:$K$75,7,FALSE)*C70,"") -> 3553 | D134: soja raap | E134: =IF('Nov voer'!H13>0,VLOOKUP('Nov voer'!G13,Voedermiddelen!$A$4:$K$75,7,FALSE)*E70,"") -> 7106
B135: sodagrain | C135: =IF('Nov voer'!C14>0,VLOOKUP('Nov voer'!B14,Voedermiddelen!$A$4:$K$75,7,FALSE)*C71,"") -> 9363.2 | D135: sodagrain | E135: =IF('Nov voer'!H14>0,VLOOKUP('Nov voer'!G14,Voedermiddelen!$A$4:$K$75,7,FALSE)*E71,"") -> 9363.2
B136: 0 | C136: =IF('Nov voer'!C15>0,VLOOKUP('Nov voer'!B15,Voedermiddelen!$A$4:$K$75,7,FALSE)*C72,"") ->  | D136: 0 | E136: =IF('Nov voer'!H15>0,VLOOKUP('Nov voer'!G15,Voedermiddelen!$A$4:$K$75,7,FALSE)*E72,"") -> 
B137: 0 | C137: =IF('Nov voer'!C16>0,VLOOKUP('Nov voer'!B16,Voedermiddelen!$A$4:$K$75,7,FALSE)*C73,"") ->  | D137: 0 | E137: =IF('Nov voer'!H16>0,VLOOKUP('Nov voer'!G16,Voedermiddelen!$A$4:$K$75,7,FALSE)*E73,"") -> 
B138: 0 | C138: =IF('Nov voer'!C17>0,VLOOKUP('Nov voer'!B17,Voedermiddelen!$A$4:$K$75,7,FALSE)*C74,"") ->  | D138: 0 | E138: =IF('Nov voer'!H17>0,VLOOKUP('Nov voer'!G17,Voedermiddelen!$A$4:$K$75,7,FALSE)*E74,"") -> 
B139: 0 | C139: =IF('Nov voer'!C18>0,VLOOKUP('Nov voer'!B18,Voedermiddelen!$A$4:$K$75,7,FALSE)*C75,"") ->  | D139: 0 | E139: =IF('Nov voer'!H18>0,VLOOKUP('Nov voer'!G18,Voedermiddelen!$A$4:$K$75,7,FALSE)*E75,"") -> 
B140: Protitopbrok | C140: =IF('Nov voer'!C20>0,VLOOKUP('Nov voer'!B20,Voedermiddelen!$A$4:$K$75,7,FALSE)*C76,"") -> 12247.875 | D140: 0
B141: Pens stabielbrok EBZ | C141: =IF('Nov voer'!C21>0,VLOOKUP('Nov voer'!B21,Voedermiddelen!$A$4:$K$75,7,FALSE)*C77,"") -> 43281.81 | D141: 0
B142: =B126 -> 0 | C142: =IF('Nov voer'!C22>0,VLOOKUP('Nov voer'!B22,[2]Voedermiddelen!$A$4:$K$75,7,FALSE)*C77,"") ->  | D142: 0
A144: Totaal | C144: =SUM(C130:C142) -> 240745.3425 | E144: =SUM(E130:E142) -> 192744.4075
A146: N opname | C146: =C144/6.25 -> 38519.2548 | E146: =E144/6.25 -> 30839.1052 | G146: =(E76/0.9*'Nov voer'!M6/6.25) -> 9004.2868
A148: P | B148: =B130 -> 2017 1e 2e snede | C148: =IF('Nov voer'!C9>0,VLOOKUP('Nov voer'!B9,Voedermiddelen!$A$4:$K$75,10,FALSE)*C66,"") -> 2783.025 | D148: =D130 -> 2017 1e 2e snede | E148: =IF('Nov voer'!H9>0,VLOOKUP('Nov voer'!G9,Voedermiddelen!$A$4:$K$75,10,FALSE)*E66,"") -> 2862.54
B149: =B131 -> silo 2 links | C149: =IF('Nov voer'!C10>0,VLOOKUP('Nov voer'!B10,Voedermiddelen!$A$4:$K$75,10,FALSE)*C67,"") -> 592.116 | D149: silo 2 links | E149: =IF('Nov voer'!H10>0,VLOOKUP('Nov voer'!G10,Voedermiddelen!$A$4:$K$75,10,FALSE)*E67,"") -> 592.116
B150: 2017 1e 2e snede | C150: =IF('Nov voer'!C11>0,VLOOKUP('Nov voer'!B11,Voedermiddelen!$A$4:$K$75,10,FALSE)*C68,"") ->  | D150: 2017 1e 2e snede | E150: =IF('Nov voer'!H11>0,VLOOKUP('Nov voer'!G11,Voedermiddelen!$A$4:$K$75,10,FALSE)*E68,"") -> 
B151: Bierbostel | C151: =IF('Nov voer'!C12>0,VLOOKUP('Nov voer'!B12,Voedermiddelen!$A$4:$K$75,10,FALSE)*C69,"") -> 270.465 | D151: Bierbostel | E151: =IF('Nov voer'!H12>0,VLOOKUP('Nov voer'!G12,Voedermiddelen!$A$4:$K$75,10,FALSE)*E69,"") -> 270.465
B152: soja raap | C152: =IF('Nov voer'!C13>0,VLOOKUP('Nov voer'!B13,Voedermiddelen!$A$4:$K$75,10,FALSE)*C70,"") -> 68.4 | D152: soja raap | E152: =IF('Nov voer'!H13>0,VLOOKUP('Nov voer'!G13,Voedermiddelen!$A$4:$K$75,10,FALSE)*E70,"") -> 136.8
B153: sodagrain | C153: =IF('Nov voer'!C14>0,VLOOKUP('Nov voer'!B14,Voedermiddelen!$A$4:$K$75,10,FALSE)*C71,"") -> 244.72 | D153: sodagrain | E153: =IF('Nov voer'!H14>0,VLOOKUP('Nov voer'!G14,Voedermiddelen!$A$4:$K$75,10,FALSE)*E71,"") -> 244.72
B154: 0 | C154: =IF('Nov voer'!C15>0,VLOOKUP('Nov voer'!B15,Voedermiddelen!$A$4:$K$75,10,FALSE)*C72,"") ->  | D154: 0 | E154: =IF('Nov voer'!H15>0,VLOOKUP('Nov voer'!G15,Voedermiddelen!$A$4:$K$75,10,FALSE)*E72,"") -> 
B155: 0 | C155: =IF('Nov voer'!C16>0,VLOOKUP('Nov voer'!B16,Voedermiddelen!$A$4:$K$75,10,FALSE)*C73,"") ->  | D155: 0 | E155: =IF('Nov voer'!H16>0,VLOOKUP('Nov voer'!G16,Voedermiddelen!$A$4:$K$75,10,FALSE)*E73,"") -> 
B156: 0 | C156: =IF('Nov voer'!C17>0,VLOOKUP('Nov voer'!B17,Voedermiddelen!$A$4:$K$75,10,FALSE)*C74,"") ->  | D156: 0 | E156: =IF('Nov voer'!H17>0,VLOOKUP('Nov voer'!G17,Voedermiddelen!$A$4:$K$75,10,FALSE)*E74,"") -> 
B157: 0 | C157: =IF('Nov voer'!C18>0,VLOOKUP('Nov voer'!B18,Voedermiddelen!$A$4:$K$75,10,FALSE)*C75,"") ->  | D157: 0 | E157: =IF('Nov voer'!H18>0,VLOOKUP('Nov voer'!G18,Voedermiddelen!$A$4:$K$75,10,FALSE)*E75,"") -> 
B158: =B140 -> Protitopbrok | C158: =IF('Nov voer'!C20>0,VLOOKUP('Nov voer'!B20,Voedermiddelen!$A$4:$K$75,10,FALSE)*C76,"") -> 269.325 | D158: 0
B159: =B141 -> Pens stabielbrok EBZ | C159: =IF('Nov voer'!C21>0,VLOOKUP('Nov voer'!B21,Voedermiddelen!$A$4:$K$75,10,FALSE)*C77,"") -> 978.12 | D159: 0
B160: =B142 -> 0 | C160: =IF('Nov voer'!C22>0,VLOOKUP('Nov voer'!B22,Voedermiddelen!$A$4:$K$75,10,FALSE)*C78,"") ->  | D160: 0
A162: Totaal | C162: =SUM(C148:C160) -> 5206.171 | E162: =SUM(E148:E160) -> 4106.641 | G162: =(E76/0.9*'Nov voer'!M7) -> 1496.336

Sheet Nov Excretie (hidden)
A1: Veestapel
C2: ='Nov vee+melk'!C6 -> November gerealiseerd | E2: ='Nov vee+melk'!E6 -> November prognose
A5: Excretie (kg/dier/dag)
C6: N | E6: N
A7: Opname | C7: ='Nov Voeropname'!C2*'Nov Voeropname'!C7*0.001 -> 0.5276610247 | E7: ='Nov Voeropname'!E2*'Nov Voeropname'!E7*0.001+'Nov Voeropname'!G146*0.001/'Nov vee+melk'!E2 -> 0.5510861645
A8: Gem opname 7 dgn | C8: =AVERAGE(C7:F7) -> 0.5393735946 | E8: =AVERAGE(E7) -> 0.5510861645
A9: Productie | C9: ='Nov vee+melk'!C22*'Nov vee+melk'!C10/6.38 -> 0.1520685361 | E9: ='Nov vee+melk'!E22*'Nov vee+melk'!E10/6.38 -> 0.1400280557
A10: Vastlegging | C10: =1.4/365 -> 0.003835616438 | E10: =1.4/365 -> 0.003835616438
A11: Onder de staart | C11: =C7-C9-C10 -> 0.3717568721 | E11: =E7-E9-E10 -> 0.4072224923
A12: Vervluchtiging | C12: =C11*0.1175 -> 0.04368143247 | E12: =E11*0.1175 -> 0.04784864285
A13: Gemeten netto excretie | C13: =C11-C12 -> 0.3280754397 | E13: =E11-E12 -> 0.3593738495
C15: P | E15: P
A16: Opname | C16: ='Nov Voeropname'!C2*'Nov Voeropname'!C8/1000 -> 0.07131741096 | E16: ='Nov Voeropname'!E2*'Nov Voeropname'!E8/1000+'Nov Voeropname'!G162*0.001/'Nov vee+melk'!E2 -> 0.07763158474
A17: Gem opname 7 dgn | C17: =AVERAGE(C16:F16) -> 0.07447449785 | E17: =AVERAGE(E16) -> 0.07763158474
A18: Productie | C18: ='Nov vee+melk'!C22*0.9/1000 -> 0.02297835616 | E18: ='Nov vee+melk'!E22*0.9/1000 -> 0.02297260274
A19: Vastlegging | C19: =0.5/365 -> 0.001369863014 | E19: =0.5/365 -> 0.001369863014
A20: Onder de staart | C20: =C16-C18-C19 -> 0.04696919178 | E20: =E16-E18-E19 -> 0.05328911898
A21: Vervluchtiging
A22: Gemeten netto excretie | C22: =C20 -> 0.04696919178 | E22: =E20 -> 0.05328911898
A24: N excretie per ton meetmelk (kg) | C24: =C13/'Nov vee+melk'!C21*1000 -> 11.39245737 | E24: =E13/'Nov vee+melk'!E21*1000 -> 12.60186277
A25: P excretie per ton meetmelk (kg) | C25: =C22/'Nov vee+melk'!C21*1000 -> 1.631010586 | E25: =E22/'Nov vee+melk'!E21*1000 -> 1.868645048

Sheet Nov kengetallen (hidden)
A1: Rantsoen
A2: Datum | C2: ='Nov voer'!B3 -> November gerealiseerd | E2: ='Nov voer'!G3 -> November prognose
A4: ='Nov Voeropname'!A2 -> DS opname/koe | C4: ='Nov Voeropname'!C2 -> 20.98068493 | E4: ='Nov Voeropname'!E2 -> 21.32030822
A5: ='Nov Voeropname'!A3 -> VEM | C5: ='Nov Voeropname'!C3 -> 955.8612145 | E5: ='Nov Voeropname'!E3 -> 960.7625873
A6: ='Nov Voeropname'!A4 -> DVE | C6: ='Nov Voeropname'!C4 -> 73.16086714 | E6: ='Nov Voeropname'!E4 -> 
A7: ='Nov Voeropname'!A5 -> OEB | C7: ='Nov Voeropname'!C5 -> 502.8532192 | E7: ='Nov Voeropname'!E5 -> 
A8: ='Nov Voeropname'!A6 -> RE | C8: ='Nov Voeropname'!C6 -> 157.1865463 | E8: ='Nov Voeropname'!E6 -> 123.8412842
A9: ='Nov Voeropname'!A7 -> N | C9: ='Nov Voeropname'!C7 -> 25.14984741 | E9: ='Nov Voeropname'!E7 -> 19.81460547
A10: ='Nov Voeropname'!A8 -> P | C10: ='Nov Voeropname'!C8 -> 3.399193648 | E10: ='Nov Voeropname'!E8 -> 2.638580812
A12: Streefwaarde RE | C12: ='Nov voer'!H20 -> 160
A13: Streefwaarde P | C13: ='Nov voer'!H21 -> 3.6
A16: ='Nov Excretie'!A24 -> N excretie per ton meetmelk (kg) | C16: ='Nov Excretie'!C24 -> 11.39245737 | E16: ='Nov Excretie'!E24 -> 12.60186277
A17: ='Nov Excretie'!A25 -> P excretie per ton meetmelk (kg) | C17: ='Nov Excretie'!C25 -> 1.631010586 | E17: ='Nov Excretie'!E25 -> 1.868645048
A20: VEM dekking | C20: ='Nov Voeropname'!C35/'Nov vee+melk'!C27 -> 1.096520094 | E20: ='Nov Voeropname'!E35/'Nov vee+melk'!E27 -> 1.128309252
A21: DVE dekking | C21: ='Nov Voeropname'!C36/'Nov vee+melk'!C28 -> 0.8660575701 | E21: ='Nov Voeropname'!E36/'Nov vee+melk'!E28 -> 
A24: Voerefficientie kg meetmelk/kg voer (ds) | C24: ='Nov vee+melk'!C21/'Nov Voeropname'!C2 -> 1.372576773 | E24: ='Nov vee+melk'!E21/'Nov Voeropname'!E2 -> 1.33757532
A25: kg krachtvoer per 100 kg (excl bijprod) | C25: =SUM('Nov Voeropname'!C76:C77)/('Nov vee+melk'!C21*'Nov vee+melk'!C2)*100/0.9 -> 17.25938868 | E25: =SUM('Nov Voeropname'!E76:E78)/('Nov vee+melk'!E21*'Nov vee+melk'!E2)*100 -> 15.12153232
A28: =A12 -> Streefwaarde RE | C28: =$C$12 -> 160 | E28: =$C$12 -> 160
A29: =A13 -> Streefwaarde P | C29: =$C$13 -> 3.6 | E29: =$C$13 -> 3.6
A34: =A2 -> Datum | C34: =C2 -> November gerealiseerd | D34: =E2 -> November prognose | E34: =#REF! ->  | F34: =#REF! -> 
A35: 00:00:00
A36: DS opname/koe | C36: =C4 -> 20.98068493 | D36: =E4 -> 21.32030822 | E36: =#REF! ->  | F36: =#REF! -> 
A37: VEM | C37: 955.8612145 | D37: 960.7625873 | E37: =#REF! ->  | F37: =#REF! -> 
A38: DVE | C38: 73.16086714 | E38: =#REF! ->  | F38: =#REF! -> 
A39: OEB | C39: 502.8532192 | E39: =#REF! ->  | F39: =#REF! -> 
A40: RE | C40: 157.1865463 | D40: 123.8412842 | E40: =#REF! ->  | F40: =#REF! -> 
A41: N | C41: 25.14984741 | D41: 19.81460547 | E41: =#REF! ->  | F41: =#REF! -> 
A42: P | C42: 3.399193648 | D42: 2.638580812 | E42: =#REF! ->  | F42: =#REF! -> 
A43: =A15 -> 00:00:00
A44: N excretie per ton meetmelk (kg) | C44: =C16 -> 11.39245737 | D44: =E16 -> 12.60186277 | E44: =#REF! ->  | F44: =#REF! -> 
A45: P excretie per ton meetmelk (kg) | C45: 1.631010586 | D45: =E17 -> 1.868645048 | E45: =#REF! ->  | F45: =#REF! -> 
A46: 00:00:00 | C46: =1000/C45/2.29 -> 267.7365962 | D46: =1000/D45/2.29 -> 233.688695 | E46: =1000/E45/2.29 ->  | F46: =1000/F45/2.29 -> 
A49: Rantsoen
A51: Kuilgras | C51: =IF('Nov Voeropname'!$A66='Nov kengetallen'!$A51,'Nov Voeropname'!C66,"") -> 773.0625 | E51: =IF('Nov Voeropname'!$A66='Nov kengetallen'!$A51,'Nov Voeropname'!E66,"") -> 795.15
A52: Kuilgras | C52: =IF('Nov Voeropname'!$A67='Nov kengetallen'!$A52,'Nov Voeropname'!C67,"") ->  | E52: =IF('Nov Voeropname'!$A67='Nov kengetallen'!$A52,'Nov Voeropname'!E67,"") -> 
A53: Kuilgras | C53: =IF('Nov Voeropname'!$A68='Nov kengetallen'!$A53,'Nov Voeropname'!C68,"") ->  | E53: =IF('Nov Voeropname'!$A68='Nov kengetallen'!$A53,'Nov Voeropname'!E68,"") -> 
A54: Kuilgras | C54: =IF('Nov Voeropname'!$A69='Nov kengetallen'!$A54,'Nov Voeropname'!C69,"") ->  | E54: =IF('Nov Voeropname'!$A69='Nov kengetallen'!$A54,'Nov Voeropname'!E69,"") -> 
A55: Kuilgras | C55: =IF('Nov Voeropname'!$A70='Nov kengetallen'!$A55,'Nov Voeropname'!C70,"") ->  | E55: =IF('Nov Voeropname'!$A70='Nov kengetallen'!$A55,'Nov Voeropname'!E70,"") -> 
A56: Kuilgras | C56: =IF('Nov Voeropname'!$A71='Nov kengetallen'!$A56,'Nov Voeropname'!C71,"") ->  | E56: =IF('Nov Voeropname'!$A71='Nov kengetallen'!$A56,'Nov Voeropname'!E71,"") -> 
A57: Kuilgras | C57: =IF('Nov Voeropname'!$A72='Nov kengetallen'!$A57,'Nov Voeropname'!C72,"") ->  | E57: =IF('Nov Voeropname'!$A72='Nov kengetallen'!$A57,'Nov Voeropname'!E72,"") -> 
A58: Kuilgras | C58: =IF('Nov Voeropname'!$A73='Nov kengetallen'!$A58,'Nov Voeropname'!C73,"") ->  | E58: =IF('Nov Voeropname'!$A73='Nov kengetallen'!$A58,'Nov Voeropname'!E73,"") -> 
A59: Kuilgras | C59: =IF('Nov Voeropname'!$A74='Nov kengetallen'!$A59,'Nov Voeropname'!C74,"") ->  | E59: =IF('Nov Voeropname'!$A74='Nov kengetallen'!$A59,'Nov Voeropname'!E74,"") -> 
A60: Totaal kuilgras | C60: =SUM(C51:C59) -> 773.0625 | E60: =SUM(E51:E59) -> 795.15
A62: Snijmais | C62: =IF('Nov Voeropname'!$A66='Nov kengetallen'!$A62,'Nov Voeropname'!C66,"") ->  | E62: =IF('Nov Voeropname'!$A66='Nov kengetallen'!$A62,'Nov Voeropname'!E66,"") -> 
A63: Snijmais | C63: =IF('Nov Voeropname'!$A67='Nov kengetallen'!$A63,'Nov Voeropname'!C67,"") -> 281.96 | E63: =IF('Nov Voeropname'!$A67='Nov kengetallen'!$A63,'Nov Voeropname'!E67,"") -> 281.96
A64: Snijmais | C64: =IF('Nov Voeropname'!$A68='Nov kengetallen'!$A64,'Nov Voeropname'!C68,"") ->  | E64: =IF('Nov Voeropname'!$A68='Nov kengetallen'!$A64,'Nov Voeropname'!E68,"") -> 
A65: Snijmais | C65: =IF('Nov Voeropname'!$A69='Nov kengetallen'!$A65,'Nov Voeropname'!C69,"") ->  | E65: =IF('Nov Voeropname'!$A69='Nov kengetallen'!$A65,'Nov Voeropname'!E69,"") -> 
A66: Snijmais | C66: =IF('Nov Voeropname'!$A70='Nov kengetallen'!$A66,'Nov Voeropname'!C70,"") ->  | E66: =IF('Nov Voeropname'!$A70='Nov kengetallen'!$A66,'Nov Voeropname'!E70,"") -> 
A67: Snijmais | C67: =IF('Nov Voeropname'!$A71='Nov kengetallen'!$A67,'Nov Voeropname'!C71,"") ->  | E67: =IF('Nov Voeropname'!$A71='Nov kengetallen'!$A67,'Nov Voeropname'!E71,"") -> 
A68: Snijmais | C68: =IF('Nov Voeropname'!$A72='Nov kengetallen'!$A68,'Nov Voeropname'!C72,"") ->  | E68: =IF('Nov Voeropname'!$A72='Nov kengetallen'!$A68,'Nov Voeropname'!E72,"") -> 
A69: Snijmais | C69: =IF('Nov Voeropname'!$A73='Nov kengetallen'!$A69,'Nov Voeropname'!C73,"") ->  | E69: =IF('Nov Voeropname'!$A73='Nov kengetallen'!$A69,'Nov Voeropname'!E73,"") -> 
A70: Snijmais | C70: =IF('Nov Voeropname'!$A74='Nov kengetallen'!$A70,'Nov Voeropname'!C74,"") ->  | E70: =IF('Nov Voeropname'!$A74='Nov kengetallen'!$A70,'Nov Voeropname'!E74,"") -> 
A71: Totaal snijmais | C71: =SUM(C62:C70) -> 281.96 | E71: =SUM(E62:E70) -> 281.96
A73: OverigRuwvoer | C73: =IF('Nov Voeropname'!$A66='Nov kengetallen'!$A73,'Nov Voeropname'!C66,"") ->  | E73: =IF('Nov Voeropname'!$A66='Nov kengetallen'!$A73,'Nov Voeropname'!E66,"") -> 
A74: OverigRuwvoer | C74: =IF('Nov Voeropname'!$A67='Nov kengetallen'!$A74,'Nov Voeropname'!C67,"") ->  | E74: =IF('Nov Voeropname'!$A67='Nov kengetallen'!$A74,'Nov Voeropname'!E67,"") -> 
A75: OverigRuwvoer | C75: =IF('Nov Voeropname'!$A68='Nov kengetallen'!$A75,'Nov Voeropname'!C68,"") ->  | E75: =IF('Nov Voeropname'!$A68='Nov kengetallen'!$A75,'Nov Voeropname'!E68,"") -> 
A76: OverigRuwvoer | C76: =IF('Nov Voeropname'!$A69='Nov kengetallen'!$A76,'Nov Voeropname'!C69,"") ->  | E76: =IF('Nov Voeropname'!$A69='Nov kengetallen'!$A76,'Nov Voeropname'!E69,"") -> 
A77: OverigRuwvoer | C77: =IF('Nov Voeropname'!$A70='Nov kengetallen'!$A77,'Nov Voeropname'!C70,"") ->  | E77: =IF('Nov Voeropname'!$A70='Nov kengetallen'!$A77,'Nov Voeropname'!E70,"") -> 
A78: OverigRuwvoer | C78: =IF('Nov Voeropname'!$A71='Nov kengetallen'!$A78,'Nov Voeropname'!C71,"") ->  | E78: =IF('Nov Voeropname'!$A71='Nov kengetallen'!$A78,'Nov Voeropname'!E71,"") -> 
A79: OverigRuwvoer | C79: =IF('Nov Voeropname'!$A72='Nov kengetallen'!$A79,'Nov Voeropname'!C72,"") ->  | E79: =IF('Nov Voeropname'!$A72='Nov kengetallen'!$A79,'Nov Voeropname'!E72,"") -> 
A80: OverigRuwvoer | C80: =IF('Nov Voeropname'!$A73='Nov kengetallen'!$A80,'Nov Voeropname'!C73,"") ->  | E80: =IF('Nov Voeropname'!$A73='Nov kengetallen'!$A80,'Nov Voeropname'!E73,"") -> 
A81: OverigRuwvoer | C81: =IF('Nov Voeropname'!$A74='Nov kengetallen'!$A81,'Nov Voeropname'!C74,"") ->  | E81: =IF('Nov Voeropname'!$A74='Nov kengetallen'!$A81,'Nov Voeropname'!E74,"") -> 
A82: Totaal overig Ruwvoer | C82: =SUM(C73:C81) -> 0 | E82: =SUM(E73:E81) -> 0
A84: Bijproducten | C84: =IF('Nov Voeropname'!$A66='Nov kengetallen'!$A84,'Nov Voeropname'!C66,"") ->  | E84: =IF('Nov Voeropname'!$A66='Nov kengetallen'!$A84,'Nov Voeropname'!E66,"") -> 
A85: Bijproducten | C85: =IF('Nov Voeropname'!$A67='Nov kengetallen'!$A85,'Nov Voeropname'!C67,"") ->  | E85: =IF('Nov Voeropname'!$A67='Nov kengetallen'!$A85,'Nov Voeropname'!E67,"") -> 
A86: Bijproducten | C86: =IF('Nov Voeropname'!$A68='Nov kengetallen'!$A86,'Nov Voeropname'!C68,"") ->  | E86: =IF('Nov Voeropname'!$A68='Nov kengetallen'!$A86,'Nov Voeropname'!E68,"") -> 
A87: Bijproducten | C87: =IF('Nov Voeropname'!$A69='Nov kengetallen'!$A87,'Nov Voeropname'!C69,"") -> 52.0125 | E87: =IF('Nov Voeropname'!$A69='Nov kengetallen'!$A87,'Nov Voeropname'!E69,"") -> 52.0125
A88: Bijproducten | C88: =IF('Nov Voeropname'!$A70='Nov kengetallen'!$A88,'Nov Voeropname'!C70,"") -> 9.5 | E88: =IF('Nov Voeropname'!$A70='Nov kengetallen'!$A88,'Nov Voeropname'!E70,"") -> 19
A89: Bijproducten | C89: =IF('Nov Voeropname'!$A71='Nov kengetallen'!$A89,'Nov Voeropname'!C71,"") -> 106.4 | E89: =IF('Nov Voeropname'!$A71='Nov kengetallen'!$A89,'Nov Voeropname'!E71,"") -> 106.4
A90: Bijproducten | C90: =IF('Nov Voeropname'!$A72='Nov kengetallen'!$A90,'Nov Voeropname'!C72,"") ->  | E90: =IF('Nov Voeropname'!$A72='Nov kengetallen'!$A90,'Nov Voeropname'!E72,"") -> 
A91: Bijproducten | C91: =IF('Nov Voeropname'!$A73='Nov kengetallen'!$A91,'Nov Voeropname'!C73,"") ->  | E91: =IF('Nov Voeropname'!$A73='Nov kengetallen'!$A91,'Nov Voeropname'!E73,"") -> 
A92: Bijproducten | C92: =IF('Nov Voeropname'!$A74='Nov kengetallen'!$A92,'Nov Voeropname'!C74,"") ->  | E92: =IF('Nov Voeropname'!$A74='Nov kengetallen'!$A92,'Nov Voeropname'!E74,"") -> 
A93: Totaal Bijproducten | C93: =SUM(C84:C92) -> 167.9125 | E93: =SUM(E84:E92) -> 177.4125
A95: Krachtvoer | C95: =SUM('Nov Voeropname'!C76:C77) -> 308.655 | E95: =SUM('Nov Voeropname'!E76:E78) -> 301.86
A97: Vers gras | C97: ='Nov Voeropname'!C31*('Nov vee+melk'!C2+'Nov vee+melk'!C3) -> 0 | E97: ='Nov Voeropname'!E31*('Nov vee+melk'!E2+'Nov vee+melk'!E3) -> 0
A99: Totaal | C99: =C95+C93+C82+C71+C60+C97 -> 1531.59 | E99: =E95+E93+E82+E71+E60+E97 -> 1556.3825
A101: Vers gras | C101: =C97/C99 -> 0 | E101: =E97/E99 -> 0
A102: Aandeel kuilgras | C102: =C60/C$99 -> 0.5047450689 | E102: =E60/E$99 -> 0.510896261
A103: Aandeel snijmais | C103: =C71/C$99 -> 0.184096266 | E103: =E71/E$99 -> 0.1811636921
A104: Aandeel overig ruwvoer | C104: =C82/C$99 -> 0 | E104: =E82/E$99 -> 0
A105: Aandeel bijproducten | C105: =C93/C$99 -> 0.1096327999 | E105: =E93/E$99 -> 0.1139902948
A106: Aandeel krachtvoer | C106: =C95/C$99 -> 0.2015258653 | E106: =E95/E$99 -> 0.1939497521

Sheet Okt Voeropname (hidden)
A1: Gem rantsoen gehaltes (d dgn) | C1: ='Okt voer'!B3 -> Oktober gerealiseerd | E1: ='Okt voer'!G3 -> Oktober prognose
A2: DS opname/koe | C2: =C34 -> 20.03401317 | E2: =E34 -> 20.5388125
A3: VEM | C3: =C12 -> 951.1208389 | E3: =AVERAGE(E12:E12) -> 960.5721364
A4: DVE | C4: =AVERAGE(C13) ->  | M4: 1 | R4: Voedermiddelen
A5: OEB | C5: =AVERAGE(C14) ->  | M5: 2 | R5: Kuilgras
A6: RE | C6: =AVERAGE(C15) -> 164.0990823 | E6: 129.6392281 | R6: Snijmais
A7: N | C7: =AVERAGE(C16) -> 26.25585317 | E7: 20.7422765 | M7: Vem toeslag weidegang | O7: 1.03 | R7: OverigRuwvoer
A8: P | C8: 3.745822492 | E8: 2.95151693 | R8: Bijproducten
R9: Krachtvoer
A11: Rantsoen gehaltes (incl. weidegras)
A12: VEM | C12: =C35/C34 -> 951.1208389 | E12: =E35/E34 -> 960.5721364 | R12: Let op bij beperkt weiden is deze opname niet realistisch!
A13: DVE | C13: =C36/C34 ->  | E13: =E36/E34 ->  | R13: Let op VEM dekking te laag!
A14: OEB | C14: =C37 ->  | E14: =E37 -> 
A15: RE | C15: =C38/C34 -> 164.0990823 | E15: =E38/E34 -> 129.6392281
A16: N | C16: =C39/C34 -> 26.25585317 | E16: =E39/E34 -> 20.7422765
A17: P | C17: =C40/C34 -> 3.745822492 | E17: =E40/E34 -> 2.95151693
A22: kg ds | C22: =C55/SUM('Okt vee+melk'!C2:C3) -> 16.56365753 | E22: =E55/SUM('Okt vee+melk'!E2:E3) -> 16.34517123
A23: Vemopname ex weidegras | C23: =C22*C45 -> 15862.04023 | E23: =E22*E45 -> 15870.86104
A27: VEM behoefte | C27: =IF('Okt voer'!B4=1,'Okt vee+melk'!C27*'Okt Voeropname'!O7,'Okt vee+melk'!C27) -> 19054.76741 | E27: =IF('Okt voer'!G4=1,'Okt vee+melk'!E27*'Okt Voeropname'!O7,'Okt vee+melk'!E27) -> 19729.011
A28: Behoefte-opname | C28: =C27-'Okt Voeropname'!C23 -> 3192.727187 | E28: =E27-'Okt Voeropname'!E23 -> 3858.149965
C29: =C28/VLOOKUP('Okt voer'!B5,Weidegras!$A$5:$J$119,4,FALSE) -> 3.470355638 | E29: =E28/VLOOKUP('Okt voer'!G5,Weidegras!$A$5:$J$119,4,FALSE) -> 4.193641267
C30: =IF(C29>0,C29,0) -> 3.470355638 | E30: =IF(E29>0,E29,0) -> 4.193641267
A31: Weidegrasopname/koe | C31: =IF('Okt voer'!B4=1,C30,0) -> 3.470355638 | E31: =IF('Okt voer'!G4=1,E30,0) -> 4.193641267
A33: Rantsoenopname incl weidegras
A34: droge stof | C34: =C22+C31 -> 20.03401317 | E34: =E22+E31 -> 20.5388125
A35: VEM | C35: =C45*C22+C31*VLOOKUP('Okt voer'!B5,Weidegras!$A$6:$J$180,4,FALSE) -> 19054.76741 | E35: =E45*E22+E31*VLOOKUP('Okt voer'!G5,Weidegras!$A$6:$J$180,4,FALSE) -> 19729.011
A36: DVE | C36: =C46*C22+$C$31*VLOOKUP('Okt voer'!B5,Weidegras!$A$5:$J$150,5,FALSE) ->  | E36: =E46*E22+$C$31*VLOOKUP('Okt voer'!G5,Weidegras!$A$5:$J$150,5,FALSE) -> 
A37: OEB | C37: =C22*C47+$C$31*VLOOKUP('Okt voer'!B5,Weidegras!$A$6:$J$151,6,FALSE) ->  | E37: =E22*E47+$C$31*VLOOKUP('Okt voer'!G5,Weidegras!$A$6:$J$151,6,FALSE) -> 
A38: RE | C38: =C48*C22+C31*VLOOKUP('Okt voer'!$B$5,Weidegras!$A$6:$J$181,7,FALSE) -> 3287.563176 | E38: =E48*E22+E31*VLOOKUP('Okt voer'!$B$5,Weidegras!$A$6:$J$181,7,FALSE) -> 2662.635799
A39: N | C39: =C38/6.25 -> 526.0101082 | E39: =E38/6.25 -> 426.0217278
A40: P | C40: =C50*C22+C31*VLOOKUP('Okt voer'!$B$5,Weidegras!$A$6:$J$183,10,FALSE) -> 75.04385714 | E40: =E50*E22+E31*VLOOKUP('Okt voer'!$B$5,Weidegras!$A$6:$J$183,10,FALSE) -> 60.62065281
A43: Stalrantsoen gehaltes
A44: droge stof
A45: VEM | C45: =C56/C$55 -> 957.6411608 | E45: =E56/E$55 -> 970.9816319
A46: DVE | C46: =C57/C$55*1000 ->  | E46: =E57/E$55*1000 -> 
A47: OEB | C47: =C58/C$55 ->  | E47: =E58/E$55 -> 
A48: RE | C48: =C59/C$55 -> 151.3393496 | E48: 105.1727442
A49: N | C49: =C60/C$55 -> 24.21429593 | E49: 16.82763908
A50: P | C50: =C61/C$55 -> 3.608761664 | E50: 2.579883112
A54: Stalrantsoen opname
A55: droge stof (kg) | C55: =C80 -> 1209.147 | E55: 1193.1975
A56: VEM | C56: =C96 -> 1157928.937 | E56: 1158572.856
A57: DVE | C57: =C112 ->  | E57: =E112 -> 
A58: OEB | C58: =C128 ->  | E58: =E128 -> 
A59: RE | C59: =C144 -> 182991.5205 | E59: =E144 -> 125491.8555
A60: N | C60: =C146 -> 29278.64328 | E60: =E146 -> 20078.69688
A61: P | C61: =C162 -> 4363.52334 | E61: =E162 -> 3078.31008
A65: Drogestof opname
A66: ='Okt voer'!A9 -> Kuilgras | B66: ='Okt voer'!B9 -> 2017 1e 2e snede | C66: =IF('Okt voer'!C9>0,VLOOKUP('Okt voer'!B9,Voedermiddelen!$A$4:$K$75,3,FALSE)*'Okt voer'!C9*(1-'Okt voer'!$B$6),"") -> 530.1 | D66: ='Okt voer'!G9 -> 2017 1e 2e snede | E66: =IF('Okt voer'!H9>0,VLOOKUP('Okt voer'!G9,Voedermiddelen!$A$4:$K$75,3,FALSE)*'Okt voer'!H9*(1-'Okt voer'!$G$6),"") -> 530.1
A67: ='Okt voer'!A10 -> Snijmais | B67: ='Okt voer'!B10 -> Mkuil 1 | C67: =IF('Okt voer'!C10>0,VLOOKUP('Okt voer'!B10,Voedermiddelen!$A$4:$K$75,3,FALSE)*'Okt voer'!C10*(1-'Okt voer'!$B$6),"") -> 319.0005 | D67: ='Okt voer'!G10 -> Mkuil 1 | E67: =IF('Okt voer'!H10>0,VLOOKUP('Okt voer'!G10,Voedermiddelen!$A$4:$K$75,3,FALSE)*'Okt voer'!H10*(1-'Okt voer'!$G$6),"") -> 334.191
A68: ='Okt voer'!A11 -> Kuilgras | B68: ='Okt voer'!B11 -> 2017 1e 2e snede | C68: =IF('Okt voer'!C11>0,VLOOKUP('Okt voer'!B11,Voedermiddelen!$A$4:$K$75,3,FALSE)*'Okt voer'!C11*(1-'Okt voer'!$B$6),"") ->  | D68: ='Okt voer'!G11 -> 2017 1e 2e snede | E68: =IF('Okt voer'!H11>0,VLOOKUP('Okt voer'!G11,Voedermiddelen!$A$4:$K$75,3,FALSE)*'Okt voer'!H11*(1-'Okt voer'!$G$6),"") -> 
A69: ='Okt voer'!A12 -> Bijproducten | B69: ='Okt voer'!B12 -> Bierbostel | C69: =IF('Okt voer'!C12>0,VLOOKUP('Okt voer'!B12,Voedermiddelen!$A$4:$K$75,3,FALSE)*'Okt voer'!C12*(1-'Okt voer'!$B$6),"") -> 27.0465 | D69: ='Okt voer'!G12 -> Bierbostel | E69: =IF('Okt voer'!H12>0,VLOOKUP('Okt voer'!G12,Voedermiddelen!$A$4:$K$75,3,FALSE)*'Okt voer'!H12*(1-'Okt voer'!$G$6),"") -> 27.0465
A70: ='Okt voer'!A13 -> OverigRuwvoer | B70: ='Okt voer'!B13 -> Overig 2 | C70: =IF('Okt voer'!C13>0,VLOOKUP('Okt voer'!B13,Voedermiddelen!$A$4:$K$75,3,FALSE)*'Okt voer'!C13*(1-'Okt voer'!$B$6),"") ->  | D70: ='Okt voer'!G13 -> Overig 2 | E70: =IF('Okt voer'!H13>0,VLOOKUP('Okt voer'!G13,Voedermiddelen!$A$4:$K$75,3,FALSE)*'Okt voer'!H13*(1-'Okt voer'!$G$6),"") -> 
A71: ='Okt voer'!A14 -> Bijproducten | B71: ='Okt voer'!B14 -> BP 6 | C71: =IF('Okt voer'!C14>0,VLOOKUP('Okt voer'!B14,Voedermiddelen!$A$4:$K$75,3,FALSE)*'Okt voer'!C14*(1-'Okt voer'!$B$6),"") ->  | D71: ='Okt voer'!G14 -> BP 6 | E71: =IF('Okt voer'!H14>0,VLOOKUP('Okt voer'!G14,Voedermiddelen!$A$4:$K$75,3,FALSE)*'Okt voer'!H14*(1-'Okt voer'!$G$6),"") -> 
A72: ='Okt voer'!A15 -> 0 | B72: ='Okt voer'!B15 -> 0 | C72: =IF('Okt voer'!C15>0,VLOOKUP('Okt voer'!B15,Voedermiddelen!$A$4:$K$75,3,FALSE)*'Okt voer'!C15*(1-'Okt voer'!$B$6),"") ->  | D72: ='Okt voer'!G15 -> 0 | E72: =IF('Okt voer'!H15>0,VLOOKUP('Okt voer'!G15,Voedermiddelen!$A$4:$K$75,3,FALSE)*'Okt voer'!H15*(1-'Okt voer'!$G$6),"") -> 
A73: ='Okt voer'!A16 -> 0 | B73: ='Okt voer'!B16 -> 0 | C73: =IF('Okt voer'!C16>0,VLOOKUP('Okt voer'!B16,Voedermiddelen!$A$4:$K$75,3,FALSE)*'Okt voer'!C16*(1-'Okt voer'!$B$6),"") ->  | D73: ='Okt voer'!G16 -> 0 | E73: =IF('Okt voer'!H16>0,VLOOKUP('Okt voer'!G16,Voedermiddelen!$A$4:$K$75,3,FALSE)*'Okt voer'!H16*(1-'Okt voer'!$G$6),"") -> 
A74: ='Okt voer'!A17 -> 0 | B74: ='Okt voer'!B17 -> 0 | C74: =IF('Okt voer'!C17>0,VLOOKUP('Okt voer'!B17,Voedermiddelen!$A$4:$K$75,3,FALSE)*'Okt voer'!C17*(1-'Okt voer'!$B$6),"") ->  | D74: ='Okt voer'!G17 -> 0 | E74: =IF('Okt voer'!H17>0,VLOOKUP('Okt voer'!G17,Voedermiddelen!$A$4:$K$75,3,FALSE)*'Okt voer'!H17*(1-'Okt voer'!$G$6),"") -> 
B75: ='Okt voer'!B18 -> 0 | C75: =IF('Okt voer'!C18>0,VLOOKUP('Okt voer'!B18,Voedermiddelen!$A$4:$K$75,3,FALSE)*'Okt voer'!C18*(1-'Okt voer'!$B$6),"") ->  | D75: ='Okt voer'!G18 -> 0 | E75: =IF('Okt voer'!H18>0,VLOOKUP('Okt voer'!G18,Voedermiddelen!$A$4:$K$75,3,FALSE)*'Okt voer'!H18*(1-'Okt voer'!$G$6),"") -> 
B76: ='Okt voer'!B20 -> KV 1 | C76: =IF('Okt voer'!C20>0,VLOOKUP('Okt voer'!B20,Voedermiddelen!$A$4:$K$75,3,FALSE)*'Okt voer'!C20,"") -> 54 | E76: ='Okt voer'!H22*'Okt vee+melk'!E15/100*0.9 -> 301.86
B77: ='Okt voer'!B21 -> Pens stabielbrok EBZ | C77: =IF('Okt voer'!C21>0,VLOOKUP('Okt voer'!B21,Voedermiddelen!$A$4:$K$75,3,FALSE)*'Okt voer'!C21,"") -> 279
B78: ='Okt voer'!B22 -> 0 | C78: =IF('Okt voer'!C22>0,VLOOKUP('Okt voer'!B22,Voedermiddelen!$A$4:$K$75,3,FALSE)*'Okt voer'!C22,"") -> 
A80: Totaal | C80: =SUM(C66:C78) -> 1209.147 | E80: =SUM(E66:E78) -> 1193.1975
A82: VEM | B82: =B66 -> 2017 1e 2e snede | C82: =IF('Okt voer'!C9>0,VLOOKUP('Okt voer'!B9,Voedermiddelen!$A$4:$K$75,4,FALSE)*C66,"") -> 496173.6 | D82: =D66 -> 2017 1e 2e snede | E82: =IF('Okt voer'!H9>0,VLOOKUP('Okt voer'!G9,Voedermiddelen!$A$4:$K$75,4,FALSE)*E66,"") -> 496173.6
B83: =B67 -> Mkuil 1 | C83: =IF('Okt voer'!C10>0,VLOOKUP('Okt voer'!B10,Voedermiddelen!$A$4:$K$75,4,FALSE)*C67,"") -> 319702.3011 | D83: Mkuil 1 | E83: =IF('Okt voer'!H10>0,VLOOKUP('Okt voer'!G10,Voedermiddelen!$A$4:$K$75,4,FALSE)*E67,"") -> 334926.2202
B84: 2017 1e 2e snede | C84: =IF('Okt voer'!C11>0,VLOOKUP('Okt voer'!B11,Voedermiddelen!$A$4:$K$75,4,FALSE)*C68,"") ->  | D84: 2017 1e 2e snede | E84: =IF('Okt voer'!H11>0,VLOOKUP('Okt voer'!G11,Voedermiddelen!$A$4:$K$75,4,FALSE)*E68,"") -> 
B85: Bierbostel | C85: =IF('Okt voer'!C12>0,VLOOKUP('Okt voer'!B12,Voedermiddelen!$A$4:$K$75,4,FALSE)*C69,"") -> 25613.0355 | D85: Bierbostel | E85: =IF('Okt voer'!H12>0,VLOOKUP('Okt voer'!G12,Voedermiddelen!$A$4:$K$75,4,FALSE)*E69,"") -> 25613.0355
B86: Overig 2 | C86: =IF('Okt voer'!C13>0,VLOOKUP('Okt voer'!B13,Voedermiddelen!$A$4:$K$75,4,FALSE)*C70,"") ->  | D86: Overig 2 | E86: =IF('Okt voer'!H13>0,VLOOKUP('Okt voer'!G13,Voedermiddelen!$A$4:$K$75,4,FALSE)*E70,"") -> 
B87: BP 6 | C87: =IF('Okt voer'!C14>0,VLOOKUP('Okt voer'!B14,Voedermiddelen!$A$4:$K$75,4,FALSE)*C71,"") ->  | D87: BP 6 | E87: =IF('Okt voer'!H14>0,VLOOKUP('Okt voer'!G14,Voedermiddelen!$A$4:$K$75,4,FALSE)*E71,"") -> 
B88: 0 | C88: =IF('Okt voer'!C15>0,VLOOKUP('Okt voer'!B15,Voedermiddelen!$A$4:$K$75,4,FALSE)*C72,"") ->  | D88: 0 | E88: =IF('Okt voer'!H15>0,VLOOKUP('Okt voer'!G15,Voedermiddelen!$A$4:$K$75,4,FALSE)*E72,"") -> 
B89: 0 | C89: =IF('Okt voer'!C16>0,VLOOKUP('Okt voer'!B16,Voedermiddelen!$A$4:$K$75,4,FALSE)*C73,"") ->  | D89: 0 | E89: =IF('Okt voer'!H16>0,VLOOKUP('Okt voer'!G16,Voedermiddelen!$A$4:$K$75,4,FALSE)*E73,"") -> 
B90: 0 | C90: =IF('Okt voer'!C17>0,VLOOKUP('Okt voer'!B17,Voedermiddelen!$A$4:$K$75,4,FALSE)*C74,"") ->  | D90: 0 | E90: =IF('Okt voer'!H17>0,VLOOKUP('Okt voer'!G17,Voedermiddelen!$A$4:$K$75,4,FALSE)*E74,"") -> 
B91: 0 | C91: =IF('Okt voer'!C18>0,VLOOKUP('Okt voer'!B18,Voedermiddelen!$A$4:$K$75,4,FALSE)*C75,"") ->  | D91: 0 | E91: =IF('Okt voer'!H18>0,VLOOKUP('Okt voer'!G18,Voedermiddelen!$A$4:$K$75,4,FALSE)*E75,"") -> 
B92: KV 1 | C92: =IF('Okt voer'!C20>0,VLOOKUP('Okt voer'!B20,Voedermiddelen!$A$4:$K$75,4,FALSE)*C76,"") -> 48600 | D92: 0 | E92: =E76*1000 -> 301860
B93: Pens stabielbrok EBZ | C93: =IF('Okt voer'!C21>0,VLOOKUP('Okt voer'!B21,Voedermiddelen!$A$4:$K$75,4,FALSE)*C77,"") -> 267840 | D93: 0
B94: 0 | C94: =IF('Okt voer'!C22>0,VLOOKUP('Okt voer'!B22,Voedermiddelen!$A$4:$K$75,4,FALSE)*C78,"") ->  | D94: 0
A96: Totaal | C96: =SUM(C82:C94) -> 1157928.937 | E96: =SUM(E82:E94) -> 1158572.856
A98: DVE | B98: =B82 -> 2017 1e 2e snede | C98: =IF('Okt voer'!C9>0,VLOOKUP('Okt voer'!B9,[2]Voedermiddelen!$A$4:$K$75,5,FALSE)*C66,"") ->  | D98: =D82 -> 2017 1e 2e snede | E98: =IF('Okt voer'!H9>0,VLOOKUP('Okt voer'!G9,[2]Voedermiddelen!$A$4:$K$75,5,FALSE)*E66,"") -> 
B99: =B83 -> Mkuil 1 | C99: =IF('Okt voer'!C10>0,VLOOKUP('Okt voer'!B10,[2]Voedermiddelen!$A$4:$K$75,5,FALSE)*C67,"") -> 22776.6357 | D99: Mkuil 1 | E99: =IF('Okt voer'!H10>0,VLOOKUP('Okt voer'!G10,[2]Voedermiddelen!$A$4:$K$75,5,FALSE)*E67,"") -> 23861.2374
B100: 2017 1e 2e snede | C100: =IF('Okt voer'!C11>0,VLOOKUP('Okt voer'!B11,[2]Voedermiddelen!$A$4:$K$75,5,FALSE)*C68,"") ->  | D100: 2017 1e 2e snede | E100: =IF('Okt voer'!H11>0,VLOOKUP('Okt voer'!G11,[2]Voedermiddelen!$A$4:$K$75,5,FALSE)*E68,"") -> 
B101: Bierbostel | C101: =IF('Okt voer'!C12>0,VLOOKUP('Okt voer'!B12,[2]Voedermiddelen!$A$4:$K$75,5,FALSE)*C69,"") -> 3705.3705 | D101: Bierbostel | E101: =IF('Okt voer'!H12>0,VLOOKUP('Okt voer'!G12,[2]Voedermiddelen!$A$4:$K$75,5,FALSE)*E69,"") -> 3705.3705
B102: Overig 2 | C102: =IF('Okt voer'!C13>0,VLOOKUP('Okt voer'!B13,[2]Voedermiddelen!$A$4:$K$75,5,FALSE)*C70,"") ->  | D102: Overig 2 | E102: =IF('Okt voer'!H13>0,VLOOKUP('Okt voer'!G13,[2]Voedermiddelen!$A$4:$K$75,5,FALSE)*E70,"") -> 
B103: BP 6 | C103: =IF('Okt voer'!C14>0,VLOOKUP('Okt voer'!B14,[2]Voedermiddelen!$A$4:$K$75,5,FALSE)*C71,"") ->  | D103: BP 6 | E103: =IF('Okt voer'!H14>0,VLOOKUP('Okt voer'!G14,[2]Voedermiddelen!$A$4:$K$75,5,FALSE)*E71,"") -> 
B104: 0 | C104: =IF('Okt voer'!C15>0,VLOOKUP('Okt voer'!B15,[2]Voedermiddelen!$A$4:$K$75,5,FALSE)*C72,"") ->  | D104: 0 | E104: =IF('Okt voer'!H15>0,VLOOKUP('Okt voer'!G15,[2]Voedermiddelen!$A$4:$K$75,5,FALSE)*E72,"") -> 
B105: 0 | C105: =IF('Okt voer'!C16>0,VLOOKUP('Okt voer'!B16,[2]Voedermiddelen!$A$4:$K$75,5,FALSE)*C73,"") ->  | D105: 0 | E105: =IF('Okt voer'!H16>0,VLOOKUP('Okt voer'!G16,[2]Voedermiddelen!$A$4:$K$75,5,FALSE)*E73,"") -> 
B106: 0 | C106: =IF('Okt voer'!C17>0,VLOOKUP('Okt voer'!B17,[2]Voedermiddelen!$A$4:$K$75,5,FALSE)*C74,"") ->  | D106: 0 | E106: =IF('Okt voer'!H17>0,VLOOKUP('Okt voer'!G17,[2]Voedermiddelen!$A$4:$K$75,5,FALSE)*E74,"") -> 
B107: 0 | C107: =IF('Okt voer'!C18>0,VLOOKUP('Okt voer'!B18,[2]Voedermiddelen!$A$4:$K$75,5,FALSE)*C75,"") ->  | D107: 0 | E107: =IF('Okt voer'!H18>0,VLOOKUP('Okt voer'!G18,[2]Voedermiddelen!$A$4:$K$75,5,FALSE)*E75,"") -> 
B108: KV 1 | C108: =IF('Okt voer'!C20>0,VLOOKUP('Okt voer'!B20,[2]Voedermiddelen!$A$4:$K$75,5,FALSE)*C76,"") -> 6480 | D108: 0
B109: Pens stabielbrok EBZ | C109: =IF('Okt voer'!C21>0,VLOOKUP('Okt voer'!B21,[2]Voedermiddelen!$A$4:$K$75,5,FALSE)*C77,"") ->  | D109: 0
B110: 0 | C110: =IF('Okt voer'!C22>0,VLOOKUP('Okt voer'!B22,[2]Voedermiddelen!$A$4:$K$75,5,FALSE)*C78,"") ->  | D110: 0
A112: Totaal | C112: =SUM(C98:C110)/1000 ->  | E112: =SUM(E98:E110)/1000 -> 
A114: OEB | B114: =B98 -> 2017 1e 2e snede | C114: =IF('Okt voer'!C9>0,VLOOKUP('Okt voer'!B9,[2]Voedermiddelen!$A$4:$K$75,6,FALSE)*C66,"") ->  | D114: =D98 -> 2017 1e 2e snede | E114: =IF('Okt voer'!H9>0,VLOOKUP('Okt voer'!G9,[2]Voedermiddelen!$A$4:$K$75,6,FALSE)*E66,"") -> 
B115: =B99 -> Mkuil 1 | C115: =IF('Okt voer'!C10>0,VLOOKUP('Okt voer'!B10,[2]Voedermiddelen!$A$4:$K$75,6,FALSE)*C67,"") -> -8740.6137 | D115: Mkuil 1 | E115: =IF('Okt voer'!H10>0,VLOOKUP('Okt voer'!G10,[2]Voedermiddelen!$A$4:$K$75,6,FALSE)*E67,"") -> -9156.8334
B116: 2017 1e 2e snede | C116: =IF('Okt voer'!C11>0,VLOOKUP('Okt voer'!B11,[2]Voedermiddelen!$A$4:$K$75,6,FALSE)*C68,"") ->  | D116: 2017 1e 2e snede | E116: =IF('Okt voer'!H11>0,VLOOKUP('Okt voer'!G11,[2]Voedermiddelen!$A$4:$K$75,6,FALSE)*E68,"") -> 
B117: Bierbostel | C117: =IF('Okt voer'!C12>0,VLOOKUP('Okt voer'!B12,[2]Voedermiddelen!$A$4:$K$75,6,FALSE)*C69,"") -> 1487.5575 | D117: Bierbostel | E117: =IF('Okt voer'!H12>0,VLOOKUP('Okt voer'!G12,[2]Voedermiddelen!$A$4:$K$75,6,FALSE)*E69,"") -> 1487.5575
B118: Overig 2 | C118: =IF('Okt voer'!C13>0,VLOOKUP('Okt voer'!B13,[2]Voedermiddelen!$A$4:$K$75,6,FALSE)*C70,"") ->  | D118: Overig 2 | E118: =IF('Okt voer'!H13>0,VLOOKUP('Okt voer'!G13,[2]Voedermiddelen!$A$4:$K$75,6,FALSE)*E70,"") -> 
B119: BP 6 | C119: =IF('Okt voer'!C14>0,VLOOKUP('Okt voer'!B14,[2]Voedermiddelen!$A$4:$K$75,6,FALSE)*C71,"") ->  | D119: BP 6 | E119: =IF('Okt voer'!H14>0,VLOOKUP('Okt voer'!G14,[2]Voedermiddelen!$A$4:$K$75,6,FALSE)*E71,"") -> 
B120: 0 | C120: =IF('Okt voer'!C15>0,VLOOKUP('Okt voer'!B15,[2]Voedermiddelen!$A$4:$K$75,6,FALSE)*C72,"") ->  | D120: 0 | E120: =IF('Okt voer'!H15>0,VLOOKUP('Okt voer'!G15,[2]Voedermiddelen!$A$4:$K$75,6,FALSE)*E72,"") -> 
B121: 0 | C121: =IF('Okt voer'!C16>0,VLOOKUP('Okt voer'!B16,[2]Voedermiddelen!$A$4:$K$75,6,FALSE)*C73,"") ->  | D121: 0 | E121: =IF('Okt voer'!H16>0,VLOOKUP('Okt voer'!G16,[2]Voedermiddelen!$A$4:$K$75,6,FALSE)*E73,"") -> 
B122: 0 | C122: =IF('Okt voer'!C17>0,VLOOKUP('Okt voer'!B17,[2]Voedermiddelen!$A$4:$K$75,6,FALSE)*C74,"") ->  | D122: 0 | E122: =IF('Okt voer'!H17>0,VLOOKUP('Okt voer'!G17,[2]Voedermiddelen!$A$4:$K$75,6,FALSE)*E74,"") -> 
B123: 0 | C123: =IF('Okt voer'!C18>0,VLOOKUP('Okt voer'!B18,[2]Voedermiddelen!$A$4:$K$75,6,FALSE)*C75,"") ->  | D123: 0 | E123: =IF('Okt voer'!H18>0,VLOOKUP('Okt voer'!G18,[2]Voedermiddelen!$A$4:$K$75,6,FALSE)*E75,"") -> 
B124: KV 1 | C124: =IF('Okt voer'!C20>0,VLOOKUP('Okt voer'!B20,[2]Voedermiddelen!$A$4:$K$75,6,FALSE)*C76,"") -> 3240 | D124: 0
B125: Pens stabielbrok EBZ | C125: =IF('Okt voer'!C21>0,VLOOKUP('Okt voer'!B21,[2]Voedermiddelen!$A$4:$K$75,6,FALSE)*C77,"") ->  | D125: 0
B126: 0 | C126: =IF('Okt voer'!C22>0,VLOOKUP('Okt voer'!B22,[2]Voedermiddelen!$A$4:$K$75,6,FALSE)*C78,"") ->  | D126: 0
A128: Totaal | C128: =SUM(C114:C126) ->  | E128: =SUM(E114:E126) -> 
A130: RE | B130: =B114 -> 2017 1e 2e snede | C130: =IF('Okt voer'!C9>0,VLOOKUP('Okt voer'!B9,Voedermiddelen!$A$4:$K$75,7,FALSE)*C66,"") -> 95418 | D130: =D114 -> 2017 1e 2e snede | E130: =IF('Okt voer'!H9>0,VLOOKUP('Okt voer'!G9,Voedermiddelen!$A$4:$K$75,7,FALSE)*E66,"") -> 95418
B131: =B115 -> Mkuil 1 | C131: =IF('Okt voer'!C10>0,VLOOKUP('Okt voer'!B10,Voedermiddelen!$A$4:$K$75,7,FALSE)*C67,"") -> 22330.035 | D131: Mkuil 1 | E131: =IF('Okt voer'!H10>0,VLOOKUP('Okt voer'!G10,Voedermiddelen!$A$4:$K$75,7,FALSE)*E67,"") -> 23393.37
B132: 2017 1e 2e snede | C132: =IF('Okt voer'!C11>0,VLOOKUP('Okt voer'!B11,Voedermiddelen!$A$4:$K$75,7,FALSE)*C68,"") ->  | D132: 2017 1e 2e snede | E132: =IF('Okt voer'!H11>0,VLOOKUP('Okt voer'!G11,Voedermiddelen!$A$4:$K$75,7,FALSE)*E68,"") -> 
B133: Bierbostel | C133: =IF('Okt voer'!C12>0,VLOOKUP('Okt voer'!B12,Voedermiddelen!$A$4:$K$75,7,FALSE)*C69,"") -> 6680.4855 | D133: Bierbostel | E133: =IF('Okt voer'!H12>0,VLOOKUP('Okt voer'!G12,Voedermiddelen!$A$4:$K$75,7,FALSE)*E69,"") -> 6680.4855
B134: Overig 2 | C134: =IF('Okt voer'!C13>0,VLOOKUP('Okt voer'!B13,Voedermiddelen!$A$4:$K$75,7,FALSE)*C70,"") ->  | D134: Overig 2 | E134: =IF('Okt voer'!H13>0,VLOOKUP('Okt voer'!G13,Voedermiddelen!$A$4:$K$75,7,FALSE)*E70,"") -> 
B135: BP 6 | C135: =IF('Okt voer'!C14>0,VLOOKUP('Okt voer'!B14,Voedermiddelen!$A$4:$K$75,7,FALSE)*C71,"") ->  | D135: BP 6 | E135: =IF('Okt voer'!H14>0,VLOOKUP('Okt voer'!G14,Voedermiddelen!$A$4:$K$75,7,FALSE)*E71,"") -> 
B136: 0 | C136: =IF('Okt voer'!C15>0,VLOOKUP('Okt voer'!B15,Voedermiddelen!$A$4:$K$75,7,FALSE)*C72,"") ->  | D136: 0 | E136: =IF('Okt voer'!H15>0,VLOOKUP('Okt voer'!G15,Voedermiddelen!$A$4:$K$75,7,FALSE)*E72,"") -> 
B137: 0 | C137: =IF('Okt voer'!C16>0,VLOOKUP('Okt voer'!B16,Voedermiddelen!$A$4:$K$75,7,FALSE)*C73,"") ->  | D137: 0 | E137: =IF('Okt voer'!H16>0,VLOOKUP('Okt voer'!G16,Voedermiddelen!$A$4:$K$75,7,FALSE)*E73,"") -> 
B138: 0 | C138: =IF('Okt voer'!C17>0,VLOOKUP('Okt voer'!B17,Voedermiddelen!$A$4:$K$75,7,FALSE)*C74,"") ->  | D138: 0 | E138: =IF('Okt voer'!H17>0,VLOOKUP('Okt voer'!G17,Voedermiddelen!$A$4:$K$75,7,FALSE)*E74,"") -> 
B139: 0 | C139: =IF('Okt voer'!C18>0,VLOOKUP('Okt voer'!B18,Voedermiddelen!$A$4:$K$75,7,FALSE)*C75,"") ->  | D139: 0 | E139: =IF('Okt voer'!H18>0,VLOOKUP('Okt voer'!G18,Voedermiddelen!$A$4:$K$75,7,FALSE)*E75,"") -> 
B140: KV 1 | C140: =IF('Okt voer'!C20>0,VLOOKUP('Okt voer'!B20,Voedermiddelen!$A$4:$K$75,7,FALSE)*C76,"") -> 9180 | D140: 0
B141: Pens stabielbrok EBZ | C141: =IF('Okt voer'!C21>0,VLOOKUP('Okt voer'!B21,Voedermiddelen!$A$4:$K$75,7,FALSE)*C77,"") -> 49383 | D141: 0
B142: =B126 -> 0 | C142: =IF('Okt voer'!C22>0,VLOOKUP('Okt voer'!B22,Voedermiddelen!$A$4:$K$75,7,FALSE)*C78,"") ->  | D142: 0
A144: Totaal | C144: =SUM(C130:C142) -> 182991.5205 | E144: =SUM(E130:E142) -> 125491.8555
A146: N opname | C146: =C144/6.25 -> 29278.64328 | E146: =E144/6.25 -> 20078.69688 | G146: =(E76/0.9*'Okt voer'!M6/6.25) -> 7283.34667
A148: P | B148: =B130 -> 2017 1e 2e snede | C148: =IF('Okt voer'!C9>0,VLOOKUP('Okt voer'!B9,Voedermiddelen!$A$4:$K$75,10,FALSE)*C66,"") -> 1908.36 | D148: =D130 -> 2017 1e 2e snede | E148: =IF('Okt voer'!H9>0,VLOOKUP('Okt voer'!G9,Voedermiddelen!$A$4:$K$75,10,FALSE)*E66,"") -> 1908.36
B149: =B131 -> Mkuil 1 | C149: =IF('Okt voer'!C10>0,VLOOKUP('Okt voer'!B10,Voedermiddelen!$A$4:$K$75,10,FALSE)*C67,"") -> 982.52154 | D149: Mkuil 1 | E149: =IF('Okt voer'!H10>0,VLOOKUP('Okt voer'!G10,Voedermiddelen!$A$4:$K$75,10,FALSE)*E67,"") -> 1029.30828
B150: 2017 1e 2e snede | C150: =IF('Okt voer'!C11>0,VLOOKUP('Okt voer'!B11,Voedermiddelen!$A$4:$K$75,10,FALSE)*C68,"") ->  | D150: 2017 1e 2e snede | E150: =IF('Okt voer'!H11>0,VLOOKUP('Okt voer'!G11,Voedermiddelen!$A$4:$K$75,10,FALSE)*E68,"") -> 
B151: Bierbostel | C151: =IF('Okt voer'!C12>0,VLOOKUP('Okt voer'!B12,Voedermiddelen!$A$4:$K$75,10,FALSE)*C69,"") -> 140.6418 | D151: Bierbostel | E151: =IF('Okt voer'!H12>0,VLOOKUP('Okt voer'!G12,Voedermiddelen!$A$4:$K$75,10,FALSE)*E69,"") -> 140.6418
B152: Overig 2 | C152: =IF('Okt voer'!C13>0,VLOOKUP('Okt voer'!B13,Voedermiddelen!$A$4:$K$75,10,FALSE)*C70,"") ->  | D152: Overig 2 | E152: =IF('Okt voer'!H13>0,VLOOKUP('Okt voer'!G13,Voedermiddelen!$A$4:$K$75,10,FALSE)*E70,"") -> 
B153: BP 6 | C153: =IF('Okt voer'!C14>0,VLOOKUP('Okt voer'!B14,Voedermiddelen!$A$4:$K$75,10,FALSE)*C71,"") ->  | D153: BP 6 | E153: =IF('Okt voer'!H14>0,VLOOKUP('Okt voer'!G14,Voedermiddelen!$A$4:$K$75,10,FALSE)*E71,"") -> 
B154: 0 | C154: =IF('Okt voer'!C15>0,VLOOKUP('Okt voer'!B15,Voedermiddelen!$A$4:$K$75,10,FALSE)*C72,"") ->  | D154: 0 | E154: =IF('Okt voer'!H15>0,VLOOKUP('Okt voer'!G15,Voedermiddelen!$A$4:$K$75,10,FALSE)*E72,"") -> 
B155: 0 | C155: =IF('Okt voer'!C16>0,VLOOKUP('Okt voer'!B16,Voedermiddelen!$A$4:$K$75,10,FALSE)*C73,"") ->  | D155: 0 | E155: =IF('Okt voer'!H16>0,VLOOKUP('Okt voer'!G16,Voedermiddelen!$A$4:$K$75,10,FALSE)*E73,"") -> 
B156: 0 | C156: =IF('Okt voer'!C17>0,VLOOKUP('Okt voer'!B17,Voedermiddelen!$A$4:$K$75,10,FALSE)*C74,"") ->  | D156: 0 | E156: =IF('Okt voer'!H17>0,VLOOKUP('Okt voer'!G17,Voedermiddelen!$A$4:$K$75,10,FALSE)*E74,"") -> 
B157: 0 | C157: =IF('Okt voer'!C18>0,VLOOKUP('Okt voer'!B18,Voedermiddelen!$A$4:$K$75,10,FALSE)*C75,"") ->  | D157: 0 | E157: =IF('Okt voer'!H18>0,VLOOKUP('Okt voer'!G18,Voedermiddelen!$A$4:$K$75,10,FALSE)*E75,"") -> 
B158: =B140 -> KV 1 | C158: =IF('Okt voer'!C20>0,VLOOKUP('Okt voer'!B20,Voedermiddelen!$A$4:$K$75,10,FALSE)*C76,"") -> 216 | D158: 0
B159: =B141 -> Pens stabielbrok EBZ | C159: =IF('Okt voer'!C21>0,VLOOKUP('Okt voer'!B21,Voedermiddelen!$A$4:$K$75,10,FALSE)*C77,"") -> 1116 | D159: 0
B160: =B142 -> 0 | C160: =IF('Okt voer'!C22>0,VLOOKUP('Okt voer'!B22,Voedermiddelen!$A$4:$K$75,10,FALSE)*C78,"") ->  | D160: 0
A162: Totaal | C162: =SUM(C148:C160) -> 4363.52334 | E162: =SUM(E148:E160) -> 3078.31008 | G162: =(E76/0.9*'Okt voer'!M7) -> 972.29227

Sheet Okt Excretie (hidden)
A1: Veestapel
C2: ='Okt vee+melk'!C6 -> September gerealiseerd | E2: ='Okt vee+melk'!E6 -> September prognose
A5: Excretie (kg/dier/dag)
C6: N | E6: N
A7: Opname | C7: ='Okt Voeropname'!C2*'Okt Voeropname'!C7*0.001 -> 0.5260101082 | E7: ='Okt Voeropname'!E2*'Okt Voeropname'!E7*0.001+'Okt Voeropname'!G146*0.001/'Okt vee+melk'!E2 -> 0.5300695374
A8: Gem opname 7 dgn | C8: =AVERAGE(C7:F7) -> 0.5280398228 | E8: =AVERAGE(E7) -> 0.5300695374
A9: Productie | C9: ='Okt vee+melk'!C22*'Okt vee+melk'!C10/6.38 -> 0.143431216 | E9: ='Okt vee+melk'!E22*'Okt vee+melk'!E10/6.38 -> 0.1400280557
A10: Vastlegging | C10: =1.4/365 -> 0.003835616438 | E10: =1.4/365 -> 0.003835616438
A11: Onder de staart | C11: =C7-C9-C10 -> 0.3787432757 | E11: =E7-E9-E10 -> 0.3862058652
A12: Vervluchtiging | C12: =C11*0.1175 -> 0.0445023349 | E12: =E11*0.1175 -> 0.04537918916
A13: Gemeten netto excretie | C13: =C11-C12 -> 0.3342409408 | E13: =E11-E12 -> 0.3408266761
C15: P | E15: P
A16: Opname | C16: ='Okt Voeropname'!C2*'Okt Voeropname'!C8/1000 -> 0.07504385714 | E16: ='Okt Voeropname'!E2*'Okt Voeropname'!E8/1000+'Okt Voeropname'!G162*0.001/'Okt vee+melk'!E2 -> 0.07451054238
A17: Gem opname 7 dgn | C17: =AVERAGE(C16:F16) -> 0.07477719976 | E17: =AVERAGE(E16) -> 0.07451054238
A18: Productie | C18: ='Okt vee+melk'!C22*0.9/1000 -> 0.02250224159 | E18: ='Okt vee+melk'!E22*0.9/1000 -> 0.02297260274
A19: Vastlegging | C19: =0.5/365 -> 0.001369863014 | E19: =0.5/365 -> 0.001369863014
A20: Onder de staart | C20: =C16-C18-C19 -> 0.05117175253 | E20: =E16-E18-E19 -> 0.05016807662
A21: Vervluchtiging
A22: Gemeten netto excretie | C22: =C20 -> 0.05117175253 | E22: =E20 -> 0.05016807662
A24: N excretie per ton meetmelk (kg) | C24: =C13/'Okt vee+melk'!C21*1000 -> 12.30837209 | E24: =E13/'Okt vee+melk'!E21*1000 -> 11.95148452
A25: P excretie per ton meetmelk (kg) | C25: =C22/'Okt vee+melk'!C21*1000 -> 1.884392047 | E25: =E22/'Okt vee+melk'!E21*1000 -> 1.759202062

Sheet Okt kengetallen (hidden)
A1: Rantsoen
A2: Datum | C2: ='Okt voer'!B3 -> Oktober gerealiseerd | E2: ='Okt voer'!G3 -> Oktober prognose
A4: ='Okt Voeropname'!A2 -> DS opname/koe | C4: ='Okt Voeropname'!C2 -> 20.03401317 | E4: ='Okt Voeropname'!E2 -> 20.5388125
A5: ='Okt Voeropname'!A3 -> VEM | C5: ='Okt Voeropname'!C3 -> 951.1208389 | E5: ='Okt Voeropname'!E3 -> 960.5721364
A6: ='Okt Voeropname'!A4 -> DVE | C6: ='Okt Voeropname'!C4 ->  | E6: ='Okt Voeropname'!E4 -> 
A7: ='Okt Voeropname'!A5 -> OEB | C7: ='Okt Voeropname'!C5 ->  | E7: ='Okt Voeropname'!E5 -> 
A8: ='Okt Voeropname'!A6 -> RE | C8: ='Okt Voeropname'!C6 -> 164.0990823 | E8: ='Okt Voeropname'!E6 -> 129.6392281
A9: ='Okt Voeropname'!A7 -> N | C9: ='Okt Voeropname'!C7 -> 26.25585317 | E9: ='Okt Voeropname'!E7 -> 20.7422765
A10: ='Okt Voeropname'!A8 -> P | C10: ='Okt Voeropname'!C8 -> 3.745822492 | E10: ='Okt Voeropname'!E8 -> 2.95151693
A12: Streefwaarde RE | C12: ='Okt voer'!H20 -> 160
A13: Streefwaarde P | C13: ='Okt voer'!H21 -> 3.6
A16: ='Okt Excretie'!A24 -> N excretie per ton meetmelk (kg) | C16: ='Okt Excretie'!C24 -> 12.30837209 | E16: ='Okt Excretie'!E24 -> 11.95148452
A17: ='Okt Excretie'!A25 -> P excretie per ton meetmelk (kg) | C17: ='Okt Excretie'!C25 -> 1.884392047 | E17: ='Okt Excretie'!E25 -> 1.759202062
A20: VEM dekking | C20: ='Okt Voeropname'!C35/'Okt vee+melk'!C27 -> 1.03 | E20: ='Okt Voeropname'!E35/'Okt vee+melk'!E27 -> 1.03
A21: DVE dekking | C21: ='Okt Voeropname'!C36/'Okt vee+melk'!C28 ->  | E21: ='Okt Voeropname'!E36/'Okt vee+melk'!E28 -> 
A24: Voerefficientie kg meetmelk/kg voer (ds) | C24: ='Okt vee+melk'!C21/'Okt Voeropname'!C2 -> 1.355473631 | E24: ='Okt vee+melk'!E21/'Okt Voeropname'!E2 -> 1.388469664
A25: kg krachtvoer per 100 kg (excl bijprod) | C25: =SUM('Okt Voeropname'!C76:C78)/('Okt vee+melk'!C21*'Okt vee+melk'!C2)*100/0.9 -> 19.46456291 | E25: =SUM('Okt Voeropname'!E76:E78)/('Okt vee+melk'!E21*'Okt vee+melk'!E2)*100 -> 15.12153232
A28: =A12 -> Streefwaarde RE | C28: =$C$12 -> 160 | E28: =$C$12 -> 160
A29: =A13 -> Streefwaarde P | C29: =$C$13 -> 3.6 | E29: =$C$13 -> 3.6
A34: =A2 -> Datum | C34: =C2 -> Oktober gerealiseerd | D34: =E2 -> Oktober prognose | E34: =#REF! ->  | F34: =#REF! -> 
A35: 00:00:00
A36: DS opname/koe | C36: =C4 -> 20.03401317 | D36: =E4 -> 20.5388125 | E36: =#REF! ->  | F36: =#REF! -> 
A37: VEM | C37: 951.1208389 | D37: 960.5721364 | E37: =#REF! ->  | F37: =#REF! -> 
A38: DVE | E38: =#REF! ->  | F38: =#REF! -> 
A39: OEB | E39: =#REF! ->  | F39: =#REF! -> 
A40: RE | C40: 164.0990823 | D40: 129.6392281 | E40: =#REF! ->  | F40: =#REF! -> 
A41: N | C41: 26.25585317 | D41: 20.7422765 | E41: =#REF! ->  | F41: =#REF! -> 
A42: P | C42: 3.745822492 | D42: 2.95151693 | E42: =#REF! ->  | F42: =#REF! -> 
A43: =A15 -> 00:00:00
A44: N excretie per ton meetmelk (kg) | C44: =C16 -> 12.30837209 | D44: =E16 -> 11.95148452 | E44: =#REF! ->  | F44: =#REF! -> 
A45: P excretie per ton meetmelk (kg) | C45: 1.884392047 | D45: =E17 -> 1.759202062 | E45: =#REF! ->  | F45: =#REF! -> 
A46: 00:00:00 | C46: =1000/C45/2.29 -> 231.7358659 | D46: =1000/D45/2.29 -> 248.2268707 | E46: =1000/E45/2.29 ->  | F46: =1000/F45/2.29 -> 
A49: Rantsoen
A51: Kuilgras | C51: =IF('Okt Voeropname'!$A66='Okt kengetallen'!$A51,'Okt Voeropname'!C66,"") -> 530.1 | E51: =IF('Okt Voeropname'!$A66='Okt kengetallen'!$A51,'Okt Voeropname'!E66,"") -> 530.1
A52: Kuilgras | C52: =IF('Okt Voeropname'!$A67='Okt kengetallen'!$A52,'Okt Voeropname'!C67,"") ->  | E52: =IF('Okt Voeropname'!$A67='Okt kengetallen'!$A52,'Okt Voeropname'!E67,"") -> 
A53: Kuilgras | C53: =IF('Okt Voeropname'!$A68='Okt kengetallen'!$A53,'Okt Voeropname'!C68,"") ->  | E53: =IF('Okt Voeropname'!$A68='Okt kengetallen'!$A53,'Okt Voeropname'!E68,"") -> 
A54: Kuilgras | C54: =IF('Okt Voeropname'!$A69='Okt kengetallen'!$A54,'Okt Voeropname'!C69,"") ->  | E54: =IF('Okt Voeropname'!$A69='Okt kengetallen'!$A54,'Okt Voeropname'!E69,"") -> 
A55: Kuilgras | C55: =IF('Okt Voeropname'!$A70='Okt kengetallen'!$A55,'Okt Voeropname'!C70,"") ->  | E55: =IF('Okt Voeropname'!$A70='Okt kengetallen'!$A55,'Okt Voeropname'!E70,"") -> 
A56: Kuilgras | C56: =IF('Okt Voeropname'!$A71='Okt kengetallen'!$A56,'Okt Voeropname'!C71,"") ->  | E56: =IF('Okt Voeropname'!$A71='Okt kengetallen'!$A56,'Okt Voeropname'!E71,"") -> 
A57: Kuilgras | C57: =IF('Okt Voeropname'!$A72='Okt kengetallen'!$A57,'Okt Voeropname'!C72,"") ->  | E57: =IF('Okt Voeropname'!$A72='Okt kengetallen'!$A57,'Okt Voeropname'!E72,"") -> 
A58: Kuilgras | C58: =IF('Okt Voeropname'!$A73='Okt kengetallen'!$A58,'Okt Voeropname'!C73,"") ->  | E58: =IF('Okt Voeropname'!$A73='Okt kengetallen'!$A58,'Okt Voeropname'!E73,"") -> 
A59: Kuilgras | C59: =IF('Okt Voeropname'!$A74='Okt kengetallen'!$A59,'Okt Voeropname'!C74,"") ->  | E59: =IF('Okt Voeropname'!$A74='Okt kengetallen'!$A59,'Okt Voeropname'!E74,"") -> 
A60: Totaal kuilgras | C60: =SUM(C51:C59) -> 530.1 | E60: =SUM(E51:E59) -> 530.1
A62: Snijmais | C62: =IF('Okt Voeropname'!$A66='Okt kengetallen'!$A62,'Okt Voeropname'!C66,"") ->  | E62: =IF('Okt Voeropname'!$A66='Okt kengetallen'!$A62,'Okt Voeropname'!E66,"") -> 
A63: Snijmais | C63: =IF('Okt Voeropname'!$A67='Okt kengetallen'!$A63,'Okt Voeropname'!C67,"") -> 319.0005 | E63: =IF('Okt Voeropname'!$A67='Okt kengetallen'!$A63,'Okt Voeropname'!E67,"") -> 334.191
A64: Snijmais | C64: =IF('Okt Voeropname'!$A68='Okt kengetallen'!$A64,'Okt Voeropname'!C68,"") ->  | E64: =IF('Okt Voeropname'!$A68='Okt kengetallen'!$A64,'Okt Voeropname'!E68,"") -> 
A65: Snijmais | C65: =IF('Okt Voeropname'!$A69='Okt kengetallen'!$A65,'Okt Voeropname'!C69,"") ->  | E65: =IF('Okt Voeropname'!$A69='Okt kengetallen'!$A65,'Okt Voeropname'!E69,"") -> 
A66: Snijmais | C66: =IF('Okt Voeropname'!$A70='Okt kengetallen'!$A66,'Okt Voeropname'!C70,"") ->  | E66: =IF('Okt Voeropname'!$A70='Okt kengetallen'!$A66,'Okt Voeropname'!E70,"") -> 
A67: Snijmais | C67: =IF('Okt Voeropname'!$A71='Okt kengetallen'!$A67,'Okt Voeropname'!C71,"") ->  | E67: =IF('Okt Voeropname'!$A71='Okt kengetallen'!$A67,'Okt Voeropname'!E71,"") -> 
A68: Snijmais | C68: =IF('Okt Voeropname'!$A72='Okt kengetallen'!$A68,'Okt Voeropname'!C72,"") ->  | E68: =IF('Okt Voeropname'!$A72='Okt kengetallen'!$A68,'Okt Voeropname'!E72,"") -> 
A69: Snijmais | C69: =IF('Okt Voeropname'!$A73='Okt kengetallen'!$A69,'Okt Voeropname'!C73,"") ->  | E69: =IF('Okt Voeropname'!$A73='Okt kengetallen'!$A69,'Okt Voeropname'!E73,"") -> 
A70: Snijmais | C70: =IF('Okt Voeropname'!$A74='Okt kengetallen'!$A70,'Okt Voeropname'!C74,"") ->  | E70: =IF('Okt Voeropname'!$A74='Okt kengetallen'!$A70,'Okt Voeropname'!E74,"") -> 
A71: Totaal snijmais | C71: =SUM(C62:C70) -> 319.0005 | E71: =SUM(E62:E70) -> 334.191
A73: OverigRuwvoer | C73: =IF('Okt Voeropname'!$A66='Okt kengetallen'!$A73,'Okt Voeropname'!C66,"") ->  | E73: =IF('Okt Voeropname'!$A66='Okt kengetallen'!$A73,'Okt Voeropname'!E66,"") -> 
A74: OverigRuwvoer | C74: =IF('Okt Voeropname'!$A67='Okt kengetallen'!$A74,'Okt Voeropname'!C67,"") ->  | E74: =IF('Okt Voeropname'!$A67='Okt kengetallen'!$A74,'Okt Voeropname'!E67,"") -> 
A75: OverigRuwvoer | C75: =IF('Okt Voeropname'!$A68='Okt kengetallen'!$A75,'Okt Voeropname'!C68,"") ->  | E75: =IF('Okt Voeropname'!$A68='Okt kengetallen'!$A75,'Okt Voeropname'!E68,"") -> 
A76: OverigRuwvoer | C76: =IF('Okt Voeropname'!$A69='Okt kengetallen'!$A76,'Okt Voeropname'!C69,"") ->  | E76: =IF('Okt Voeropname'!$A69='Okt kengetallen'!$A76,'Okt Voeropname'!E69,"") -> 
A77: OverigRuwvoer | C77: =IF('Okt Voeropname'!$A70='Okt kengetallen'!$A77,'Okt Voeropname'!C70,"") ->  | E77: =IF('Okt Voeropname'!$A70='Okt kengetallen'!$A77,'Okt Voeropname'!E70,"") -> 
A78: OverigRuwvoer | C78: =IF('Okt Voeropname'!$A71='Okt kengetallen'!$A78,'Okt Voeropname'!C71,"") ->  | E78: =IF('Okt Voeropname'!$A71='Okt kengetallen'!$A78,'Okt Voeropname'!E71,"") -> 
A79: OverigRuwvoer | C79: =IF('Okt Voeropname'!$A72='Okt kengetallen'!$A79,'Okt Voeropname'!C72,"") ->  | E79: =IF('Okt Voeropname'!$A72='Okt kengetallen'!$A79,'Okt Voeropname'!E72,"") -> 
A80: OverigRuwvoer | C80: =IF('Okt Voeropname'!$A73='Okt kengetallen'!$A80,'Okt Voeropname'!C73,"") ->  | E80: =IF('Okt Voeropname'!$A73='Okt kengetallen'!$A80,'Okt Voeropname'!E73,"") -> 
A81: OverigRuwvoer | C81: =IF('Okt Voeropname'!$A74='Okt kengetallen'!$A81,'Okt Voeropname'!C74,"") ->  | E81: =IF('Okt Voeropname'!$A74='Okt kengetallen'!$A81,'Okt Voeropname'!E74,"") -> 
A82: Totaal overig Ruwvoer | C82: =SUM(C73:C81) -> 0 | E82: =SUM(E73:E81) -> 0
A84: Bijproducten | C84: =IF('Okt Voeropname'!$A66='Okt kengetallen'!$A84,'Okt Voeropname'!C66,"") ->  | E84: =IF('Okt Voeropname'!$A66='Okt kengetallen'!$A84,'Okt Voeropname'!E66,"") -> 
A85: Bijproducten | C85: =IF('Okt Voeropname'!$A67='Okt kengetallen'!$A85,'Okt Voeropname'!C67,"") ->  | E85: =IF('Okt Voeropname'!$A67='Okt kengetallen'!$A85,'Okt Voeropname'!E67,"") -> 
A86: Bijproducten | C86: =IF('Okt Voeropname'!$A68='Okt kengetallen'!$A86,'Okt Voeropname'!C68,"") ->  | E86: =IF('Okt Voeropname'!$A68='Okt kengetallen'!$A86,'Okt Voeropname'!E68,"") -> 
A87: Bijproducten | C87: =IF('Okt Voeropname'!$A69='Okt kengetallen'!$A87,'Okt Voeropname'!C69,"") -> 27.0465 | E87: =IF('Okt Voeropname'!$A69='Okt kengetallen'!$A87,'Okt Voeropname'!E69,"") -> 27.0465
A88: Bijproducten | C88: =IF('Okt Voeropname'!$A70='Okt kengetallen'!$A88,'Okt Voeropname'!C70,"") ->  | E88: =IF('Okt Voeropname'!$A70='Okt kengetallen'!$A88,'Okt Voeropname'!E70,"") -> 
A89: Bijproducten | C89: =IF('Okt Voeropname'!$A71='Okt kengetallen'!$A89,'Okt Voeropname'!C71,"") ->  | E89: =IF('Okt Voeropname'!$A71='Okt kengetallen'!$A89,'Okt Voeropname'!E71,"") -> 
A90: Bijproducten | C90: =IF('Okt Voeropname'!$A72='Okt kengetallen'!$A90,'Okt Voeropname'!C72,"") ->  | E90: =IF('Okt Voeropname'!$A72='Okt kengetallen'!$A90,'Okt Voeropname'!E72,"") -> 
A91: Bijproducten | C91: =IF('Okt Voeropname'!$A73='Okt kengetallen'!$A91,'Okt Voeropname'!C73,"") ->  | E91: =IF('Okt Voeropname'!$A73='Okt kengetallen'!$A91,'Okt Voeropname'!E73,"") -> 
A92: Bijproducten | C92: =IF('Okt Voeropname'!$A74='Okt kengetallen'!$A92,'Okt Voeropname'!C74,"") ->  | E92: =IF('Okt Voeropname'!$A74='Okt kengetallen'!$A92,'Okt Voeropname'!E74,"") -> 
A93: Totaal Bijproducten | C93: =SUM(C84:C92) -> 27.0465 | E93: =SUM(E84:E92) -> 27.0465
A95: Krachtvoer | C95: =SUM('Okt Voeropname'!C76:C78) -> 333 | E95: =SUM('Okt Voeropname'!E76:E78) -> 301.86
A97: Vers gras | C97: ='Okt Voeropname'!C31*('Okt vee+melk'!C2+'Okt vee+melk'!C3) -> 253.3359616 | E97: ='Okt Voeropname'!E31*('Okt vee+melk'!E2+'Okt vee+melk'!E3) -> 306.1358125
A99: Totaal | C99: =C95+C93+C82+C71+C60+C97 -> 1462.482962 | E99: =E95+E93+E82+E71+E60+E97 -> 1499.333312
A101: Vers gras | C101: =C97/C99 -> 0.1732231884 | E101: =E97/E99 -> 0.2041812917
A102: Aandeel kuilgras | C102: =C60/C$99 -> 0.3624657613 | E102: =E60/E$99 -> 0.3535571414
A103: Aandeel snijmais | C103: =C71/C$99 -> 0.2181225412 | E103: =E71/E$99 -> 0.2228930667
A104: Aandeel overig ruwvoer | C104: =C82/C$99 -> 0 | E104: =E82/E$99 -> 0
A105: Aandeel bijproducten | C105: =C93/C$99 -> 0.01849354879 | E105: =E93/E$99 -> 0.01803901759
A106: Aandeel krachtvoer | C106: =C95/C$99 -> 0.2276949604 | E106: =E95/E$99 -> 0.2013294826

Sheet Sep Voeropname (hidden)
A1: Gem rantsoen gehaltes (d dgn) | C1: ='Sep voer'!B3 -> September gerealiseerd | E1: ='Sep voer'!G3 -> September prognose
A2: DS opname/koe | C2: =C34 -> 20.33178263 | E2: =E34 -> 20.69687424
A3: VEM | C3: =C12 -> 944.0437176 | E3: =AVERAGE(E12:E12) -> 953.2362605
A4: DVE | C4: =AVERAGE(C13) ->  | M4: 1 | R4: Voedermiddelen
A5: OEB | C5: =AVERAGE(C14) ->  | M5: 2 | R5: Kuilgras
A6: RE | C6: =AVERAGE(C15) -> 166.6058286 | E6: 134.7439291 | R6: Snijmais
A7: N | C7: =AVERAGE(C16) -> 26.65693258 | E7: 21.55902866 | M7: Vem toeslag weidegang | O7: 1.03 | R7: OverigRuwvoer
A8: P | C8: 3.831090514 | E8: 3.061738717 | R8: Bijproducten
R9: Krachtvoer
A11: Rantsoen gehaltes (incl. weidegras)
A12: VEM | C12: =C35/C34 -> 944.0437176 | E12: =E35/E34 -> 953.2362605 | R12: Let op bij beperkt weiden is deze opname niet realistisch!
A13: DVE | C13: =C36/C34 ->  | E13: =E36/E34 ->  | R13: Let op VEM dekking te laag!
A14: OEB | C14: =C37 ->  | E14: =E37 -> 
A15: RE | C15: =C38/C34 -> 166.6058286 | E15: =E38/E34 -> 134.7439291
A16: N | C16: =C39/C34 -> 26.65693258 | E16: =E39/E34 -> 21.55902866
A17: P | C17: =C40/C34 -> 3.831090514 | E17: =E40/E34 -> 3.061738717
A22: kg ds | C22: =C55/SUM('Sep vee+melk'!C2:C3) -> 14.5976 | E22: =E55/SUM('Sep vee+melk'!E2:E3) -> 13.91740068
A23: Vemopname ex weidegras | C23: =C22*C45 -> 13918.64364 | E23: =E22*E45 -> 13491.89533
A27: VEM behoefte | C27: =IF('Sep voer'!B4=1,'Sep vee+melk'!C27*'Sep Voeropname'!O7,'Sep vee+melk'!C27) -> 19194.09166 | E27: =IF('Sep voer'!G4=1,'Sep vee+melk'!E27*'Sep Voeropname'!O7,'Sep vee+melk'!E27) -> 19729.011
A28: Behoefte-opname | C28: =C27-'Sep Voeropname'!C23 -> 5275.448024 | E28: =E27-'Sep Voeropname'!E23 -> 6237.115669
C29: =C28/VLOOKUP('Sep voer'!B5,Weidegras!$A$5:$J$119,4,FALSE) -> 5.734182634 | E29: =E28/VLOOKUP('Sep voer'!G5,Weidegras!$A$5:$J$119,4,FALSE) -> 6.779473553
C30: =IF(C29>0,C29,0) -> 5.734182634 | E30: =IF(E29>0,E29,0) -> 6.779473553
A31: Weidegrasopname/koe | C31: =IF('Sep voer'!B4=1,C30,0) -> 5.734182634 | E31: =IF('Sep voer'!G4=1,E30,0) -> 6.779473553
A33: Rantsoenopname incl weidegras
A34: droge stof | C34: =C22+C31 -> 20.33178263 | E34: =E22+E31 -> 20.69687424
A35: VEM | C35: =C45*C22+C31*VLOOKUP('Sep voer'!B5,Weidegras!$A$6:$J$180,4,FALSE) -> 19194.09166 | E35: =E45*E22+E31*VLOOKUP('Sep voer'!G5,Weidegras!$A$6:$J$180,4,FALSE) -> 19729.011
A36: DVE | C36: =C46*C22+$C$31*VLOOKUP('Sep voer'!B5,Weidegras!$A$5:$J$150,5,FALSE) ->  | E36: =E46*E22+$C$31*VLOOKUP('Sep voer'!G5,Weidegras!$A$5:$J$150,5,FALSE) -> 
A37: OEB | C37: =C22*C47+$C$31*VLOOKUP('Sep voer'!B5,Weidegras!$A$6:$J$151,6,FALSE) ->  | E37: =E22*E47+$C$31*VLOOKUP('Sep voer'!G5,Weidegras!$A$6:$J$151,6,FALSE) -> 
A38: RE | C38: =C48*C22+C31*VLOOKUP('Sep voer'!$B$5,Weidegras!$A$6:$J$181,7,FALSE) -> 3387.393493 | E38: =E48*E22+E31*VLOOKUP('Sep voer'!$B$5,Weidegras!$A$6:$J$181,7,FALSE) -> 2788.778156
A39: N | C39: =C38/6.25 -> 541.9829588 | E39: =E38/6.25 -> 446.2045049
A40: P | C40: =C50*C22+C31*VLOOKUP('Sep voer'!$B$5,Weidegras!$A$6:$J$183,10,FALSE) -> 77.89289959 | E40: =E50*E22+E31*VLOOKUP('Sep voer'!$B$5,Weidegras!$A$6:$J$183,10,FALSE) -> 63.36842117
A43: Stalrantsoen gehaltes
A44: droge stof
A45: VEM | C45: =C56/C$55 -> 953.488494 | E45: =E56/E$55 -> 969.4263777
A46: DVE | C46: =C57/C$55*1000 ->  | E46: =E57/E$55*1000 -> 
A47: OEB | C47: =C58/C$55 ->  | E47: =E58/E$55 -> 
A48: RE | C48: =C59/C$55 -> 143.6676166 | E48: 90.77820167
A49: N | C49: =C60/C$55 -> 22.98681866 | E49: 14.52451227
A50: P | C50: =C61/C$55 -> 3.607613306 | E50: 2.40984206
A54: Stalrantsoen opname
A55: droge stof (kg) | C55: =C80 -> 1051.0272 | E55: 1015.97025
A56: VEM | C56: =C96 -> 1002142.342 | E56: 984908.3593
A57: DVE | C57: =C112 ->  | E57: =E112 -> 
A58: OEB | C58: =C128 ->  | E58: =E128 -> 
A59: RE | C59: =C144 -> 150998.5728 | E59: =E144 -> 92227.95225
A60: N | C60: =C146 -> 24159.77165 | E60: =E146 -> 14756.47236
A61: P | C61: =C162 -> 3791.699712 | E61: =E162 -> 2448.32784
A65: Drogestof opname
A66: ='Sep voer'!A9 -> Kuilgras | B66: ='Sep voer'!B9 -> 2017 1e 2e snede | C66: =IF('Sep voer'!C9>0,VLOOKUP('Sep voer'!B9,Voedermiddelen!$A$4:$K$75,3,FALSE)*'Sep voer'!C9*(1-'Sep voer'!$B$6),"") -> 312.48 | D66: ='Sep voer'!G9 -> 2017 1e 2e snede | E66: =IF('Sep voer'!H9>0,VLOOKUP('Sep voer'!G9,Voedermiddelen!$A$4:$K$75,3,FALSE)*'Sep voer'!H9*(1-'Sep voer'!$G$6),"") -> 309.225
A67: ='Sep voer'!A10 -> Snijmais | B67: ='Sep voer'!B10 -> Mkuil 1 | C67: =IF('Sep voer'!C10>0,VLOOKUP('Sep voer'!B10,Voedermiddelen!$A$4:$K$75,3,FALSE)*'Sep voer'!C10*(1-'Sep voer'!$B$6),"") -> 322.3584 | D67: ='Sep voer'!G10 -> Mkuil 1 | E67: =IF('Sep voer'!H10>0,VLOOKUP('Sep voer'!G10,Voedermiddelen!$A$4:$K$75,3,FALSE)*'Sep voer'!H10*(1-'Sep voer'!$G$6),"") -> 319.0005
A68: ='Sep voer'!A11 -> Kuilgras | B68: ='Sep voer'!B11 -> Gkuil balen 2016 2e snede | C68: =IF('Sep voer'!C11>0,VLOOKUP('Sep voer'!B11,Voedermiddelen!$A$4:$K$75,3,FALSE)*'Sep voer'!C11*(1-'Sep voer'!$B$6),"") -> 49.9968 | D68: ='Sep voer'!G11 -> Gkuil balen 2016 2e snede | E68: =IF('Sep voer'!H11>0,VLOOKUP('Sep voer'!G11,Voedermiddelen!$A$4:$K$75,3,FALSE)*'Sep voer'!H11*(1-'Sep voer'!$G$6),"") -> 49.476
A69: ='Sep voer'!A12 -> Bijproducten | B69: ='Sep voer'!B12 -> Bierbostel | C69: =IF('Sep voer'!C12>0,VLOOKUP('Sep voer'!B12,Voedermiddelen!$A$4:$K$75,3,FALSE)*'Sep voer'!C12*(1-'Sep voer'!$B$6),"") -> 36.792 | D69: ='Sep voer'!G12 -> Bierbostel | E69: =IF('Sep voer'!H12>0,VLOOKUP('Sep voer'!G12,Voedermiddelen!$A$4:$K$75,3,FALSE)*'Sep voer'!H12*(1-'Sep voer'!$G$6),"") -> 36.40875
A70: ='Sep voer'!A13 -> OverigRuwvoer | B70: ='Sep voer'!B13 -> Overig 2 | C70: =IF('Sep voer'!C13>0,VLOOKUP('Sep voer'!B13,Voedermiddelen!$A$4:$K$75,3,FALSE)*'Sep voer'!C13*(1-'Sep voer'!$B$6),"") ->  | D70: ='Sep voer'!G13 -> Overig 2 | E70: =IF('Sep voer'!H13>0,VLOOKUP('Sep voer'!G13,Voedermiddelen!$A$4:$K$75,3,FALSE)*'Sep voer'!H13*(1-'Sep voer'!$G$6),"") -> 
A71: ='Sep voer'!A14 -> Bijproducten | B71: ='Sep voer'!B14 -> BP 6 | C71: =IF('Sep voer'!C14>0,VLOOKUP('Sep voer'!B14,Voedermiddelen!$A$4:$K$75,3,FALSE)*'Sep voer'!C14*(1-'Sep voer'!$B$6),"") ->  | D71: ='Sep voer'!G14 -> BP 6 | E71: =IF('Sep voer'!H14>0,VLOOKUP('Sep voer'!G14,Voedermiddelen!$A$4:$K$75,3,FALSE)*'Sep voer'!H14*(1-'Sep voer'!$G$6),"") -> 
A72: ='Sep voer'!A15 -> 0 | B72: ='Sep voer'!B15 -> 0 | C72: =IF('Sep voer'!C15>0,VLOOKUP('Sep voer'!B15,Voedermiddelen!$A$4:$K$75,3,FALSE)*'Sep voer'!C15*(1-'Sep voer'!$B$6),"") ->  | D72: ='Sep voer'!G15 -> 0 | E72: =IF('Sep voer'!H15>0,VLOOKUP('Sep voer'!G15,Voedermiddelen!$A$4:$K$75,3,FALSE)*'Sep voer'!H15*(1-'Sep voer'!$G$6),"") -> 
A73: ='Sep voer'!A16 -> 0 | B73: ='Sep voer'!B16 -> 0 | C73: =IF('Sep voer'!C16>0,VLOOKUP('Sep voer'!B16,Voedermiddelen!$A$4:$K$75,3,FALSE)*'Sep voer'!C16*(1-'Sep voer'!$B$6),"") ->  | D73: ='Sep voer'!G16 -> 0 | E73: =IF('Sep voer'!H16>0,VLOOKUP('Sep voer'!G16,Voedermiddelen!$A$4:$K$75,3,FALSE)*'Sep voer'!H16*(1-'Sep voer'!$G$6),"") -> 
A74: ='Sep voer'!A17 -> 0 | B74: ='Sep voer'!B17 -> 0 | C74: =IF('Sep voer'!C17>0,VLOOKUP('Sep voer'!B17,Voedermiddelen!$A$4:$K$75,3,FALSE)*'Sep voer'!C17*(1-'Sep voer'!$B$6),"") ->  | D74: ='Sep voer'!G17 -> 0 | E74: =IF('Sep voer'!H17>0,VLOOKUP('Sep voer'!G17,Voedermiddelen!$A$4:$K$75,3,FALSE)*'Sep voer'!H17*(1-'Sep voer'!$G$6),"") -> 
B75: ='Sep voer'!B18 -> 0 | C75: =IF('Sep voer'!C18>0,VLOOKUP('Sep voer'!B18,Voedermiddelen!$A$4:$K$75,3,FALSE)*'Sep voer'!C18*(1-'Sep voer'!$B$6),"") ->  | D75: ='Sep voer'!G18 -> 0 | E75: =IF('Sep voer'!H18>0,VLOOKUP('Sep voer'!G18,Voedermiddelen!$A$4:$K$75,3,FALSE)*'Sep voer'!H18*(1-'Sep voer'!$G$6),"") -> 
B76: ='Sep voer'!B20 -> KV 1 | C76: =IF('Sep voer'!C20>0,VLOOKUP('Sep voer'!B20,Voedermiddelen!$A$4:$K$75,3,FALSE)*'Sep voer'!C20,"") -> 72 | E76: ='Sep voer'!H22*'Sep vee+melk'!E15/100*0.9 -> 301.86
B77: ='Sep voer'!B21 -> Pens stabielbrok EBZ | C77: =IF('Sep voer'!C21>0,VLOOKUP('Sep voer'!B21,Voedermiddelen!$A$4:$K$75,3,FALSE)*'Sep voer'!C21,"") -> 257.4
B78: ='Sep voer'!B22 -> 0 | C78: =IF('Sep voer'!C22>0,VLOOKUP('Sep voer'!B22,Voedermiddelen!$A$4:$K$75,3,FALSE)*'Sep voer'!C22,"") -> 
A80: Totaal | C80: =SUM(C66:C78) -> 1051.0272 | E80: =SUM(E66:E78) -> 1015.97025
A82: VEM | B82: =B66 -> 2017 1e 2e snede | C82: =IF('Sep voer'!C9>0,VLOOKUP('Sep voer'!B9,Voedermiddelen!$A$4:$K$75,4,FALSE)*C66,"") -> 292481.28 | D82: =D66 -> 2017 1e 2e snede | E82: =IF('Sep voer'!H9>0,VLOOKUP('Sep voer'!G9,Voedermiddelen!$A$4:$K$75,4,FALSE)*E66,"") -> 289434.6
B83: =B67 -> Mkuil 1 | C83: =IF('Sep voer'!C10>0,VLOOKUP('Sep voer'!B10,Voedermiddelen!$A$4:$K$75,4,FALSE)*C67,"") -> 323067.5885 | D83: Mkuil 1 | E83: =IF('Sep voer'!H10>0,VLOOKUP('Sep voer'!G10,Voedermiddelen!$A$4:$K$75,4,FALSE)*E67,"") -> 319702.3011
B84: Gkuil balen 2016 2e snede | C84: =IF('Sep voer'!C11>0,VLOOKUP('Sep voer'!B11,Voedermiddelen!$A$4:$K$75,4,FALSE)*C68,"") -> 39847.4496 | D84: Gkuil balen 2016 2e snede | E84: =IF('Sep voer'!H11>0,VLOOKUP('Sep voer'!G11,Voedermiddelen!$A$4:$K$75,4,FALSE)*E68,"") -> 39432.372
B85: Bierbostel | C85: =IF('Sep voer'!C12>0,VLOOKUP('Sep voer'!B12,Voedermiddelen!$A$4:$K$75,4,FALSE)*C69,"") -> 34842.024 | D85: Bierbostel | E85: =IF('Sep voer'!H12>0,VLOOKUP('Sep voer'!G12,Voedermiddelen!$A$4:$K$75,4,FALSE)*E69,"") -> 34479.08625
B86: Overig 2 | C86: =IF('Sep voer'!C13>0,VLOOKUP('Sep voer'!B13,Voedermiddelen!$A$4:$K$75,4,FALSE)*C70,"") ->  | D86: Overig 2 | E86: =IF('Sep voer'!H13>0,VLOOKUP('Sep voer'!G13,Voedermiddelen!$A$4:$K$75,4,FALSE)*E70,"") -> 
B87: BP 6 | C87: =IF('Sep voer'!C14>0,VLOOKUP('Sep voer'!B14,Voedermiddelen!$A$4:$K$75,4,FALSE)*C71,"") ->  | D87: BP 6 | E87: =IF('Sep voer'!H14>0,VLOOKUP('Sep voer'!G14,Voedermiddelen!$A$4:$K$75,4,FALSE)*E71,"") -> 
B88: 0 | C88: =IF('Sep voer'!C15>0,VLOOKUP('Sep voer'!B15,Voedermiddelen!$A$4:$K$75,4,FALSE)*C72,"") ->  | D88: 0 | E88: =IF('Sep voer'!H15>0,VLOOKUP('Sep voer'!G15,Voedermiddelen!$A$4:$K$75,4,FALSE)*E72,"") -> 
B89: 0 | C89: =IF('Sep voer'!C16>0,VLOOKUP('Sep voer'!B16,Voedermiddelen!$A$4:$K$75,4,FALSE)*C73,"") ->  | D89: 0 | E89: =IF('Sep voer'!H16>0,VLOOKUP('Sep voer'!G16,Voedermiddelen!$A$4:$K$75,4,FALSE)*E73,"") -> 
B90: 0 | C90: =IF('Sep voer'!C17>0,VLOOKUP('Sep voer'!B17,Voedermiddelen!$A$4:$K$75,4,FALSE)*C74,"") ->  | D90: 0 | E90: =IF('Sep voer'!H17>0,VLOOKUP('Sep voer'!G17,Voedermiddelen!$A$4:$K$75,4,FALSE)*E74,"") -> 
B91: 0 | C91: =IF('Sep voer'!C18>0,VLOOKUP('Sep voer'!B18,Voedermiddelen!$A$4:$K$75,4,FALSE)*C75,"") ->  | D91: 0 | E91: =IF('Sep voer'!H18>0,VLOOKUP('Sep voer'!G18,Voedermiddelen!$A$4:$K$75,4,FALSE)*E75,"") -> 
B92: KV 1 | C92: =IF('Sep voer'!C20>0,VLOOKUP('Sep voer'!B20,Voedermiddelen!$A$4:$K$75,4,FALSE)*C76,"") -> 64800 | D92: 0 | E92: =E76*1000 -> 301860
B93: Pens stabielbrok EBZ | C93: =IF('Sep voer'!C21>0,VLOOKUP('Sep voer'!B21,Voedermiddelen!$A$4:$K$75,4,FALSE)*C77,"") -> 247104 | D93: 0
B94: 0 | C94: =IF('Sep voer'!C22>0,VLOOKUP('Sep voer'!B22,Voedermiddelen!$A$4:$K$75,4,FALSE)*C78,"") ->  | D94: 0
A96: Totaal | C96: =SUM(C82:C94) -> 1002142.342 | E96: =SUM(E82:E94) -> 984908.3593
A98: DVE | B98: =B82 -> 2017 1e 2e snede | C98: =IF('Sep voer'!C9>0,VLOOKUP('Sep voer'!B9,[2]Voedermiddelen!$A$4:$K$75,5,FALSE)*C66,"") ->  | D98: =D82 -> 2017 1e 2e snede | E98: =IF('Sep voer'!H9>0,VLOOKUP('Sep voer'!G9,Voedermiddelen!$A$4:$K$75,5,FALSE)*E66,"") -> 18553.5
B99: =B83 -> Mkuil 1 | C99: =IF('Sep voer'!C10>0,VLOOKUP('Sep voer'!B10,[2]Voedermiddelen!$A$4:$K$75,5,FALSE)*C67,"") -> 23016.38976 | D99: Mkuil 1 | E99: =IF('Sep voer'!H10>0,VLOOKUP('Sep voer'!G10,[2]Voedermiddelen!$A$4:$K$75,5,FALSE)*E67,"") -> 22776.6357
B100: Gkuil balen 2016 2e snede | C100: =IF('Sep voer'!C11>0,VLOOKUP('Sep voer'!B11,[2]Voedermiddelen!$A$4:$K$75,5,FALSE)*C68,"") ->  | D100: Gkuil balen 2016 2e snede | E100: =IF('Sep voer'!H11>0,VLOOKUP('Sep voer'!G11,[2]Voedermiddelen!$A$4:$K$75,5,FALSE)*E68,"") -> 
B101: Bierbostel | C101: =IF('Sep voer'!C12>0,VLOOKUP('Sep voer'!B12,[2]Voedermiddelen!$A$4:$K$75,5,FALSE)*C69,"") -> 5040.504 | D101: Bierbostel | E101: =IF('Sep voer'!H12>0,VLOOKUP('Sep voer'!G12,[2]Voedermiddelen!$A$4:$K$75,5,FALSE)*E69,"") -> 4987.99875
B102: Overig 2 | C102: =IF('Sep voer'!C13>0,VLOOKUP('Sep voer'!B13,[2]Voedermiddelen!$A$4:$K$75,5,FALSE)*C70,"") ->  | D102: Overig 2 | E102: =IF('Sep voer'!H13>0,VLOOKUP('Sep voer'!G13,[2]Voedermiddelen!$A$4:$K$75,5,FALSE)*E70,"") -> 
B103: BP 6 | C103: =IF('Sep voer'!C14>0,VLOOKUP('Sep voer'!B14,[2]Voedermiddelen!$A$4:$K$75,5,FALSE)*C71,"") ->  | D103: BP 6 | E103: =IF('Sep voer'!H14>0,VLOOKUP('Sep voer'!G14,[2]Voedermiddelen!$A$4:$K$75,5,FALSE)*E71,"") -> 
B104: 0 | C104: =IF('Sep voer'!C15>0,VLOOKUP('Sep voer'!B15,[2]Voedermiddelen!$A$4:$K$75,5,FALSE)*C72,"") ->  | D104: 0 | E104: =IF('Sep voer'!H15>0,VLOOKUP('Sep voer'!G15,[2]Voedermiddelen!$A$4:$K$75,5,FALSE)*E72,"") -> 
B105: 0 | C105: =IF('Sep voer'!C16>0,VLOOKUP('Sep voer'!B16,[2]Voedermiddelen!$A$4:$K$75,5,FALSE)*C73,"") ->  | D105: 0 | E105: =IF('Sep voer'!H16>0,VLOOKUP('Sep voer'!G16,[2]Voedermiddelen!$A$4:$K$75,5,FALSE)*E73,"") -> 
B106: 0 | C106: =IF('Sep voer'!C17>0,VLOOKUP('Sep voer'!B17,[2]Voedermiddelen!$A$4:$K$75,5,FALSE)*C74,"") ->  | D106: 0 | E106: =IF('Sep voer'!H17>0,VLOOKUP('Sep voer'!G17,[2]Voedermiddelen!$A$4:$K$75,5,FALSE)*E74,"") -> 
B107: 0 | C107: =IF('Sep voer'!C18>0,VLOOKUP('Sep voer'!B18,[2]Voedermiddelen!$A$4:$K$75,5,FALSE)*C75,"") ->  | D107: 0 | E107: =IF('Sep voer'!H18>0,VLOOKUP('Sep voer'!G18,[2]Voedermiddelen!$A$4:$K$75,5,FALSE)*E75,"") -> 
B108: KV 1 | C108: =IF('Sep voer'!C20>0,VLOOKUP('Sep voer'!B20,[2]Voedermiddelen!$A$4:$K$75,5,FALSE)*C76,"") -> 8640 | D108: 0
B109: Pens stabielbrok EBZ | C109: =IF('Sep voer'!C21>0,VLOOKUP('Sep voer'!B21,[2]Voedermiddelen!$A$4:$K$75,5,FALSE)*C77,"") ->  | D109: 0
B110: 0 | C110: =IF('Sep voer'!C22>0,VLOOKUP('Sep voer'!B22,[2]Voedermiddelen!$A$4:$K$75,5,FALSE)*C78,"") ->  | D110: 0
A112: Totaal | C112: =SUM(C98:C110)/1000 ->  | E112: =SUM(E98:E110)/1000 -> 
A114: OEB | B114: =B98 -> 2017 1e 2e snede | C114: =IF('Sep voer'!C9>0,VLOOKUP('Sep voer'!B9,[2]Voedermiddelen!$A$4:$K$75,6,FALSE)*C66,"") ->  | D114: =D98 -> 2017 1e 2e snede | E114: =IF('Sep voer'!H9>0,VLOOKUP('Sep voer'!G9,[2]Voedermiddelen!$A$4:$K$75,6,FALSE)*E66,"") -> 
B115: =B99 -> Mkuil 1 | C115: =IF('Sep voer'!C10>0,VLOOKUP('Sep voer'!B10,[2]Voedermiddelen!$A$4:$K$75,6,FALSE)*C67,"") -> -8832.62016 | D115: Mkuil 1 | E115: =IF('Sep voer'!H10>0,VLOOKUP('Sep voer'!G10,[2]Voedermiddelen!$A$4:$K$75,6,FALSE)*E67,"") -> -8740.6137
B116: Gkuil balen 2016 2e snede | C116: =IF('Sep voer'!C11>0,VLOOKUP('Sep voer'!B11,[2]Voedermiddelen!$A$4:$K$75,6,FALSE)*C68,"") ->  | D116: Gkuil balen 2016 2e snede | E116: =IF('Sep voer'!H11>0,VLOOKUP('Sep voer'!G11,[2]Voedermiddelen!$A$4:$K$75,6,FALSE)*E68,"") -> 
B117: Bierbostel | C117: =IF('Sep voer'!C12>0,VLOOKUP('Sep voer'!B12,[2]Voedermiddelen!$A$4:$K$75,6,FALSE)*C69,"") -> 2023.56 | D117: Bierbostel | E117: =IF('Sep voer'!H12>0,VLOOKUP('Sep voer'!G12,[2]Voedermiddelen!$A$4:$K$75,6,FALSE)*E69,"") -> 2002.48125
B118: Overig 2 | C118: =IF('Sep voer'!C13>0,VLOOKUP('Sep voer'!B13,[2]Voedermiddelen!$A$4:$K$75,6,FALSE)*C70,"") ->  | D118: Overig 2 | E118: =IF('Sep voer'!H13>0,VLOOKUP('Sep voer'!G13,[2]Voedermiddelen!$A$4:$K$75,6,FALSE)*E70,"") -> 
B119: BP 6 | C119: =IF('Sep voer'!C14>0,VLOOKUP('Sep voer'!B14,[2]Voedermiddelen!$A$4:$K$75,6,FALSE)*C71,"") ->  | D119: BP 6 | E119: =IF('Sep voer'!H14>0,VLOOKUP('Sep voer'!G14,[2]Voedermiddelen!$A$4:$K$75,6,FALSE)*E71,"") -> 
B120: 0 | C120: =IF('Sep voer'!C15>0,VLOOKUP('Sep voer'!B15,[2]Voedermiddelen!$A$4:$K$75,6,FALSE)*C72,"") ->  | D120: 0 | E120: =IF('Sep voer'!H15>0,VLOOKUP('Sep voer'!G15,[2]Voedermiddelen!$A$4:$K$75,6,FALSE)*E72,"") -> 
B121: 0 | C121: =IF('Sep voer'!C16>0,VLOOKUP('Sep voer'!B16,[2]Voedermiddelen!$A$4:$K$75,6,FALSE)*C73,"") ->  | D121: 0 | E121: =IF('Sep voer'!H16>0,VLOOKUP('Sep voer'!G16,[2]Voedermiddelen!$A$4:$K$75,6,FALSE)*E73,"") -> 
B122: 0 | C122: =IF('Sep voer'!C17>0,VLOOKUP('Sep voer'!B17,[2]Voedermiddelen!$A$4:$K$75,6,FALSE)*C74,"") ->  | D122: 0 | E122: =IF('Sep voer'!H17>0,VLOOKUP('Sep voer'!G17,[2]Voedermiddelen!$A$4:$K$75,6,FALSE)*E74,"") -> 
B123: 0 | C123: =IF('Sep voer'!C18>0,VLOOKUP('Sep voer'!B18,[2]Voedermiddelen!$A$4:$K$75,6,FALSE)*C75,"") ->  | D123: 0 | E123: =IF('Sep voer'!H18>0,VLOOKUP('Sep voer'!G18,[2]Voedermiddelen!$A$4:$K$75,6,FALSE)*E75,"") -> 
B124: KV 1 | C124: =IF('Sep voer'!C20>0,VLOOKUP('Sep voer'!B20,[2]Voedermiddelen!$A$4:$K$75,6,FALSE)*C76,"") -> 4320 | D124: 0
B125: Pens stabielbrok EBZ | C125: =IF('Sep voer'!C21>0,VLOOKUP('Sep voer'!B21,[2]Voedermiddelen!$A$4:$K$75,6,FALSE)*C77,"") ->  | D125: 0
B126: 0 | C126: =IF('Sep voer'!C22>0,VLOOKUP('Sep voer'!B22,[2]Voedermiddelen!$A$4:$K$75,6,FALSE)*C78,"") ->  | D126: 0
A128: Totaal | C128: =SUM(C114:C126) ->  | E128: =SUM(E114:E126) -> 
A130: RE | B130: =B114 -> 2017 1e 2e snede | C130: =IF('Sep voer'!C9>0,VLOOKUP('Sep voer'!B9,Voedermiddelen!$A$4:$K$75,7,FALSE)*C66,"") -> 56246.4 | D130: =D114 -> 2017 1e 2e snede | E130: =IF('Sep voer'!H9>0,VLOOKUP('Sep voer'!G9,Voedermiddelen!$A$4:$K$75,7,FALSE)*E66,"") -> 55660.5
B131: =B115 -> Mkuil 1 | C131: =IF('Sep voer'!C10>0,VLOOKUP('Sep voer'!B10,Voedermiddelen!$A$4:$K$75,7,FALSE)*C67,"") -> 22565.088 | D131: Mkuil 1 | E131: =IF('Sep voer'!H10>0,VLOOKUP('Sep voer'!G10,Voedermiddelen!$A$4:$K$75,7,FALSE)*E67,"") -> 22330.035
B132: Gkuil balen 2016 2e snede | C132: =IF('Sep voer'!C11>0,VLOOKUP('Sep voer'!B11,Voedermiddelen!$A$4:$K$75,7,FALSE)*C68,"") -> 5299.6608 | D132: Gkuil balen 2016 2e snede | E132: =IF('Sep voer'!H11>0,VLOOKUP('Sep voer'!G11,Voedermiddelen!$A$4:$K$75,7,FALSE)*E68,"") -> 5244.456
B133: Bierbostel | C133: =IF('Sep voer'!C12>0,VLOOKUP('Sep voer'!B12,Voedermiddelen!$A$4:$K$75,7,FALSE)*C69,"") -> 9087.624 | D133: Bierbostel | E133: =IF('Sep voer'!H12>0,VLOOKUP('Sep voer'!G12,Voedermiddelen!$A$4:$K$75,7,FALSE)*E69,"") -> 8992.96125
B134: Overig 2 | C134: =IF('Sep voer'!C13>0,VLOOKUP('Sep voer'!B13,Voedermiddelen!$A$4:$K$75,7,FALSE)*C70,"") ->  | D134: Overig 2 | E134: =IF('Sep voer'!H13>0,VLOOKUP('Sep voer'!G13,Voedermiddelen!$A$4:$K$75,7,FALSE)*E70,"") -> 
B135: BP 6 | C135: =IF('Sep voer'!C14>0,VLOOKUP('Sep voer'!B14,Voedermiddelen!$A$4:$K$75,7,FALSE)*C71,"") ->  | D135: BP 6 | E135: =IF('Sep voer'!H14>0,VLOOKUP('Sep voer'!G14,Voedermiddelen!$A$4:$K$75,7,FALSE)*E71,"") -> 
B136: 0 | C136: =IF('Sep voer'!C15>0,VLOOKUP('Sep voer'!B15,Voedermiddelen!$A$4:$K$75,7,FALSE)*C72,"") ->  | D136: 0 | E136: =IF('Sep voer'!H15>0,VLOOKUP('Sep voer'!G15,Voedermiddelen!$A$4:$K$75,7,FALSE)*E72,"") -> 
B137: 0 | C137: =IF('Sep voer'!C16>0,VLOOKUP('Sep voer'!B16,Voedermiddelen!$A$4:$K$75,7,FALSE)*C73,"") ->  | D137: 0 | E137: =IF('Sep voer'!H16>0,VLOOKUP('Sep voer'!G16,Voedermiddelen!$A$4:$K$75,7,FALSE)*E73,"") -> 
B138: 0 | C138: =IF('Sep voer'!C17>0,VLOOKUP('Sep voer'!B17,Voedermiddelen!$A$4:$K$75,7,FALSE)*C74,"") ->  | D138: 0 | E138: =IF('Sep voer'!H17>0,VLOOKUP('Sep voer'!G17,Voedermiddelen!$A$4:$K$75,7,FALSE)*E74,"") -> 
B139: 0 | C139: =IF('Sep voer'!C18>0,VLOOKUP('Sep voer'!B18,Voedermiddelen!$A$4:$K$75,7,FALSE)*C75,"") ->  | D139: 0 | E139: =IF('Sep voer'!H18>0,VLOOKUP('Sep voer'!G18,Voedermiddelen!$A$4:$K$75,7,FALSE)*E75,"") -> 
B140: KV 1 | C140: =IF('Sep voer'!C20>0,VLOOKUP('Sep voer'!B20,Voedermiddelen!$A$4:$K$75,7,FALSE)*C76,"") -> 12240 | D140: 0
B141: Pens stabielbrok EBZ | C141: =IF('Sep voer'!C21>0,VLOOKUP('Sep voer'!B21,Voedermiddelen!$A$4:$K$75,7,FALSE)*C77,"") -> 45559.8 | D141: 0
B142: =B126 -> 0 | C142: =IF('Sep voer'!C22>0,VLOOKUP('Sep voer'!B22,Voedermiddelen!$A$4:$K$75,7,FALSE)*C78,"") ->  | D142: 0
A144: Totaal | C144: =SUM(C130:C142) -> 150998.5728 | E144: =SUM(E130:E142) -> 92227.95225
A146: N opname | C146: =C144/6.25 -> 24159.77165 | E146: =E144/6.25 -> 14756.47236 | G146: =(E76/0.9*'Sep voer'!M6/6.25) -> 6105.389719
A148: P | B148: =B130 -> 2017 1e 2e snede | C148: =IF('Sep voer'!C9>0,VLOOKUP('Sep voer'!B9,Voedermiddelen!$A$4:$K$75,10,FALSE)*C66,"") -> 1124.928 | D148: =D130 -> 2017 1e 2e snede | E148: =IF('Sep voer'!H9>0,VLOOKUP('Sep voer'!G9,Voedermiddelen!$A$4:$K$75,10,FALSE)*E66,"") -> 1113.21
B149: =B131 -> Mkuil 1 | C149: =IF('Sep voer'!C10>0,VLOOKUP('Sep voer'!B10,Voedermiddelen!$A$4:$K$75,10,FALSE)*C67,"") -> 992.863872 | D149: Mkuil 1 | E149: =IF('Sep voer'!H10>0,VLOOKUP('Sep voer'!G10,Voedermiddelen!$A$4:$K$75,10,FALSE)*E67,"") -> 982.52154
B150: Gkuil balen 2016 2e snede | C150: =IF('Sep voer'!C11>0,VLOOKUP('Sep voer'!B11,Voedermiddelen!$A$4:$K$75,10,FALSE)*C68,"") -> 164.98944 | D150: Gkuil balen 2016 2e snede | E150: =IF('Sep voer'!H11>0,VLOOKUP('Sep voer'!G11,Voedermiddelen!$A$4:$K$75,10,FALSE)*E68,"") -> 163.2708
B151: Bierbostel | C151: =IF('Sep voer'!C12>0,VLOOKUP('Sep voer'!B12,Voedermiddelen!$A$4:$K$75,10,FALSE)*C69,"") -> 191.3184 | D151: Bierbostel | E151: =IF('Sep voer'!H12>0,VLOOKUP('Sep voer'!G12,Voedermiddelen!$A$4:$K$75,10,FALSE)*E69,"") -> 189.3255
B152: Overig 2 | C152: =IF('Sep voer'!C13>0,VLOOKUP('Sep voer'!B13,Voedermiddelen!$A$4:$K$75,10,FALSE)*C70,"") ->  | D152: Overig 2 | E152: =IF('Sep voer'!H13>0,VLOOKUP('Sep voer'!G13,Voedermiddelen!$A$4:$K$75,10,FALSE)*E70,"") -> 
B153: BP 6 | C153: =IF('Sep voer'!C14>0,VLOOKUP('Sep voer'!B14,Voedermiddelen!$A$4:$K$75,10,FALSE)*C71,"") ->  | D153: BP 6 | E153: =IF('Sep voer'!H14>0,VLOOKUP('Sep voer'!G14,Voedermiddelen!$A$4:$K$75,10,FALSE)*E71,"") -> 
B154: 0 | C154: =IF('Sep voer'!C15>0,VLOOKUP('Sep voer'!B15,Voedermiddelen!$A$4:$K$75,10,FALSE)*C72,"") ->  | D154: 0 | E154: =IF('Sep voer'!H15>0,VLOOKUP('Sep voer'!G15,Voedermiddelen!$A$4:$K$75,10,FALSE)*E72,"") -> 
B155: 0 | C155: =IF('Sep voer'!C16>0,VLOOKUP('Sep voer'!B16,Voedermiddelen!$A$4:$K$75,10,FALSE)*C73,"") ->  | D155: 0 | E155: =IF('Sep voer'!H16>0,VLOOKUP('Sep voer'!G16,Voedermiddelen!$A$4:$K$75,10,FALSE)*E73,"") -> 
B156: 0 | C156: =IF('Sep voer'!C17>0,VLOOKUP('Sep voer'!B17,Voedermiddelen!$A$4:$K$75,10,FALSE)*C74,"") ->  | D156: 0 | E156: =IF('Sep voer'!H17>0,VLOOKUP('Sep voer'!G17,Voedermiddelen!$A$4:$K$75,10,FALSE)*E74,"") -> 
B157: 0 | C157: =IF('Sep voer'!C18>0,VLOOKUP('Sep voer'!B18,Voedermiddelen!$A$4:$K$75,10,FALSE)*C75,"") ->  | D157: 0 | E157: =IF('Sep voer'!H18>0,VLOOKUP('Sep voer'!G18,Voedermiddelen!$A$4:$K$75,10,FALSE)*E75,"") -> 
B158: =B140 -> KV 1 | C158: =IF('Sep voer'!C20>0,VLOOKUP('Sep voer'!B20,Voedermiddelen!$A$4:$K$75,10,FALSE)*C76,"") -> 288 | D158: 0
B159: =B141 -> Pens stabielbrok EBZ | C159: =IF('Sep voer'!C21>0,VLOOKUP('Sep voer'!B21,Voedermiddelen!$A$4:$K$75,10,FALSE)*C77,"") -> 1029.6 | D159: 0
B160: =B142 -> 0 | C160: =IF('Sep voer'!C22>0,VLOOKUP('Sep voer'!B22,Voedermiddelen!$A$4:$K$75,10,FALSE)*C78,"") ->  | D160: 0
A162: Totaal | C162: =SUM(C148:C160) -> 3791.699712 | E162: =SUM(E148:E160) -> 2448.32784 | G162: =(E76/0.9*'Sep voer'!M7) -> 813.2438045

Sheet Sep Excretie (hidden)
A1: Veestapel
C2: ='Sep vee+melk'!C6 -> September gerealiseerd | E2: ='Sep vee+melk'!E6 -> September prognose
A5: Excretie (kg/dier/dag)
C6: N | E6: N
A7: Opname | C7: ='Sep Voeropname'!C2*'Sep Voeropname'!C7*0.001 -> 0.5419829588 | E7: ='Sep Voeropname'!E2*'Sep Voeropname'!E7*0.001+'Sep Voeropname'!G146*0.001/'Sep vee+melk'!E2 -> 0.533424358
A8: Gem opname 7 dgn | C8: =AVERAGE(C7:F7) -> 0.5377036584 | E8: =AVERAGE(E7) -> 0.533424358
A9: Productie | C9: ='Sep vee+melk'!C22*'Sep vee+melk'!C10/6.38 -> 0.1420130326 | E9: ='Sep vee+melk'!E22*'Sep vee+melk'!E10/6.38 -> 0.1400280557
A10: Vastlegging | C10: =1.4/365 -> 0.003835616438 | E10: =1.4/365 -> 0.003835616438
A11: Onder de staart | C11: =C7-C9-C10 -> 0.3961343098 | E11: =E7-E9-E10 -> 0.3895606859
A12: Vervluchtiging | C12: =C11*0.1175 -> 0.0465457814 | E12: =E11*0.1175 -> 0.04577338059
A13: Gemeten netto excretie | C13: =C11-C12 -> 0.3495885284 | E13: =E11-E12 -> 0.3437873053
C15: P | E15: P
A16: Opname | C16: ='Sep Voeropname'!C2*'Sep Voeropname'!C8/1000 -> 0.07789289959 | E16: ='Sep Voeropname'!E2*'Sep Voeropname'!E8/1000+'Sep Voeropname'!G162*0.001/'Sep vee+melk'!E2 -> 0.0749861898
A17: Gem opname 7 dgn | C17: =AVERAGE(C16:F16) -> 0.0764395447 | E17: =AVERAGE(E16) -> 0.0749861898
A18: Productie | C18: ='Sep vee+melk'!C22*0.9/1000 -> 0.02258833333 | E18: ='Sep vee+melk'!E22*0.9/1000 -> 0.02297260274
A19: Vastlegging | C19: =0.5/365 -> 0.001369863014 | E19: =0.5/365 -> 0.001369863014
A20: Onder de staart | C20: =C16-C18-C19 -> 0.05393470324 | E20: =E16-E18-E19 -> 0.05064372405
A21: Vervluchtiging
A22: Gemeten netto excretie | C22: =C20 -> 0.05393470324 | E22: =E20 -> 0.05064372405
A24: N excretie per ton meetmelk (kg) | C24: =C13/'Sep vee+melk'!C21*1000 -> 12.74128257 | E24: =E13/'Sep vee+melk'!E21*1000 -> 12.05530243
A25: P excretie per ton meetmelk (kg) | C25: =C22/'Sep vee+melk'!C21*1000 -> 1.96573182 | E25: =E22/'Sep vee+melk'!E21*1000 -> 1.775881193

Sheet Sep kengetallen (hidden)
A1: Rantsoen
A2: Datum | C2: ='Sep voer'!B3 -> September gerealiseerd | E2: ='Sep voer'!G3 -> September prognose
A4: ='Sep Voeropname'!A2 -> DS opname/koe | C4: ='Sep Voeropname'!C2 -> 20.33178263 | E4: ='Sep Voeropname'!E2 -> 20.69687424
A5: ='Sep Voeropname'!A3 -> VEM | C5: ='Sep Voeropname'!C3 -> 944.0437176 | E5: ='Sep Voeropname'!E3 -> 953.2362605
A6: ='Sep Voeropname'!A4 -> DVE | C6: ='Sep Voeropname'!C4 ->  | E6: ='Sep Voeropname'!E4 -> 
A7: ='Sep Voeropname'!A5 -> OEB | C7: ='Sep Voeropname'!C5 ->  | E7: ='Sep Voeropname'!E5 -> 
A8: ='Sep Voeropname'!A6 -> RE | C8: ='Sep Voeropname'!C6 -> 166.6058286 | E8: ='Sep Voeropname'!E6 -> 134.7439291
A9: ='Sep Voeropname'!A7 -> N | C9: ='Sep Voeropname'!C7 -> 26.65693258 | E9: ='Sep Voeropname'!E7 -> 21.55902866
A10: ='Sep Voeropname'!A8 -> P | C10: ='Sep Voeropname'!C8 -> 3.831090514 | E10: ='Sep Voeropname'!E8 -> 3.061738717
A12: Streefwaarde RE | C12: ='Sep voer'!H20 -> 160
A13: Streefwaarde P | C13: ='Sep voer'!H21 -> 3.6
A16: ='Sep Excretie'!A24 -> N excretie per ton meetmelk (kg) | C16: ='Sep Excretie'!C24 -> 12.74128257 | E16: ='Sep Excretie'!E24 -> 12.05530243
A17: ='Sep Excretie'!A25 -> P excretie per ton meetmelk (kg) | C17: ='Sep Excretie'!C25 -> 1.96573182 | E17: ='Sep Excretie'!E25 -> 1.775881193
A20: VEM dekking | C20: ='Sep Voeropname'!C35/'Sep vee+melk'!C27 -> 1.03 | E20: ='Sep Voeropname'!E35/'Sep vee+melk'!E27 -> 1.03
A21: DVE dekking | C21: ='Sep Voeropname'!C36/'Sep vee+melk'!C28 ->  | E21: ='Sep Voeropname'!E36/'Sep vee+melk'!E28 -> 
A24: Voerefficientie kg meetmelk/kg voer (ds) | C24: ='Sep vee+melk'!C21/'Sep Voeropname'!C2 -> 1.349486572 | E24: ='Sep vee+melk'!E21/'Sep Voeropname'!E2 -> 1.377865941
A25: kg krachtvoer per 100 kg (excl bijprod) | C25: =SUM('Sep Voeropname'!C76:C78)/('Sep vee+melk'!C21*'Sep vee+melk'!C2)*100/0.9 -> 19.05631924 | E25: =SUM('Sep Voeropname'!E76:E78)/('Sep vee+melk'!E21*'Sep vee+melk'!E2)*100 -> 15.12153232
A28: =A12 -> Streefwaarde RE | C28: =$C$12 -> 160 | E28: =$C$12 -> 160
A29: =A13 -> Streefwaarde P | C29: =$C$13 -> 3.6 | E29: =$C$13 -> 3.6
A34: =A2 -> Datum | C34: =C2 -> September gerealiseerd | D34: =E2 -> September prognose | E34: =#REF! ->  | F34: =#REF! -> 
A35: 00:00:00
A36: DS opname/koe | C36: =C4 -> 20.33178263 | D36: =E4 -> 20.69687424 | E36: =#REF! ->  | F36: =#REF! -> 
A37: VEM | C37: 944.0437176 | D37: 953.2362605 | E37: =#REF! ->  | F37: =#REF! -> 
A38: DVE | E38: =#REF! ->  | F38: =#REF! -> 
A39: OEB | E39: =#REF! ->  | F39: =#REF! -> 
A40: RE | C40: 166.6058286 | D40: 134.7439291 | E40: =#REF! ->  | F40: =#REF! -> 
A41: N | C41: 26.65693258 | D41: 21.55902866 | E41: =#REF! ->  | F41: =#REF! -> 
A42: P | C42: 3.831090514 | D42: 3.061738717 | E42: =#REF! ->  | F42: =#REF! -> 
A43: =A15 -> 00:00:00
A44: N excretie per ton meetmelk (kg) | C44: =C16 -> 12.74128257 | D44: =E16 -> 12.05530243 | E44: =#REF! ->  | F44: =#REF! -> 
A45: P excretie per ton meetmelk (kg) | C45: 1.96573182 | D45: =E17 -> 1.775881193 | E45: =#REF! ->  | F45: =#REF! -> 
A46: 00:00:00 | C46: =1000/C45/2.29 -> 222.1468962 | D46: =1000/D45/2.29 -> 245.8955163 | E46: =1000/E45/2.29 ->  | F46: =1000/F45/2.29 -> 
A49: Rantsoen
A51: Kuilgras | C51: =IF('Sep Voeropname'!$A66='Sep kengetallen'!$A51,'Sep Voeropname'!C66,"") -> 312.48 | E51: =IF('Sep Voeropname'!$A66='Sep kengetallen'!$A51,'Sep Voeropname'!E66,"") -> 309.225
A52: Kuilgras | C52: =IF('Sep Voeropname'!$A67='Sep kengetallen'!$A52,'Sep Voeropname'!C67,"") ->  | E52: =IF('Sep Voeropname'!$A67='Sep kengetallen'!$A52,'Sep Voeropname'!E67,"") -> 
A53: Kuilgras | C53: =IF('Sep Voeropname'!$A68='Sep kengetallen'!$A53,'Sep Voeropname'!C68,"") -> 49.9968 | E53: =IF('Sep Voeropname'!$A68='Sep kengetallen'!$A53,'Sep Voeropname'!E68,"") -> 49.476
A54: Kuilgras | C54: =IF('Sep Voeropname'!$A69='Sep kengetallen'!$A54,'Sep Voeropname'!C69,"") ->  | E54: =IF('Sep Voeropname'!$A69='Sep kengetallen'!$A54,'Sep Voeropname'!E69,"") -> 
A55: Kuilgras | C55: =IF('Sep Voeropname'!$A70='Sep kengetallen'!$A55,'Sep Voeropname'!C70,"") ->  | E55: =IF('Sep Voeropname'!$A70='Sep kengetallen'!$A55,'Sep Voeropname'!E70,"") -> 
A56: Kuilgras | C56: =IF('Sep Voeropname'!$A71='Sep kengetallen'!$A56,'Sep Voeropname'!C71,"") ->  | E56: =IF('Sep Voeropname'!$A71='Sep kengetallen'!$A56,'Sep Voeropname'!E71,"") -> 
A57: Kuilgras | C57: =IF('Sep Voeropname'!$A72='Sep kengetallen'!$A57,'Sep Voeropname'!C72,"") ->  | E57: =IF('Sep Voeropname'!$A72='Sep kengetallen'!$A57,'Sep Voeropname'!E72,"") -> 
A58: Kuilgras | C58: =IF('Sep Voeropname'!$A73='Sep kengetallen'!$A58,'Sep Voeropname'!C73,"") ->  | E58: =IF('Sep Voeropname'!$A73='Sep kengetallen'!$A58,'Sep Voeropname'!E73,"") -> 
A59: Kuilgras | C59: =IF('Sep Voeropname'!$A74='Sep kengetallen'!$A59,'Sep Voeropname'!C74,"") ->  | E59: =IF('Sep Voeropname'!$A74='Sep kengetallen'!$A59,'Sep Voeropname'!E74,"") -> 
A60: Totaal kuilgras | C60: =SUM(C51:C59) -> 362.4768 | E60: =SUM(E51:E59) -> 358.701
A62: Snijmais | C62: =IF('Sep Voeropname'!$A66='Sep kengetallen'!$A62,'Sep Voeropname'!C66,"") ->  | E62: =IF('Sep Voeropname'!$A66='Sep kengetallen'!$A62,'Sep Voeropname'!E66,"") -> 
A63: Snijmais | C63: =IF('Sep Voeropname'!$A67='Sep kengetallen'!$A63,'Sep Voeropname'!C67,"") -> 322.3584 | E63: =IF('Sep Voeropname'!$A67='Sep kengetallen'!$A63,'Sep Voeropname'!E67,"") -> 319.0005
A64: Snijmais | C64: =IF('Sep Voeropname'!$A68='Sep kengetallen'!$A64,'Sep Voeropname'!C68,"") ->  | E64: =IF('Sep Voeropname'!$A68='Sep kengetallen'!$A64,'Sep Voeropname'!E68,"") -> 
A65: Snijmais | C65: =IF('Sep Voeropname'!$A69='Sep kengetallen'!$A65,'Sep Voeropname'!C69,"") ->  | E65: =IF('Sep Voeropname'!$A69='Sep kengetallen'!$A65,'Sep Voeropname'!E69,"") -> 
A66: Snijmais | C66: =IF('Sep Voeropname'!$A70='Sep kengetallen'!$A66,'Sep Voeropname'!C70,"") ->  | E66: =IF('Sep Voeropname'!$A70='Sep kengetallen'!$A66,'Sep Voeropname'!E70,"") -> 
A67: Snijmais | C67: =IF('Sep Voeropname'!$A71='Sep kengetallen'!$A67,'Sep Voeropname'!C71,"") ->  | E67: =IF('Sep Voeropname'!$A71='Sep kengetallen'!$A67,'Sep Voeropname'!E71,"") -> 
A68: Snijmais | C68: =IF('Sep Voeropname'!$A72='Sep kengetallen'!$A68,'Sep Voeropname'!C72,"") ->  | E68: =IF('Sep Voeropname'!$A72='Sep kengetallen'!$A68,'Sep Voeropname'!E72,"") -> 
A69: Snijmais | C69: =IF('Sep Voeropname'!$A73='Sep kengetallen'!$A69,'Sep Voeropname'!C73,"") ->  | E69: =IF('Sep Voeropname'!$A73='Sep kengetallen'!$A69,'Sep Voeropname'!E73,"") -> 
A70: Snijmais | C70: =IF('Sep Voeropname'!$A74='Sep kengetallen'!$A70,'Sep Voeropname'!C74,"") ->  | E70: =IF('Sep Voeropname'!$A74='Sep kengetallen'!$A70,'Sep Voeropname'!E74,"") -> 
A71: Totaal snijmais | C71: =SUM(C62:C70) -> 322.3584 | E71: =SUM(E62:E70) -> 319.0005
A73: OverigRuwvoer | C73: =IF('Sep Voeropname'!$A66='Sep kengetallen'!$A73,'Sep Voeropname'!C66,"") ->  | E73: =IF('Sep Voeropname'!$A66='Sep kengetallen'!$A73,'Sep Voeropname'!E66,"") -> 
A74: OverigRuwvoer | C74: =IF('Sep Voeropname'!$A67='Sep kengetallen'!$A74,'Sep Voeropname'!C67,"") ->  | E74: =IF('Sep Voeropname'!$A67='Sep kengetallen'!$A74,'Sep Voeropname'!E67,"") -> 
A75: OverigRuwvoer | C75: =IF('Sep Voeropname'!$A68='Sep kengetallen'!$A75,'Sep Voeropname'!C68,"") ->  | E75: =IF('Sep Voeropname'!$A68='Sep kengetallen'!$A75,'Sep Voeropname'!E68,"") -> 
A76: OverigRuwvoer | C76: =IF('Sep Voeropname'!$A69='Sep kengetallen'!$A76,'Sep Voeropname'!C69,"") ->  | E76: =IF('Sep Voeropname'!$A69='Sep kengetallen'!$A76,'Sep Voeropname'!E69,"") -> 
A77: OverigRuwvoer | C77: =IF('Sep Voeropname'!$A70='Sep kengetallen'!$A77,'Sep Voeropname'!C70,"") ->  | E77: =IF('Sep Voeropname'!$A70='Sep kengetallen'!$A77,'Sep Voeropname'!E70,"") -> 
A78: OverigRuwvoer | C78: =IF('Sep Voeropname'!$A71='Sep kengetallen'!$A78,'Sep Voeropname'!C71,"") ->  | E78: =IF('Sep Voeropname'!$A71='Sep kengetallen'!$A78,'Sep Voeropname'!E71,"") -> 
A79: OverigRuwvoer | C79: =IF('Sep Voeropname'!$A72='Sep kengetallen'!$A79,'Sep Voeropname'!C72,"") ->  | E79: =IF('Sep Voeropname'!$A72='Sep kengetallen'!$A79,'Sep Voeropname'!E72,"") -> 
A80: OverigRuwvoer | C80: =IF('Sep Voeropname'!$A73='Sep kengetallen'!$A80,'Sep Voeropname'!C73,"") ->  | E80: =IF('Sep Voeropname'!$A73='Sep kengetallen'!$A80,'Sep Voeropname'!E73,"") -> 
A81: OverigRuwvoer | C81: =IF('Sep Voeropname'!$A74='Sep kengetallen'!$A81,'Sep Voeropname'!C74,"") ->  | E81: =IF('Sep Voeropname'!$A74='Sep kengetallen'!$A81,'Sep Voeropname'!E74,"") -> 
A82: Totaal overig Ruwvoer | C82: =SUM(C73:C81) -> 0 | E82: =SUM(E73:E81) -> 0
A84: Bijproducten | C84: =IF('Sep Voeropname'!$A66='Sep kengetallen'!$A84,'Sep Voeropname'!C66,"") ->  | E84: =IF('Sep Voeropname'!$A66='Sep kengetallen'!$A84,'Sep Voeropname'!E66,"") -> 
A85: Bijproducten | C85: =IF('Sep Voeropname'!$A67='Sep kengetallen'!$A85,'Sep Voeropname'!C67,"") ->  | E85: =IF('Sep Voeropname'!$A67='Sep kengetallen'!$A85,'Sep Voeropname'!E67,"") -> 
A86: Bijproducten | C86: =IF('Sep Voeropname'!$A68='Sep kengetallen'!$A86,'Sep Voeropname'!C68,"") ->  | E86: =IF('Sep Voeropname'!$A68='Sep kengetallen'!$A86,'Sep Voeropname'!E68,"") -> 
A87: Bijproducten | C87: =IF('Sep Voeropname'!$A69='Sep kengetallen'!$A87,'Sep Voeropname'!C69,"") -> 36.792 | E87: =IF('Sep Voeropname'!$A69='Sep kengetallen'!$A87,'Sep Voeropname'!E69,"") -> 36.40875
A88: Bijproducten | C88: =IF('Sep Voeropname'!$A70='Sep kengetallen'!$A88,'Sep Voeropname'!C70,"") ->  | E88: =IF('Sep Voeropname'!$A70='Sep kengetallen'!$A88,'Sep Voeropname'!E70,"") -> 
A89: Bijproducten | C89: =IF('Sep Voeropname'!$A71='Sep kengetallen'!$A89,'Sep Voeropname'!C71,"") ->  | E89: =IF('Sep Voeropname'!$A71='Sep kengetallen'!$A89,'Sep Voeropname'!E71,"") -> 
A90: Bijproducten | C90: =IF('Sep Voeropname'!$A72='Sep kengetallen'!$A90,'Sep Voeropname'!C72,"") ->  | E90: =IF('Sep Voeropname'!$A72='Sep kengetallen'!$A90,'Sep Voeropname'!E72,"") -> 
A91: Bijproducten | C91: =IF('Sep Voeropname'!$A73='Sep kengetallen'!$A91,'Sep Voeropname'!C73,"") ->  | E91: =IF('Sep Voeropname'!$A73='Sep kengetallen'!$A91,'Sep Voeropname'!E73,"") -> 
A92: Bijproducten | C92: =IF('Sep Voeropname'!$A74='Sep kengetallen'!$A92,'Sep Voeropname'!C74,"") ->  | E92: =IF('Sep Voeropname'!$A74='Sep kengetallen'!$A92,'Sep Voeropname'!E74,"") -> 
A93: Totaal Bijproducten | C93: =SUM(C84:C92) -> 36.792 | E93: =SUM(E84:E92) -> 36.40875
A95: Krachtvoer | C95: =SUM('Sep Voeropname'!C76:C78) -> 329.4 | E95: =SUM('Sep Voeropname'!E76:E78) -> 301.86
A97: Vers gras | C97: ='Sep Voeropname'!C31*('Sep vee+melk'!C2+'Sep vee+melk'!C3) -> 412.8611497 | E97: ='Sep Voeropname'!E31*('Sep vee+melk'!E2+'Sep vee+melk'!E3) -> 494.9015694
A99: Totaal | C99: =C95+C93+C82+C71+C60+C97 -> 1463.88835 | E99: =E95+E93+E82+E71+E60+E97 -> 1510.871819
A101: Vers gras | C101: =C97/C99 -> 0.2820304908 | E101: =E97/E99 -> 0.3275602622
A102: Aandeel kuilgras | C102: =C60/C$99 -> 0.2476123265 | E102: =E60/E$99 -> 0.2374132573
A103: Aandeel snijmais | C103: =C71/C$99 -> 0.2202069578 | E103: =E71/E$99 -> 0.2111367066
A104: Aandeel overig ruwvoer | C104: =C82/C$99 -> 0 | E104: =E82/E$99 -> 0
A105: Aandeel bijproducten | C105: =C93/C$99 -> 0.02513306429 | E105: =E93/E$99 -> 0.02409784174
A106: Aandeel krachtvoer | C106: =C95/C$99 -> 0.2250171607 | E106: =E95/E$99 -> 0.1997919321

Sheet Aug Voeropname (hidden)
A1: Gem rantsoen gehaltes (d dgn) | C1: ='Aug voer'!B3 -> Augustus gerealiseerd | E1: ='Aug voer'!G3 -> Augustus prognose
A2: DS opname/koe | C2: =C34 -> 20.11011728 | E2: =E34 -> 21.19829175
A3: VEM | C3: =C12 -> 930.8404467 | E3: =AVERAGE(E12:E12) -> 940.3668065
A4: DVE | C4: =AVERAGE(C13) ->  | M4: 1 | R4: Voedermiddelen
A5: OEB | C5: =AVERAGE(C14) ->  | M5: 2 | R5: Kuilgras
A6: RE | C6: =AVERAGE(C15) -> 160.0789043 | E6: 125.0017713 | R6: Snijmais
A7: N | C7: =AVERAGE(C16) -> 25.61262469 | E7: 20.0002834 | M7: Vem toeslag weidegang | O7: 1.03 | R7: OverigRuwvoer
A8: P | C8: 3.86093794 | E8: 3.156399604 | R8: Bijproducten
R9: Krachtvoer
A11: Rantsoen gehaltes (incl. weidegras)
A12: VEM | C12: =C35/C34 -> 930.8404467 | E12: =E35/E34 -> 940.3668065 | R12: Let op bij beperkt weiden is deze opname niet realistisch!
A13: DVE | C13: =C36/C34 ->  | E13: =E36/E34 ->  | R13: Let op VEM dekking te laag!
A14: OEB | C14: =C37 ->  | E14: =E37 -> 
A15: RE | C15: =C38/C34 -> 160.0789043 | E15: =E38/E34 -> 125.0017713
A16: N | C16: =C39/C34 -> 25.61262469 | E16: =E39/E34 -> 20.0002834
A17: P | C17: =C40/C34 -> 3.86093794 | E17: =E40/E34 -> 3.156399604
A22: kg ds | C22: =C55/SUM('Aug vee+melk'!C2:C3) -> 12.97406197 | E22: =E55/SUM('Aug vee+melk'!E2:E3) -> 12.37845
A23: Vemopname ex weidegras | C23: =C22*C45 -> 12154.13967 | E23: =E22*E45 -> 11819.91551
A27: VEM behoefte | C27: =IF('Aug voer'!B4=1,'Aug vee+melk'!C27*'Aug Voeropname'!O7,'Aug vee+melk'!C27) -> 18719.31055 | E27: =IF('Aug voer'!G4=1,'Aug vee+melk'!E27*'Aug Voeropname'!O7,'Aug vee+melk'!E27) -> 19934.16991
A28: Behoefte-opname | C28: =C27-'Aug Voeropname'!C23 -> 6565.170881 | E28: =E27-'Aug Voeropname'!E23 -> 8114.254407
C29: =C28/VLOOKUP('Aug voer'!B5,Weidegras!$A$5:$J$119,4,FALSE) -> 7.136055305 | E29: =E28/VLOOKUP('Aug voer'!G5,Weidegras!$A$5:$J$119,4,FALSE) -> 8.819841746
C30: =IF(C29>0,C29,0) -> 7.136055305 | E30: =IF(E29>0,E29,0) -> 8.819841746
A31: Weidegrasopname/koe | C31: =IF('Aug voer'!B4=1,C30,0) -> 7.136055305 | E31: =IF('Aug voer'!G4=1,E30,0) -> 8.819841746
A33: Rantsoenopname incl weidegras
A34: droge stof | C34: =C22+C31 -> 20.11011728 | E34: =E22+E31 -> 21.19829175
A35: VEM | C35: =C45*C22+C31*VLOOKUP('Aug voer'!B5,Weidegras!$A$6:$J$180,4,FALSE) -> 18719.31055 | E35: =E45*E22+E31*VLOOKUP('Aug voer'!G5,Weidegras!$A$6:$J$180,4,FALSE) -> 19934.16991
A36: DVE | C36: =C46*C22+$C$31*VLOOKUP('Aug voer'!B5,Weidegras!$A$5:$J$150,5,FALSE) ->  | E36: =E46*E22+$C$31*VLOOKUP('Aug voer'!G5,Weidegras!$A$5:$J$150,5,FALSE) -> 
A37: OEB | C37: =C22*C47+$C$31*VLOOKUP('Aug voer'!B5,Weidegras!$A$6:$J$151,6,FALSE) ->  | E37: =E22*E47+$C$31*VLOOKUP('Aug voer'!G5,Weidegras!$A$6:$J$151,6,FALSE) -> 
A38: RE | C38: =C48*C22+C31*VLOOKUP('Aug voer'!$B$5,Weidegras!$A$6:$J$181,7,FALSE) -> 3219.20554 | E38: =E48*E22+E31*VLOOKUP('Aug voer'!$B$5,Weidegras!$A$6:$J$181,7,FALSE) -> 2649.824016
A39: N | C39: =C38/6.25 -> 515.0728864 | E39: =E38/6.25 -> 423.9718425
A40: P | C40: =C50*C22+C31*VLOOKUP('Aug voer'!$B$5,Weidegras!$A$6:$J$183,10,FALSE) -> 77.64391478 | E40: =E50*E22+E31*VLOOKUP('Aug voer'!$B$5,Weidegras!$A$6:$J$183,10,FALSE) -> 66.91027968
A43: Stalrantsoen gehaltes
A44: droge stof
A45: VEM | C45: =C56/C$55 -> 936.8029608 | E45: =E56/E$55 -> 954.8784789
A46: DVE | C46: =C57/C$55*1000 ->  | E46: =E57/E$55*1000 -> 
A47: OEB | C47: =C58/C$55 ->  | E47: =E58/E$55 -> 
A48: RE | C48: =C59/C$55 -> 138.1213133 | E48: 71.56434502
A49: N | C49: =C60/C$55 -> 22.09941013 | E49: 11.4502952
A50: P | C50: =C61/C$55 -> 3.564440461 | E50: 2.270314619
A54: Stalrantsoen opname
A55: droge stof (kg) | C55: =C80 -> 921.1584 | E55: 891.2484
A56: VEM | C56: =C96 -> 862943.9165 | E56: 851033.9165
A57: DVE | C57: =C112 ->  | E57: =E112 -> 
A58: OEB | C58: =C128 ->  | E58: =E128 -> 
A59: RE | C59: =C144 -> 127231.608 | E59: =E144 -> 63781.608
A60: N | C60: =C146 -> 20357.05728 | E60: =E146 -> 10205.05728
A61: P | C61: =C162 -> 3283.414272 | E61: =E162 -> 2023.414272
A65: Drogestof opname
A66: ='Aug voer'!A9 -> Kuilgras | B66: ='Aug voer'!B9 -> Gkuil balen 2016 2e snede | C66: =IF('Aug voer'!C9>0,VLOOKUP('Aug voer'!B9,Voedermiddelen!$A$4:$K$75,3,FALSE)*'Aug voer'!C9*(1-'Aug voer'!$B$6),"") -> 166.656 | D66: ='Aug voer'!G9 -> Gkuil balen 2016 2e snede | E66: =IF('Aug voer'!H9>0,VLOOKUP('Aug voer'!G9,Voedermiddelen!$A$4:$K$75,3,FALSE)*'Aug voer'!H9*(1-'Aug voer'!$G$6),"") -> 166.656
A67: ='Aug voer'!A10 -> Snijmais | B67: ='Aug voer'!B10 -> Mkuil 1 | C67: =IF('Aug voer'!C10>0,VLOOKUP('Aug voer'!B10,Voedermiddelen!$A$4:$K$75,3,FALSE)*'Aug voer'!C10*(1-'Aug voer'!$B$6),"") -> 322.3584 | D67: ='Aug voer'!G10 -> Mkuil 1 | E67: =IF('Aug voer'!H10>0,VLOOKUP('Aug voer'!G10,Voedermiddelen!$A$4:$K$75,3,FALSE)*'Aug voer'!H10*(1-'Aug voer'!$G$6),"") -> 322.3584
A68: ='Aug voer'!A11 -> Kuilgras | B68: ='Aug voer'!B11 -> 2017 1e 2e snede | C68: =IF('Aug voer'!C11>0,VLOOKUP('Aug voer'!B11,Voedermiddelen!$A$4:$K$75,3,FALSE)*'Aug voer'!C11*(1-'Aug voer'!$B$6),"") -> 80.352 | D68: ='Aug voer'!G11 -> 2017 1e 2e snede | E68: =IF('Aug voer'!H11>0,VLOOKUP('Aug voer'!G11,Voedermiddelen!$A$4:$K$75,3,FALSE)*'Aug voer'!H11*(1-'Aug voer'!$G$6),"") -> 80.352
A69: ='Aug voer'!A12 -> Bijproducten | B69: ='Aug voer'!B12 -> Bierbostel | C69: =IF('Aug voer'!C12>0,VLOOKUP('Aug voer'!B12,Voedermiddelen!$A$4:$K$75,3,FALSE)*'Aug voer'!C12*(1-'Aug voer'!$B$6),"") -> 36.792 | D69: ='Aug voer'!G12 -> Bierbostel | E69: =IF('Aug voer'!H12>0,VLOOKUP('Aug voer'!G12,Voedermiddelen!$A$4:$K$75,3,FALSE)*'Aug voer'!H12*(1-'Aug voer'!$G$6),"") -> 36.792
A70: ='Aug voer'!A13 -> OverigRuwvoer | B70: ='Aug voer'!B13 -> Overig 2 | C70: =IF('Aug voer'!C13>0,VLOOKUP('Aug voer'!B13,Voedermiddelen!$A$4:$K$75,3,FALSE)*'Aug voer'!C13*(1-'Aug voer'!$B$6),"") ->  | D70: ='Aug voer'!G13 -> Overig 2 | E70: =IF('Aug voer'!H13>0,VLOOKUP('Aug voer'!G13,Voedermiddelen!$A$4:$K$75,3,FALSE)*'Aug voer'!H13*(1-'Aug voer'!$G$6),"") -> 
A71: ='Aug voer'!A14 -> Bijproducten | B71: ='Aug voer'!B14 -> BP 6 | C71: =IF('Aug voer'!C14>0,VLOOKUP('Aug voer'!B14,Voedermiddelen!$A$4:$K$75,3,FALSE)*'Aug voer'!C14*(1-'Aug voer'!$B$6),"") ->  | D71: ='Aug voer'!G14 -> BP 6 | E71: =IF('Aug voer'!H14>0,VLOOKUP('Aug voer'!G14,Voedermiddelen!$A$4:$K$75,3,FALSE)*'Aug voer'!H14*(1-'Aug voer'!$G$6),"") -> 
A72: ='Aug voer'!A15 -> 0 | B72: ='Aug voer'!B15 -> 0 | C72: =IF('Aug voer'!C15>0,VLOOKUP('Aug voer'!B15,Voedermiddelen!$A$4:$K$75,3,FALSE)*'Aug voer'!C15*(1-'Aug voer'!$B$6),"") ->  | D72: ='Aug voer'!G15 -> 0 | E72: =IF('Aug voer'!H15>0,VLOOKUP('Aug voer'!G15,Voedermiddelen!$A$4:$K$75,3,FALSE)*'Aug voer'!H15*(1-'Aug voer'!$G$6),"") -> 
A73: ='Aug voer'!A16 -> 0 | B73: ='Aug voer'!B16 -> 0 | C73: =IF('Aug voer'!C16>0,VLOOKUP('Aug voer'!B16,Voedermiddelen!$A$4:$K$75,3,FALSE)*'Aug voer'!C16*(1-'Aug voer'!$B$6),"") ->  | D73: ='Aug voer'!G16 -> 0 | E73: =IF('Aug voer'!H16>0,VLOOKUP('Aug voer'!G16,Voedermiddelen!$A$4:$K$75,3,FALSE)*'Aug voer'!H16*(1-'Aug voer'!$G$6),"") -> 
A74: ='Aug voer'!A17 -> 0 | B74: ='Aug voer'!B17 -> 0 | C74: =IF('Aug voer'!C17>0,VLOOKUP('Aug voer'!B17,Voedermiddelen!$A$4:$K$75,3,FALSE)*'Aug voer'!C17*(1-'Aug voer'!$B$6),"") ->  | D74: ='Aug voer'!G17 -> 0 | E74: =IF('Aug voer'!H17>0,VLOOKUP('Aug voer'!G17,Voedermiddelen!$A$4:$K$75,3,FALSE)*'Aug voer'!H17*(1-'Aug voer'!$G$6),"") -> 
B75: ='Aug voer'!B18 -> 0 | C75: =IF('Aug voer'!C18>0,VLOOKUP('Aug voer'!B18,Voedermiddelen!$A$4:$K$75,3,FALSE)*'Aug voer'!C18*(1-'Aug voer'!$B$6),"") ->  | D75: ='Aug voer'!G18 -> 0 | E75: =IF('Aug voer'!H18>0,VLOOKUP('Aug voer'!G18,Voedermiddelen!$A$4:$K$75,3,FALSE)*'Aug voer'!H18*(1-'Aug voer'!$G$6),"") -> 
B76: ='Aug voer'!B20 -> KV 1 | C76: =IF('Aug voer'!C20>0,VLOOKUP('Aug voer'!B20,Voedermiddelen!$A$4:$K$75,3,FALSE)*'Aug voer'!C20,"") -> 90 | E76: ='Aug voer'!H22*'Aug vee+melk'!E15/100*0.9 -> 285.09
B77: ='Aug voer'!B21 -> Melkbrok BM | C77: =IF('Aug voer'!C21>0,VLOOKUP('Aug voer'!B21,Voedermiddelen!$A$4:$K$75,3,FALSE)*'Aug voer'!C21,"") -> 225
B78: ='Aug voer'!B22 -> 0 | C78: =IF('Aug voer'!C22>0,VLOOKUP('Aug voer'!B22,Voedermiddelen!$A$4:$K$75,3,FALSE)*'Aug voer'!C22,"") -> 
A80: Totaal | C80: =SUM(C66:C78) -> 921.1584 | E80: =SUM(E66:E78) -> 891.2484
A82: VEM | B82: =B66 -> Gkuil balen 2016 2e snede | C82: =IF('Aug voer'!C9>0,VLOOKUP('Aug voer'!B9,Voedermiddelen!$A$4:$K$75,4,FALSE)*C66,"") -> 132824.832 | D82: =D66 -> Gkuil balen 2016 2e snede | E82: =IF('Aug voer'!H9>0,VLOOKUP('Aug voer'!G9,Voedermiddelen!$A$4:$K$75,4,FALSE)*E66,"") -> 132824.832
B83: =B67 -> Mkuil 1 | C83: =IF('Aug voer'!C10>0,VLOOKUP('Aug voer'!B10,Voedermiddelen!$A$4:$K$75,4,FALSE)*C67,"") -> 323067.5885 | D83: Mkuil 1 | E83: =IF('Aug voer'!H10>0,VLOOKUP('Aug voer'!G10,Voedermiddelen!$A$4:$K$75,4,FALSE)*E67,"") -> 323067.5885
B84: 2017 1e 2e snede | C84: =IF('Aug voer'!C11>0,VLOOKUP('Aug voer'!B11,Voedermiddelen!$A$4:$K$75,4,FALSE)*C68,"") -> 75209.472 | D84: 2017 1e 2e snede | E84: =IF('Aug voer'!H11>0,VLOOKUP('Aug voer'!G11,Voedermiddelen!$A$4:$K$75,4,FALSE)*E68,"") -> 75209.472
B85: Bierbostel | C85: =IF('Aug voer'!C12>0,VLOOKUP('Aug voer'!B12,Voedermiddelen!$A$4:$K$75,4,FALSE)*C69,"") -> 34842.024 | D85: Bierbostel | E85: =IF('Aug voer'!H12>0,VLOOKUP('Aug voer'!G12,Voedermiddelen!$A$4:$K$75,4,FALSE)*E69,"") -> 34842.024
B86: Overig 2 | C86: =IF('Aug voer'!C13>0,VLOOKUP('Aug voer'!B13,Voedermiddelen!$A$4:$K$75,4,FALSE)*C70,"") ->  | D86: Overig 2 | E86: =IF('Aug voer'!H13>0,VLOOKUP('Aug voer'!G13,Voedermiddelen!$A$4:$K$75,4,FALSE)*E70,"") -> 
B87: BP 6 | C87: =IF('Aug voer'!C14>0,VLOOKUP('Aug voer'!B14,Voedermiddelen!$A$4:$K$75,4,FALSE)*C71,"") ->  | D87: BP 6 | E87: =IF('Aug voer'!H14>0,VLOOKUP('Aug voer'!G14,Voedermiddelen!$A$4:$K$75,4,FALSE)*E71,"") -> 
B88: 0 | C88: =IF('Aug voer'!C15>0,VLOOKUP('Aug voer'!B15,Voedermiddelen!$A$4:$K$75,4,FALSE)*C72,"") ->  | D88: 0 | E88: =IF('Aug voer'!H15>0,VLOOKUP('Aug voer'!G15,Voedermiddelen!$A$4:$K$75,4,FALSE)*E72,"") -> 
B89: 0 | C89: =IF('Aug voer'!C16>0,VLOOKUP('Aug voer'!B16,Voedermiddelen!$A$4:$K$75,4,FALSE)*C73,"") ->  | D89: 0 | E89: =IF('Aug voer'!H16>0,VLOOKUP('Aug voer'!G16,Voedermiddelen!$A$4:$K$75,4,FALSE)*E73,"") -> 
B90: 0 | C90: =IF('Aug voer'!C17>0,VLOOKUP('Aug voer'!B17,Voedermiddelen!$A$4:$K$75,4,FALSE)*C74,"") ->  | D90: 0 | E90: =IF('Aug voer'!H17>0,VLOOKUP('Aug voer'!G17,Voedermiddelen!$A$4:$K$75,4,FALSE)*E74,"") -> 
B91: 0 | C91: =IF('Aug voer'!C18>0,VLOOKUP('Aug voer'!B18,Voedermiddelen!$A$4:$K$75,4,FALSE)*C75,"") ->  | D91: 0 | E91: =IF('Aug voer'!H18>0,VLOOKUP('Aug voer'!G18,Voedermiddelen!$A$4:$K$75,4,FALSE)*E75,"") -> 
B92: KV 1 | C92: =IF('Aug voer'!C20>0,VLOOKUP('Aug voer'!B20,Voedermiddelen!$A$4:$K$75,4,FALSE)*C76,"") -> 81000 | D92: 0 | E92: =E76*1000 -> 285090
B93: Melkbrok BM | C93: =IF('Aug voer'!C21>0,VLOOKUP('Aug voer'!B21,Voedermiddelen!$A$4:$K$75,4,FALSE)*C77,"") -> 216000 | D93: 0
B94: 0 | C94: =IF('Aug voer'!C22>0,VLOOKUP('Aug voer'!B22,Voedermiddelen!$A$4:$K$75,4,FALSE)*C78,"") ->  | D94: 0
A96: Totaal | C96: =SUM(C82:C94) -> 862943.9165 | E96: =SUM(E82:E94) -> 851033.9165
A98: DVE | B98: =B82 -> Gkuil balen 2016 2e snede | C98: =IF('Aug voer'!C9>0,VLOOKUP('Aug voer'!B9,[2]Voedermiddelen!$A$4:$K$75,5,FALSE)*C66,"") ->  | D98: =D82 -> Gkuil balen 2016 2e snede | E98: =IF('Aug voer'!H9>0,VLOOKUP('Aug voer'!G9,[2]Voedermiddelen!$A$4:$K$75,5,FALSE)*E66,"") -> 
B99: =B83 -> Mkuil 1 | C99: =IF('Aug voer'!C10>0,VLOOKUP('Aug voer'!B10,[2]Voedermiddelen!$A$4:$K$75,5,FALSE)*C67,"") -> 23016.38976 | D99: Mkuil 1 | E99: =IF('Aug voer'!H10>0,VLOOKUP('Aug voer'!G10,[2]Voedermiddelen!$A$4:$K$75,5,FALSE)*E67,"") -> 23016.38976
B100: 2017 1e 2e snede | C100: =IF('Aug voer'!C11>0,VLOOKUP('Aug voer'!B11,[2]Voedermiddelen!$A$4:$K$75,5,FALSE)*C68,"") ->  | D100: 2017 1e 2e snede | E100: =IF('Aug voer'!H11>0,VLOOKUP('Aug voer'!G11,[2]Voedermiddelen!$A$4:$K$75,5,FALSE)*E68,"") -> 
B101: Bierbostel | C101: =IF('Aug voer'!C12>0,VLOOKUP('Aug voer'!B12,[2]Voedermiddelen!$A$4:$K$75,5,FALSE)*C69,"") -> 5040.504 | D101: Bierbostel | E101: =IF('Aug voer'!H12>0,VLOOKUP('Aug voer'!G12,[2]Voedermiddelen!$A$4:$K$75,5,FALSE)*E69,"") -> 5040.504
B102: Overig 2 | C102: =IF('Aug voer'!C13>0,VLOOKUP('Aug voer'!B13,[2]Voedermiddelen!$A$4:$K$75,5,FALSE)*C70,"") ->  | D102: Overig 2 | E102: =IF('Aug voer'!H13>0,VLOOKUP('Aug voer'!G13,[2]Voedermiddelen!$A$4:$K$75,5,FALSE)*E70,"") -> 
B103: BP 6 | C103: =IF('Aug voer'!C14>0,VLOOKUP('Aug voer'!B14,[2]Voedermiddelen!$A$4:$K$75,5,FALSE)*C71,"") ->  | D103: BP 6 | E103: =IF('Aug voer'!H14>0,VLOOKUP('Aug voer'!G14,[2]Voedermiddelen!$A$4:$K$75,5,FALSE)*E71,"") -> 
B104: 0 | C104: =IF('Aug voer'!C15>0,VLOOKUP('Aug voer'!B15,[2]Voedermiddelen!$A$4:$K$75,5,FALSE)*C72,"") ->  | D104: 0 | E104: =IF('Aug voer'!H15>0,VLOOKUP('Aug voer'!G15,[2]Voedermiddelen!$A$4:$K$75,5,FALSE)*E72,"") -> 
B105: 0 | C105: =IF('Aug voer'!C16>0,VLOOKUP('Aug voer'!B16,[2]Voedermiddelen!$A$4:$K$75,5,FALSE)*C73,"") ->  | D105: 0 | E105: =IF('Aug voer'!H16>0,VLOOKUP('Aug voer'!G16,[2]Voedermiddelen!$A$4:$K$75,5,FALSE)*E73,"") -> 
B106: 0 | C106: =IF('Aug voer'!C17>0,VLOOKUP('Aug voer'!B17,[2]Voedermiddelen!$A$4:$K$75,5,FALSE)*C74,"") ->  | D106: 0 | E106: =IF('Aug voer'!H17>0,VLOOKUP('Aug voer'!G17,[2]Voedermiddelen!$A$4:$K$75,5,FALSE)*E74,"") -> 
B107: 0 | C107: =IF('Aug voer'!C18>0,VLOOKUP('Aug voer'!B18,[2]Voedermiddelen!$A$4:$K$75,5,FALSE)*C75,"") ->  | D107: 0 | E107: =IF('Aug voer'!H18>0,VLOOKUP('Aug voer'!G18,[2]Voedermiddelen!$A$4:$K$75,5,FALSE)*E75,"") -> 
B108: KV 1 | C108: =IF('Aug voer'!C20>0,VLOOKUP('Aug voer'!B20,[2]Voedermiddelen!$A$4:$K$75,5,FALSE)*C76,"") -> 10800 | D108: 0
B109: Melkbrok BM | C109: =IF('Aug voer'!C21>0,VLOOKUP('Aug voer'!B21,[2]Voedermiddelen!$A$4:$K$75,5,FALSE)*C77,"") ->  | D109: 0
B110: 0 | C110: =IF('Aug voer'!C22>0,VLOOKUP('Aug voer'!B22,[2]Voedermiddelen!$A$4:$K$75,5,FALSE)*C78,"") ->  | D110: 0
A112: Totaal | C112: =SUM(C98:C110)/1000 ->  | E112: =SUM(E98:E110)/1000 -> 
A114: OEB | B114: =B98 -> Gkuil balen 2016 2e snede | C114: =IF('Aug voer'!C9>0,VLOOKUP('Aug voer'!B9,[2]Voedermiddelen!$A$4:$K$75,6,FALSE)*C66,"") ->  | D114: =D98 -> Gkuil balen 2016 2e snede | E114: =IF('Aug voer'!H9>0,VLOOKUP('Aug voer'!G9,[2]Voedermiddelen!$A$4:$K$75,6,FALSE)*E66,"") -> 
B115: =B99 -> Mkuil 1 | C115: =IF('Aug voer'!C10>0,VLOOKUP('Aug voer'!B10,[2]Voedermiddelen!$A$4:$K$75,6,FALSE)*C67,"") -> -8832.62016 | D115: Mkuil 1 | E115: =IF('Aug voer'!H10>0,VLOOKUP('Aug voer'!G10,[2]Voedermiddelen!$A$4:$K$75,6,FALSE)*E67,"") -> -8832.62016
B116: 2017 1e 2e snede | C116: =IF('Aug voer'!C11>0,VLOOKUP('Aug voer'!B11,[2]Voedermiddelen!$A$4:$K$75,6,FALSE)*C68,"") ->  | D116: 2017 1e 2e snede | E116: =IF('Aug voer'!H11>0,VLOOKUP('Aug voer'!G11,[2]Voedermiddelen!$A$4:$K$75,6,FALSE)*E68,"") -> 
B117: Bierbostel | C117: =IF('Aug voer'!C12>0,VLOOKUP('Aug voer'!B12,[2]Voedermiddelen!$A$4:$K$75,6,FALSE)*C69,"") -> 2023.56 | D117: Bierbostel | E117: =IF('Aug voer'!H12>0,VLOOKUP('Aug voer'!G12,[2]Voedermiddelen!$A$4:$K$75,6,FALSE)*E69,"") -> 2023.56
B118: Overig 2 | C118: =IF('Aug voer'!C13>0,VLOOKUP('Aug voer'!B13,[2]Voedermiddelen!$A$4:$K$75,6,FALSE)*C70,"") ->  | D118: Overig 2 | E118: =IF('Aug voer'!H13>0,VLOOKUP('Aug voer'!G13,[2]Voedermiddelen!$A$4:$K$75,6,FALSE)*E70,"") -> 
B119: BP 6 | C119: =IF('Aug voer'!C14>0,VLOOKUP('Aug voer'!B14,[2]Voedermiddelen!$A$4:$K$75,6,FALSE)*C71,"") ->  | D119: BP 6 | E119: =IF('Aug voer'!H14>0,VLOOKUP('Aug voer'!G14,[2]Voedermiddelen!$A$4:$K$75,6,FALSE)*E71,"") -> 
B120: 0 | C120: =IF('Aug voer'!C15>0,VLOOKUP('Aug voer'!B15,[2]Voedermiddelen!$A$4:$K$75,6,FALSE)*C72,"") ->  | D120: 0 | E120: =IF('Aug voer'!H15>0,VLOOKUP('Aug voer'!G15,[2]Voedermiddelen!$A$4:$K$75,6,FALSE)*E72,"") -> 
B121: 0 | C121: =IF('Aug voer'!C16>0,VLOOKUP('Aug voer'!B16,[2]Voedermiddelen!$A$4:$K$75,6,FALSE)*C73,"") ->  | D121: 0 | E121: =IF('Aug voer'!H16>0,VLOOKUP('Aug voer'!G16,[2]Voedermiddelen!$A$4:$K$75,6,FALSE)*E73,"") -> 
B122: 0 | C122: =IF('Aug voer'!C17>0,VLOOKUP('Aug voer'!B17,[2]Voedermiddelen!$A$4:$K$75,6,FALSE)*C74,"") ->  | D122: 0 | E122: =IF('Aug voer'!H17>0,VLOOKUP('Aug voer'!G17,[2]Voedermiddelen!$A$4:$K$75,6,FALSE)*E74,"") -> 
B123: 0 | C123: =IF('Aug voer'!C18>0,VLOOKUP('Aug voer'!B18,[2]Voedermiddelen!$A$4:$K$75,6,FALSE)*C75,"") ->  | D123: 0 | E123: =IF('Aug voer'!H18>0,VLOOKUP('Aug voer'!G18,[2]Voedermiddelen!$A$4:$K$75,6,FALSE)*E75,"") -> 
B124: KV 1 | C124: =IF('Aug voer'!C20>0,VLOOKUP('Aug voer'!B20,[2]Voedermiddelen!$A$4:$K$75,6,FALSE)*C76,"") -> 5400 | D124: 0
B125: Melkbrok BM | C125: =IF('Aug voer'!C21>0,VLOOKUP('Aug voer'!B21,[2]Voedermiddelen!$A$4:$K$75,6,FALSE)*C77,"") ->  | D125: 0
B126: 0 | C126: =IF('Aug voer'!C22>0,VLOOKUP('Aug voer'!B22,[2]Voedermiddelen!$A$4:$K$75,6,FALSE)*C78,"") ->  | D126: 0
A128: Totaal | C128: =SUM(C114:C126) ->  | E128: =SUM(E114:E126) -> 
A130: RE | B130: =B114 -> Gkuil balen 2016 2e snede | C130: =IF('Aug voer'!C9>0,VLOOKUP('Aug voer'!B9,Voedermiddelen!$A$4:$K$75,7,FALSE)*C66,"") -> 17665.536 | D130: =D114 -> Gkuil balen 2016 2e snede | E130: =IF('Aug voer'!H9>0,VLOOKUP('Aug voer'!G9,Voedermiddelen!$A$4:$K$75,7,FALSE)*E66,"") -> 17665.536
B131: =B115 -> Mkuil 1 | C131: =IF('Aug voer'!C10>0,VLOOKUP('Aug voer'!B10,Voedermiddelen!$A$4:$K$75,7,FALSE)*C67,"") -> 22565.088 | D131: Mkuil 1 | E131: =IF('Aug voer'!H10>0,VLOOKUP('Aug voer'!G10,Voedermiddelen!$A$4:$K$75,7,FALSE)*E67,"") -> 22565.088
B132: 2017 1e 2e snede | C132: =IF('Aug voer'!C11>0,VLOOKUP('Aug voer'!B11,Voedermiddelen!$A$4:$K$75,7,FALSE)*C68,"") -> 14463.36 | D132: 2017 1e 2e snede | E132: =IF('Aug voer'!H11>0,VLOOKUP('Aug voer'!G11,Voedermiddelen!$A$4:$K$75,7,FALSE)*E68,"") -> 14463.36
B133: Bierbostel | C133: =IF('Aug voer'!C12>0,VLOOKUP('Aug voer'!B12,Voedermiddelen!$A$4:$K$75,7,FALSE)*C69,"") -> 9087.624 | D133: Bierbostel | E133: =IF('Aug voer'!H12>0,VLOOKUP('Aug voer'!G12,Voedermiddelen!$A$4:$K$75,7,FALSE)*E69,"") -> 9087.624
B134: Overig 2 | C134: =IF('Aug voer'!C13>0,VLOOKUP('Aug voer'!B13,Voedermiddelen!$A$4:$K$75,7,FALSE)*C70,"") ->  | D134: Overig 2 | E134: =IF('Aug voer'!H13>0,VLOOKUP('Aug voer'!G13,Voedermiddelen!$A$4:$K$75,7,FALSE)*E70,"") -> 
B135: BP 6 | C135: =IF('Aug voer'!C14>0,VLOOKUP('Aug voer'!B14,Voedermiddelen!$A$4:$K$75,7,FALSE)*C71,"") ->  | D135: BP 6 | E135: =IF('Aug voer'!H14>0,VLOOKUP('Aug voer'!G14,Voedermiddelen!$A$4:$K$75,7,FALSE)*E71,"") -> 
B136: 0 | C136: =IF('Aug voer'!C15>0,VLOOKUP('Aug voer'!B15,Voedermiddelen!$A$4:$K$75,7,FALSE)*C72,"") ->  | D136: 0 | E136: =IF('Aug voer'!H15>0,VLOOKUP('Aug voer'!G15,Voedermiddelen!$A$4:$K$75,7,FALSE)*E72,"") -> 
B137: 0 | C137: =IF('Aug voer'!C16>0,VLOOKUP('Aug voer'!B16,Voedermiddelen!$A$4:$K$75,7,FALSE)*C73,"") ->  | D137: 0 | E137: =IF('Aug voer'!H16>0,VLOOKUP('Aug voer'!G16,Voedermiddelen!$A$4:$K$75,7,FALSE)*E73,"") -> 
B138: 0 | C138: =IF('Aug voer'!C17>0,VLOOKUP('Aug voer'!B17,Voedermiddelen!$A$4:$K$75,7,FALSE)*C74,"") ->  | D138: 0 | E138: =IF('Aug voer'!H17>0,VLOOKUP('Aug voer'!G17,Voedermiddelen!$A$4:$K$75,7,FALSE)*E74,"") -> 
B139: 0 | C139: =IF('Aug voer'!C18>0,VLOOKUP('Aug voer'!B18,Voedermiddelen!$A$4:$K$75,7,FALSE)*C75,"") ->  | D139: 0 | E139: =IF('Aug voer'!H18>0,VLOOKUP('Aug voer'!G18,Voedermiddelen!$A$4:$K$75,7,FALSE)*E75,"") -> 
B140: KV 1 | C140: =IF('Aug voer'!C20>0,VLOOKUP('Aug voer'!B20,Voedermiddelen!$A$4:$K$75,7,FALSE)*C76,"") -> 15300 | D140: 0
B141: Melkbrok BM | C141: =IF('Aug voer'!C21>0,VLOOKUP('Aug voer'!B21,Voedermiddelen!$A$4:$K$75,7,FALSE)*C77,"") -> 48150 | D141: 0
B142: =B126 -> 0 | C142: =IF('Aug voer'!C22>0,VLOOKUP('Aug voer'!B22,Voedermiddelen!$A$4:$K$75,7,FALSE)*C78,"") ->  | D142: 0
A144: Totaal | C144: =SUM(C130:C142) -> 127231.608 | E144: =SUM(E130:E142) -> 63781.608
A146: N opname | C146: =C144/6.25 -> 20357.05728 | E146: =E144/6.25 -> 10205.05728 | G146: =(E76/0.9*'Aug voer'!M6/6.25) -> 8546.718683
A148: P | B148: =B130 -> Gkuil balen 2016 2e snede | C148: =IF('Aug voer'!C9>0,VLOOKUP('Aug voer'!B9,Voedermiddelen!$A$4:$K$75,10,FALSE)*C66,"") -> 549.9648 | D148: =D130 -> Gkuil balen 2016 2e snede | E148: =IF('Aug voer'!H9>0,VLOOKUP('Aug voer'!G9,Voedermiddelen!$A$4:$K$75,10,FALSE)*E66,"") -> 549.9648
B149: =B131 -> Mkuil 1 | C149: =IF('Aug voer'!C10>0,VLOOKUP('Aug voer'!B10,Voedermiddelen!$A$4:$K$75,10,FALSE)*C67,"") -> 992.863872 | D149: Mkuil 1 | E149: =IF('Aug voer'!H10>0,VLOOKUP('Aug voer'!G10,Voedermiddelen!$A$4:$K$75,10,FALSE)*E67,"") -> 992.863872
B150: 2017 1e 2e snede | C150: =IF('Aug voer'!C11>0,VLOOKUP('Aug voer'!B11,Voedermiddelen!$A$4:$K$75,10,FALSE)*C68,"") -> 289.2672 | D150: 2017 1e 2e snede | E150: =IF('Aug voer'!H11>0,VLOOKUP('Aug voer'!G11,Voedermiddelen!$A$4:$K$75,10,FALSE)*E68,"") -> 289.2672
B151: Bierbostel | C151: =IF('Aug voer'!C12>0,VLOOKUP('Aug voer'!B12,Voedermiddelen!$A$4:$K$75,10,FALSE)*C69,"") -> 191.3184 | D151: Bierbostel | E151: =IF('Aug voer'!H12>0,VLOOKUP('Aug voer'!G12,Voedermiddelen!$A$4:$K$75,10,FALSE)*E69,"") -> 191.3184
B152: Overig 2 | C152: =IF('Aug voer'!C13>0,VLOOKUP('Aug voer'!B13,Voedermiddelen!$A$4:$K$75,10,FALSE)*C70,"") ->  | D152: Overig 2 | E152: =IF('Aug voer'!H13>0,VLOOKUP('Aug voer'!G13,Voedermiddelen!$A$4:$K$75,10,FALSE)*E70,"") -> 
B153: BP 6 | C153: =IF('Aug voer'!C14>0,VLOOKUP('Aug voer'!B14,Voedermiddelen!$A$4:$K$75,10,FALSE)*C71,"") ->  | D153: BP 6 | E153: =IF('Aug voer'!H14>0,VLOOKUP('Aug voer'!G14,Voedermiddelen!$A$4:$K$75,10,FALSE)*E71,"") -> 
B154: 0 | C154: =IF('Aug voer'!C15>0,VLOOKUP('Aug voer'!B15,Voedermiddelen!$A$4:$K$75,10,FALSE)*C72,"") ->  | D154: 0 | E154: =IF('Aug voer'!H15>0,VLOOKUP('Aug voer'!G15,Voedermiddelen!$A$4:$K$75,10,FALSE)*E72,"") -> 
B155: 0 | C155: =IF('Aug voer'!C16>0,VLOOKUP('Aug voer'!B16,Voedermiddelen!$A$4:$K$75,10,FALSE)*C73,"") ->  | D155: 0 | E155: =IF('Aug voer'!H16>0,VLOOKUP('Aug voer'!G16,Voedermiddelen!$A$4:$K$75,10,FALSE)*E73,"") -> 
B156: 0 | C156: =IF('Aug voer'!C17>0,VLOOKUP('Aug voer'!B17,Voedermiddelen!$A$4:$K$75,10,FALSE)*C74,"") ->  | D156: 0 | E156: =IF('Aug voer'!H17>0,VLOOKUP('Aug voer'!G17,Voedermiddelen!$A$4:$K$75,10,FALSE)*E74,"") -> 
B157: 0 | C157: =IF('Aug voer'!C18>0,VLOOKUP('Aug voer'!B18,Voedermiddelen!$A$4:$K$75,10,FALSE)*C75,"") ->  | D157: 0 | E157: =IF('Aug voer'!H18>0,VLOOKUP('Aug voer'!G18,Voedermiddelen!$A$4:$K$75,10,FALSE)*E75,"") -> 
B158: =B140 -> KV 1 | C158: =IF('Aug voer'!C20>0,VLOOKUP('Aug voer'!B20,Voedermiddelen!$A$4:$K$75,10,FALSE)*C76,"") -> 360 | D158: 0
B159: =B141 -> Melkbrok BM | C159: =IF('Aug voer'!C21>0,VLOOKUP('Aug voer'!B21,Voedermiddelen!$A$4:$K$75,10,FALSE)*C77,"") -> 900 | D159: 0
B160: =B142 -> 0 | C160: =IF('Aug voer'!C22>0,VLOOKUP('Aug voer'!B22,Voedermiddelen!$A$4:$K$75,10,FALSE)*C78,"") ->  | D160: 0
A162: Totaal | C162: =SUM(C148:C160) -> 3283.414272 | E162: =SUM(E148:E160) -> 2023.414272 | G162: =(E76/0.9*'Aug voer'!M7) -> 677.0570834

Sheet Aug Excretie (hidden)
A1: Veestapel
C2: ='Aug vee+melk'!C6 -> Augustus gerealiseerd | E2: ='Aug vee+melk'!E6 -> Augustus prognose
A5: Excretie (kg/dier/dag)
C6: N | E6: N
A7: Opname | C7: ='Aug Voeropname'!C2*'Aug Voeropname'!C7*0.001 -> 0.5150728864 | E7: ='Aug Voeropname'!E2*'Aug Voeropname'!E7*0.001+'Aug Voeropname'!G146*0.001/'Aug vee+melk'!E2 -> 0.5478373307
A8: Gem opname 7 dgn | C8: =AVERAGE(C7:F7) -> 0.5314551085 | E8: =AVERAGE(E7) -> 0.5478373307
A9: Productie | C9: ='Aug vee+melk'!C22*'Aug vee+melk'!C10/6.38 -> 0.1358795532 | E9: ='Aug vee+melk'!E22*'Aug vee+melk'!E10/6.38 -> 0.1419728898
A10: Vastlegging | C10: =1.4/365 -> 0.003835616438 | E10: =1.4/365 -> 0.003835616438
A11: Onder de staart | C11: =C7-C9-C10 -> 0.3753577168 | E11: =E7-E9-E10 -> 0.4020288245
A12: Vervluchtiging | C12: =C11*0.1175 -> 0.04410453172 | E12: =E11*0.1175 -> 0.04723838687
A13: Gemeten netto excretie | C13: =C11-C12 -> 0.331253185 | E13: =E11-E12 -> 0.3547904376
C15: P | E15: P
A16: Opname | C16: ='Aug Voeropname'!C2*'Aug Voeropname'!C8/1000 -> 0.07764391478 | E16: ='Aug Voeropname'!E2*'Aug Voeropname'!E8/1000+'Aug Voeropname'!G162*0.001/'Aug vee+melk'!E2 -> 0.07672270118
A17: Gem opname 7 dgn | C17: =AVERAGE(C16:F16) -> 0.07718330798 | E17: =AVERAGE(E16) -> 0.07672270118
A18: Productie | C18: ='Aug vee+melk'!C22*0.9/1000 -> 0.02216535211 | E18: ='Aug vee+melk'!E22*0.9/1000 -> 0.02329166667
A19: Vastlegging | C19: =0.5/365 -> 0.001369863014 | E19: =0.5/365 -> 0.001369863014
A20: Onder de staart | C20: =C16-C18-C19 -> 0.05410869965 | E20: =E16-E18-E19 -> 0.0520611715
A21: Vervluchtiging
A22: Gemeten netto excretie | C22: =C20 -> 0.05410869965 | E22: =E20 -> 0.0520611715
A24: N excretie per ton meetmelk (kg) | C24: =C13/'Aug vee+melk'!C21*1000 -> 12.51151692 | E24: =E13/'Aug vee+melk'!E21*1000 -> 12.26340952
A25: P excretie per ton meetmelk (kg) | C25: =C22/'Aug vee+melk'!C21*1000 -> 2.043699326 | E25: =E22/'Aug vee+melk'!E21*1000 -> 1.799505844

Sheet Aug kengetallen (hidden)
A1: Rantsoen
A2: Datum | C2: ='Aug voer'!B3 -> Augustus gerealiseerd | E2: ='Aug voer'!G3 -> Augustus prognose
A4: ='Aug Voeropname'!A2 -> DS opname/koe | C4: ='Aug Voeropname'!C2 -> 20.11011728 | E4: ='Aug Voeropname'!E2 -> 21.19829175
A5: ='Aug Voeropname'!A3 -> VEM | C5: ='Aug Voeropname'!C3 -> 930.8404467 | E5: ='Aug Voeropname'!E3 -> 940.3668065
A6: ='Aug Voeropname'!A4 -> DVE | C6: ='Aug Voeropname'!C4 ->  | E6: ='Aug Voeropname'!E4 -> 
A7: ='Aug Voeropname'!A5 -> OEB | C7: ='Aug Voeropname'!C5 ->  | E7: ='Aug Voeropname'!E5 -> 
A8: ='Aug Voeropname'!A6 -> RE | C8: ='Aug Voeropname'!C6 -> 160.0789043 | E8: ='Aug Voeropname'!E6 -> 125.0017713
A9: ='Aug Voeropname'!A7 -> N | C9: ='Aug Voeropname'!C7 -> 25.61262469 | E9: ='Aug Voeropname'!E7 -> 20.0002834
A10: ='Aug Voeropname'!A8 -> P | C10: ='Aug Voeropname'!C8 -> 3.86093794 | E10: ='Aug Voeropname'!E8 -> 3.156399604
A12: Streefwaarde RE | C12: ='Aug voer'!H20 -> 160
A13: Streefwaarde P | C13: ='Aug voer'!H21 -> 3.6
A16: ='Aug Excretie'!A24 -> N excretie per ton meetmelk (kg) | C16: ='Aug Excretie'!C24 -> 12.51151692 | E16: ='Aug Excretie'!E24 -> 12.26340952
A17: ='Aug Excretie'!A25 -> P excretie per ton meetmelk (kg) | C17: ='Aug Excretie'!C25 -> 2.043699326 | E17: ='Aug Excretie'!E25 -> 1.799505844
A20: VEM dekking | C20: ='Aug Voeropname'!C35/'Aug vee+melk'!C27 -> 1.03 | E20: ='Aug Voeropname'!E35/'Aug vee+melk'!E27 -> 1.03
A21: DVE dekking | C21: ='Aug Voeropname'!C36/'Aug vee+melk'!C28 ->  | E21: ='Aug Voeropname'!E36/'Aug vee+melk'!E28 -> 
A24: Voerefficientie kg meetmelk/kg voer (ds) | C24: ='Aug vee+melk'!C21/'Aug Voeropname'!C2 -> 1.316544345 | E24: ='Aug vee+melk'!E21/'Aug Voeropname'!E2 -> 1.364771077
A25: kg krachtvoer per 100 kg (excl bijprod) | C25: =SUM('Aug Voeropname'!C76:C78)/('Aug vee+melk'!C21*'Aug vee+melk'!C2)*100/0.9 -> 19.44057188 | E25: =SUM('Aug Voeropname'!E76:E78)/('Aug vee+melk'!E21*'Aug vee+melk'!E2)*100 -> 14.28144719
A28: =A12 -> Streefwaarde RE | C28: =$C$12 -> 160 | E28: =$C$12 -> 160
A29: =A13 -> Streefwaarde P | C29: =$C$13 -> 3.6 | E29: =$C$13 -> 3.6
A34: =A2 -> Datum | C34: =C2 -> Augustus gerealiseerd | D34: =E2 -> Augustus prognose | E34: =#REF! ->  | F34: =#REF! -> 
A35: 00:00:00
A36: DS opname/koe | C36: =C4 -> 20.11011728 | D36: =E4 -> 21.19829175 | E36: =#REF! ->  | F36: =#REF! -> 
A37: VEM | C37: 930.8404467 | D37: 940.3668065 | E37: =#REF! ->  | F37: =#REF! -> 
A38: DVE | E38: =#REF! ->  | F38: =#REF! -> 
A39: OEB | E39: =#REF! ->  | F39: =#REF! -> 
A40: RE | C40: 160.0789043 | D40: 125.0017713 | E40: =#REF! ->  | F40: =#REF! -> 
A41: N | C41: 25.61262469 | D41: 20.0002834 | E41: =#REF! ->  | F41: =#REF! -> 
A42: P | C42: 3.86093794 | D42: 3.156399604 | E42: =#REF! ->  | F42: =#REF! -> 
A43: =A15 -> 00:00:00
A44: N excretie per ton meetmelk (kg) | C44: =C16 -> 12.51151692 | D44: =E16 -> 12.26340952 | E44: =#REF! ->  | F44: =#REF! -> 
A45: P excretie per ton meetmelk (kg) | C45: 2.043699326 | D45: =E17 -> 1.799505844 | E45: =#REF! ->  | F45: =#REF! -> 
A46: 00:00:00 | C46: =1000/C45/2.29 -> 213.6719512 | D46: =1000/D45/2.29 -> 242.6672989 | E46: =1000/E45/2.29 ->  | F46: =1000/F45/2.29 -> 
A49: Rantsoen
A51: Kuilgras | C51: =IF('Aug Voeropname'!$A66='Aug kengetallen'!$A51,'Aug Voeropname'!C66,"") -> 166.656 | E51: =IF('Aug Voeropname'!$A66='Aug kengetallen'!$A51,'Aug Voeropname'!E66,"") -> 166.656
A52: Kuilgras | C52: =IF('Aug Voeropname'!$A67='Aug kengetallen'!$A52,'Aug Voeropname'!C67,"") ->  | E52: =IF('Aug Voeropname'!$A67='Aug kengetallen'!$A52,'Aug Voeropname'!E67,"") -> 
A53: Kuilgras | C53: =IF('Aug Voeropname'!$A68='Aug kengetallen'!$A53,'Aug Voeropname'!C68,"") -> 80.352 | E53: =IF('Aug Voeropname'!$A68='Aug kengetallen'!$A53,'Aug Voeropname'!E68,"") -> 80.352
A54: Kuilgras | C54: =IF('Aug Voeropname'!$A69='Aug kengetallen'!$A54,'Aug Voeropname'!C69,"") ->  | E54: =IF('Aug Voeropname'!$A69='Aug kengetallen'!$A54,'Aug Voeropname'!E69,"") -> 
A55: Kuilgras | C55: =IF('Aug Voeropname'!$A70='Aug kengetallen'!$A55,'Aug Voeropname'!C70,"") ->  | E55: =IF('Aug Voeropname'!$A70='Aug kengetallen'!$A55,'Aug Voeropname'!E70,"") -> 
A56: Kuilgras | C56: =IF('Aug Voeropname'!$A71='Aug kengetallen'!$A56,'Aug Voeropname'!C71,"") ->  | E56: =IF('Aug Voeropname'!$A71='Aug kengetallen'!$A56,'Aug Voeropname'!E71,"") -> 
A57: Kuilgras | C57: =IF('Aug Voeropname'!$A72='Aug kengetallen'!$A57,'Aug Voeropname'!C72,"") ->  | E57: =IF('Aug Voeropname'!$A72='Aug kengetallen'!$A57,'Aug Voeropname'!E72,"") -> 
A58: Kuilgras | C58: =IF('Aug Voeropname'!$A73='Aug kengetallen'!$A58,'Aug Voeropname'!C73,"") ->  | E58: =IF('Aug Voeropname'!$A73='Aug kengetallen'!$A58,'Aug Voeropname'!E73,"") -> 
A59: Kuilgras | C59: =IF('Aug Voeropname'!$A74='Aug kengetallen'!$A59,'Aug Voeropname'!C74,"") ->  | E59: =IF('Aug Voeropname'!$A74='Aug kengetallen'!$A59,'Aug Voeropname'!E74,"") -> 
A60: Totaal kuilgras | C60: =SUM(C51:C59) -> 247.008 | E60: =SUM(E51:E59) -> 247.008
A62: Snijmais | C62: =IF('Aug Voeropname'!$A66='Aug kengetallen'!$A62,'Aug Voeropname'!C66,"") ->  | E62: =IF('Aug Voeropname'!$A66='Aug kengetallen'!$A62,'Aug Voeropname'!E66,"") -> 
A63: Snijmais | C63: =IF('Aug Voeropname'!$A67='Aug kengetallen'!$A63,'Aug Voeropname'!C67,"") -> 322.3584 | E63: =IF('Aug Voeropname'!$A67='Aug kengetallen'!$A63,'Aug Voeropname'!E67,"") -> 322.3584
A64: Snijmais | C64: =IF('Aug Voeropname'!$A68='Aug kengetallen'!$A64,'Aug Voeropname'!C68,"") ->  | E64: =IF('Aug Voeropname'!$A68='Aug kengetallen'!$A64,'Aug Voeropname'!E68,"") -> 
A65: Snijmais | C65: =IF('Aug Voeropname'!$A69='Aug kengetallen'!$A65,'Aug Voeropname'!C69,"") ->  | E65: =IF('Aug Voeropname'!$A69='Aug kengetallen'!$A65,'Aug Voeropname'!E69,"") -> 
A66: Snijmais | C66: =IF('Aug Voeropname'!$A70='Aug kengetallen'!$A66,'Aug Voeropname'!C70,"") ->  | E66: =IF('Aug Voeropname'!$A70='Aug kengetallen'!$A66,'Aug Voeropname'!E70,"") -> 
A67: Snijmais | C67: =IF('Aug Voeropname'!$A71='Aug kengetallen'!$A67,'Aug Voeropname'!C71,"") ->  | E67: =IF('Aug Voeropname'!$A71='Aug kengetallen'!$A67,'Aug Voeropname'!E71,"") -> 
A68: Snijmais | C68: =IF('Aug Voeropname'!$A72='Aug kengetallen'!$A68,'Aug Voeropname'!C72,"") ->  | E68: =IF('Aug Voeropname'!$A72='Aug kengetallen'!$A68,'Aug Voeropname'!E72,"") -> 
A69: Snijmais | C69: =IF('Aug Voeropname'!$A73='Aug kengetallen'!$A69,'Aug Voeropname'!C73,"") ->  | E69: =IF('Aug Voeropname'!$A73='Aug kengetallen'!$A69,'Aug Voeropname'!E73,"") -> 
A70: Snijmais | C70: =IF('Aug Voeropname'!$A74='Aug kengetallen'!$A70,'Aug Voeropname'!C74,"") ->  | E70: =IF('Aug Voeropname'!$A74='Aug kengetallen'!$A70,'Aug Voeropname'!E74,"") -> 
A71: Totaal snijmais | C71: =SUM(C62:C70) -> 322.3584 | E71: =SUM(E62:E70) -> 322.3584
A73: OverigRuwvoer | C73: =IF('Aug Voeropname'!$A66='Aug kengetallen'!$A73,'Aug Voeropname'!C66,"") ->  | E73: =IF('Aug Voeropname'!$A66='Aug kengetallen'!$A73,'Aug Voeropname'!E66,"") -> 
A74: OverigRuwvoer | C74: =IF('Aug Voeropname'!$A67='Aug kengetallen'!$A74,'Aug Voeropname'!C67,"") ->  | E74: =IF('Aug Voeropname'!$A67='Aug kengetallen'!$A74,'Aug Voeropname'!E67,"") -> 
A75: OverigRuwvoer | C75: =IF('Aug Voeropname'!$A68='Aug kengetallen'!$A75,'Aug Voeropname'!C68,"") ->  | E75: =IF('Aug Voeropname'!$A68='Aug kengetallen'!$A75,'Aug Voeropname'!E68,"") -> 
A76: OverigRuwvoer | C76: =IF('Aug Voeropname'!$A69='Aug kengetallen'!$A76,'Aug Voeropname'!C69,"") ->  | E76: =IF('Aug Voeropname'!$A69='Aug kengetallen'!$A76,'Aug Voeropname'!E69,"") -> 
A77: OverigRuwvoer | C77: =IF('Aug Voeropname'!$A70='Aug kengetallen'!$A77,'Aug Voeropname'!C70,"") ->  | E77: =IF('Aug Voeropname'!$A70='Aug kengetallen'!$A77,'Aug Voeropname'!E70,"") -> 
A78: OverigRuwvoer | C78: =IF('Aug Voeropname'!$A71='Aug kengetallen'!$A78,'Aug Voeropname'!C71,"") ->  | E78: =IF('Aug Voeropname'!$A71='Aug kengetallen'!$A78,'Aug Voeropname'!E71,"") -> 
A79: OverigRuwvoer | C79: =IF('Aug Voeropname'!$A72='Aug kengetallen'!$A79,'Aug Voeropname'!C72,"") ->  | E79: =IF('Aug Voeropname'!$A72='Aug kengetallen'!$A79,'Aug Voeropname'!E72,"") -> 
A80: OverigRuwvoer | C80: =IF('Aug Voeropname'!$A73='Aug kengetallen'!$A80,'Aug Voeropname'!C73,"") ->  | E80: =IF('Aug Voeropname'!$A73='Aug kengetallen'!$A80,'Aug Voeropname'!E73,"") -> 
A81: OverigRuwvoer | C81: =IF('Aug Voeropname'!$A74='Aug kengetallen'!$A81,'Aug Voeropname'!C74,"") ->  | E81: =IF('Aug Voeropname'!$A74='Aug kengetallen'!$A81,'Aug Voeropname'!E74,"") -> 
A82: Totaal overig Ruwvoer | C82: =SUM(C73:C81) -> 0 | E82: =SUM(E73:E81) -> 0
A84: Bijproducten | C84: =IF('Aug Voeropname'!$A66='Aug kengetallen'!$A84,'Aug Voeropname'!C66,"") ->  | E84: =IF('Aug Voeropname'!$A66='Aug kengetallen'!$A84,'Aug Voeropname'!E66,"") -> 
A85: Bijproducten | C85: =IF('Aug Voeropname'!$A67='Aug kengetallen'!$A85,'Aug Voeropname'!C67,"") ->  | E85: =IF('Aug Voeropname'!$A67='Aug kengetallen'!$A85,'Aug Voeropname'!E67,"") -> 
A86: Bijproducten | C86: =IF('Aug Voeropname'!$A68='Aug kengetallen'!$A86,'Aug Voeropname'!C68,"") ->  | E86: =IF('Aug Voeropname'!$A68='Aug kengetallen'!$A86,'Aug Voeropname'!E68,"") -> 
A87: Bijproducten | C87: =IF('Aug Voeropname'!$A69='Aug kengetallen'!$A87,'Aug Voeropname'!C69,"") -> 36.792 | E87: =IF('Aug Voeropname'!$A69='Aug kengetallen'!$A87,'Aug Voeropname'!E69,"") -> 36.792
A88: Bijproducten | C88: =IF('Aug Voeropname'!$A70='Aug kengetallen'!$A88,'Aug Voeropname'!C70,"") ->  | E88: =IF('Aug Voeropname'!$A70='Aug kengetallen'!$A88,'Aug Voeropname'!E70,"") -> 
A89: Bijproducten | C89: =IF('Aug Voeropname'!$A71='Aug kengetallen'!$A89,'Aug Voeropname'!C71,"") ->  | E89: =IF('Aug Voeropname'!$A71='Aug kengetallen'!$A89,'Aug Voeropname'!E71,"") -> 
A90: Bijproducten | C90: =IF('Aug Voeropname'!$A72='Aug kengetallen'!$A90,'Aug Voeropname'!C72,"") ->  | E90: =IF('Aug Voeropname'!$A72='Aug kengetallen'!$A90,'Aug Voeropname'!E72,"") -> 
A91: Bijproducten | C91: =IF('Aug Voeropname'!$A73='Aug kengetallen'!$A91,'Aug Voeropname'!C73,"") ->  | E91: =IF('Aug Voeropname'!$A73='Aug kengetallen'!$A91,'Aug Voeropname'!E73,"") -> 
A92: Bijproducten | C92: =IF('Aug Voeropname'!$A74='Aug kengetallen'!$A92,'Aug Voeropname'!C74,"") ->  | E92: =IF('Aug Voeropname'!$A74='Aug kengetallen'!$A92,'Aug Voeropname'!E74,"") -> 
A93: Totaal Bijproducten | C93: =SUM(C84:C92) -> 36.792 | E93: =SUM(E84:E92) -> 36.792
A95: Krachtvoer | C95: =SUM('Aug Voeropname'!C76:C78) -> 315 | E95: =SUM('Aug Voeropname'!E76:E78) -> 285.09
A97: Vers gras | C97: ='Aug Voeropname'!C31*('Aug vee+melk'!C2+'Aug vee+melk'!C3) -> 506.6599267 | E97: ='Aug Voeropname'!E31*('Aug vee+melk'!E2+'Aug vee+melk'!E3) -> 635.0286057
A99: Totaal | C99: =C95+C93+C82+C71+C60+C97 -> 1427.818327 | E99: =E95+E93+E82+E71+E60+E97 -> 1526.277006
A101: Vers gras | C101: =C97/C99 -> 0.3548490149 | E101: =E97/E99 -> 0.4160637966
A102: Aandeel kuilgras | C102: =C60/C$99 -> 0.172996799 | E102: =E60/E$99 -> 0.1618369399
A103: Aandeel snijmais | C103: =C71/C$99 -> 0.2257698994 | E103: =E71/E$99 -> 0.2112056978
A104: Aandeel overig ruwvoer | C104: =C82/C$99 -> 0 | E104: =E82/E$99 -> 0
A105: Aandeel bijproducten | C105: =C93/C$99 -> 0.02576798414 | E105: =E93/E$99 -> 0.02410571598
A106: Aandeel krachtvoer | C106: =C95/C$99 -> 0.2206163026 | E106: =E95/E$99 -> 0.1867878497

Sheet Juli Voeropname (hidden)
A1: Gem rantsoen gehaltes (d dgn) | C1: ='Juli voer'!B3 -> Juli gerealiseerd | E1: ='Juli voer'!G3 -> Juli prognose
A2: DS opname/koe | C2: =C34 -> 20.22912573 | E2: =E34 -> 20.66467671
A3: VEM | C3: =C12 -> 944.0180289 | E3: =AVERAGE(E12:E12) -> 954.721493
A4: DVE | C4: =AVERAGE(C13) -> 61.9248877 | M4: 1 | R4: Voedermiddelen
A5: OEB | C5: =AVERAGE(C14) ->  | M5: 2 | R5: Kuilgras
A6: RE | C6: =AVERAGE(C15) -> 153.7737244 | E6: 118.4021185 | R6: Snijmais
A7: N | C7: =AVERAGE(C16) -> 24.60379591 | E7: 18.94433895 | M7: Vem toeslag weidegang | O7: 1.03 | R7: OverigRuwvoer
A8: P | C8: 3.748559688 | E8: 3.048279835 | R8: Bijproducten
R9: Krachtvoer
A11: Rantsoen gehaltes (incl. weidegras)
A12: VEM | C12: =C35/C34 -> 944.0180289 | E12: =E35/E34 -> 954.721493 | R12: Let op bij beperkt weiden is deze opname niet realistisch!
A13: DVE | C13: =C36/C34 -> 61.9248877 | E13: =E36/E34 ->  | R13: Let op VEM dekking te laag!
A14: OEB | C14: =C37 ->  | E14: =E37 -> 
A15: RE | C15: =C38/C34 -> 153.7737244 | E15: =E38/E34 -> 118.4021185
A16: N | C16: =C39/C34 -> 24.60379591 | E16: =E39/E34 -> 18.94433895
A17: P | C17: =C40/C34 -> 3.748559688 | E17: =E40/E34 -> 3.048279835
A22: kg ds | C22: =C55/SUM('Juli vee+melk'!C2:C3) -> 11.77104718 | E22: =E55/SUM('Juli vee+melk'!E2:E3) -> 10.70824932
A23: Vemopname ex weidegras | C23: =C22*C45 -> 11061.48478 | E23: =E22*E45 -> 10270.40497
A27: VEM behoefte | C27: =IF('Juli voer'!B4=1,'Juli vee+melk'!C27*'Juli Voeropname'!O7,'Juli vee+melk'!C27) -> 19096.6594 | E27: =IF('Juli voer'!G4=1,'Juli vee+melk'!E27*'Juli Voeropname'!O7,'Juli vee+melk'!E27) -> 19729.011
A28: Behoefte-opname | C28: =C27-'Juli Voeropname'!C23 -> 8035.174623 | E28: =E27-'Juli Voeropname'!E23 -> 9458.606027
C29: =C28/VLOOKUP('Juli voer'!B5,Weidegras!$A$5:$J$119,4,FALSE) -> 8.45807855 | E29: =E28/VLOOKUP('Juli voer'!G5,Weidegras!$A$5:$J$119,4,FALSE) -> 9.956427397
C30: =IF(C29>0,C29,0) -> 8.45807855 | E30: =IF(E29>0,E29,0) -> 9.956427397
A31: Weidegrasopname/koe | C31: =IF('Juli voer'!B4=1,C30,0) -> 8.45807855 | E31: =IF('Juli voer'!G4=1,E30,0) -> 9.956427397
A33: Rantsoenopname incl weidegras
A34: droge stof | C34: =C22+C31 -> 20.22912573 | E34: =E22+E31 -> 20.66467671
A35: VEM | C35: =C45*C22+C31*VLOOKUP('Juli voer'!B5,Weidegras!$A$6:$J$180,4,FALSE) -> 19096.6594 | E35: =E45*E22+E31*VLOOKUP('Juli voer'!G5,Weidegras!$A$6:$J$180,4,FALSE) -> 19729.011
A36: DVE | C36: =C46*C22+$C$31*VLOOKUP('Juli voer'!B5,Weidegras!$A$5:$J$150,5,FALSE) -> 1252.686339 | E36: =E46*E22+$C$31*VLOOKUP('Juli voer'!G5,Weidegras!$A$5:$J$150,5,FALSE) -> 
A37: OEB | C37: =C22*C47+$C$31*VLOOKUP('Juli voer'!B5,Weidegras!$A$6:$J$151,6,FALSE) ->  | E37: =E22*E47+$C$31*VLOOKUP('Juli voer'!G5,Weidegras!$A$6:$J$151,6,FALSE) -> 
A38: RE | C38: =C48*C22+C31*VLOOKUP('Juli voer'!$B$5,Weidegras!$A$6:$J$181,7,FALSE) -> 3110.708006 | E38: =E48*E22+E31*VLOOKUP('Juli voer'!$B$5,Weidegras!$A$6:$J$181,7,FALSE) -> 2446.7415
A39: N | C39: =C38/6.25 -> 497.713281 | E39: =E38/6.25 -> 391.47864
A40: P | C40: =C50*C22+C31*VLOOKUP('Juli voer'!$B$5,Weidegras!$A$6:$J$183,10,FALSE) -> 75.83008524 | E40: =E50*E22+E31*VLOOKUP('Juli voer'!$B$5,Weidegras!$A$6:$J$183,10,FALSE) -> 62.99171732
A43: Stalrantsoen gehaltes
A44: droge stof
A45: VEM | C45: =C56/C$55 -> 939.7196873 | E45: =E56/E$55 -> 959.1114918
A46: DVE | C46: =C57/C$55*1000 -> 51.09267523 | E46: =E57/E$55*1000 -> 
A47: OEB | C47: =C58/C$55 ->  | E47: =E58/E$55 -> 
A48: RE | C48: =C59/C$55 -> 134.9288506 | E48: 61.12899964
A49: N | C49: =C60/C$55 -> 21.5886161 | E49: 9.780639942
A50: P | C50: =C61/C$55 -> 3.56788741 | E50: 2.163379563
A54: Stalrantsoen opname
A55: droge stof (kg) | C55: =C80 -> 835.74435 | E55: 781.7022
A56: VEM | C56: =C96 -> 785365.4192 | E56: 749739.5632
A57: DVE | C57: =C112 -> 42.70041465 | E57: =E112 -> 
A58: OEB | C58: =C128 ->  | E58: =E128 -> 
A59: RE | C59: =C144 -> 112766.0246 | E59: =E144 -> 47784.6735
A60: N | C60: =C146 -> 18042.56393 | E60: =E146 -> 7645.54776
A61: P | C61: =C162 -> 2981.841744 | E61: =E162 -> 1691.118564
A65: Drogestof opname
A66: ='Juli voer'!A9 -> Kuilgras | B66: ='Juli voer'!B9 -> Gkuil balen 2016 2e snede | C66: =IF('Juli voer'!C9>0,VLOOKUP('Juli voer'!B9,Voedermiddelen!$A$4:$K$75,3,FALSE)*'Juli voer'!C9*(1-'Juli voer'!$B$6),"") -> 151.5528 | D66: ='Juli voer'!G9 -> Gkuil balen 2016 2e snede | E66: =IF('Juli voer'!H9>0,VLOOKUP('Juli voer'!G9,Voedermiddelen!$A$4:$K$75,3,FALSE)*'Juli voer'!H9*(1-'Juli voer'!$G$6),"") -> 151.5528
A67: ='Juli voer'!A10 -> Snijmais | B67: ='Juli voer'!B10 -> Mkuil 1 | C67: =IF('Juli voer'!C10>0,VLOOKUP('Juli voer'!B10,Voedermiddelen!$A$4:$K$75,3,FALSE)*'Juli voer'!C10*(1-'Juli voer'!$B$6),"") -> 325.7163 | D67: ='Juli voer'!G10 -> Mkuil 1 | E67: =IF('Juli voer'!H10>0,VLOOKUP('Juli voer'!G10,Voedermiddelen!$A$4:$K$75,3,FALSE)*'Juli voer'!H10*(1-'Juli voer'!$G$6),"") -> 325.7163
A68: ='Juli voer'!A11 -> OverigRuwvoer | B68: ='Juli voer'!B11 -> Overig 1 | C68: =IF('Juli voer'!C11>0,VLOOKUP('Juli voer'!B11,Voedermiddelen!$A$4:$K$75,3,FALSE)*'Juli voer'!C11*(1-'Juli voer'!$B$6),"") ->  | D68: ='Juli voer'!G11 -> Overig 1 | E68: =IF('Juli voer'!H11>0,VLOOKUP('Juli voer'!G11,Voedermiddelen!$A$4:$K$75,3,FALSE)*'Juli voer'!H11*(1-'Juli voer'!$G$6),"") -> 
A69: ='Juli voer'!A12 -> Bijproducten | B69: ='Juli voer'!B12 -> Bierbostel | C69: =IF('Juli voer'!C12>0,VLOOKUP('Juli voer'!B12,Voedermiddelen!$A$4:$K$75,3,FALSE)*'Juli voer'!C12*(1-'Juli voer'!$B$6),"") -> 37.17525 | D69: ='Juli voer'!G12 -> Bierbostel | E69: =IF('Juli voer'!H12>0,VLOOKUP('Juli voer'!G12,Voedermiddelen!$A$4:$K$75,3,FALSE)*'Juli voer'!H12*(1-'Juli voer'!$G$6),"") -> 36.1131
A70: ='Juli voer'!A13 -> OverigRuwvoer | B70: ='Juli voer'!B13 -> Overig 2 | C70: =IF('Juli voer'!C13>0,VLOOKUP('Juli voer'!B13,Voedermiddelen!$A$4:$K$75,3,FALSE)*'Juli voer'!C13*(1-'Juli voer'!$B$6),"") ->  | D70: ='Juli voer'!G13 -> Overig 2 | E70: =IF('Juli voer'!H13>0,VLOOKUP('Juli voer'!G13,Voedermiddelen!$A$4:$K$75,3,FALSE)*'Juli voer'!H13*(1-'Juli voer'!$G$6),"") -> 
A71: ='Juli voer'!A14 -> Bijproducten | B71: ='Juli voer'!B14 -> BP 6 | C71: =IF('Juli voer'!C14>0,VLOOKUP('Juli voer'!B14,Voedermiddelen!$A$4:$K$75,3,FALSE)*'Juli voer'!C14*(1-'Juli voer'!$B$6),"") ->  | D71: ='Juli voer'!G14 -> BP 6 | E71: =IF('Juli voer'!H14>0,VLOOKUP('Juli voer'!G14,Voedermiddelen!$A$4:$K$75,3,FALSE)*'Juli voer'!H14*(1-'Juli voer'!$G$6),"") -> 
A72: ='Juli voer'!A15 -> 0 | B72: ='Juli voer'!B15 -> 0 | C72: =IF('Juli voer'!C15>0,VLOOKUP('Juli voer'!B15,Voedermiddelen!$A$4:$K$75,3,FALSE)*'Juli voer'!C15*(1-'Juli voer'!$B$6),"") ->  | D72: ='Juli voer'!G15 -> 0 | E72: =IF('Juli voer'!H15>0,VLOOKUP('Juli voer'!G15,Voedermiddelen!$A$4:$K$75,3,FALSE)*'Juli voer'!H15*(1-'Juli voer'!$G$6),"") -> 
A73: ='Juli voer'!A16 -> 0 | B73: ='Juli voer'!B16 -> 0 | C73: =IF('Juli voer'!C16>0,VLOOKUP('Juli voer'!B16,Voedermiddelen!$A$4:$K$75,3,FALSE)*'Juli voer'!C16*(1-'Juli voer'!$B$6),"") ->  | D73: ='Juli voer'!G16 -> 0 | E73: =IF('Juli voer'!H16>0,VLOOKUP('Juli voer'!G16,Voedermiddelen!$A$4:$K$75,3,FALSE)*'Juli voer'!H16*(1-'Juli voer'!$G$6),"") -> 
A74: ='Juli voer'!A17 -> 0 | B74: ='Juli voer'!B17 -> 0 | C74: =IF('Juli voer'!C17>0,VLOOKUP('Juli voer'!B17,Voedermiddelen!$A$4:$K$75,3,FALSE)*'Juli voer'!C17*(1-'Juli voer'!$B$6),"") ->  | D74: ='Juli voer'!G17 -> 0 | E74: =IF('Juli voer'!H17>0,VLOOKUP('Juli voer'!G17,Voedermiddelen!$A$4:$K$75,3,FALSE)*'Juli voer'!H17*(1-'Juli voer'!$G$6),"") -> 
B75: ='Juli voer'!B18 -> 0 | C75: =IF('Juli voer'!C18>0,VLOOKUP('Juli voer'!B18,Voedermiddelen!$A$4:$K$75,3,FALSE)*'Juli voer'!C18*(1-'Juli voer'!$B$6),"") ->  | D75: ='Juli voer'!G18 -> 0 | E75: =IF('Juli voer'!H18>0,VLOOKUP('Juli voer'!G18,Voedermiddelen!$A$4:$K$75,3,FALSE)*'Juli voer'!H18*(1-'Juli voer'!$G$6),"") -> 
B76: ='Juli voer'!B20 -> KV 1 | C76: =IF('Juli voer'!C20>0,VLOOKUP('Juli voer'!B20,Voedermiddelen!$A$4:$K$75,3,FALSE)*'Juli voer'!C20,"") -> 91.8 | E76: ='Juli voer'!H22*'Juli vee+melk'!E15/100*0.9 -> 268.32
B77: ='Juli voer'!B21 -> Melkbrok BM | C77: =IF('Juli voer'!C21>0,VLOOKUP('Juli voer'!B21,Voedermiddelen!$A$4:$K$75,3,FALSE)*'Juli voer'!C21,"") -> 229.5
B78: ='Juli voer'!B22 -> 0 | C78: =IF('Juli voer'!C22>0,VLOOKUP('Juli voer'!B22,Voedermiddelen!$A$4:$K$75,3,FALSE)*'Juli voer'!C22,"") -> 
A80: Totaal | C80: =SUM(C66:C78) -> 835.74435 | E80: =SUM(E66:E78) -> 781.7022
A82: VEM | B82: =B66 -> Gkuil balen 2016 2e snede | C82: =IF('Juli voer'!C9>0,VLOOKUP('Juli voer'!B9,Voedermiddelen!$A$4:$K$75,4,FALSE)*C66,"") -> 120787.5816 | D82: =D66 -> Gkuil balen 2016 2e snede | E82: =IF('Juli voer'!H9>0,VLOOKUP('Juli voer'!G9,Voedermiddelen!$A$4:$K$75,4,FALSE)*E66,"") -> 120787.5816
B83: =B67 -> Mkuil 1 | C83: =IF('Juli voer'!C10>0,VLOOKUP('Juli voer'!B10,Voedermiddelen!$A$4:$K$75,4,FALSE)*C67,"") -> 326432.8759 | D83: Mkuil 1 | E83: =IF('Juli voer'!H10>0,VLOOKUP('Juli voer'!G10,Voedermiddelen!$A$4:$K$75,4,FALSE)*E67,"") -> 326432.8759
B84: Overig 1 | C84: =IF('Juli voer'!C11>0,VLOOKUP('Juli voer'!B11,Voedermiddelen!$A$4:$K$75,4,FALSE)*C68,"") ->  | D84: Overig 1 | E84: =IF('Juli voer'!H11>0,VLOOKUP('Juli voer'!G11,Voedermiddelen!$A$4:$K$75,4,FALSE)*E68,"") -> 
B85: Bierbostel | C85: =IF('Juli voer'!C12>0,VLOOKUP('Juli voer'!B12,Voedermiddelen!$A$4:$K$75,4,FALSE)*C69,"") -> 35204.96175 | D85: Bierbostel | E85: =IF('Juli voer'!H12>0,VLOOKUP('Juli voer'!G12,Voedermiddelen!$A$4:$K$75,4,FALSE)*E69,"") -> 34199.1057
B86: Overig 2 | C86: =IF('Juli voer'!C13>0,VLOOKUP('Juli voer'!B13,Voedermiddelen!$A$4:$K$75,4,FALSE)*C70,"") ->  | D86: Overig 2 | E86: =IF('Juli voer'!H13>0,VLOOKUP('Juli voer'!G13,Voedermiddelen!$A$4:$K$75,4,FALSE)*E70,"") -> 
B87: BP 6 | C87: =IF('Juli voer'!C14>0,VLOOKUP('Juli voer'!B14,Voedermiddelen!$A$4:$K$75,4,FALSE)*C71,"") ->  | D87: BP 6 | E87: =IF('Juli voer'!H14>0,VLOOKUP('Juli voer'!G14,Voedermiddelen!$A$4:$K$75,4,FALSE)*E71,"") -> 
B88: 0 | C88: =IF('Juli voer'!C15>0,VLOOKUP('Juli voer'!B15,Voedermiddelen!$A$4:$K$75,4,FALSE)*C72,"") ->  | D88: 0 | E88: =IF('Juli voer'!H15>0,VLOOKUP('Juli voer'!G15,Voedermiddelen!$A$4:$K$75,4,FALSE)*E72,"") -> 
B89: 0 | C89: =IF('Juli voer'!C16>0,VLOOKUP('Juli voer'!B16,Voedermiddelen!$A$4:$K$75,4,FALSE)*C73,"") ->  | D89: 0 | E89: =IF('Juli voer'!H16>0,VLOOKUP('Juli voer'!G16,Voedermiddelen!$A$4:$K$75,4,FALSE)*E73,"") -> 
